Workbook

Sheet Notes
A1: MadIndicator.xlsm; Traders Tip spreadsheet created for the October 2021 Issue
A2: Coded beginning 2021-Aug-14 by Ronald McAllister (rpmac_xltt@sprynet.com)
A4: This Workbook demonstrates an EXCEL version of the ideas presented
A5: by John Ehlers in an article titled "Cycle/Trend Analytics And The MAD Indicator", which originally appeared in the October 2021 issue of
A6: "Technical Analysis of Stocks and Commodities" magazine.
A8: * * * * * * * * * * * * * * * *
A12: New for May 2021
A13: Upgraded the data download logic to do a better job of catching the common data download errors and provide a more graceful resolution.
A14: This includes better user notification of the nature of the error and some user control over how the error should be handled.
A15: User notification comes in the form of a MSGbox display that includes the (sometimes cryptic) description of the error and offers the user three options.
A17: Abort - If I could customize the title, I would rename this button to "Debug"
A18: This choice places you in Debug mode at the failing VBA statement.
A19: Unless you are feeling good about your VBA (and Network) debugging skills, this is probably not for you.
A21: Retry
A22: Lets the code retry the failed download request.
A23: This is a reasonable option if the download request timed out (similar to video buffering) or your network connection has dropped out..
A24: Probably a good idea to make sure your internet connection is alive and well before you select Retry.
A26: Ignore
A27: Lets the code fall thru to a (hopefully) graceful error completion with the error indicated at the top of the InputPriceData tab
A29: New for August 2020
A30: Restructured my Symbol-Not-Found detection and now stop further processing in the not found case
A32: New with the May 2020 version of my T-Tips template: VBA to implement a "Perpetual" U.S. Markets Closed Holiday Calendar.
A34: Why we need one: The Yahoo Finance recently has begun having occasional filtration problems where bars for U.S. Market Closed Holidays
A35: make their way onto the Historical Data web page and into the Historical Data download.
A37: While testing this May 2020 spreadsheet with different symbols, I found that I sometimes had bars with the text "null" in the price fields.
A38: My code always translates the "null" text price values to zeros.
A39: The resulting zeros cause real problems with indicator computations and the amount of blank space below price candles on the price chart.
A41: "null" price bars can be valid for very lightly traded penny sheet symbols which may not trade every day the markets are open.
A42: But is definitely not normal for symbols on the big boards.
A44: A closer look determined that these "bars" were for holiday dates when the US markets are normally closed.
A45: I found it interesting that some times the next download for the same symbol would not contain any of these "holiday" bars. Weird!
A47: My approach here was to write code to determine if the DATE on a null price values bar falls on one of the 9 market closed U.S. Holidays.
A48: If the bar date corresponds to one of these market closed holidays, I drop the bar before it reaches the InputPriceData tab.
A49: If the date is not a holiday, I let the bar through with the resulting zero values.
A51: No messy tables to update over the years as there are good solid rules that can be used in VBA or any other programming language to determine
A52: the dates for U.S. Market Closed Holidays for any given calendar year.
A54: This workbook contains and uses VBA macros and may take advantage of user defined VBA Class structures.
A55: Input Data:
A56: The data in this workbook is sorted date-descending (most recent date at the top). All cell formulas and
A57: VBA routines are built assuming this date sequence.
A59: ERROR 9 (already fixed in this spreadsheet)
A60: On or about Jan 29, 2020 Yahoo Finance changed the format of the split factor expression used their historical data downloads.
A61: The Split expression went from using "/" as in "New Share Number/Old Share Number",
A62: to using ":" as in "New Share Number:Old Share Number".
A63: This caused the then current version of my VBA code to fail with a "Runtime Error '9': subscript out of range".
A65: Fix for this ERROR 9
A66: For T-Tip spreadsheets from September 2018 up to present:
A67: Selecting the Debug option takes one into the VBA at the code line which causes the failure:
A68: CellArray(C_A_RowNdx, C_A_ColNdx + 1) = SplitFactors(1)
A69: Two lines above the failing VBA line is a line that reads:
A70: SplitFactors = Split(CsvColumns(CsvColNdx), "/")
A71: Change the / to a :
A72: The corrected line should now read
A73: SplitFactors = Split(CsvColumns(CsvColNdx), ":")
A75: If you are fixing several spreadsheets and do not want to use the failure to find the fix location,
A76: you can use VBA’s FIND dialog (Ctrl F) to look for the substring
A77: SplitFactors =
A78: Do include one space and the equal sign in your FIND string
A79: Select the "Current Project" option
A80: There should only be one instance.
A82: T-Tip spreadsheets prior to the September 2018 spreadsheet do not hard fail.
A84: They just get weird results in the split columns of the Input Price Data tab (soft fail).
A85: These older spreadsheets used different data retrieval and formatting logic.
A87: To fix these older spreadsheets:
A88: In the VBA editor, use find (CTRL-F).
A89: Select the "Current Project" option, and search for the following:
A90: OtherChar:="/"
A91: You are looking for a hit in a line reading:
A92: Other:=True, OtherChar:="/", _
A93: This line is part of a multiline block of code starting with a line that reads:
A94: SplitRange.Offset(0, 1).Resize(SpRows, 1).TextToColumns
A95: Change the / to a : so that the line reads
A96: Other:=True, OtherChar:=":", _
A99: 2019-04-04 Finally came up with a mechanism to align the left location and overall length of the cursor scroll bar so that the left most and right most
A100: scroll bar thumb positions visually align reasonably well with the left and right ends of the price chart horizontal axis.
A101: Makes it a little easier to visually align the Thumb and thus the cursor with points of interest on the charts.
A103: Older:
B104: My sincere apologies to our Macintosh based readers: Neither MSXML nor WinHttpRequest are supported in your environment. So as it stands this version of the spreadsheet will not work for you.
B105: See "Why this approach does not work for Macintosh" below.
B106: I am investigating cURL as a non-Querytable based approach for the Macintosh environment.
A108: The new Yahoo Finance history download interface has changed rather radically. The biggest hurdle being a pseudo-security requirement of adding a
B109: crumb character string to any URL requesting any type of history download. That crumb must match up (by way of some sort of hash algorithm) with
B110: the Yahoo Finance cookie that must also be sent with any request to the new Yahoo History down load interface.
B112: A crumb value is returned, buried in the HTML for any of what I call the "entry level" Yahoo Finance web pages (no crumb security requirement for entry level pages).
B113: A crumb may come with other Yahoo Finance pages. A crumb may even accompany some of the secured pages as well. I have not checked.
B115: Entry level pages are the top level pages of the various Yahoo Finance dialogs and include: Quote Lookup, Stock Summary Quote, and any of the pages
B116: with links in the horizontal row with the "Summary" link on the quote summary page such as Options, Historical Data, and the rest.
B118: To date I have found no way to get at this crumb value using any native EXCEL capabilities.
B120: So this crumb requirement effectively shuts out any solution that attempts to exclusively use built-in facilities of EXCEL, which is to say a purely Querytables solution.
B122: The approach built for this Traders Tip spreadsheet uses WINHTTP calls to Load the InputPriceData worksheet.
B124: First I call to get the HTML text for the Yahoo Summary Quote page using the requested symbol. From this HTML text I extract the full company name,
B125: the market it trades, the market status and time stamp, and finally the associated crumb string. There is a bunch of other useful bits buried in this HTML
B126: text that do not necessarily appear on the web page your browser presents. Perhaps some day I will go after and build a worksheet with these other bits.
B128: Next I add the freshly extracted crumb string to the URLs I use in three separate WINHTTP calls to retrieve Price history, Split history, and Dividend history respectively.
B130: From there VBA code proceeds as in the past to fill in the cell formulas and formatting that make the "prettied up" InputPriceData sheet.
A132: Why this approach works for Windows:
B133: WINHTTP maintains a temporary computer memory cache where cookies are maintained for as long as the WINHTTP object is instantiated.
B134: WINHTTP updates this cache any time a "set cookie" header accompanies a web response.
B135: Subsequent WINHTTP calls automatically search this cache for cookies and add any "appropriate" cookies to the headers
B136: of any web requests that get sent out.
B137: This cookie handling automation means that even if the response to our WINHTTP call for the Summary web page includes a new version of
B138: the Yahoo Finance cookie, the imbedded Crumb value will always match the cookie newly installed in the cache!
A141: Why this approach does not work for Macintosh:
B142: For what it is worth, the Macintosh version of the MS Office suite of products do in fact maintain a special, shared amongst themselves only, cookie cache.
B143: They automate cookie handling into and from this cache JUST for the Office products and any Querytable activity they might originate.
B145: This cache is not tied to, nor shared with, any browser that might be installed on the MAC. And I have not found anything with HTTP capabilities similar to
B146: MSXML that can work with that Office product cookie cache.
B148: When working in the MAC EXCEL environment, I have not yet become conversant with a Mac based WINHTTP like capability.
B149: So l currently have no mechanism to replicate the non-Querytable data retrieval process I am using in Windows environments.
B150: A software product called CURL has been suggested as providing this capability in the MAC environment.
B151: A version of CURL is available for the Windows So some day I may explore its capabilities and how to access those capabilities from VBA.
A153: Calculation and Chart Worksheet Usage Comments:
C154: In General, Items in Bolded BLUE are items you may freely change to play what-if games.
C155: Be sure to have a backup copy of the spreadsheet before you alter anything else.
A157: Features carried forward from the June 2016 version of my T-Tips Template
A158: Added a pair of buttons near cell F12 that will allow the user to step the charting window forward or backward one bar for each click.
A159: I find this to be a good way to test my understanding of the author's ideas as I step through the evolution of the price behavior and the indicators.
B161: First: In the "Help! I would like to plot data" area.
B162: Added button to resolve #NA problems by locating the bar in the input data with a slightly more recent date than what the user actually requested.
B163: I find this particularly useful when I have a general idea of where I want to be date wise. Now I can pick a set of dates "out of the air".
B164: If either (or both) of my date specifications fall between dates that are available in the price history,
B165: this button will resolve them to the dates of the nearest, slightly more recent input bars.
B166: I can then refine my data interval search as necessary from there.
B167: Really great when working with Weekly or Monthly studies!
C168: 2016Jun11 - added logic to the "I would like to chart.." button to detect #N/A values and terminate
C169: gracefully with a message instead of blowing up in the charting logic.
B171: Second: In the "Price Chart Windowing Controls" area. (A11 and A12)
B172: When retrieving data for a new symbol or when changing from daily to weekly or monthly data, there was the possibility that the
B173: residual settings in A11 and A12 would fall outside of the number bars available on the input data tab after the new data retrieval.
B174: In certain combinations, this could create a serious error in the chart sizing logic and crash the spreadsheet.
B175: I have taken this opportunity to update the validity checking logic used in the chart sizing macros
B176: to adjust these values as necessary so that they fall within the boundaries of the newly retrieved input data.
A177: Features carried forward from the October 2015 Traders Tips Template
B178: Improved automation: changes to any of the following will automatically initiate calculations appropriate to reflect a change.
C179: Changing either of cells A11 (pan) or A12 (zoom) will automatically initiate the same chart sizing macros that the manual
C180: "Set Chart" button uses.

Sheet InputPriceData
A1: S&P 500 (^GSPC) -SNP (Daily)
M2: To retrieve data for symbols traded on non US Exchanges, | II2: 241.79
A3: Request Online Yahoo History for: | F3: Market State == > | G3: As of | H3: 12:13:00 | I3: EDT. Market open. | M3: you will need to append the dot-suffix for the exchange to the symbol.
A4: Symbol | B4: ^GSPC | D4: Valid | I4: =OFFSET(I4,-2,0,1,1) -> 0 | M4: The following links provide a description of how to use the exchange suffix
A5: From | B5: 1950-10-01 | D5: Data | M5: along with a list of suffixes for the major world exchanges. | AD5: Trailing 12 Div return (Cur Close)
A6: To | B6: =NOW() -> 2021-08-18T14:37:42.940 | D6: Types | E6: =VLOOKUP(B7,D7:E10,2,FALSE) -> d | M6: https://help.yahoo.com/kb/finance/SLN2310.html
A7: Data Type | B7: Daily | D7: Daily | E7: d | M7: And
A8: Crumb | B8: KGA5dASJX8R | D8: Weekly | E8: w | M8: https://www.stockmarketeye.com/users-guide/ticker-symbols-and-data-providers/data-providers.html
A9: Available Data | D9: Monthly | E9: m
A10: Bar Count: | B10: 17835 | M10: You may search on “exchange suffixes” for additional discussions | AD10: =OFFSET(AC15,1,0,1,1)/OFFSET(N15,1,0,1,1) -> 0
A11: From: | B11: =IF(B10<=0,"",OFFSET(B15,B10,IF(HistReqDataType="v",1,0),1,1)) -> 1950-10-02 | W11: Trailing 12 Month Dividend Returns
A12: To: | B12: =IF(B10<=0,"",IF(HistReqDataType="v",OFFSET(B15,2,1,1,1),OFFSET(B15,1,0,1,1))) -> 2021-08-17 | W12: Raw Close price on Dividend date | X12: Div Year and Month | Y12: Looking for year ago Div Year and Month | Z12: Year ago Div Date we found | AA12: row offset to year ago div Date | AB12: Same month flag | AC12: Trailing 12 Div Total | AD12: Trailing 12 Div return
Q13: Split History | S13: 0 | T13: Running | U13: Dividend History
B14: Raw Data Values | H14: Adjusted | I14: Price Adjust | J14: Vol Adjust | K14: Adjusted Values | P14: Last | Q14: Effective | R14: Shares | T14: Vol Adjust | V14: 0
A15: RelRow | B15: Date | C15: Open | D15: High | E15: Low | F15: Close | G15: Volume | H15: Close | I15: Factor | J15: Factor | K15: Open | L15: High | M15: Low | N15: Close | O15: Volume | P15: Trade | Q15: 44426 | R15: New | S15: Old | T15: 1 | U15: Date | V15: $ / Share
A16: 1 | B16: 2021-08-17 | C16: 4462.120117 | D16: 4462.120117 | E16: 4436.390137 | F16: 4439.700195 | G16: 804389167 | H16: 4439.700195 | I16: =IF(F16=0,1,H16/F16) -> 1 | J16: =INDEX(OFFSET($T$15,0,0,$S$13+1,1),MATCH(B16,OFFSET($Q$15,0,0,$S$13+1,1),-1)) -> 1 | K16: =ROUND($I16*C16,2) -> 4462.12 | L16: =ROUND($I16*D16,2) -> 4462.12 | M16: 4436.39 | N16: 4439.7 | O16: =G16*J16 -> 804389167
A17: 2 | B17: 2021-08-16 | C17: 4461.649902 | D17: 4473.259766 | E17: 4437.660156 | F17: 4472.939941 | G17: 2707170000 | H17: 4472.939941 | I17: =IF(F17=0,1,H17/F17) -> 1 | J17: =INDEX(OFFSET($T$15,0,0,$S$13+1,1),MATCH(B17,OFFSET($Q$15,0,0,$S$13+1,1),-1)) -> 1 | K17: =ROUND($I17*C17,2) -> 4461.65 | L17: =ROUND($I17*D17,2) -> 4473.26 | M17: =ROUND($I17*E17,2) -> 4437.66 | N17: =ROUND($I17*F17,2) -> 4472.94 | O17: =G17*J17 -> 2707170000
A18: 3 | B18: 2021-08-13 | C18: 4464.839844 | D18: 4468.370117 | E18: 4460.819824 | F18: 4468 | G18: 2371630000 | H18: 4468 | I18: 1 | J18: 1 | K18: 4464.84 | L18: 4468.37 | M18: 4460.82 | N18: 4468 | O18: 2371630000
A19: 4 | B19: 2021-08-12 | C19: 4446.080078 | D19: 4461.77002 | E19: 4435.959961 | F19: 4460.830078 | G19: 2543860000 | H19: 4460.830078 | I19: 1 | J19: 1 | K19: 4446.08 | L19: 4461.77 | M19: 4435.96 | N19: 4460.83 | O19: 2543860000
A20: 5 | B20: 2021-08-11 | C20: 4442.180176 | D20: 4449.439941 | E20: 4436.419922 | F20: 4442.410156 | G20: 2803060000 | H20: 4442.410156 | I20: 1 | J20: 1 | K20: 4442.18 | L20: 4449.44 | M20: 4436.42 | N20: 4442.41 | O20: 2803060000
A21: 6 | B21: 2021-08-10 | C21: 4435.790039 | D21: 4445.209961 | E21: 4430.029785 | F21: 4436.75 | G21: 3219840000 | H21: 4436.75 | I21: 1 | J21: 1 | K21: 4435.79 | L21: 4445.21 | M21: 4430.03 | N21: 4436.75 | O21: 3219840000
A22: 7 | B22: 2021-08-09 | C22: 4437.77002 | D22: 4439.390137 | E22: 4424.740234 | F22: 4432.350098 | G22: 2779880000 | H22: 4432.350098 | I22: 1 | J22: 1 | K22: 4437.77 | L22: 4439.39 | M22: 4424.74 | N22: 4432.35 | O22: 2779880000
A23: 8 | B23: 2021-08-06 | C23: 4429.069824 | D23: 4440.819824 | E23: 4429.069824 | F23: 4436.52002 | G23: 2839970000 | H23: 4436.52002 | I23: 1 | J23: 1 | K23: 4429.07 | L23: 4440.82 | M23: 4429.07 | N23: 4436.52 | O23: 2839970000
A24: 9 | B24: 2021-08-05 | C24: 4408.859863 | D24: 4429.759766 | E24: 4408.859863 | F24: 4429.100098 | G24: 2734220000 | H24: 4429.100098 | I24: 1 | J24: 1 | K24: 4408.86 | L24: 4429.76 | M24: 4408.86 | N24: 4429.1 | O24: 2734220000
A25: 10 | B25: 2021-08-04 | C25: 4415.950195 | D25: 4416.169922 | E25: 4400.22998 | F25: 4402.660156 | G25: 3382620000 | H25: 4402.660156 | I25: 1 | J25: 1 | K25: 4415.95 | L25: 4416.17 | M25: 4400.23 | N25: 4402.66 | O25: 3382620000
A26: 11 | B26: 2021-08-03 | C26: 4392.740234 | D26: 4423.790039 | E26: 4373 | F26: 4423.149902 | G26: 3305340000 | H26: 4423.149902 | I26: 1 | J26: 1 | K26: 4392.74 | L26: 4423.79 | M26: 4373 | N26: 4423.15 | O26: 3305340000
A27: 12 | B27: 2021-08-02 | C27: 4406.859863 | D27: 4422.180176 | E27: 4384.810059 | F27: 4387.160156 | G27: 2919940000 | H27: 4387.160156 | I27: 1 | J27: 1 | K27: 4406.86 | L27: 4422.18 | M27: 4384.81 | N27: 4387.16 | O27: 2919940000
A28: 13 | B28: 2021-07-30 | C28: 4395.120117 | D28: 4412.25 | E28: 4389.649902 | F28: 4395.259766 | G28: 2861600000 | H28: 4395.259766 | I28: 1 | J28: 1 | K28: 4395.12 | L28: 4412.25 | M28: 4389.65 | N28: 4395.26 | O28: 2861600000
A29: 14 | B29: 2021-07-29 | C29: 4403.589844 | D29: 4429.970215 | E29: 4403.589844 | F29: 4419.149902 | G29: 2815510000 | H29: 4419.149902 | I29: 1 | J29: 1 | K29: 4403.59 | L29: 4429.97 | M29: 4403.59 | N29: 4419.15 | O29: 2815510000
A30: 15 | B30: 2021-07-28 | C30: 4402.950195 | D30: 4415.470215 | E30: 4387.009766 | F30: 4400.640137 | G30: 3215130000 | H30: 4400.640137 | I30: 1 | J30: 1 | K30: 4402.95 | L30: 4415.47 | M30: 4387.01 | N30: 4400.64 | O30: 3215130000
A31: 16 | B31: 2021-07-27 | C31: 4416.379883 | D31: 4416.379883 | E31: 4372.509766 | F31: 4401.459961 | G31: 3381080000 | H31: 4401.459961 | I31: 1 | J31: 1 | K31: 4416.38 | L31: 4416.38 | M31: 4372.51 | N31: 4401.46 | O31: 3381080000
A32: 17 | B32: 2021-07-26 | C32: 4409.580078 | D32: 4422.72998 | E32: 4405.450195 | F32: 4422.299805 | G32: 2679110000 | H32: 4422.299805 | I32: 1 | J32: 1 | K32: 4409.58 | L32: 4422.73 | M32: 4405.45 | N32: 4422.3 | O32: 2679110000
A33: 18 | B33: 2021-07-23 | C33: 4381.200195 | D33: 4415.180176 | E33: 4381.200195 | F33: 4411.790039 | G33: 3490730000 | H33: 4411.790039 | I33: 1 | J33: 1 | K33: 4381.2 | L33: 4415.18 | M33: 4381.2 | N33: 4411.79 | O33: 3490730000
A34: 19 | B34: 2021-07-22 | C34: 4361.27002 | D34: 4369.870117 | E34: 4350.060059 | F34: 4367.47998 | G34: 2907910000 | H34: 4367.47998 | I34: 1 | J34: 1 | K34: 4361.27 | L34: 4369.87 | M34: 4350.06 | N34: 4367.48 | O34: 2907910000
A35: 20 | B35: 2021-07-21 | C35: 4331.129883 | D35: 4359.700195 | E35: 4331.129883 | F35: 4358.689941 | G35: 3078550000 | H35: 4358.689941 | I35: 1 | J35: 1 | K35: 4331.13 | L35: 4359.7 | M35: 4331.13 | N35: 4358.69 | O35: 3078550000
A36: 21 | B36: 2021-07-20 | C36: 4265.109863 | D36: 4336.839844 | E36: 4262.049805 | F36: 4323.060059 | G36: 3634190000 | H36: 4323.060059 | I36: 1 | J36: 1 | K36: 4265.11 | L36: 4336.84 | M36: 4262.05 | N36: 4323.06 | O36: 3634190000
A37: 22 | B37: 2021-07-19 | C37: 4296.399902 | D37: 4296.399902 | E37: 4233.129883 | F37: 4258.490234 | G37: 4155790000 | H37: 4258.490234 | I37: 1 | J37: 1 | K37: 4296.4 | L37: 4296.4 | M37: 4233.13 | N37: 4258.49 | O37: 4155790000
A38: 23 | B38: 2021-07-16 | C38: 4367.430176 | D38: 4375.089844 | E38: 4322.529785 | F38: 4327.160156 | G38: 3165160000 | H38: 4327.160156 | I38: 1 | J38: 1 | K38: 4367.43 | L38: 4375.09 | M38: 4322.53 | N38: 4327.16 | O38: 3165160000
A39: 24 | B39: 2021-07-15 | C39: 4369.02002 | D39: 4369.02002 | E39: 4340.700195 | F39: 4360.029785 | G39: 3226930000 | H39: 4360.029785 | I39: 1 | J39: 1 | K39: 4369.02 | L39: 4369.02 | M39: 4340.7 | N39: 4360.03 | O39: 3226930000
A40: 25 | B40: 2021-07-14 | C40: 4380.109863 | D40: 4393.680176 | E40: 4362.359863 | F40: 4374.299805 | G40: 3213870000 | H40: 4374.299805 | I40: 1 | J40: 1 | K40: 4380.11 | L40: 4393.68 | M40: 4362.36 | N40: 4374.3 | O40: 3213870000
A41: 26 | B41: 2021-07-13 | C41: 4381.069824 | D41: 4392.370117 | E41: 4366.919922 | F41: 4369.209961 | G41: 3166900000 | H41: 4369.209961 | I41: 1 | J41: 1 | K41: 4381.07 | L41: 4392.37 | M41: 4366.92 | N41: 4369.21 | O41: 3166900000
A42: 27 | B42: 2021-07-12 | C42: 4372.410156 | D42: 4386.680176 | E42: 4364.029785 | F42: 4384.629883 | G42: 2983980000 | H42: 4384.629883 | I42: 1 | J42: 1 | K42: 4372.41 | L42: 4386.68 | M42: 4364.03 | N42: 4384.63 | O42: 2983980000
A43: 28 | B43: 2021-07-09 | C43: 4329.379883 | D43: 4371.600098 | E43: 4329.379883 | F43: 4369.549805 | G43: 2738280000 | H43: 4369.549805 | I43: 1 | J43: 1 | K43: 4329.38 | L43: 4371.6 | M43: 4329.38 | N43: 4369.55 | O43: 2738280000
A44: 29 | B44: 2021-07-08 | C44: 4321.069824 | D44: 4330.879883 | E44: 4289.370117 | F44: 4320.819824 | G44: 3393780000 | H44: 4320.819824 | I44: 1 | J44: 1 | K44: 4321.07 | L44: 4330.88 | M44: 4289.37 | N44: 4320.82 | O44: 3393780000
A45: 30 | B45: 2021-07-07 | C45: 4351.009766 | D45: 4361.879883 | E45: 4329.790039 | F45: 4358.129883 | G45: 3243900000 | H45: 4358.129883 | I45: 1 | J45: 1 | K45: 4351.01 | L45: 4361.88 | M45: 4329.79 | N45: 4358.13 | O45: 3243900000
A46: 31 | B46: 2021-07-06 | C46: 4356.459961 | D46: 4356.459961 | E46: 4314.370117 | F46: 4343.540039 | G46: 3437900000 | H46: 4343.540039 | I46: 1 | J46: 1 | K46: 4356.46 | L46: 4356.46 | M46: 4314.37 | N46: 4343.54 | O46: 3437900000
A47: 32 | B47: 2021-07-02 | C47: 4326.600098 | D47: 4355.430176 | E47: 4326.600098 | F47: 4352.339844 | G47: 2628550000 | H47: 4352.339844 | I47: 1 | J47: 1 | K47: 4326.6 | L47: 4355.43 | M47: 4326.6 | N47: 4352.34 | O47: 2628550000
A48: 33 | B48: 2021-07-01 | C48: 4300.72998 | D48: 4320.660156 | E48: 4300.72998 | F48: 4319.939941 | G48: 3077580000 | H48: 4319.939941 | I48: 1 | J48: 1 | K48: 4300.73 | L48: 4320.66 | M48: 4300.73 | N48: 4319.94 | O48: 3077580000
A49: 34 | B49: 2021-06-30 | C49: 4290.649902 | D49: 4302.430176 | E49: 4287.959961 | F49: 4297.5 | G49: 3687880000 | H49: 4297.5 | I49: 1 | J49: 1 | K49: 4290.65 | L49: 4302.43 | M49: 4287.96 | N49: 4297.5 | O49: 3687880000
A50: 35 | B50: 2021-06-29 | C50: 4293.209961 | D50: 4300.52002 | E50: 4287.040039 | F50: 4291.799805 | G50: 3049560000 | H50: 4291.799805 | I50: 1 | J50: 1 | K50: 4293.21 | L50: 4300.52 | M50: 4287.04 | N50: 4291.8 | O50: 3049560000
A51: 36 | B51: 2021-06-28 | C51: 4284.899902 | D51: 4292.140137 | E51: 4274.669922 | F51: 4290.609863 | G51: 3415610000 | H51: 4290.609863 | I51: 1 | J51: 1 | K51: 4284.9 | L51: 4292.14 | M51: 4274.67 | N51: 4290.61 | O51: 3415610000
A52: 37 | B52: 2021-06-25 | C52: 4274.450195 | D52: 4286.120117 | E52: 4271.160156 | F52: 4280.700195 | G52: 6248390000 | H52: 4280.700195 | I52: 1 | J52: 1 | K52: 4274.45 | L52: 4286.12 | M52: 4271.16 | N52: 4280.7 | O52: 6248390000
A53: 38 | B53: 2021-06-24 | C53: 4256.970215 | D53: 4271.279785 | E53: 4256.970215 | F53: 4266.490234 | G53: 3141680000 | H53: 4266.490234 | I53: 1 | J53: 1 | K53: 4256.97 | L53: 4271.28 | M53: 4256.97 | N53: 4266.49 | O53: 3141680000
A54: 39 | B54: 2021-06-23 | C54: 4249.27002 | D54: 4256.600098 | E54: 4241.430176 | F54: 4241.839844 | G54: 3172440000 | H54: 4241.839844 | I54: 1 | J54: 1 | K54: 4249.27 | L54: 4256.6 | M54: 4241.43 | N54: 4241.84 | O54: 3172440000
A55: 40 | B55: 2021-06-22 | C55: 4224.609863 | D55: 4255.839844 | E55: 4217.27002 | F55: 4246.439941 | G55: 3208760000 | H55: 4246.439941 | I55: 1 | J55: 1 | K55: 4224.61 | L55: 4255.84 | M55: 4217.27 | N55: 4246.44 | O55: 3208760000
A56: 41 | B56: 2021-06-21 | C56: 4173.399902 | D56: 4226.240234 | E56: 4173.399902 | F56: 4224.790039 | G56: 3391740000 | H56: 4224.790039 | I56: 1 | J56: 1 | K56: 4173.4 | L56: 4226.24 | M56: 4173.4 | N56: 4224.79 | O56: 3391740000
A57: 42 | B57: 2021-06-18 | C57: 4204.779785 | D57: 4204.779785 | E57: 4164.399902 | F57: 4166.450195 | G57: 6084980000 | H57: 4166.450195 | I57: 1 | J57: 1 | K57: 4204.78 | L57: 4204.78 | M57: 4164.4 | N57: 4166.45 | O57: 6084980000
A58: 43 | B58: 2021-06-17 | C58: 4220.370117 | D58: 4232.290039 | E58: 4196.049805 | F58: 4221.859863 | G58: 3952110000 | H58: 4221.859863 | I58: 1 | J58: 1 | K58: 4220.37 | L58: 4232.29 | M58: 4196.05 | N58: 4221.86 | O58: 3952110000
A59: 44 | B59: 2021-06-16 | C59: 4248.870117 | D59: 4251.890137 | E59: 4202.450195 | F59: 4223.700195 | G59: 3722050000 | H59: 4223.700195 | I59: 1 | J59: 1 | K59: 4248.87 | L59: 4251.89 | M59: 4202.45 | N59: 4223.7 | O59: 3722050000
A60: 45 | B60: 2021-06-15 | C60: 4255.279785 | D60: 4257.160156 | E60: 4238.350098 | F60: 4246.589844 | G60: 3578450000 | H60: 4246.589844 | I60: 1 | J60: 1 | K60: 4255.28 | L60: 4257.16 | M60: 4238.35 | N60: 4246.59 | O60: 3578450000
A61: 46 | B61: 2021-06-14 | C61: 4248.310059 | D61: 4255.589844 | E61: 4234.069824 | F61: 4255.149902 | G61: 3612050000 | H61: 4255.149902 | I61: 1 | J61: 1 | K61: 4248.31 | L61: 4255.59 | M61: 4234.07 | N61: 4255.15 | O61: 3612050000
A62: 47 | B62: 2021-06-11 | C62: 4242.899902 | D62: 4248.379883 | E62: 4232.25 | F62: 4247.439941 | G62: 3204280000 | H62: 4247.439941 | I62: 1 | J62: 1 | K62: 4242.9 | L62: 4248.38 | M62: 4232.25 | N62: 4247.44 | O62: 3204280000
A63: 48 | B63: 2021-06-10 | C63: 4228.560059 | D63: 4249.740234 | E63: 4220.339844 | F63: 4239.180176 | G63: 3502480000 | H63: 4239.180176 | I63: 1 | J63: 1 | K63: 4228.56 | L63: 4249.74 | M63: 4220.34 | N63: 4239.18 | O63: 3502480000
A64: 49 | B64: 2021-06-09 | C64: 4232.990234 | D64: 4237.089844 | E64: 4218.740234 | F64: 4219.549805 | G64: 3902870000 | H64: 4219.549805 | I64: 1 | J64: 1 | K64: 4232.99 | L64: 4237.09 | M64: 4218.74 | N64: 4219.55 | O64: 3902870000
A65: 50 | B65: 2021-06-08 | C65: 4233.810059 | D65: 4236.740234 | E65: 4208.410156 | F65: 4227.259766 | G65: 3943870000 | H65: 4227.259766 | I65: 1 | J65: 1 | K65: 4233.81 | L65: 4236.74 | M65: 4208.41 | N65: 4227.26 | O65: 3943870000
A66: 51 | B66: 2021-06-07 | C66: 4229.339844 | D66: 4232.339844 | E66: 4215.660156 | F66: 4226.52002 | G66: 3835570000 | H66: 4226.52002 | I66: 1 | J66: 1 | K66: 4229.34 | L66: 4232.34 | M66: 4215.66 | N66: 4226.52 | O66: 3835570000
A67: 52 | B67: 2021-06-04 | C67: 4206.049805 | D67: 4233.450195 | E67: 4206.049805 | F67: 4229.890137 | G67: 3487070000 | H67: 4229.890137 | I67: 1 | J67: 1 | K67: 4206.05 | L67: 4233.45 | M67: 4206.05 | N67: 4229.89 | O67: 3487070000
A68: 53 | B68: 2021-06-03 | C68: 4191.430176 | D68: 4204.390137 | E68: 4167.930176 | F68: 4192.850098 | G68: 4579450000 | H68: 4192.850098 | I68: 1 | J68: 1 | K68: 4191.43 | L68: 4204.39 | M68: 4167.93 | N68: 4192.85 | O68: 4579450000
A69: 54 | B69: 2021-06-02 | C69: 4206.819824 | D69: 4217.370117 | E69: 4198.27002 | F69: 4208.120117 | G69: 4860930000 | H69: 4208.120117 | I69: 1 | J69: 1 | K69: 4206.82 | L69: 4217.37 | M69: 4198.27 | N69: 4208.12 | O69: 4860930000
A70: 55 | B70: 2021-06-01 | C70: 4216.52002 | D70: 4234.120117 | E70: 4197.589844 | F70: 4202.040039 | G70: 4122960000 | H70: 4202.040039 | I70: 1 | J70: 1 | K70: 4216.52 | L70: 4234.12 | M70: 4197.59 | N70: 4202.04 | O70: 4122960000
A71: 56 | B71: 2021-05-28 | C71: 4210.77002 | D71: 4218.359863 | E71: 4203.569824 | F71: 4204.109863 | G71: 4199270000 | H71: 4204.109863 | I71: 1 | J71: 1 | K71: 4210.77 | L71: 4218.36 | M71: 4203.57 | N71: 4204.11 | O71: 4199270000
A72: 57 | B72: 2021-05-27 | C72: 4201.939941 | D72: 4213.379883 | E72: 4197.779785 | F72: 4200.879883 | G72: 5201110000 | H72: 4200.879883 | I72: 1 | J72: 1 | K72: 4201.94 | L72: 4213.38 | M72: 4197.78 | N72: 4200.88 | O72: 5201110000
A73: 58 | B73: 2021-05-26 | C73: 4191.589844 | D73: 4202.609863 | E73: 4184.109863 | F73: 4195.990234 | G73: 3674490000 | H73: 4195.990234 | I73: 1 | J73: 1 | K73: 4191.59 | L73: 4202.61 | M73: 4184.11 | N73: 4195.99 | O73: 3674490000
A74: 59 | B74: 2021-05-25 | C74: 4205.939941 | D74: 4213.419922 | E74: 4182.52002 | F74: 4188.129883 | G74: 3420870000 | H74: 4188.129883 | I74: 1 | J74: 1 | K74: 4205.94 | L74: 4213.42 | M74: 4182.52 | N74: 4188.13 | O74: 3420870000
A75: 60 | B75: 2021-05-24 | C75: 4170.160156 | D75: 4209.52002 | E75: 4170.160156 | F75: 4197.049805 | G75: 2947400000 | H75: 4197.049805 | I75: 1 | J75: 1 | K75: 4170.16 | L75: 4209.52 | M75: 4170.16 | N75: 4197.05 | O75: 2947400000
A76: 61 | B76: 2021-05-21 | C76: 4168.609863 | D76: 4188.720215 | E76: 4151.720215 | F76: 4155.859863 | G76: 3344620000 | H76: 4155.859863 | I76: 1 | J76: 1 | K76: 4168.61 | L76: 4188.72 | M76: 4151.72 | N76: 4155.86 | O76: 3344620000
A77: 62 | B77: 2021-05-20 | C77: 4121.970215 | D77: 4172.799805 | E77: 4121.970215 | F77: 4159.120117 | G77: 3019060000 | H77: 4159.120117 | I77: 1 | J77: 1 | K77: 4121.97 | L77: 4172.8 | M77: 4121.97 | N77: 4159.12 | O77: 3019060000
A78: 63 | B78: 2021-05-19 | C78: 4098.450195 | D78: 4116.930176 | E78: 4061.409912 | F78: 4115.680176 | G78: 3485550000 | H78: 4115.680176 | I78: 1 | J78: 1 | K78: 4098.45 | L78: 4116.93 | M78: 4061.41 | N78: 4115.68 | O78: 3485550000
A79: 64 | B79: 2021-05-18 | C79: 4165.939941 | D79: 4169.149902 | E79: 4125.990234 | F79: 4127.830078 | G79: 3559790000 | H79: 4127.830078 | I79: 1 | J79: 1 | K79: 4165.94 | L79: 4169.15 | M79: 4125.99 | N79: 4127.83 | O79: 3559790000
A80: 65 | B80: 2021-05-17 | C80: 4169.919922 | D80: 4171.919922 | E80: 4142.689941 | F80: 4163.290039 | G80: 3307130000 | H80: 4163.290039 | I80: 1 | J80: 1 | K80: 4169.92 | L80: 4171.92 | M80: 4142.69 | N80: 4163.29 | O80: 3307130000
A81: 66 | B81: 2021-05-14 | C81: 4129.580078 | D81: 4183.129883 | E81: 4129.580078 | F81: 4173.850098 | G81: 3251920000 | H81: 4173.850098 | I81: =IF(F81=0,1,H81/F81) -> 1 | J81: =INDEX(OFFSET($T$15,0,0,$S$13+1,1),MATCH(B81,OFFSET($Q$15,0,0,$S$13+1,1),-1)) -> 1 | K81: =ROUND($I81*C81,2) -> 4129.58 | L81: =ROUND($I81*D81,2) -> 4183.13 | M81: =ROUND($I81*E81,2) -> 4129.58 | N81: =ROUND($I81*F81,2) -> 4173.85 | O81: =G81*J81 -> 3251920000
A82: 67 | B82: 2021-05-13 | C82: 4074.98999 | D82: 4131.580078 | E82: 4074.98999 | F82: 4112.5 | G82: 3687780000 | H82: 4112.5 | I82: 1 | J82: 1 | K82: 4074.99 | L82: 4131.58 | M82: 4074.99 | N82: 4112.5 | O82: 3687780000
A83: 68 | B83: 2021-05-12 | C83: 4130.549805 | D83: 4134.72998 | E83: 4056.879883 | F83: 4063.040039 | G83: 3735080000 | H83: 4063.040039 | I83: 1 | J83: 1 | K83: 4130.55 | L83: 4134.73 | M83: 4056.88 | N83: 4063.04 | O83: 3735080000
A84: 69 | B84: 2021-05-11 | C84: 4150.339844 | D84: 4162.040039 | E84: 4111.529785 | F84: 4152.100098 | G84: 3593110000 | H84: 4152.100098 | I84: 1 | J84: 1 | K84: 4150.34 | L84: 4162.04 | M84: 4111.53 | N84: 4152.1 | O84: 3593110000
A85: 70 | B85: 2021-05-10 | C85: 4228.290039 | D85: 4236.390137 | E85: 4188.129883 | F85: 4188.430176 | G85: 3678970000 | H85: 4188.430176 | I85: 1 | J85: 1 | K85: 4228.29 | L85: 4236.39 | M85: 4188.13 | N85: 4188.43 | O85: 3678970000
A86: 71 | B86: 2021-05-07 | C86: 4210.339844 | D86: 4238.040039 | E86: 4201.640137 | F86: 4232.600098 | G86: 4013060000 | H86: 4232.600098 | I86: 1 | J86: 1 | K86: 4210.34 | L86: 4238.04 | M86: 4201.64 | N86: 4232.6 | O86: 4013060000
A87: 72 | B87: 2021-05-06 | C87: 4169.140137 | D87: 4202.700195 | E87: 4147.330078 | F87: 4201.620117 | G87: 4504860000 | H87: 4201.620117 | I87: 1 | J87: 1 | K87: 4169.14 | L87: 4202.7 | M87: 4147.33 | N87: 4201.62 | O87: 4504860000
A88: 73 | B88: 2021-05-05 | C88: 4177.060059 | D88: 4187.720215 | E88: 4160.939941 | F88: 4167.589844 | G88: 4029050000 | H88: 4167.589844 | I88: 1 | J88: 1 | K88: 4177.06 | L88: 4187.72 | M88: 4160.94 | N88: 4167.59 | O88: 4029050000
A89: 74 | B89: 2021-05-04 | C89: 4179.040039 | D89: 4179.040039 | E89: 4128.589844 | F89: 4164.660156 | G89: 4441080000 | H89: 4164.660156 | I89: 1 | J89: 1 | K89: 4179.04 | L89: 4179.04 | M89: 4128.59 | N89: 4164.66 | O89: 4441080000
A90: 75 | B90: 2021-05-03 | C90: 4191.97998 | D90: 4209.390137 | E90: 4188.029785 | F90: 4192.660156 | G90: 4061170000 | H90: 4192.660156 | I90: 1 | J90: 1 | K90: 4191.98 | L90: 4209.39 | M90: 4188.03 | N90: 4192.66 | O90: 4061170000
A91: 76 | B91: 2021-04-30 | C91: 4198.100098 | D91: 4198.100098 | E91: 4174.850098 | F91: 4181.169922 | G91: 4273680000 | H91: 4181.169922 | I91: 1 | J91: 1 | K91: 4198.1 | L91: 4198.1 | M91: 4174.85 | N91: 4181.17 | O91: 4273680000
A92: 77 | B92: 2021-04-29 | C92: 4206.140137 | D92: 4218.779785 | E92: 4176.810059 | F92: 4211.470215 | G92: 4288940000 | H92: 4211.470215 | I92: 1 | J92: 1 | K92: 4206.14 | L92: 4218.78 | M92: 4176.81 | N92: 4211.47 | O92: 4288940000
A93: 78 | B93: 2021-04-28 | C93: 4185.140137 | D93: 4201.529785 | E93: 4181.779785 | F93: 4183.180176 | G93: 3772390000 | H93: 4183.180176 | I93: 1 | J93: 1 | K93: 4185.14 | L93: 4201.53 | M93: 4181.78 | N93: 4183.18 | O93: 3772390000
A94: 79 | B94: 2021-04-27 | C94: 4188.25 | D94: 4193.350098 | E94: 4176.220215 | F94: 4186.720215 | G94: 3703240000 | H94: 4186.720215 | I94: 1 | J94: 1 | K94: 4188.25 | L94: 4193.35 | M94: 4176.22 | N94: 4186.72 | O94: 3703240000
A95: 80 | B95: 2021-04-26 | C95: 4185.029785 | D95: 4194.189941 | E95: 4182.359863 | F95: 4187.620117 | G95: 3738920000 | H95: 4187.620117 | I95: 1 | J95: 1 | K95: 4185.03 | L95: 4194.19 | M95: 4182.36 | N95: 4187.62 | O95: 3738920000
A96: 81 | B96: 2021-04-23 | C96: 4138.779785 | D96: 4194.169922 | E96: 4138.779785 | F96: 4180.169922 | G96: 3568080000 | H96: 4180.169922 | I96: 1 | J96: 1 | K96: 4138.78 | L96: 4194.17 | M96: 4138.78 | N96: 4180.17 | O96: 3568080000
A97: 82 | B97: 2021-04-22 | C97: 4170.459961 | D97: 4179.569824 | E97: 4123.689941 | F97: 4134.97998 | G97: 4235040000 | H97: 4134.97998 | I97: 1 | J97: 1 | K97: 4170.46 | L97: 4179.57 | M97: 4123.69 | N97: 4134.98 | O97: 4235040000
A98: 83 | B98: 2021-04-21 | C98: 4128.419922 | D98: 4175.02002 | E98: 4126.350098 | F98: 4173.419922 | G98: 3865820000 | H98: 4173.419922 | I98: 1 | J98: 1 | K98: 4128.42 | L98: 4175.02 | M98: 4126.35 | N98: 4173.42 | O98: 3865820000
A99: 84 | B99: 2021-04-20 | C99: 4159.180176 | D99: 4159.180176 | E99: 4118.379883 | F99: 4134.939941 | G99: 4338230000 | H99: 4134.939941 | I99: 1 | J99: 1 | K99: 4159.18 | L99: 4159.18 | M99: 4118.38 | N99: 4134.94 | O99: 4338230000
A100: 85 | B100: 2021-04-19 | C100: 4179.799805 | D100: 4180.810059 | E100: 4150.470215 | F100: 4163.259766 | G100: 3788020000 | H100: 4163.259766 | I100: 1 | J100: 1 | K100: 4179.8 | L100: 4180.81 | M100: 4150.47 | N100: 4163.26 | O100: 3788020000
A101: 86 | B101: 2021-04-16 | C101: 4174.140137 | D101: 4191.310059 | E101: 4170.75 | F101: 4185.470215 | G101: 4157430000 | H101: 4185.470215 | I101: 1 | J101: 1 | K101: 4174.14 | L101: 4191.31 | M101: 4170.75 | N101: 4185.47 | O101: 4157430000
A102: 87 | B102: 2021-04-15 | C102: 4139.759766 | D102: 4173.490234 | E102: 4139.759766 | F102: 4170.419922 | G102: 4027680000 | H102: 4170.419922 | I102: 1 | J102: 1 | K102: 4139.76 | L102: 4173.49 | M102: 4139.76 | N102: 4170.42 | O102: 4027680000
A103: 88 | B103: 2021-04-14 | C103: 4141.580078 | D103: 4151.689941 | E103: 4120.870117 | F103: 4124.660156 | G103: 3976540000 | H103: 4124.660156 | I103: 1 | J103: 1 | K103: 4141.58 | L103: 4151.69 | M103: 4120.87 | N103: 4124.66 | O103: 3976540000
A104: 89 | B104: 2021-04-13 | C104: 4130.100098 | D104: 4148 | E104: 4124.430176 | F104: 4141.589844 | G104: 3728440000 | H104: 4141.589844 | I104: 1 | J104: 1 | K104: 4130.1 | L104: 4148 | M104: 4124.43 | N104: 4141.59 | O104: 3728440000
A105: 90 | B105: 2021-04-12 | C105: 4124.709961 | D105: 4131.759766 | E105: 4114.819824 | F105: 4127.990234 | G105: 3578500000 | H105: 4127.990234 | I105: 1 | J105: 1 | K105: 4124.71 | L105: 4131.76 | M105: 4114.82 | N105: 4127.99 | O105: 3578500000
A106: 91 | B106: 2021-04-09 | C106: 4096.109863 | D106: 4129.47998 | E106: 4095.51001 | F106: 4128.799805 | G106: 3634910000 | H106: 4128.799805 | I106: 1 | J106: 1 | K106: 4096.11 | L106: 4129.48 | M106: 4095.51 | N106: 4128.8 | O106: 3634910000
A107: 92 | B107: 2021-04-08 | C107: 4089.949951 | D107: 4098.189941 | E107: 4082.540039 | F107: 4097.169922 | G107: 3901910000 | H107: 4097.169922 | I107: 1 | J107: 1 | K107: 4089.95 | L107: 4098.19 | M107: 4082.54 | N107: 4097.17 | O107: 3901910000
A108: 93 | B108: 2021-04-07 | C108: 4074.290039 | D108: 4083.129883 | E108: 4068.310059 | F108: 4079.949951 | G108: 4112640000 | H108: 4079.949951 | I108: 1 | J108: 1 | K108: 4074.29 | L108: 4083.13 | M108: 4068.31 | N108: 4079.95 | O108: 4112640000
A109: 94 | B109: 2021-04-06 | C109: 4075.570068 | D109: 4086.22998 | E109: 4068.139893 | F109: 4073.939941 | G109: 4027880000 | H109: 4073.939941 | I109: 1 | J109: 1 | K109: 4075.57 | L109: 4086.23 | M109: 4068.14 | N109: 4073.94 | O109: 4027880000
A110: 95 | B110: 2021-04-05 | C110: 4034.439941 | D110: 4083.419922 | E110: 4034.439941 | F110: 4077.909912 | G110: 3999760000 | H110: 4077.909912 | I110: 1 | J110: 1 | K110: 4034.44 | L110: 4083.42 | M110: 4034.44 | N110: 4077.91 | O110: 3999760000
A111: 96 | B111: 2021-04-01 | C111: 3992.780029 | D111: 4020.629883 | E111: 3992.780029 | F111: 4019.870117 | G111: 4151240000 | H111: 4019.870117 | I111: 1 | J111: 1 | K111: 3992.78 | L111: 4020.63 | M111: 3992.78 | N111: 4019.87 | O111: 4151240000
A112: 97 | B112: 2021-03-31 | C112: 3967.25 | D112: 3994.409912 | E112: 3966.97998 | F112: 3972.889893 | G112: 4564980000 | H112: 3972.889893 | I112: 1 | J112: 1 | K112: 3967.25 | L112: 3994.41 | M112: 3966.98 | N112: 3972.89 | O112: 4564980000
A113: 98 | B113: 2021-03-30 | C113: 3963.340088 | D113: 3968.01001 | E113: 3944.350098 | F113: 3958.550049 | G113: 4103570000 | H113: 3958.550049 | I113: 1 | J113: 1 | K113: 3963.34 | L113: 3968.01 | M113: 3944.35 | N113: 3958.55 | O113: 4103570000
A114: 99 | B114: 2021-03-29 | C114: 3969.310059 | D114: 3981.830078 | E114: 3943.25 | F114: 3971.090088 | G114: 4619840000 | H114: 3971.090088 | I114: 1 | J114: 1 | K114: 3969.31 | L114: 3981.83 | M114: 3943.25 | N114: 3971.09 | O114: 4619840000
A115: 100 | B115: 2021-03-26 | C115: 3917.120117 | D115: 3978.189941 | E115: 3917.120117 | F115: 3974.540039 | G115: 5467850000 | H115: 3974.540039 | I115: 1 | J115: 1 | K115: 3917.12 | L115: 3978.19 | M115: 3917.12 | N115: 3974.54 | O115: 5467850000
A116: 101 | B116: 2021-03-25 | C116: 3879.340088 | D116: 3919.540039 | E116: 3853.5 | F116: 3909.52002 | G116: 4940800000 | H116: 3909.52002 | I116: 1 | J116: 1 | K116: 3879.34 | L116: 3919.54 | M116: 3853.5 | N116: 3909.52 | O116: 4940800000
A117: 102 | B117: 2021-03-24 | C117: 3919.929932 | D117: 3942.080078 | E117: 3889.070068 | F117: 3889.139893 | G117: 4766990000 | H117: 3889.139893 | I117: 1 | J117: 1 | K117: 3919.93 | L117: 3942.08 | M117: 3889.07 | N117: 3889.14 | O117: 4766990000
A118: 103 | B118: 2021-03-23 | C118: 3937.600098 | D118: 3949.129883 | E118: 3901.570068 | F118: 3910.52002 | G118: 4645340000 | H118: 3910.52002 | I118: 1 | J118: 1 | K118: 3937.6 | L118: 3949.13 | M118: 3901.57 | N118: 3910.52 | O118: 4645340000
A119: 104 | B119: 2021-03-22 | C119: 3916.47998 | D119: 3955.310059 | E119: 3914.159912 | F119: 3940.590088 | G119: 4311380000 | H119: 3940.590088 | I119: 1 | J119: 1 | K119: 3916.48 | L119: 3955.31 | M119: 3914.16 | N119: 3940.59 | O119: 4311380000
A120: 105 | B120: 2021-03-19 | C120: 3913.139893 | D120: 3930.120117 | E120: 3886.75 | F120: 3913.100098 | G120: 7725050000 | H120: 3913.100098 | I120: 1 | J120: 1 | K120: 3913.14 | L120: 3930.12 | M120: 3886.75 | N120: 3913.1 | O120: 7725050000
A121: 106 | B121: 2021-03-18 | C121: 3953.5 | D121: 3969.620117 | E121: 3910.860107 | F121: 3915.459961 | G121: 4043170000 | H121: 3915.459961 | I121: 1 | J121: 1 | K121: 3953.5 | L121: 3969.62 | M121: 3910.86 | N121: 3915.46 | O121: 4043170000
A122: 107 | B122: 2021-03-17 | C122: 3949.570068 | D122: 3983.870117 | E122: 3935.73999 | F122: 3974.120117 | G122: 4541620000 | H122: 3974.120117 | I122: 1 | J122: 1 | K122: 3949.57 | L122: 3983.87 | M122: 3935.74 | N122: 3974.12 | O122: 4541620000
A123: 108 | B123: 2021-03-16 | C123: 3973.590088 | D123: 3981.040039 | E123: 3953.439941 | F123: 3962.709961 | G123: 4604870000 | H123: 3962.709961 | I123: 1 | J123: 1 | K123: 3973.59 | L123: 3981.04 | M123: 3953.44 | N123: 3962.71 | O123: 4604870000
A124: 109 | B124: 2021-03-15 | C124: 3942.959961 | D124: 3970.080078 | E124: 3923.540039 | F124: 3968.939941 | G124: 4882190000 | H124: 3968.939941 | I124: 1 | J124: 1 | K124: 3942.96 | L124: 3970.08 | M124: 3923.54 | N124: 3968.94 | O124: 4882190000
A125: 110 | B125: 2021-03-12 | C125: 3924.52002 | D125: 3944.98999 | E125: 3915.209961 | F125: 3943.340088 | G125: 4469240000 | H125: 3943.340088 | I125: 1 | J125: 1 | K125: 3924.52 | L125: 3944.99 | M125: 3915.21 | N125: 3943.34 | O125: 4469240000
A126: 111 | B126: 2021-03-11 | C126: 3915.540039 | D126: 3960.27002 | E126: 3915.540039 | F126: 3939.340088 | G126: 5300010000 | H126: 3939.340088 | I126: 1 | J126: 1 | K126: 3915.54 | L126: 3960.27 | M126: 3915.54 | N126: 3939.34 | O126: 5300010000
A127: 112 | B127: 2021-03-10 | C127: 3891.98999 | D127: 3917.350098 | E127: 3885.72998 | F127: 3898.810059 | G127: 5827250000 | H127: 3898.810059 | I127: 1 | J127: 1 | K127: 3891.99 | L127: 3917.35 | M127: 3885.73 | N127: 3898.81 | O127: 5827250000
A128: 113 | B128: 2021-03-09 | C128: 3851.929932 | D128: 3903.76001 | E128: 3851.929932 | F128: 3875.439941 | G128: 5496340000 | H128: 3875.439941 | I128: 1 | J128: 1 | K128: 3851.93 | L128: 3903.76 | M128: 3851.93 | N128: 3875.44 | O128: 5496340000
A129: 114 | B129: 2021-03-08 | C129: 3844.389893 | D129: 3881.060059 | E129: 3819.25 | F129: 3821.350098 | G129: 5852240000 | H129: 3821.350098 | I129: 1 | J129: 1 | K129: 3844.39 | L129: 3881.06 | M129: 3819.25 | N129: 3821.35 | O129: 5852240000
A130: 115 | B130: 2021-03-05 | C130: 3793.580078 | D130: 3851.689941 | E130: 3730.189941 | F130: 3841.939941 | G130: 6842570000 | H130: 3841.939941 | I130: 1 | J130: 1 | K130: 3793.58 | L130: 3851.69 | M130: 3730.19 | N130: 3841.94 | O130: 6842570000
A131: 116 | B131: 2021-03-04 | C131: 3818.530029 | D131: 3843.669922 | E131: 3723.340088 | F131: 3768.469971 | G131: 7142240000 | H131: 3768.469971 | I131: 1 | J131: 1 | K131: 3818.53 | L131: 3843.67 | M131: 3723.34 | N131: 3768.47 | O131: 7142240000
A132: 117 | B132: 2021-03-03 | C132: 3863.98999 | D132: 3874.469971 | E132: 3818.860107 | F132: 3819.719971 | G132: 6150790000 | H132: 3819.719971 | I132: 1 | J132: 1 | K132: 3863.99 | L132: 3874.47 | M132: 3818.86 | N132: 3819.72 | O132: 6150790000
A133: 118 | B133: 2021-03-02 | C133: 3903.639893 | D133: 3906.409912 | E133: 3868.570068 | F133: 3870.290039 | G133: 5493690000 | H133: 3870.290039 | I133: 1 | J133: 1 | K133: 3903.64 | L133: 3906.41 | M133: 3868.57 | N133: 3870.29 | O133: 5493690000
A134: 119 | B134: 2021-03-01 | C134: 3842.51001 | D134: 3914.5 | E134: 3842.51001 | F134: 3901.820068 | G134: 5071540000 | H134: 3901.820068 | I134: 1 | J134: 1 | K134: 3842.51 | L134: 3914.5 | M134: 3842.51 | N134: 3901.82 | O134: 5071540000
A135: 120 | B135: 2021-02-26 | C135: 3839.659912 | D135: 3861.080078 | E135: 3789.540039 | F135: 3811.149902 | G135: 6512950000 | H135: 3811.149902 | I135: 1 | J135: 1 | K135: 3839.66 | L135: 3861.08 | M135: 3789.54 | N135: 3811.15 | O135: 6512950000
A136: 121 | B136: 2021-02-25 | C136: 3915.800049 | D136: 3925.02002 | E136: 3814.040039 | F136: 3829.340088 | G136: 6513060000 | H136: 3829.340088 | I136: 1 | J136: 1 | K136: 3915.8 | L136: 3925.02 | M136: 3814.04 | N136: 3829.34 | O136: 6513060000
A137: 122 | B137: 2021-02-24 | C137: 3873.709961 | D137: 3928.649902 | E137: 3859.600098 | F137: 3925.429932 | G137: 5942350000 | H137: 3925.429932 | I137: 1 | J137: 1 | K137: 3873.71 | L137: 3928.65 | M137: 3859.6 | N137: 3925.43 | O137: 5942350000
A138: 123 | B138: 2021-02-23 | C138: 3857.070068 | D138: 3895.97998 | E138: 3805.590088 | F138: 3881.370117 | G138: 6280650000 | H138: 3881.370117 | I138: 1 | J138: 1 | K138: 3857.07 | L138: 3895.98 | M138: 3805.59 | N138: 3881.37 | O138: 6280650000
A139: 124 | B139: 2021-02-22 | C139: 3885.550049 | D139: 3902.919922 | E139: 3874.709961 | F139: 3876.5 | G139: 5870190000 | H139: 3876.5 | I139: 1 | J139: 1 | K139: 3885.55 | L139: 3902.92 | M139: 3874.71 | N139: 3876.5 | O139: 5870190000
A140: 125 | B140: 2021-02-19 | C140: 3921.159912 | D140: 3930.409912 | E140: 3903.070068 | F140: 3906.709961 | G140: 4823940000 | H140: 3906.709961 | I140: 1 | J140: 1 | K140: 3921.16 | L140: 3930.41 | M140: 3903.07 | N140: 3906.71 | O140: 4823940000
A141: 126 | B141: 2021-02-18 | C141: 3915.860107 | D141: 3921.97998 | E141: 3885.030029 | F141: 3913.969971 | G141: 4773430000 | H141: 3913.969971 | I141: 1 | J141: 1 | K141: 3915.86 | L141: 3921.98 | M141: 3885.03 | N141: 3913.97 | O141: 4773430000
A142: 127 | B142: 2021-02-17 | C142: 3918.5 | D142: 3933.610107 | E142: 3900.429932 | F142: 3931.330078 | G142: 4718280000 | H142: 3931.330078 | I142: 1 | J142: 1 | K142: 3918.5 | L142: 3933.61 | M142: 3900.43 | N142: 3931.33 | O142: 4718280000
A143: 128 | B143: 2021-02-16 | C143: 3939.610107 | D143: 3950.429932 | E143: 3923.850098 | F143: 3932.590088 | G143: 5037360000 | H143: 3932.590088 | I143: 1 | J143: 1 | K143: 3939.61 | L143: 3950.43 | M143: 3923.85 | N143: 3932.59 | O143: 5037360000
A144: 129 | B144: 2021-02-12 | C144: 3911.649902 | D144: 3937.22998 | E144: 3905.780029 | F144: 3934.830078 | G144: 4119260000 | H144: 3934.830078 | I144: 1 | J144: 1 | K144: 3911.65 | L144: 3937.23 | M144: 3905.78 | N144: 3934.83 | O144: 4119260000
A145: 130 | B145: 2021-02-11 | C145: 3916.399902 | D145: 3925.98999 | E145: 3890.389893 | F145: 3916.379883 | G145: 4570080000 | H145: 3916.379883 | I145: =IF(F145=0,1,H145/F145) -> 1 | J145: =INDEX(OFFSET($T$15,0,0,$S$13+1,1),MATCH(B145,OFFSET($Q$15,0,0,$S$13+1,1),-1)) -> 1 | K145: =ROUND($I145*C145,2) -> 3916.4 | L145: =ROUND($I145*D145,2) -> 3925.99 | M145: =ROUND($I145*E145,2) -> 3890.39 | N145: =ROUND($I145*F145,2) -> 3916.38 | O145: =G145*J145 -> 4570080000
A146: 131 | B146: 2021-02-10 | C146: 3920.780029 | D146: 3931.5 | E146: 3884.939941 | F146: 3909.879883 | G146: 4815380000 | H146: 3909.879883 | I146: 1 | J146: 1 | K146: 3920.78 | L146: 3931.5 | M146: 3884.94 | N146: 3909.88 | O146: 4815380000
A147: 132 | B147: 2021-02-09 | C147: 3910.48999 | D147: 3918.350098 | E147: 3902.639893 | F147: 3911.22998 | G147: 4554610000 | H147: 3911.22998 | I147: 1 | J147: 1 | K147: 3910.49 | L147: 3918.35 | M147: 3902.64 | N147: 3911.23 | O147: 4554610000
A148: 133 | B148: 2021-02-08 | C148: 3892.590088 | D148: 3915.77002 | E148: 3892.590088 | F148: 3915.590088 | G148: 4635030000 | H148: 3915.590088 | I148: 1 | J148: 1 | K148: 3892.59 | L148: 3915.77 | M148: 3892.59 | N148: 3915.59 | O148: 4635030000
A149: 134 | B149: 2021-02-05 | C149: 3878.300049 | D149: 3894.560059 | E149: 3874.929932 | F149: 3886.830078 | G149: 4838580000 | H149: 3886.830078 | I149: 1 | J149: 1 | K149: 3878.3 | L149: 3894.56 | M149: 3874.93 | N149: 3886.83 | O149: 4838580000
A150: 135 | B150: 2021-02-04 | C150: 3836.659912 | D150: 3872.419922 | E150: 3836.659912 | F150: 3871.73999 | G150: 4856670000 | H150: 3871.73999 | I150: 1 | J150: 1 | K150: 3836.66 | L150: 3872.42 | M150: 3836.66 | N150: 3871.74 | O150: 4856670000
A151: 136 | B151: 2021-02-03 | C151: 3840.27002 | D151: 3847.51001 | E151: 3816.679932 | F151: 3830.169922 | G151: 4846900000 | H151: 3830.169922 | I151: 1 | J151: 1 | K151: 3840.27 | L151: 3847.51 | M151: 3816.68 | N151: 3830.17 | O151: 4846900000
A152: 137 | B152: 2021-02-02 | C152: 3791.840088 | D152: 3843.090088 | E152: 3791.840088 | F152: 3826.310059 | G152: 5495370000 | H152: 3826.310059 | I152: 1 | J152: 1 | K152: 3791.84 | L152: 3843.09 | M152: 3791.84 | N152: 3826.31 | O152: 5495370000
A153: 138 | B153: 2021-02-01 | C153: 3731.169922 | D153: 3784.320068 | E153: 3725.620117 | F153: 3773.860107 | G153: 5392870000 | H153: 3773.860107 | I153: 1 | J153: 1 | K153: 3731.17 | L153: 3784.32 | M153: 3725.62 | N153: 3773.86 | O153: 5392870000
A154: 139 | B154: 2021-01-29 | C154: 3778.050049 | D154: 3778.050049 | E154: 3694.120117 | F154: 3714.23999 | G154: 6612570000 | H154: 3714.23999 | I154: 1 | J154: 1 | K154: 3778.05 | L154: 3778.05 | M154: 3694.12 | N154: 3714.24 | O154: 6612570000
A155: 140 | B155: 2021-01-28 | C155: 3755.75 | D155: 3830.5 | E155: 3755.75 | F155: 3787.379883 | G155: 6937960000 | H155: 3787.379883 | I155: 1 | J155: 1 | K155: 3755.75 | L155: 3830.5 | M155: 3755.75 | N155: 3787.38 | O155: 6937960000
A156: 141 | B156: 2021-01-27 | C156: 3836.830078 | D156: 3836.830078 | E156: 3732.47998 | F156: 3750.77002 | G156: 9878040000 | H156: 3750.77002 | I156: 1 | J156: 1 | K156: 3836.83 | L156: 3836.83 | M156: 3732.48 | N156: 3750.77 | O156: 9878040000
A157: 142 | B157: 2021-01-26 | C157: 3862.959961 | D157: 3870.899902 | E157: 3847.780029 | F157: 3849.620117 | G157: 6029090000 | H157: 3849.620117 | I157: 1 | J157: 1 | K157: 3862.96 | L157: 3870.9 | M157: 3847.78 | N157: 3849.62 | O157: 6029090000
A158: 143 | B158: 2021-01-25 | C158: 3851.679932 | D158: 3859.22998 | E158: 3797.159912 | F158: 3855.360107 | G158: 6955860000 | H158: 3855.360107 | I158: 1 | J158: 1 | K158: 3851.68 | L158: 3859.23 | M158: 3797.16 | N158: 3855.36 | O158: 6955860000
A159: 144 | B159: 2021-01-22 | C159: 3844.23999 | D159: 3852.310059 | E159: 3830.409912 | F159: 3841.469971 | G159: 5080430000 | H159: 3841.469971 | I159: 1 | J159: 1 | K159: 3844.24 | L159: 3852.31 | M159: 3830.41 | N159: 3841.47 | O159: 5080430000
A160: 145 | B160: 2021-01-21 | C160: 3857.459961 | D160: 3861.449951 | E160: 3845.050049 | F160: 3853.070068 | G160: 4484460000 | H160: 3853.070068 | I160: 1 | J160: 1 | K160: 3857.46 | L160: 3861.45 | M160: 3845.05 | N160: 3853.07 | O160: 4484460000
A161: 146 | B161: 2021-01-20 | C161: 3816.219971 | D161: 3859.75 | E161: 3816.219971 | F161: 3851.850098 | G161: 4551790000 | H161: 3851.850098 | I161: 1 | J161: 1 | K161: 3816.22 | L161: 3859.75 | M161: 3816.22 | N161: 3851.85 | O161: 4551790000
A162: 147 | B162: 2021-01-19 | C162: 3781.879883 | D162: 3804.530029 | E162: 3780.370117 | F162: 3798.909912 | G162: 4982940000 | H162: 3798.909912 | I162: 1 | J162: 1 | K162: 3781.88 | L162: 3804.53 | M162: 3780.37 | N162: 3798.91 | O162: 4982940000
A163: 148 | B163: 2021-01-15 | C163: 3788.72998 | D163: 3788.72998 | E163: 3749.620117 | F163: 3768.25 | G163: 5353060000 | H163: 3768.25 | I163: 1 | J163: 1 | K163: 3788.73 | L163: 3788.73 | M163: 3749.62 | N163: 3768.25 | O163: 5353060000
A164: 149 | B164: 2021-01-14 | C164: 3814.97998 | D164: 3823.600098 | E164: 3792.860107 | F164: 3795.540039 | G164: 5180140000 | H164: 3795.540039 | I164: 1 | J164: 1 | K164: 3814.98 | L164: 3823.6 | M164: 3792.86 | N164: 3795.54 | O164: 5180140000
A165: 150 | B165: 2021-01-13 | C165: 3802.22998 | D165: 3820.959961 | E165: 3791.5 | F165: 3809.840088 | G165: 4590420000 | H165: 3809.840088 | I165: 1 | J165: 1 | K165: 3802.23 | L165: 3820.96 | M165: 3791.5 | N165: 3809.84 | O165: 4590420000
A166: 151 | B166: 2021-01-12 | C166: 3801.620117 | D166: 3810.780029 | E166: 3776.51001 | F166: 3801.189941 | G166: 4977210000 | H166: 3801.189941 | I166: 1 | J166: 1 | K166: 3801.62 | L166: 3810.78 | M166: 3776.51 | N166: 3801.19 | O166: 4977210000
A167: 152 | B167: 2021-01-11 | C167: 3803.139893 | D167: 3817.860107 | E167: 3789.02002 | F167: 3799.610107 | G167: 4450500000 | H167: 3799.610107 | I167: 1 | J167: 1 | K167: 3803.14 | L167: 3817.86 | M167: 3789.02 | N167: 3799.61 | O167: 4450500000
A168: 153 | B168: 2021-01-08 | C168: 3815.050049 | D168: 3826.689941 | E168: 3783.600098 | F168: 3824.679932 | G168: 4764180000 | H168: 3824.679932 | I168: 1 | J168: 1 | K168: 3815.05 | L168: 3826.69 | M168: 3783.6 | N168: 3824.68 | O168: 4764180000
A169: 154 | B169: 2021-01-07 | C169: 3764.709961 | D169: 3811.550049 | E169: 3764.709961 | F169: 3803.790039 | G169: 5080870000 | H169: 3803.790039 | I169: 1 | J169: 1 | K169: 3764.71 | L169: 3811.55 | M169: 3764.71 | N169: 3803.79 | O169: 5080870000
A170: 155 | B170: 2021-01-06 | C170: 3712.199951 | D170: 3783.040039 | E170: 3705.340088 | F170: 3748.139893 | G170: 6049970000 | H170: 3748.139893 | I170: 1 | J170: 1 | K170: 3712.2 | L170: 3783.04 | M170: 3705.34 | N170: 3748.14 | O170: 6049970000
A171: 156 | B171: 2021-01-05 | C171: 3698.02002 | D171: 3737.830078 | E171: 3695.070068 | F171: 3726.860107 | G171: 4582620000 | H171: 3726.860107 | I171: 1 | J171: 1 | K171: 3698.02 | L171: 3737.83 | M171: 3695.07 | N171: 3726.86 | O171: 4582620000
A172: 157 | B172: 2021-01-04 | C172: 3764.610107 | D172: 3769.98999 | E172: 3662.709961 | F172: 3700.649902 | G172: 5006680000 | H172: 3700.649902 | I172: 1 | J172: 1 | K172: 3764.61 | L172: 3769.99 | M172: 3662.71 | N172: 3700.65 | O172: 5006680000
A173: 158 | B173: 2020-12-31 | C173: 3733.27002 | D173: 3760.199951 | E173: 3726.879883 | F173: 3756.070068 | G173: 3172510000 | H173: 3756.070068 | I173: 1 | J173: 1 | K173: 3733.27 | L173: 3760.2 | M173: 3726.88 | N173: 3756.07 | O173: 3172510000
A174: 159 | B174: 2020-12-30 | C174: 3736.189941 | D174: 3744.629883 | E174: 3730.209961 | F174: 3732.040039 | G174: 3145200000 | H174: 3732.040039 | I174: 1 | J174: 1 | K174: 3736.19 | L174: 3744.63 | M174: 3730.21 | N174: 3732.04 | O174: 3145200000
A175: 160 | B175: 2020-12-29 | C175: 3750.01001 | D175: 3756.120117 | E175: 3723.310059 | F175: 3727.040039 | G175: 3387030000 | H175: 3727.040039 | I175: 1 | J175: 1 | K175: 3750.01 | L175: 3756.12 | M175: 3723.31 | N175: 3727.04 | O175: 3387030000
A176: 161 | B176: 2020-12-28 | C176: 3723.030029 | D176: 3740.51001 | E176: 3723.030029 | F176: 3735.360107 | G176: 3527460000 | H176: 3735.360107 | I176: 1 | J176: 1 | K176: 3723.03 | L176: 3740.51 | M176: 3723.03 | N176: 3735.36 | O176: 3527460000
A177: 162 | B177: 2020-12-24 | C177: 3694.030029 | D177: 3703.820068 | E177: 3689.320068 | F177: 3703.060059 | G177: 1885090000 | H177: 3703.060059 | I177: 1 | J177: 1 | K177: 3694.03 | L177: 3703.82 | M177: 3689.32 | N177: 3703.06 | O177: 1885090000
A178: 163 | B178: 2020-12-23 | C178: 3693.419922 | D178: 3711.23999 | E178: 3689.280029 | F178: 3690.01001 | G178: 3772630000 | H178: 3690.01001 | I178: 1 | J178: 1 | K178: 3693.42 | L178: 3711.24 | M178: 3689.28 | N178: 3690.01 | O178: 3772630000
A179: 164 | B179: 2020-12-22 | C179: 3698.080078 | D179: 3698.26001 | E179: 3676.159912 | F179: 3687.26001 | G179: 4023940000 | H179: 3687.26001 | I179: 1 | J179: 1 | K179: 3698.08 | L179: 3698.26 | M179: 3676.16 | N179: 3687.26 | O179: 4023940000
A180: 165 | B180: 2020-12-21 | C180: 3684.280029 | D180: 3702.899902 | E180: 3636.47998 | F180: 3694.919922 | G180: 4732160000 | H180: 3694.919922 | I180: 1 | J180: 1 | K180: 3684.28 | L180: 3702.9 | M180: 3636.48 | N180: 3694.92 | O180: 4732160000
A181: 166 | B181: 2020-12-18 | C181: 3722.389893 | D181: 3726.699951 | E181: 3685.840088 | F181: 3709.409912 | G181: 7068340000 | H181: 3709.409912 | I181: 1 | J181: 1 | K181: 3722.39 | L181: 3726.7 | M181: 3685.84 | N181: 3709.41 | O181: 7068340000
A182: 167 | B182: 2020-12-17 | C182: 3713.649902 | D182: 3725.120117 | E182: 3710.870117 | F182: 3722.47998 | G182: 4184930000 | H182: 3722.47998 | I182: 1 | J182: 1 | K182: 3713.65 | L182: 3725.12 | M182: 3710.87 | N182: 3722.48 | O182: 4184930000
A183: 168 | B183: 2020-12-16 | C183: 3696.25 | D183: 3711.27002 | E183: 3688.570068 | F183: 3701.169922 | G183: 4056950000 | H183: 3701.169922 | I183: 1 | J183: 1 | K183: 3696.25 | L183: 3711.27 | M183: 3688.57 | N183: 3701.17 | O183: 4056950000
A184: 169 | B184: 2020-12-15 | C184: 3666.409912 | D184: 3695.290039 | E184: 3659.620117 | F184: 3694.620117 | G184: 4360280000 | H184: 3694.620117 | I184: 1 | J184: 1 | K184: 3666.41 | L184: 3695.29 | M184: 3659.62 | N184: 3694.62 | O184: 4360280000
A185: 170 | B185: 2020-12-14 | C185: 3675.27002 | D185: 3697.610107 | E185: 3645.840088 | F185: 3647.48999 | G185: 4594920000 | H185: 3647.48999 | I185: 1 | J185: 1 | K185: 3675.27 | L185: 3697.61 | M185: 3645.84 | N185: 3647.49 | O185: 4594920000
A186: 171 | B186: 2020-12-11 | C186: 3656.080078 | D186: 3665.909912 | E186: 3633.399902 | F186: 3663.459961 | G186: 4367150000 | H186: 3663.459961 | I186: 1 | J186: 1 | K186: 3656.08 | L186: 3665.91 | M186: 3633.4 | N186: 3663.46 | O186: 4367150000
A187: 172 | B187: 2020-12-10 | C187: 3659.129883 | D187: 3678.48999 | E187: 3645.179932 | F187: 3668.100098 | G187: 4618240000 | H187: 3668.100098 | I187: 1 | J187: 1 | K187: 3659.13 | L187: 3678.49 | M187: 3645.18 | N187: 3668.1 | O187: 4618240000
A188: 173 | B188: 2020-12-09 | C188: 3705.97998 | D188: 3712.389893 | E188: 3660.540039 | F188: 3672.820068 | G188: 5209940000 | H188: 3672.820068 | I188: 1 | J188: 1 | K188: 3705.98 | L188: 3712.39 | M188: 3660.54 | N188: 3672.82 | O188: 5209940000
A189: 174 | B189: 2020-12-08 | C189: 3683.050049 | D189: 3708.449951 | E189: 3678.830078 | F189: 3702.25 | G189: 4549670000 | H189: 3702.25 | I189: 1 | J189: 1 | K189: 3683.05 | L189: 3708.45 | M189: 3678.83 | N189: 3702.25 | O189: 4549670000
A190: 175 | B190: 2020-12-07 | C190: 3694.72998 | D190: 3697.409912 | E190: 3678.879883 | F190: 3691.959961 | G190: 4788560000 | H190: 3691.959961 | I190: 1 | J190: 1 | K190: 3694.73 | L190: 3697.41 | M190: 3678.88 | N190: 3691.96 | O190: 4788560000
A191: 176 | B191: 2020-12-04 | C191: 3670.939941 | D191: 3699.199951 | E191: 3670.939941 | F191: 3699.120117 | G191: 5086370000 | H191: 3699.120117 | I191: 1 | J191: 1 | K191: 3670.94 | L191: 3699.2 | M191: 3670.94 | N191: 3699.12 | O191: 5086370000
A192: 177 | B192: 2020-12-03 | C192: 3668.280029 | D192: 3682.72998 | E192: 3657.169922 | F192: 3666.719971 | G192: 5091760000 | H192: 3666.719971 | I192: 1 | J192: 1 | K192: 3668.28 | L192: 3682.73 | M192: 3657.17 | N192: 3666.72 | O192: 5091760000
A193: 178 | B193: 2020-12-02 | C193: 3653.780029 | D193: 3670.959961 | E193: 3644.840088 | F193: 3669.01001 | G193: 5029620000 | H193: 3669.01001 | I193: 1 | J193: 1 | K193: 3653.78 | L193: 3670.96 | M193: 3644.84 | N193: 3669.01 | O193: 5029620000
A194: 179 | B194: 2020-12-01 | C194: 3645.870117 | D194: 3678.449951 | E194: 3645.870117 | F194: 3662.449951 | G194: 5403660000 | H194: 3662.449951 | I194: 1 | J194: 1 | K194: 3645.87 | L194: 3678.45 | M194: 3645.87 | N194: 3662.45 | O194: 5403660000
A195: 180 | B195: 2020-11-30 | C195: 3634.179932 | D195: 3634.179932 | E195: 3594.389893 | F195: 3621.629883 | G195: 6291400000 | H195: 3621.629883 | I195: 1 | J195: 1 | K195: 3634.18 | L195: 3634.18 | M195: 3594.39 | N195: 3621.63 | O195: 6291400000
A196: 181 | B196: 2020-11-27 | C196: 3638.550049 | D196: 3644.310059 | E196: 3629.330078 | F196: 3638.350098 | G196: 2778450000 | H196: 3638.350098 | I196: 1 | J196: 1 | K196: 3638.55 | L196: 3644.31 | M196: 3629.33 | N196: 3638.35 | O196: 2778450000
A197: 182 | B197: 2020-11-25 | C197: 3635.5 | D197: 3635.5 | E197: 3617.76001 | F197: 3629.649902 | G197: 4902560000 | H197: 3629.649902 | I197: 1 | J197: 1 | K197: 3635.5 | L197: 3635.5 | M197: 3617.76 | N197: 3629.65 | O197: 4902560000
A198: 183 | B198: 2020-11-24 | C198: 3594.52002 | D198: 3642.310059 | E198: 3594.52002 | F198: 3635.409912 | G198: 6267570000 | H198: 3635.409912 | I198: 1 | J198: 1 | K198: 3594.52 | L198: 3642.31 | M198: 3594.52 | N198: 3635.41 | O198: 6267570000
A199: 184 | B199: 2020-11-23 | C199: 3566.820068 | D199: 3589.810059 | E199: 3552.77002 | F199: 3577.590088 | G199: 5036290000 | H199: 3577.590088 | I199: 1 | J199: 1 | K199: 3566.82 | L199: 3589.81 | M199: 3552.77 | N199: 3577.59 | O199: 5036290000
A200: 185 | B200: 2020-11-20 | C200: 3579.310059 | D200: 3581.22998 | E200: 3556.850098 | F200: 3557.540039 | G200: 4218970000 | H200: 3557.540039 | I200: 1 | J200: 1 | K200: 3579.31 | L200: 3581.23 | M200: 3556.85 | N200: 3557.54 | O200: 4218970000
... 4300 more rows

Sheet CalculationsAndCharts
A1: MadIndicator.xlsm
A2: =InputPriceData!A1 -> S&P 500 (^GSPC) -SNP (Daily)
A4: User Charting Controls | E4: Click to Shift Chart One Bar:
A5: Data Control | C5: TRUE
A6: =InputPriceData!$B$10 -> 17835 | B6: Available Input Data Rows | E6: Earliest: | F6: =OFFSET(InputPriceData!B15,CalculationsAndCharts!A6,0,1,1) -> 1950-10-02
A7: =MAX(A33:A56896) -> 2500 | B7: Available Calculation Rows | E7: Latest: | F7: =OFFSET(InputPriceData!B15,1,0,1,1) -> 2021-08-17
A8: =MIN(AvailableInputRows-DataPanRows,A7) -> 2500 | B8: Logically Available for Calc / Plot | E8: $ Change: | F8: =G33-G34 -> -55.42
A10: Historical Price Windowing Specifications | F10: Click to Shift
A11: 156 | B11: Input Data Offset (Pan) | F11: Points to Plot
A12: 288 | B12: Data Points to Plot (Zoom)
B13: First: | C13: =OFFSET(B32,A12,0,1,1) -> 2019-11-12
B14: ="Last: " & IF(OFFSET(InputPriceData!P15,1+A11,0,1,1)="","",TEXT(OFFSET(InputPriceData!P15,1+A11,0,1,1),"H:MM AM/PM")) -> Last: | C14: =B33 -> 2021-01-04
A15: User Controls
A16: Cycle/Trend Analytics
A18: 2
H20: =IF(A18=2,"Trend","Cycle")&" Mode" -> Trend Mode
A21: Moving Average Difference (MAD) Indicator
A22: 8 | B22: Short Length
A23: 23 | B23: Long Length
A25: Help! I would like to plot data
A26: From | B26: 2019-11-12 | C26: =OFFSET(InputPriceData!$A$15,MATCH(B26,OFFSET(InputPriceData!B15,1,0,InputPriceData!$B$10,1),0),0,1,1)-C27 -> 288 | E26: 244
A27: To | B27: 2021-01-04 | C27: =OFFSET(InputPriceData!$A$15,MATCH(B27,OFFSET(InputPriceData!$B$15,1,0,InputPriceData!$B$10,1),0),0,1,1)-1 -> 156 | E27: =$A$12-$E$26+1 -> 45
H28: Value @ Cursor => | I28: =OFFSET(A32,$E$27,0,1,1)&"(RR)" -> 45(RR) | J28: =OFFSET($B$32,E27,0,1,1) -> 2020-10-29 | L28: =TEXT(OFFSET(E32,$E$27,0,1,1),"#,##0.00")&"(h)" -> 3,341.05(h) | M28: =TEXT(OFFSET(F32,$E$27,0,1,1),"#,##0.00")&"(l)" -> 3,259.82(l) | N28: =TEXT(OFFSET(G32,$E$27,0,1,1),"#,##0.00")&"(c)" -> 3,310.11(c) | O28: =TEXT(OFFSET(C32,$E$27,0,1,1),"#,##0.00,,""M""")&"(v)" -> 4,903.07M(v)
E29: Cursor ==> | AL29: MAD Calcs | AY29: Work Area For Chart Cursors
B30: =LogicallyAvailableRows -> 2500 | C30: <== Calculation Rel Row Limits ==> | H30: =LogicallyAvailableRows -> 2500 | K30: =LogicallyAvailableRows-29 -> 2471 | L30: =LogicallyAvailableRows-L31+1 -> 2496 | M30: 2495 | N30: 2494 | O30: 2493 | P30: 2492 | Q30: 2491 | R30: 2490 | S30: 2489 | T30: 2488 | U30: 2487 | V30: 2486 | W30: 2485 | X30: 2484 | Y30: 2483 | Z30: 2482 | AA30: 2481 | AB30: 2480 | AC30: 2479 | AD30: 2478 | AE30: 2477 | AF30: 2476 | AG30: 2475 | AH30: 2474 | AI30: 2473 | AJ30: 2472 | AK30: 2471 | AL30: =LogicallyAvailableRows-$A$22+1 -> 2493 | AM30: =LogicallyAvailableRows-$A$23+1 -> 2478 | AN30: =LogicallyAvailableRows-MAX($A$22,$A$23)+1 -> 2478
A31: Rel Row | H31: Cycle Generator | I31: ="""Price""" -> "Price" | J31: Charting | K31: SMA(5) - SMA(30) | L31: 5 | M31: 6 | N31: 7 | O31: 8 | P31: 9 | Q31: 10 | R31: 11 | S31: 12 | T31: 13 | U31: 14 | V31: 15 | W31: 16 | X31: 17 | Y31: 18 | Z31: 19 | AA31: 20 | AB31: 21 | AC31: 22 | AD31: 23 | AE31: 24 | AF31: 25 | AG31: 26 | AH31: 27 | AI31: 28 | AJ31: 29 | AK31: 30 | AW31: Used To Color Vol Bars
B32: Date | C32: Volume | D32: Open | E32: High | F32: Low | G32: Close | I32: =IF($A$18=1,"""Cycle""","Close") -> Close | J32: =I32 -> Close | L32: ="S"&L31 -> S5 | M32: ="S"&M31 -> S6 | N32: S7 | O32: S8 | P32: S9 | Q32: S10 | R32: S11 | S32: S12 | T32: S13 | U32: S14 | V32: S15 | W32: S16 | X32: S17 | Y32: S18 | Z32: S19 | AA32: S20 | AB32: S21 | AC32: S22 | AD32: S23 | AE32: S24 | AF32: S25 | AG32: S26 | AH32: S27 | AI32: S28 | AJ32: S29 | AK32: S30 | AL32: ="Short(" & A22 & ")" -> Short(8) | AM32: ="Long(" & $A$23 & ")" -> Long(23) | AN32: ="MAD(" & A22&","&A23 & ")" -> MAD(8,23) | AW32: Up Vol | AX32: Dn Vol | AY32: Volume Cursor | AZ32: =MAX(OFFSET(C33,0,0,A12,1)) -> 9044690000 | BA32: Price Chart Cursor | BC32: Indicator 01 Cursor | BE32: Indicator 02 Cursor | BG32: Indicator 03 Cursor | BI32: Indicator 04 Cursor
A33: 1 | B33: =IF(A33>$B$30,NA(),IF($A33>$A$8,"",OFFSET(InputPriceData!$B$15,$A33+$A$11,0,1,1))) -> 2021-01-04 | C33: =IF(A33>$B$30,NA(),IF($A33>$A$8,"",OFFSET(InputPriceData!$G$15,CalculationsAndCharts!$A33+$A$11,IF($C$5,8,0),1,1))) -> 5006680000 | D33: =IF(A33>$B$30,NA(),IF(A33>$A$8,"",OFFSET(InputPriceData!$C$15,CalculationsAndCharts!$A33+$A$11,IF($C$5,8,0),1,1))) -> 3764.61 | E33: =IF(A33>$B$30,NA(),IF(A33>$A$8,"",OFFSET(InputPriceData!$D$15,CalculationsAndCharts!$A33+$A$11,IF($C$5,8,0),1,1))) -> 3769.99 | F33: =IF(A33>$B$30,NA(),IF(A33>$A$8,"",OFFSET(InputPriceData!$E$15,CalculationsAndCharts!$A33+$A$11,IF($C$5,8,0),1,1))) -> 3662.71 | G33: =IF(A33>$B$30,NA(),IF(A33>$A$8,"",OFFSET(InputPriceData!$F$15,CalculationsAndCharts!$A33+$A$11,IF($C$5,8,0),1,1))) -> 3700.65 | H33: =IF(A33<=$H$30,SIN(RADIANS(360*(LogicallyAvailableRows-A33+1)/30)),NA()) -> 0.8660254038 | I33: =IF(A33<=$H$30,IF($A$18=1,H33,G33),NA()) -> 3700.65 | J33: =IF(A33<=$H$30,IF($A$18=1,I33,NA()),NA()) ->  | K33: =IF(A33<=$K$30,IF($A$18=1,(AVERAGE(OFFSET($I33,0,0,5,1))-AVERAGE(OFFSET($I33,0,0,30,1))),NA()),NA()) ->  | L33: =IF($A33<=L$30,$I33-AVERAGE(OFFSET($I33,0,0,L$31,1)),NA()) -> -29.582 | M33: =IF($A33<=M$30,$I33-AVERAGE(OFFSET($I33,0,0,M$31,1)),NA()) -> -25.05333333 | N33: =IF($A33<=N$30,$I33-AVERAGE(OFFSET($I33,0,0,N$31,1)),NA()) -> -19.95428571 | O33: =IF($A33<=O$30,$I33-AVERAGE(OFFSET($I33,0,0,O$31,1)),NA()) -> -15.78625 | P33: -13.39555556 | Q33: -12.932 | R33: -13.74090909 | S33: -12.63916667 | T33: -11.20307692 | U33: -6.605714286 | V33: -3.686 | W33: -1.42125 | X33: 0.2994117647 | Y33: 0.1938888889 | Z33: 0.6410526316 | AA33: 0.6855 | AB33: 2.268571429 | AC33: 3.603636364 | AD33: 5.107826087 | AE33: 8.1875 | AF33: 10.352 | AG33: 12.68461538 | AH33: 14.63111111 | AI33: 18.50357143 | AJ33: 22.80034483 | AK33: 25.99966667 | AL33: =IF($A33<=AL$30,AVERAGE(OFFSET(G33,0,0,$A$22,1)),NA()) -> 3716.43625 | AM33: =IF($A33<=AM$30,AVERAGE(OFFSET(G33,0,0,$A$23,1)),NA()) -> 3695.542174 | AN33: =IF($A33<=AN$30,100*(AL33-AM33)/AM33,NA()) -> 0.5653859462 | AW33: =IF(G33>=D33,C33,NA()) ->  | AX33: =IF(G33<D33,C33,NA()) -> 5006680000 | AY33: =$E$27 -> 45 | AZ33: 0 | BA33: =$E$27 -> 45 | BB33: 2137.0635 | BC33: =$E$27 -> 45 | BD33: -759.2024362 | BE33: =$E$27 -> 45 | BF33: -728.4353333 | BG33: =$E$27 -> 45 | BH33: -14.80878152 | BI33: =$E$27 -> 45
A34: 2 | B34: =IF(A34>$B$30,NA(),IF($A34>$A$8,"",OFFSET(InputPriceData!$B$15,$A34+$A$11,0,1,1))) -> 2020-12-31 | C34: =IF(A34>$B$30,NA(),IF($A34>$A$8,"",OFFSET(InputPriceData!$G$15,CalculationsAndCharts!$A34+$A$11,IF($C$5,8,0),1,1))) -> 3172510000 | D34: =IF(A34>$B$30,NA(),IF(A34>$A$8,"",OFFSET(InputPriceData!$C$15,CalculationsAndCharts!$A34+$A$11,IF($C$5,8,0),1,1))) -> 3733.27 | E34: =IF(A34>$B$30,NA(),IF(A34>$A$8,"",OFFSET(InputPriceData!$D$15,CalculationsAndCharts!$A34+$A$11,IF($C$5,8,0),1,1))) -> 3760.2 | F34: =IF(A34>$B$30,NA(),IF(A34>$A$8,"",OFFSET(InputPriceData!$E$15,CalculationsAndCharts!$A34+$A$11,IF($C$5,8,0),1,1))) -> 3726.88 | G34: =IF(A34>$B$30,NA(),IF(A34>$A$8,"",OFFSET(InputPriceData!$F$15,CalculationsAndCharts!$A34+$A$11,IF($C$5,8,0),1,1))) -> 3756.07 | H34: 0.9510565163 | I34: =IF(A34<=$H$30,IF($A$18=1,H34,G34),NA()) -> 3756.07 | J34: =IF(A34<=$H$30,IF($A$18=1,I34,NA()),NA()) ->  | K34: =IF(A34<=$K$30,IF($A$18=1,(AVERAGE(OFFSET($I34,0,0,5,1))-AVERAGE(OFFSET($I34,0,0,30,1))),NA()),NA()) ->  | L34: =IF($A34<=L$30,$I34-AVERAGE(OFFSET($I34,0,0,L$31,1)),NA()) -> 25.356 | M34: 32.14 | N34: 37.37857143 | O34: 40.35 | P34: 41.05111111 | Q34: 40.305 | R34: 41.63181818 | S34: 43.28333333 | T34: 48.30615385 | U34: 51.47071429 | V34: 53.904 | W34: 55.738125 | X34: 55.62529412 | Y34: 56.09666667 | Z34: 56.14157895 | AA34: 57.802 | AB34: 59.1952381 | AC34: 60.76 | AD34: 63.96347826 | AE34: 66.20333333 | AF34: 68.612 | AG34: 70.61384615 | AH34: 74.60888889 | AI34: 79.03464286 | AJ34: 82.3162069 | AK34: 85.84833333 | AL34: =IF($A34<=AL$30,AVERAGE(OFFSET(G34,0,0,$A$22,1)),NA()) -> 3715.72 | AM34: =IF($A34<=AM$30,AVERAGE(OFFSET(G34,0,0,$A$23,1)),NA()) -> 3692.106522 | AN34: =IF($A34<=AN$30,100*(AL34-AM34)/AM34,NA()) -> 0.6395665488 | AW34: 3172510000 | AY34: =$E$27 -> 45 | AZ34: =CEILING(AZ32,10^INT(LOG10(AZ32))/8) -> 9125000000 | BA34: =$E$27 -> 45 | BB34: 3864.23975 | BC34: =$E$27 -> 45 | BD34: 327.9018648 | BE34: =$E$27 -> 45 | BF34: 281.359 | BG34: =$E$27 -> 45 | BH34: 8.314982297 | BI34: =$E$27 -> 45 | BJ34: 0
A35: 3 | B35: =IF(A35>$B$30,NA(),IF($A35>$A$8,"",OFFSET(InputPriceData!$B$15,$A35+$A$11,0,1,1))) -> 2020-12-30 | C35: =IF(A35>$B$30,NA(),IF($A35>$A$8,"",OFFSET(InputPriceData!$G$15,CalculationsAndCharts!$A35+$A$11,IF($C$5,8,0),1,1))) -> 3145200000 | D35: =IF(A35>$B$30,NA(),IF(A35>$A$8,"",OFFSET(InputPriceData!$C$15,CalculationsAndCharts!$A35+$A$11,IF($C$5,8,0),1,1))) -> 3736.19 | E35: =IF(A35>$B$30,NA(),IF(A35>$A$8,"",OFFSET(InputPriceData!$D$15,CalculationsAndCharts!$A35+$A$11,IF($C$5,8,0),1,1))) -> 3744.63 | F35: =IF(A35>$B$30,NA(),IF(A35>$A$8,"",OFFSET(InputPriceData!$E$15,CalculationsAndCharts!$A35+$A$11,IF($C$5,8,0),1,1))) -> 3730.21 | G35: =IF(A35>$B$30,NA(),IF(A35>$A$8,"",OFFSET(InputPriceData!$F$15,CalculationsAndCharts!$A35+$A$11,IF($C$5,8,0),1,1))) -> 3732.04 | H35: 0.9945218954 | I35: 3732.04 | L35: 14.538 | M35: 19.57833333 | N35: 22.08428571 | O35: 22.1525 | P35: 20.75333333 | Q35: 21.765 | R35: 23.18818182 | S35: 28.30166667 | T35: 31.4 | U35: 33.72428571 | V35: 35.424 | W35: 35.071875 | X35: 35.36647059 | Y35: 35.23055556 | Z35: 36.81421053 | AA35: 38.125 | AB35: 39.62333333 | AC35: 42.84090909 | AD35: 45.05173913 | AE35: 47.44083333 | AF35: 49.4084 | AG35: 53.44846154 | AH35: 57.93185185 | AI35: 61.22607143 | AJ35: 64.77862069 | AK35: 66.703 | AL35: 3709.8875 | AM35: 3686.988261 | AN35: 0.6210825072 | AX35: 3145200000
A36: 4 | B36: =IF(A36>$B$30,NA(),IF($A36>$A$8,"",OFFSET(InputPriceData!$B$15,$A36+$A$11,0,1,1))) -> 2020-12-29 | C36: =IF(A36>$B$30,NA(),IF($A36>$A$8,"",OFFSET(InputPriceData!$G$15,CalculationsAndCharts!$A36+$A$11,IF($C$5,8,0),1,1))) -> 3387030000 | D36: =IF(A36>$B$30,NA(),IF(A36>$A$8,"",OFFSET(InputPriceData!$C$15,CalculationsAndCharts!$A36+$A$11,IF($C$5,8,0),1,1))) -> 3750.01 | E36: =IF(A36>$B$30,NA(),IF(A36>$A$8,"",OFFSET(InputPriceData!$D$15,CalculationsAndCharts!$A36+$A$11,IF($C$5,8,0),1,1))) -> 3756.12 | F36: =IF(A36>$B$30,NA(),IF(A36>$A$8,"",OFFSET(InputPriceData!$E$15,CalculationsAndCharts!$A36+$A$11,IF($C$5,8,0),1,1))) -> 3723.31 | G36: =IF(A36>$B$30,NA(),IF(A36>$A$8,"",OFFSET(InputPriceData!$F$15,CalculationsAndCharts!$A36+$A$11,IF($C$5,8,0),1,1))) -> 3727.04 | H36: 0.9945218954 | I36: 3727.04 | L36: 18.494 | M36: 20.765 | N36: 20.31714286 | O36: 18.3475 | P36: 19.18333333 | Q36: 20.507 | R36: 25.87454545 | S36: 29.01666667 | T36: 31.31846154 | U36: 32.95428571 | V36: 32.41 | W36: 32.576875 | X36: 32.30294118 | Y36: 33.85944444 | Z36: 35.13157895 | AA36: 36.6045 | AB36: 39.88095238 | AC36: 42.09954545 | AD36: 44.50347826 | AE36: 46.46708333 | AF36: 50.5864 | AG36: 55.16 | AH36: 58.4937037 | AI36: 62.09214286 | AJ36: 64.00310345 | AK36: 65.20733333 | AL36: 3708.6925 | AM36: 3682.536522 | AN36: 0.710270709 | AX36: 3387030000
A37: 5 | B37: =IF(A37>$B$30,NA(),IF($A37>$A$8,"",OFFSET(InputPriceData!$B$15,$A37+$A$11,0,1,1))) -> 2020-12-28 | C37: =IF(A37>$B$30,NA(),IF($A37>$A$8,"",OFFSET(InputPriceData!$G$15,CalculationsAndCharts!$A37+$A$11,IF($C$5,8,0),1,1))) -> 3527460000 | D37: =IF(A37>$B$30,NA(),IF(A37>$A$8,"",OFFSET(InputPriceData!$C$15,CalculationsAndCharts!$A37+$A$11,IF($C$5,8,0),1,1))) -> 3723.03 | E37: =IF(A37>$B$30,NA(),IF(A37>$A$8,"",OFFSET(InputPriceData!$D$15,CalculationsAndCharts!$A37+$A$11,IF($C$5,8,0),1,1))) -> 3740.51 | F37: =IF(A37>$B$30,NA(),IF(A37>$A$8,"",OFFSET(InputPriceData!$E$15,CalculationsAndCharts!$A37+$A$11,IF($C$5,8,0),1,1))) -> 3723.03 | G37: =IF(A37>$B$30,NA(),IF(A37>$A$8,"",OFFSET(InputPriceData!$F$15,CalculationsAndCharts!$A37+$A$11,IF($C$5,8,0),1,1))) -> 3735.36 | H37: 0.9510565163 | I37: 3735.36 | L37: 33.238 | M37: 32.02333333 | N37: 29.28857143 | O37: 29.90125 | P37: 31.10555556 | Q37: 36.782 | R37: 39.97454545 | S37: 42.24833333 | T37: 43.80923077 | U37: 43.045 | V37: 43.06866667 | W37: 42.641875 | X37: 44.17117647 | Y37: 45.40333333 | Z37: 46.85105263 | AA37: 50.195 | AB37: 52.42428571 | AC37: 54.84636364 | AD37: 56.8073913 | AE37: 61.01416667 | AF37: 65.6864 | AG37: 69.06346154 | AH37: 72.71185185 | AI37: 74.60892857 | AJ37: 75.77586207 | AK37: 78.257 | AL37: 3705.45875 | AM37: 3678.552609 | AN37: 0.7314328261 | AW37: 3527460000
A38: 6 | B38: =IF(A38>$B$30,NA(),IF($A38>$A$8,"",OFFSET(InputPriceData!$B$15,$A38+$A$11,0,1,1))) -> 2020-12-24 | C38: =IF(A38>$B$30,NA(),IF($A38>$A$8,"",OFFSET(InputPriceData!$G$15,CalculationsAndCharts!$A38+$A$11,IF($C$5,8,0),1,1))) -> 1885090000 | D38: =IF(A38>$B$30,NA(),IF(A38>$A$8,"",OFFSET(InputPriceData!$C$15,CalculationsAndCharts!$A38+$A$11,IF($C$5,8,0),1,1))) -> 3694.03 | E38: =IF(A38>$B$30,NA(),IF(A38>$A$8,"",OFFSET(InputPriceData!$D$15,CalculationsAndCharts!$A38+$A$11,IF($C$5,8,0),1,1))) -> 3703.82 | F38: =IF(A38>$B$30,NA(),IF(A38>$A$8,"",OFFSET(InputPriceData!$E$15,CalculationsAndCharts!$A38+$A$11,IF($C$5,8,0),1,1))) -> 3689.32 | G38: =IF(A38>$B$30,NA(),IF(A38>$A$8,"",OFFSET(InputPriceData!$F$15,CalculationsAndCharts!$A38+$A$11,IF($C$5,8,0),1,1))) -> 3703.06 | H38: 0.8660254038 | I38: 3703.06 | L38: 6.128 | M38: 1.87 | N38: 1.872857143 | O38: 2.69375 | P38: 8.568888889 | Q38: 11.672 | R38: 13.78909091 | S38: 15.16 | T38: 14.05615385 | U38: 13.845 | V38: 13.18466667 | W38: 14.631875 | X38: 15.77411765 | Y38: 17.15388889 | Z38: 20.53684211 | AA38: 22.7455 | AB38: 25.15809524 | AC38: 27.08954545 | AD38: 31.36695652 | AE38: 36.12333333 | AF38: 39.526 | AG38: 43.20846154 | AH38: 45.07222222 | AI38: 46.18214286 | AJ38: 48.65551724 | AK38: 52.56866667 | AL38: 3700.36625 | AM38: 3671.693043 | AN38: 0.7809260246 | AW38: 1885090000
A39: 7 | B39: =IF(A39>$B$30,NA(),IF($A39>$A$8,"",OFFSET(InputPriceData!$B$15,$A39+$A$11,0,1,1))) -> 2020-12-23 | C39: =IF(A39>$B$30,NA(),IF($A39>$A$8,"",OFFSET(InputPriceData!$G$15,CalculationsAndCharts!$A39+$A$11,IF($C$5,8,0),1,1))) -> 3772630000 | D39: =IF(A39>$B$30,NA(),IF(A39>$A$8,"",OFFSET(InputPriceData!$C$15,CalculationsAndCharts!$A39+$A$11,IF($C$5,8,0),1,1))) -> 3693.42 | E39: =IF(A39>$B$30,NA(),IF(A39>$A$8,"",OFFSET(InputPriceData!$D$15,CalculationsAndCharts!$A39+$A$11,IF($C$5,8,0),1,1))) -> 3711.24 | F39: =IF(A39>$B$30,NA(),IF(A39>$A$8,"",OFFSET(InputPriceData!$E$15,CalculationsAndCharts!$A39+$A$11,IF($C$5,8,0),1,1))) -> 3689.28 | G39: =IF(A39>$B$30,NA(),IF(A39>$A$8,"",OFFSET(InputPriceData!$F$15,CalculationsAndCharts!$A39+$A$11,IF($C$5,8,0),1,1))) -> 3690.01 | H39: 0.7431448255 | I39: 3690.01 | L39: -10.806 | M39: -10.865 | N39: -9.971428571 | O39: -3.41 | P39: -0.08111111111 | Q39: 2.118 | R39: 3.488181818 | S39: 2.1775 | T39: 1.86 | U39: 1.076428571 | V39: 2.557333333 | W39: 3.71 | X39: 5.112941176 | Y39: 8.627777778 | Z39: 10.89263158 | AA39: 13.366 | AB39: 15.32952381 | AC39: 19.74272727 | AD39: 24.64391304 | AE39: 28.12291667 | AF39: 31.8868 | AG39: 33.75576923 | AH39: 34.84259259 | AI39: 37.34321429 | AJ39: 41.33137931 | AK39: 43.86533333 | AL39: 3693.42 | AM39: 3665.366087 | AN39: 0.7653782017 | AX39: 3772630000
A40: 8 | B40: =IF(A40>$B$30,NA(),IF($A40>$A$8,"",OFFSET(InputPriceData!$B$15,$A40+$A$11,0,1,1))) -> 2020-12-22 | C40: =IF(A40>$B$30,NA(),IF($A40>$A$8,"",OFFSET(InputPriceData!$G$15,CalculationsAndCharts!$A40+$A$11,IF($C$5,8,0),1,1))) -> 4023940000 | D40: =IF(A40>$B$30,NA(),IF(A40>$A$8,"",OFFSET(InputPriceData!$C$15,CalculationsAndCharts!$A40+$A$11,IF($C$5,8,0),1,1))) -> 3698.08 | E40: =IF(A40>$B$30,NA(),IF(A40>$A$8,"",OFFSET(InputPriceData!$D$15,CalculationsAndCharts!$A40+$A$11,IF($C$5,8,0),1,1))) -> 3698.26 | F40: =IF(A40>$B$30,NA(),IF(A40>$A$8,"",OFFSET(InputPriceData!$E$15,CalculationsAndCharts!$A40+$A$11,IF($C$5,8,0),1,1))) -> 3676.16 | G40: =IF(A40>$B$30,NA(),IF(A40>$A$8,"",OFFSET(InputPriceData!$F$15,CalculationsAndCharts!$A40+$A$11,IF($C$5,8,0),1,1))) -> 3687.26 | H40: 0.5877852523 | I40: 3687.26 | L40: -15.788 | M40: -14.38333333 | N40: -6.647142857 | O40: -2.84125 | P40: -0.3966666667 | Q40: 1.087 | R40: -0.3745454545 | S40: -0.735 | T40: -1.590769231 | U40: -0.01 | V40: 1.207333333 | W40: 2.6825 | X40: 6.385294118 | Y40: 8.747777778 | Z40: 11.31947368 | AA40: 13.346 | AB40: 17.93285714 | AC40: 23.01409091 | AD40: 26.59565217 | AE40: 30.46541667 | AF40: 32.356 | AG40: 33.43269231 | AH40: 35.9762963 | AI40: 40.0575 | AJ40: 42.62793103 | AK40: 45.93133333 | AL40: 3690.10125 | AM40: 3660.664348 | AN40: 0.8041409803 | AX40: 4023940000
A41: 9 | B41: =IF(A41>$B$30,NA(),IF($A41>$A$8,"",OFFSET(InputPriceData!$B$15,$A41+$A$11,0,1,1))) -> 2020-12-21 | C41: =IF(A41>$B$30,NA(),IF($A41>$A$8,"",OFFSET(InputPriceData!$G$15,CalculationsAndCharts!$A41+$A$11,IF($C$5,8,0),1,1))) -> 4732160000 | D41: =IF(A41>$B$30,NA(),IF(A41>$A$8,"",OFFSET(InputPriceData!$C$15,CalculationsAndCharts!$A41+$A$11,IF($C$5,8,0),1,1))) -> 3684.28 | E41: =IF(A41>$B$30,NA(),IF(A41>$A$8,"",OFFSET(InputPriceData!$D$15,CalculationsAndCharts!$A41+$A$11,IF($C$5,8,0),1,1))) -> 3702.9 | F41: =IF(A41>$B$30,NA(),IF(A41>$A$8,"",OFFSET(InputPriceData!$E$15,CalculationsAndCharts!$A41+$A$11,IF($C$5,8,0),1,1))) -> 3636.48 | G41: =IF(A41>$B$30,NA(),IF(A41>$A$8,"",OFFSET(InputPriceData!$F$15,CalculationsAndCharts!$A41+$A$11,IF($C$5,8,0),1,1))) -> 3694.92 | H41: 0.4067366431 | I41: 3694.92 | L41: -9.6 | M41: -0.095 | N41: 4.412857143 | O41: 7.21375 | P41: 8.867777778 | Q41: 7.248 | R41: 6.858181818 | S41: 5.936666667 | T41: 7.649230769 | U41: 8.953571429 | V41: 10.52133333 | W41: 14.444375 | X41: 16.92235294 | Y41: 19.60833333 | Z41: 21.70842105 | AA41: 26.4895 | AB41: 31.77 | AC41: 35.46454545 | AD41: 39.45 | AE41: 41.36416667 | AF41: 42.43 | AG41: 45.02 | AH41: 49.20111111 | AI41: 51.81035714 | AJ41: 55.17517241 | AK41: 58.15 | AL41: 3687.70625 | AM41: 3655.47 | AN41: 0.8818633445 | AW41: 4732160000
A42: 10 | B42: =IF(A42>$B$30,NA(),IF($A42>$A$8,"",OFFSET(InputPriceData!$B$15,$A42+$A$11,0,1,1))) -> 2020-12-18 | C42: =IF(A42>$B$30,NA(),IF($A42>$A$8,"",OFFSET(InputPriceData!$G$15,CalculationsAndCharts!$A42+$A$11,IF($C$5,8,0),1,1))) -> 7068340000 | D42: =IF(A42>$B$30,NA(),IF(A42>$A$8,"",OFFSET(InputPriceData!$C$15,CalculationsAndCharts!$A42+$A$11,IF($C$5,8,0),1,1))) -> 3722.39 | E42: =IF(A42>$B$30,NA(),IF(A42>$A$8,"",OFFSET(InputPriceData!$D$15,CalculationsAndCharts!$A42+$A$11,IF($C$5,8,0),1,1))) -> 3726.7 | F42: =IF(A42>$B$30,NA(),IF(A42>$A$8,"",OFFSET(InputPriceData!$E$15,CalculationsAndCharts!$A42+$A$11,IF($C$5,8,0),1,1))) -> 3685.84 | G42: =IF(A42>$B$30,NA(),IF(A42>$A$8,"",OFFSET(InputPriceData!$F$15,CalculationsAndCharts!$A42+$A$11,IF($C$5,8,0),1,1))) -> 3709.41 | H42: 0.2079116908 | I42: 3709.41 | L42: 14.376 | M42: 19.63833333 | N42: 22.73428571 | O42: 24.46625 | P42: 22.54333333 | Q42: 22.034 | R42: 20.96636364 | S42: 22.77666667 | T42: 24.13230769 | U42: 25.76285714 | V42: 29.89733333 | W42: 32.47 | X42: 35.25176471 | Y42: 37.40444444 | Z42: 42.37368421 | AA42: 47.8485 | AB42: 51.64333333 | AC42: 55.73318182 | AD42: 57.6526087 | AE42: 58.68791667 | AF42: 61.3108 | AG42: 65.58346154 | AH42: 68.21925926 | AI42: 71.63571429 | AJ42: 74.64517241 | AK42: 78.82266667 | AL42: 3684.94375 | AM42: 3651.757391 | AN42: 0.9087777511 | AX42: 7068340000
A43: 11 | B43: =IF(A43>$B$30,NA(),IF($A43>$A$8,"",OFFSET(InputPriceData!$B$15,$A43+$A$11,0,1,1))) -> 2020-12-17 | C43: =IF(A43>$B$30,NA(),IF($A43>$A$8,"",OFFSET(InputPriceData!$G$15,CalculationsAndCharts!$A43+$A$11,IF($C$5,8,0),1,1))) -> 4184930000 | D43: =IF(A43>$B$30,NA(),IF(A43>$A$8,"",OFFSET(InputPriceData!$C$15,CalculationsAndCharts!$A43+$A$11,IF($C$5,8,0),1,1))) -> 3713.65 | E43: =IF(A43>$B$30,NA(),IF(A43>$A$8,"",OFFSET(InputPriceData!$D$15,CalculationsAndCharts!$A43+$A$11,IF($C$5,8,0),1,1))) -> 3725.12 | F43: =IF(A43>$B$30,NA(),IF(A43>$A$8,"",OFFSET(InputPriceData!$E$15,CalculationsAndCharts!$A43+$A$11,IF($C$5,8,0),1,1))) -> 3710.87 | G43: =IF(A43>$B$30,NA(),IF(A43>$A$8,"",OFFSET(InputPriceData!$F$15,CalculationsAndCharts!$A43+$A$11,IF($C$5,8,0),1,1))) -> 3722.48 | H43: 2.940052715e-14 | I43: 3722.48 | L43: 36.636 | M43: 39.59333333 | N43: 41.03142857 | O43: 38.43125 | P43: 37.55222222 | Q43: 36.133 | R43: 37.91727273 | S43: 39.21333333 | T43: 40.81461538 | U43: 45.10285714 | V43: 47.70466667 | W43: 50.525 | X43: 52.67470588 | Y43: 57.79777778 | Z43: 63.43684211 | AA43: 67.2955 | AB43: 71.45714286 | AC43: 73.34318182 | AD43: 74.30956522 | AE43: 76.93541667 | AF43: 81.2768 | AG43: 83.91307692 | AH43: 87.35888889 | AI43: 90.38107143 | AJ43: 94.61068966 | AK43: 98.52466667 | AL43: 3684.04875 | AM43: 3648.170435 | AN43: 0.9834605005 | AW43: 4184930000
A44: 12 | B44: =IF(A44>$B$30,NA(),IF($A44>$A$8,"",OFFSET(InputPriceData!$B$15,$A44+$A$11,0,1,1))) -> 2020-12-16 | C44: =IF(A44>$B$30,NA(),IF($A44>$A$8,"",OFFSET(InputPriceData!$G$15,CalculationsAndCharts!$A44+$A$11,IF($C$5,8,0),1,1))) -> 4056950000 | D44: =IF(A44>$B$30,NA(),IF(A44>$A$8,"",OFFSET(InputPriceData!$C$15,CalculationsAndCharts!$A44+$A$11,IF($C$5,8,0),1,1))) -> 3696.25 | E44: =IF(A44>$B$30,NA(),IF(A44>$A$8,"",OFFSET(InputPriceData!$D$15,CalculationsAndCharts!$A44+$A$11,IF($C$5,8,0),1,1))) -> 3711.27 | F44: =IF(A44>$B$30,NA(),IF(A44>$A$8,"",OFFSET(InputPriceData!$E$15,CalculationsAndCharts!$A44+$A$11,IF($C$5,8,0),1,1))) -> 3688.57 | G44: =IF(A44>$B$30,NA(),IF(A44>$A$8,"",OFFSET(InputPriceData!$F$15,CalculationsAndCharts!$A44+$A$11,IF($C$5,8,0),1,1))) -> 3701.17 | H44: -0.2079116908 | I44: 3701.17 | L44: 26.202 | M44: 26.56 | N44: 22.61142857 | O44: 20.93625 | P44: 18.83777778 | Q44: =IF($A44<=Q$30,$I44-AVERAGE(OFFSET($I44,0,0,Q$31,1)),NA()) -> 20.399 | R44: 21.46818182 | S44: 22.90583333 | T44: 27.26230769 | U44: 29.80214286 | V44: 32.58333333 | W44: 34.656875 | X44: 39.88764706 | Y44: 45.65111111 | Z44: 49.52736842 | AA44: 53.72 | AB44: 55.52571429 | AC44: 56.37727273 | AD44: 58.97043478 | AE44: 63.35333333 | AF44: 65.9596 | AG44: =IF($A44<=AG$30,$I44-AVERAGE(OFFSET($I44,0,0,AG$31,1)),NA()) -> 69.40884615 | AH44: 72.41851852 | AI44: 76.67964286 | AJ44: 80.61206897 | AK44: 86.516 | AL44: 3680.23375 | AM44: 3642.199565 | AN44: 1.044264162 | AW44: 4056950000
A45: 13 | B45: =IF(A45>$B$30,NA(),IF($A45>$A$8,"",OFFSET(InputPriceData!$B$15,$A45+$A$11,0,1,1))) -> 2020-12-15 | C45: =IF(A45>$B$30,NA(),IF($A45>$A$8,"",OFFSET(InputPriceData!$G$15,CalculationsAndCharts!$A45+$A$11,IF($C$5,8,0),1,1))) -> 4360280000 | D45: =IF(A45>$B$30,NA(),IF(A45>$A$8,"",OFFSET(InputPriceData!$C$15,CalculationsAndCharts!$A45+$A$11,IF($C$5,8,0),1,1))) -> 3666.41 | E45: =IF(A45>$B$30,NA(),IF(A45>$A$8,"",OFFSET(InputPriceData!$D$15,CalculationsAndCharts!$A45+$A$11,IF($C$5,8,0),1,1))) -> 3695.29 | F45: =IF(A45>$B$30,NA(),IF(A45>$A$8,"",OFFSET(InputPriceData!$E$15,CalculationsAndCharts!$A45+$A$11,IF($C$5,8,0),1,1))) -> 3659.62 | G45: =IF(A45>$B$30,NA(),IF(A45>$A$8,"",OFFSET(InputPriceData!$F$15,CalculationsAndCharts!$A45+$A$11,IF($C$5,8,0),1,1))) -> 3694.62 | H45: -0.4067366431 | I45: 3694.62 | L45: 25.322 | M45: 19.83 | N45: 17.37714286 | O45: 14.6425 | P45: 16.11555556 | Q45: 17.065 | R45: 18.43818182 | S45: 22.98416667 | T45: 25.54461538 | U45: 28.36071429 | V45: 30.41733333 | W45: 35.830625 | X45: 41.78647059 | Y45: 45.72888889 | Z45: 49.99736842 | AA45: 51.752 | AB45: 52.51190476 | AC45: 55.10090909 | AD45: 59.55782609 | AE45: 62.15791667 | AF45: 65.6352 | AG45: 68.65384615 | AH45: 72.96962963 | AI45: 76.94107143 | AJ45: 82.94931034 | AK45: 91.033 | AL45: 3679.9775 | AM45: 3635.062174 | AN45: 1.235613696 | AW45: 4360280000
A46: 14 | B46: =IF(A46>$B$30,NA(),IF($A46>$A$8,"",OFFSET(InputPriceData!$B$15,$A46+$A$11,0,1,1))) -> 2020-12-14 | C46: =IF(A46>$B$30,NA(),IF($A46>$A$8,"",OFFSET(InputPriceData!$G$15,CalculationsAndCharts!$A46+$A$11,IF($C$5,8,0),1,1))) -> 4594920000 | D46: =IF(A46>$B$30,NA(),IF(A46>$A$8,"",OFFSET(InputPriceData!$C$15,CalculationsAndCharts!$A46+$A$11,IF($C$5,8,0),1,1))) -> 3675.27 | E46: =IF(A46>$B$30,NA(),IF(A46>$A$8,"",OFFSET(InputPriceData!$D$15,CalculationsAndCharts!$A46+$A$11,IF($C$5,8,0),1,1))) -> 3697.61 | F46: =IF(A46>$B$30,NA(),IF(A46>$A$8,"",OFFSET(InputPriceData!$E$15,CalculationsAndCharts!$A46+$A$11,IF($C$5,8,0),1,1))) -> 3645.84 | G46: =IF(A46>$B$30,NA(),IF(A46>$A$8,"",OFFSET(InputPriceData!$F$15,CalculationsAndCharts!$A46+$A$11,IF($C$5,8,0),1,1))) -> 3647.49 | H46: -0.5877852523 | I46: 3647.49 | L46: -23.334 | M46: -26.85666667 | N46: -30.39571429 | O46: -29 | P46: -28.16888889 | Q46: -26.848 | R46: -22.05636364 | S46: -19.45666667 | T46: -16.58769231 | U46: -14.54 | V46: -8.910666667 | W46: -2.731875 | X46: 1.288823529 | Y46: 5.645 | Z46: 7.345789474 | AA46: 8.0075 | AB46: 10.5947619 | AC46: 15.135 | AD46: 17.73043478 | AE46: 21.24 | AF46: 24.27 | AG46: 28.64615385 | AH46: 32.66074074 | AI46: 38.78178571 | AJ46: 47.04206897 | AK46: 56.71566667 | AL46: 3676.49 | AM46: 3629.759565 | AN46: 1.287425074 | AX46: 4594920000
A47: 15 | B47: =IF(A47>$B$30,NA(),IF($A47>$A$8,"",OFFSET(InputPriceData!$B$15,$A47+$A$11,0,1,1))) -> 2020-12-11 | C47: =IF(A47>$B$30,NA(),IF($A47>$A$8,"",OFFSET(InputPriceData!$G$15,CalculationsAndCharts!$A47+$A$11,IF($C$5,8,0),1,1))) -> 4367150000 | D47: =IF(A47>$B$30,NA(),IF(A47>$A$8,"",OFFSET(InputPriceData!$C$15,CalculationsAndCharts!$A47+$A$11,IF($C$5,8,0),1,1))) -> 3656.08 | E47: =IF(A47>$B$30,NA(),IF(A47>$A$8,"",OFFSET(InputPriceData!$D$15,CalculationsAndCharts!$A47+$A$11,IF($C$5,8,0),1,1))) -> 3665.91 | F47: =IF(A47>$B$30,NA(),IF(A47>$A$8,"",OFFSET(InputPriceData!$E$15,CalculationsAndCharts!$A47+$A$11,IF($C$5,8,0),1,1))) -> 3633.4 | G47: =IF(A47>$B$30,NA(),IF(A47>$A$8,"",OFFSET(InputPriceData!$F$15,CalculationsAndCharts!$A47+$A$11,IF($C$5,8,0),1,1))) -> 3663.46 | H47: -0.7431448255 | I47: 3663.46 | L47: -16.258 | M47: -19.49166667 | N47: -17.17285714 | O47: -15.72 | P47: -13.86111111 | Q47: -8.292 | R47: -5.255454545 | S47: -2 | T47: 0.3115384615 | U47: 6.422857143 | V47: 13.056 | W47: 17.339375 | X47: 21.94705882 | Y47: 23.72388889 | Z47: 24.39894737 | AA47: 27.0945 | AB47: 31.82571429 | AC47: 34.50636364 | AD47: 38.13347826 | AE47: 41.25125 | AF47: 45.762 | AG47: 49.88692308 | AH47: 56.18814815 | AI47: 64.69214286 | AJ47: 74.64137931 | AK47: 85.27 | AL47: 3679.18 | AM47: 3625.326522 | AN47: 1.485479389 | AW47: 4367150000
A48: 16 | B48: =IF(A48>$B$30,NA(),IF($A48>$A$8,"",OFFSET(InputPriceData!$B$15,$A48+$A$11,0,1,1))) -> 2020-12-10 | C48: =IF(A48>$B$30,NA(),IF($A48>$A$8,"",OFFSET(InputPriceData!$G$15,CalculationsAndCharts!$A48+$A$11,IF($C$5,8,0),1,1))) -> 4618240000 | D48: =IF(A48>$B$30,NA(),IF(A48>$A$8,"",OFFSET(InputPriceData!$C$15,CalculationsAndCharts!$A48+$A$11,IF($C$5,8,0),1,1))) -> 3659.13 | E48: =IF(A48>$B$30,NA(),IF(A48>$A$8,"",OFFSET(InputPriceData!$D$15,CalculationsAndCharts!$A48+$A$11,IF($C$5,8,0),1,1))) -> 3678.49 | F48: =IF(A48>$B$30,NA(),IF(A48>$A$8,"",OFFSET(InputPriceData!$E$15,CalculationsAndCharts!$A48+$A$11,IF($C$5,8,0),1,1))) -> 3645.18 | G48: =IF(A48>$B$30,NA(),IF(A48>$A$8,"",OFFSET(InputPriceData!$F$15,CalculationsAndCharts!$A48+$A$11,IF($C$5,8,0),1,1))) -> 3668.1 | H48: -0.8660254038 | I48: 3668.1 | L48: -18.75 | M48: -15.395 | N48: -13.32571429 | O48: -10.95375 | P48: -4.573333333 | Q48: -1.141 | R48: 2.458181818 | S48: 4.9775 | T48: 11.55692308 | U48: 18.62857143 | V48: 23.13533333 | W48: 27.95875 | X48: 29.75941176 | Y48: 30.39444444 | Z48: 33.16052632 | AA48: 38.057 | AB48: 40.78952381 | AC48: 44.50681818 | AD48: 47.68478261 | AE48: 52.30875 | AF48: 56.5224 | AG48: 62.98923077 | AH48: 71.72814815 | AI48: 81.94714286 | AJ48: 92.85034483 | AK48: 101.6883333 | AL48: 3679.05375 | AM48: 3620.415217 | AN48: 1.61966319 | AW48: 4618240000
A49: 17 | B49: =IF(A49>$B$30,NA(),IF($A49>$A$8,"",OFFSET(InputPriceData!$B$15,$A49+$A$11,0,1,1))) -> 2020-12-09 | C49: =IF(A49>$B$30,NA(),IF($A49>$A$8,"",OFFSET(InputPriceData!$G$15,CalculationsAndCharts!$A49+$A$11,IF($C$5,8,0),1,1))) -> 5209940000 | D49: =IF(A49>$B$30,NA(),IF(A49>$A$8,"",OFFSET(InputPriceData!$C$15,CalculationsAndCharts!$A49+$A$11,IF($C$5,8,0),1,1))) -> 3705.98 | E49: =IF(A49>$B$30,NA(),IF(A49>$A$8,"",OFFSET(InputPriceData!$D$15,CalculationsAndCharts!$A49+$A$11,IF($C$5,8,0),1,1))) -> 3712.39 | F49: =IF(A49>$B$30,NA(),IF(A49>$A$8,"",OFFSET(InputPriceData!$E$15,CalculationsAndCharts!$A49+$A$11,IF($C$5,8,0),1,1))) -> 3660.54 | G49: =IF(A49>$B$30,NA(),IF(A49>$A$8,"",OFFSET(InputPriceData!$F$15,CalculationsAndCharts!$A49+$A$11,IF($C$5,8,0),1,1))) -> 3672.82 | H49: -0.9510565163 | I49: 3672.82 | L49: -13.754 | M49: -10.82666667 | N49: -7.798571429 | O49: -0.425 | P49: 3.452222222 | Q49: 7.424 | R49: 10.15 | S49: 17.24 | T49: 24.78153846 | U49: 29.50785714 | V49: 34.54266667 | W49: 36.339375 | X49: 36.90235294 | Y49: 39.72277778 | Z49: 44.78 | AA49: 47.549 | AB49: 51.34619048 | AC49: 54.57227273 | AD49: 59.30304348 | AE49: 63.5975 | AF49: 70.2288 | AG49: 79.20692308 | AH49: 89.70222222 | AI49: 100.8864286 | AJ49: 109.9148276 | AK49: 119.644 | AL49: 3673.245 | AM49: 3613.516957 | AN49: 1.652906135 | AX49: 5209940000
A50: 18 | B50: =IF(A50>$B$30,NA(),IF($A50>$A$8,"",OFFSET(InputPriceData!$B$15,$A50+$A$11,0,1,1))) -> 2020-12-08 | C50: =IF(A50>$B$30,NA(),IF($A50>$A$8,"",OFFSET(InputPriceData!$G$15,CalculationsAndCharts!$A50+$A$11,IF($C$5,8,0),1,1))) -> 4549670000 | D50: =IF(A50>$B$30,NA(),IF(A50>$A$8,"",OFFSET(InputPriceData!$C$15,CalculationsAndCharts!$A50+$A$11,IF($C$5,8,0),1,1))) -> 3683.05 | E50: =IF(A50>$B$30,NA(),IF(A50>$A$8,"",OFFSET(InputPriceData!$D$15,CalculationsAndCharts!$A50+$A$11,IF($C$5,8,0),1,1))) -> 3708.45 | F50: =IF(A50>$B$30,NA(),IF(A50>$A$8,"",OFFSET(InputPriceData!$E$15,CalculationsAndCharts!$A50+$A$11,IF($C$5,8,0),1,1))) -> 3678.83 | G50: =IF(A50>$B$30,NA(),IF(A50>$A$8,"",OFFSET(InputPriceData!$F$15,CalculationsAndCharts!$A50+$A$11,IF($C$5,8,0),1,1))) -> 3702.25 | H50: -0.9945218954 | I50: 3702.25 | L50: 16.438 | M50: 20.33166667 | N50: 28.94428571 | O50: 33.31375 | P50: 37.67888889 | Q50: 40.595 | R50: 48.23727273 | S50: 56.27666667 | T50: 61.20769231 | U50: 66.44 | V50: 68.192 | W50: 68.63875 | X50: 71.48941176 | Y50: 76.69777778 | Z50: 79.48157895 | AA50: 83.3435 | AB50: 86.60095238 | AC50: 91.42863636 | AD50: 95.7926087 | AE50: 102.585 | AF50: 111.8052 | AG50: 122.5823077 | AH50: 134.052963 | AI50: 143.2703571 | AJ50: 153.1996552 | AK50: 158.4786667 | AL50: 3668.93625 | AM50: 3606.457391 | AN50: 1.732416383 | AW50: 4549670000
A51: 19 | B51: =IF(A51>$B$30,NA(),IF($A51>$A$8,"",OFFSET(InputPriceData!$B$15,$A51+$A$11,0,1,1))) -> 2020-12-07 | C51: =IF(A51>$B$30,NA(),IF($A51>$A$8,"",OFFSET(InputPriceData!$G$15,CalculationsAndCharts!$A51+$A$11,IF($C$5,8,0),1,1))) -> 4788560000 | D51: =IF(A51>$B$30,NA(),IF(A51>$A$8,"",OFFSET(InputPriceData!$C$15,CalculationsAndCharts!$A51+$A$11,IF($C$5,8,0),1,1))) -> 3694.73 | E51: =IF(A51>$B$30,NA(),IF(A51>$A$8,"",OFFSET(InputPriceData!$D$15,CalculationsAndCharts!$A51+$A$11,IF($C$5,8,0),1,1))) -> 3697.41 | F51: =IF(A51>$B$30,NA(),IF(A51>$A$8,"",OFFSET(InputPriceData!$E$15,CalculationsAndCharts!$A51+$A$11,IF($C$5,8,0),1,1))) -> 3678.88 | G51: =IF(A51>$B$30,NA(),IF(A51>$A$8,"",OFFSET(InputPriceData!$F$15,CalculationsAndCharts!$A51+$A$11,IF($C$5,8,0),1,1))) -> 3691.96 | H51: -0.9945218954 | I51: 3691.96 | L51: 14.108 | M51: 23.47833333 | N51: 27.78285714 | O51: 32.09875 | P51: 34.81555556 | Q51: 42.771 | R51: 51.10272727 | S51: 56.01833333 | T51: 61.26076923 | U51: 62.77285714 | V51: 62.92466667 | W51: 65.6675 | X51: 70.91941176 | Y51: 73.60722222 | Z51: 77.44 | AA51: 80.641 | AB51: 85.49238095 | AC51: 89.85681818 | AD51: 96.75521739 | AE51: 106.17375 | AF51: 117.1956 | AG51: 128.9188462 | AH51: 138.2866667 | AI51: 148.3810714 | AJ51: 153.6534483 | AK51: 158.2313333 | AL51: 3659.86125 | AM51: 3595.204783 | AN51: 1.798408472 | AX51: 4788560000
A52: 20 | B52: =IF(A52>$B$30,NA(),IF($A52>$A$8,"",OFFSET(InputPriceData!$B$15,$A52+$A$11,0,1,1))) -> 2020-12-04 | C52: =IF(A52>$B$30,NA(),IF($A52>$A$8,"",OFFSET(InputPriceData!$G$15,CalculationsAndCharts!$A52+$A$11,IF($C$5,8,0),1,1))) -> 5086370000 | D52: =IF(A52>$B$30,NA(),IF(A52>$A$8,"",OFFSET(InputPriceData!$C$15,CalculationsAndCharts!$A52+$A$11,IF($C$5,8,0),1,1))) -> 3670.94 | E52: =IF(A52>$B$30,NA(),IF(A52>$A$8,"",OFFSET(InputPriceData!$D$15,CalculationsAndCharts!$A52+$A$11,IF($C$5,8,0),1,1))) -> 3699.2 | F52: =IF(A52>$B$30,NA(),IF(A52>$A$8,"",OFFSET(InputPriceData!$E$15,CalculationsAndCharts!$A52+$A$11,IF($C$5,8,0),1,1))) -> 3670.94 | G52: =IF(A52>$B$30,NA(),IF(A52>$A$8,"",OFFSET(InputPriceData!$F$15,CalculationsAndCharts!$A52+$A$11,IF($C$5,8,0),1,1))) -> 3699.12 | H52: -0.9510565163 | I52: 3699.12 | L52: 35.334 | M52: 39.57333333 | N52: 43.84428571 | O52: 46.3275 | P52: 54.68333333 | Q52: 63.373 | R52: 68.27090909 | S52: 73.52583333 | T52: 74.76153846 | U52: 74.57928571 | V52: 77.20533333 | W52: 82.511875 | X52: 85.09705882 | Y52: 88.90222222 | Z52: 92.04526316 | AA52: 96.927 | AB52: 101.2957143 | AC52: 108.3131818 | AD52: 117.95 | AE52: 129.23875 | AF52: 141.2356 | AG52: 150.7653846 | AH52: 161.0366667 | AI52: 166.3010714 | AJ52: 170.8475862 | AK52: 172.9436667 | AL52: 3652.7925 | AM52: 3581.17 | AN52: 1.999974869 | AW52: 5086370000
A53: 21 | B53: =IF(A53>$B$30,NA(),IF($A53>$A$8,"",OFFSET(InputPriceData!$B$15,$A53+$A$11,0,1,1))) -> 2020-12-03 | C53: =IF(A53>$B$30,NA(),IF($A53>$A$8,"",OFFSET(InputPriceData!$G$15,CalculationsAndCharts!$A53+$A$11,IF($C$5,8,0),1,1))) -> 5091760000 | D53: =IF(A53>$B$30,NA(),IF(A53>$A$8,"",OFFSET(InputPriceData!$C$15,CalculationsAndCharts!$A53+$A$11,IF($C$5,8,0),1,1))) -> 3668.28 | E53: =IF(A53>$B$30,NA(),IF(A53>$A$8,"",OFFSET(InputPriceData!$D$15,CalculationsAndCharts!$A53+$A$11,IF($C$5,8,0),1,1))) -> 3682.73 | F53: =IF(A53>$B$30,NA(),IF(A53>$A$8,"",OFFSET(InputPriceData!$E$15,CalculationsAndCharts!$A53+$A$11,IF($C$5,8,0),1,1))) -> 3657.17 | G53: =IF(A53>$B$30,NA(),IF(A53>$A$8,"",OFFSET(InputPriceData!$F$15,CalculationsAndCharts!$A53+$A$11,IF($C$5,8,0),1,1))) -> 3666.72 | H53: -0.8660254038 | I53: 3666.72 | L53: 15.088 | M53: 18.75166667 | N53: 20.54571429 | O53: 29.11875 | P53: 38.01444444 | Q53: 42.698 | R53: 47.81 | S53: 48.59166667 | T53: 47.91615385 | U53: 50.32 | V53: 55.61266667 | W53: 58.015625 | X53: 61.73176471 | Y53: 64.75888889 | Z53: 69.62842105 | AA53: 73.9605 | AB53: 81.07095238 | AC53: 90.91136364 | AD53: 102.4578261 | AE53: 114.7204167 | AF53: 124.396 | AG53: 134.8303846 | AH53: 140.0603704 | AI53: 144.5492857 | AJ53: 146.5072414 | AK53: 148.7313333 | AL53: 3637.60125 | AM53: 3564.262174 | AN53: 2.057622939 | AX53: 5091760000
A54: 22 | B54: =IF(A54>$B$30,NA(),IF($A54>$A$8,"",OFFSET(InputPriceData!$B$15,$A54+$A$11,0,1,1))) -> 2020-12-02 | C54: =IF(A54>$B$30,NA(),IF($A54>$A$8,"",OFFSET(InputPriceData!$G$15,CalculationsAndCharts!$A54+$A$11,IF($C$5,8,0),1,1))) -> 5029620000 | D54: =IF(A54>$B$30,NA(),IF(A54>$A$8,"",OFFSET(InputPriceData!$C$15,CalculationsAndCharts!$A54+$A$11,IF($C$5,8,0),1,1))) -> 3653.78 | E54: =IF(A54>$B$30,NA(),IF(A54>$A$8,"",OFFSET(InputPriceData!$D$15,CalculationsAndCharts!$A54+$A$11,IF($C$5,8,0),1,1))) -> 3670.96 | F54: =IF(A54>$B$30,NA(),IF(A54>$A$8,"",OFFSET(InputPriceData!$E$15,CalculationsAndCharts!$A54+$A$11,IF($C$5,8,0),1,1))) -> 3644.84 | G54: =IF(A54>$B$30,NA(),IF(A54>$A$8,"",OFFSET(InputPriceData!$F$15,CalculationsAndCharts!$A54+$A$11,IF($C$5,8,0),1,1))) -> 3669.01 | H54: -0.7431448255 | I54: 3669.01 | L54: 24.792 | M54: 26.26 | N54: 35.56857143 | O54: 45.05625 | P54: 49.73222222 | Q54: 54.881 | R54: 55.29909091 | S54: 54.19916667 | T54: 56.48076923 | U54: 61.875 | V54: 64.17333333 | W54: 67.88 | X54: 70.85823529 | Y54: 75.78666667 | Z54: 80.14315789 | AA54: 87.4145 | AB54: 97.53047619 | AC54: 109.405 | AD54: 121.9982609 | AE54: 131.8691667 | AF54: 142.5136 | AG54: 147.7373077 | AH54: 152.192963 | AI54: 154.0296429 | AJ54: 156.15 | AK54: 158.7266667 | AL54: 3623.95375 | AM54: 3547.011739 | AN54: 2.169206547 | AW54: 5029620000
A55: 23 | B55: =IF(A55>$B$30,NA(),IF($A55>$A$8,"",OFFSET(InputPriceData!$B$15,$A55+$A$11,0,1,1))) -> 2020-12-01 | C55: =IF(A55>$B$30,NA(),IF($A55>$A$8,"",OFFSET(InputPriceData!$G$15,CalculationsAndCharts!$A55+$A$11,IF($C$5,8,0),1,1))) -> 5403660000 | D55: =IF(A55>$B$30,NA(),IF(A55>$A$8,"",OFFSET(InputPriceData!$C$15,CalculationsAndCharts!$A55+$A$11,IF($C$5,8,0),1,1))) -> 3645.87 | E55: =IF(A55>$B$30,NA(),IF(A55>$A$8,"",OFFSET(InputPriceData!$D$15,CalculationsAndCharts!$A55+$A$11,IF($C$5,8,0),1,1))) -> 3678.45 | F55: =IF(A55>$B$30,NA(),IF(A55>$A$8,"",OFFSET(InputPriceData!$E$15,CalculationsAndCharts!$A55+$A$11,IF($C$5,8,0),1,1))) -> 3645.87 | G55: =IF(A55>$B$30,NA(),IF(A55>$A$8,"",OFFSET(InputPriceData!$F$15,CalculationsAndCharts!$A55+$A$11,IF($C$5,8,0),1,1))) -> 3662.45 | H55: -0.5877852523 | I55: 3662.45 | L55: 24.952 | M55: 34.93666667 | N55: 44.93285714 | O55: 49.38875 | P55: 54.41888889 | Q55: 54.269 | R55: 52.56636364 | S55: 54.6275 | T55: 60.07461538 | U55: 62.19714286 | V55: 65.84533333 | W55: 68.726875 | X55: 73.68470588 | Y55: 78.03555556 | Z55: 85.45526316 | AA55: 95.847 | AB55: 108.0547619 | AC55: 120.9836364 | AD55: 131.0426087 | AE55: 141.8916667 | AF55: 147.0868 | AG55: 151.4865385 | AH55: 153.1744444 | AI55: 155.1667857 | AJ55: 157.64 | AK55: 159.6963333 | AL55: 3613.06125 | AM55: 3531.407391 | AN55: 2.312218604 | AW55: 5403660000
A56: 24 | B56: =IF(A56>$B$30,NA(),IF($A56>$A$8,"",OFFSET(InputPriceData!$B$15,$A56+$A$11,0,1,1))) -> 2020-11-30 | C56: =IF(A56>$B$30,NA(),IF($A56>$A$8,"",OFFSET(InputPriceData!$G$15,CalculationsAndCharts!$A56+$A$11,IF($C$5,8,0),1,1))) -> 6291400000 | D56: =IF(A56>$B$30,NA(),IF(A56>$A$8,"",OFFSET(InputPriceData!$C$15,CalculationsAndCharts!$A56+$A$11,IF($C$5,8,0),1,1))) -> 3634.18 | E56: =IF(A56>$B$30,NA(),IF(A56>$A$8,"",OFFSET(InputPriceData!$D$15,CalculationsAndCharts!$A56+$A$11,IF($C$5,8,0),1,1))) -> 3634.18 | F56: =IF(A56>$B$30,NA(),IF(A56>$A$8,"",OFFSET(InputPriceData!$E$15,CalculationsAndCharts!$A56+$A$11,IF($C$5,8,0),1,1))) -> 3594.39 | G56: =IF(A56>$B$30,NA(),IF(A56>$A$8,"",OFFSET(InputPriceData!$F$15,CalculationsAndCharts!$A56+$A$11,IF($C$5,8,0),1,1))) -> 3621.63 | H56: -0.4067366431 | I56: 3621.63 | L56: 1.104 | M56: 11.60166667 | N56: 15.62428571 | O56: 20.40125 | P56: 19.47888889 | Q56: 17.003 | R56: 18.77363636 | S56: 24.26083333 | T56: 26.16153846 | U56: 29.72857143 | V56: 32.48866667 | W56: 37.47 | X56: 41.80588235 | Y56: 49.38277778 | Z56: 60.07157895 | AA56: 72.6375 | AB56: 85.9247619 | AC56: 96.17909091 | AD56: 107.2408696 | AE56: 112.3954167 | AF56: 116.726 | AG56: 118.2457692 | AH56: 120.0937037 | AI56: 122.45 | AJ56: 124.3831034 | AK56: 126.7273333 | AL56: 3601.22875 | AM56: 3514.38913 | AN56: 2.470973371 | AX56: 6291400000
A57: 25 | B57: =IF(A57>$B$30,NA(),IF($A57>$A$8,"",OFFSET(InputPriceData!$B$15,$A57+$A$11,0,1,1))) -> 2020-11-27 | C57: =IF(A57>$B$30,NA(),IF($A57>$A$8,"",OFFSET(InputPriceData!$G$15,CalculationsAndCharts!$A57+$A$11,IF($C$5,8,0),1,1))) -> 2778450000 | D57: =IF(A57>$B$30,NA(),IF(A57>$A$8,"",OFFSET(InputPriceData!$C$15,CalculationsAndCharts!$A57+$A$11,IF($C$5,8,0),1,1))) -> 3638.55 | E57: =IF(A57>$B$30,NA(),IF(A57>$A$8,"",OFFSET(InputPriceData!$D$15,CalculationsAndCharts!$A57+$A$11,IF($C$5,8,0),1,1))) -> 3644.31 | F57: =IF(A57>$B$30,NA(),IF(A57>$A$8,"",OFFSET(InputPriceData!$E$15,CalculationsAndCharts!$A57+$A$11,IF($C$5,8,0),1,1))) -> 3629.33 | G57: =IF(A57>$B$30,NA(),IF(A57>$A$8,"",OFFSET(InputPriceData!$F$15,CalculationsAndCharts!$A57+$A$11,IF($C$5,8,0),1,1))) -> 3638.35 | H57: -0.2079116908 | I57: 3638.35 | L57: 30.642 | M57: 34.94833333 | N57: 40.03571429 | O57: 38.63375 | P57: 35.61222222 | Q57: 37.371 | R57: 43.18636364 | S57: 45.06166667 | T57: 48.73538462 | U57: 51.52928571 | V57: 56.688 | W57: 61.13875 | X57: 69.00764706 | Y57: 80.12888889 | Z57: 93.18052632 | AA57: 106.941 | AB57: 117.4790476 | AC57: 128.8354545 | AD57: 134.0021739 | AE57: 138.3095833 | AF57: 139.6956 | AG57: 141.4326923 | AH57: 143.7051852 | AI57: 145.5453571 | AJ57: 147.8172414 | AK57: 148.0413333 | AL57: 3599.71625 | AM57: 3504.347826 | AN57: 2.721431452 | AX57: 2778450000
A58: 26 | B58: =IF(A58>$B$30,NA(),IF($A58>$A$8,"",OFFSET(InputPriceData!$B$15,$A58+$A$11,0,1,1))) -> 2020-11-25 | C58: =IF(A58>$B$30,NA(),IF($A58>$A$8,"",OFFSET(InputPriceData!$G$15,CalculationsAndCharts!$A58+$A$11,IF($C$5,8,0),1,1))) -> 4902560000 | D58: =IF(A58>$B$30,NA(),IF(A58>$A$8,"",OFFSET(InputPriceData!$C$15,CalculationsAndCharts!$A58+$A$11,IF($C$5,8,0),1,1))) -> 3635.5 | E58: =IF(A58>$B$30,NA(),IF(A58>$A$8,"",OFFSET(InputPriceData!$D$15,CalculationsAndCharts!$A58+$A$11,IF($C$5,8,0),1,1))) -> 3635.5 | F58: =IF(A58>$B$30,NA(),IF(A58>$A$8,"",OFFSET(InputPriceData!$E$15,CalculationsAndCharts!$A58+$A$11,IF($C$5,8,0),1,1))) -> 3617.76 | G58: =IF(A58>$B$30,NA(),IF(A58>$A$8,"",OFFSET(InputPriceData!$F$15,CalculationsAndCharts!$A58+$A$11,IF($C$5,8,0),1,1))) -> 3629.65 | H58: -4.018118303e-14 | I58: 3629.65 | L58: 33.238 | M58: 38.00833333 | N58: 35.45285714 | O58: 31.36375 | P58: 32.82333333 | Q58: 38.805 | R58: 40.45818182 | S58: 44.09666667 | T58: 46.79307692 | U58: 52.03714286 | V58: 56.51466667 | W58: 64.620625 | X58: 76.14235294 | Y58: 89.65722222 | Z58: =IF($A58<=Z$30,$I58-AVERAGE(OFFSET($I58,0,0,Z$31,1)),NA()) -> 103.8694737 | AA58: 114.653 | AB58: 126.2704762 | AC58: 131.3931818 | AD58: 135.6230435 | AE58: 136.81625 | AF58: 138.39 | AG58: 140.5323077 | AH58: 142.2359259 | AI58: 144.3964286 | AJ58: 144.4462069 | AK58: 144.5083333 | AL58: 3598.28625 | AM58: 3494.026957 | AN58: 2.983929282 | AX58: 4902560000
A59: 27 | B59: =IF(A59>$B$30,NA(),IF($A59>$A$8,"",OFFSET(InputPriceData!$B$15,$A59+$A$11,0,1,1))) -> 2020-11-24 | C59: =IF(A59>$B$30,NA(),IF($A59>$A$8,"",OFFSET(InputPriceData!$G$15,CalculationsAndCharts!$A59+$A$11,IF($C$5,8,0),1,1))) -> 6267570000 | D59: =IF(A59>$B$30,NA(),IF(A59>$A$8,"",OFFSET(InputPriceData!$C$15,CalculationsAndCharts!$A59+$A$11,IF($C$5,8,0),1,1))) -> 3594.52 | E59: =IF(A59>$B$30,NA(),IF(A59>$A$8,"",OFFSET(InputPriceData!$D$15,CalculationsAndCharts!$A59+$A$11,IF($C$5,8,0),1,1))) -> 3642.31 | F59: =IF(A59>$B$30,NA(),IF(A59>$A$8,"",OFFSET(InputPriceData!$E$15,CalculationsAndCharts!$A59+$A$11,IF($C$5,8,0),1,1))) -> 3594.52 | G59: =IF(A59>$B$30,NA(),IF(A59>$A$8,"",OFFSET(InputPriceData!$F$15,CalculationsAndCharts!$A59+$A$11,IF($C$5,8,0),1,1))) -> 3635.41 | H59: 0.2079116908 | I59: 3635.41 | L59: =IF($A59<=L$30,$I59-AVERAGE(OFFSET($I59,0,0,L$31,1)),NA()) -> 51.37 | M59: 47.12166667 | N59: 41.60428571 | O59: 42.68625 | P59: 48.87666667 | Q59: 50.264 | R59: 53.86545455 | S59: 56.4525 | T59: 61.8 | U59: 66.31142857 | V59: 74.68866667 | W59: 86.66125 | X59: 100.6911765 | Y59: 115.4 | Z59: 126.4473684 | AA59: 138.344 | AB59: 143.41 | AC59: 147.5477273 | AD59: 148.5247826 | AE59: 149.91625 | AF59: 151.9136 | AG59: 153.4665385 | AH59: 155.5044444 | AI59: 155.365 | AJ59: 155.2513793 | AK59: 154.9676667 | AL59: 3592.72375 | AM59: 3486.885217 | AN59: 3.035331708 | AW59: 6267570000
A60: 28 | B60: =IF(A60>$B$30,NA(),IF($A60>$A$8,"",OFFSET(InputPriceData!$B$15,$A60+$A$11,0,1,1))) -> 2020-11-23 | C60: =IF(A60>$B$30,NA(),IF($A60>$A$8,"",OFFSET(InputPriceData!$G$15,CalculationsAndCharts!$A60+$A$11,IF($C$5,8,0),1,1))) -> 5036290000 | D60: =IF(A60>$B$30,NA(),IF(A60>$A$8,"",OFFSET(InputPriceData!$C$15,CalculationsAndCharts!$A60+$A$11,IF($C$5,8,0),1,1))) -> 3566.82 | E60: =IF(A60>$B$30,NA(),IF(A60>$A$8,"",OFFSET(InputPriceData!$D$15,CalculationsAndCharts!$A60+$A$11,IF($C$5,8,0),1,1))) -> 3589.81 | F60: =IF(A60>$B$30,NA(),IF(A60>$A$8,"",OFFSET(InputPriceData!$E$15,CalculationsAndCharts!$A60+$A$11,IF($C$5,8,0),1,1))) -> 3552.77 | G60: =IF(A60>$B$30,NA(),IF(A60>$A$8,"",OFFSET(InputPriceData!$F$15,CalculationsAndCharts!$A60+$A$11,IF($C$5,8,0),1,1))) -> 3577.59 | H60: 0.4067366431 | I60: 3577.59 | L60: -1.274 | M60: -9.281666667 | N60: -9.035714286 | O60: -2.83375 | P60: -1.971111111 | Q60: 1.432 | R60: 3.764545455 | S60: 9.13 | T60: 13.59230769 | U60: 22.20357143 | V60: 34.61866667 | W60: 49.164375 | X60: 64.36823529 | Y60: 75.65222222 | Z60: 87.80526316 | AA60: 92.7605 | AB60: 96.75380952 | AC60: 97.45590909 | AD60: 98.61434783 | AE60: 100.4233333 | AF60: 101.7852 | AG60: 103.6653846 | AH60: 103.2992593 | AI60: 102.9760714 | AJ60: 102.4913793 | AK60: 101.2636667 | AL60: 3580.42375 | AM60: 3478.975652 | AN60: 2.916033568 | AW60: 5036290000
A61: 29 | B61: =IF(A61>$B$30,NA(),IF($A61>$A$8,"",OFFSET(InputPriceData!$B$15,$A61+$A$11,0,1,1))) -> 2020-11-20 | C61: =IF(A61>$B$30,NA(),IF($A61>$A$8,"",OFFSET(InputPriceData!$G$15,CalculationsAndCharts!$A61+$A$11,IF($C$5,8,0),1,1))) -> 4218970000 | D61: =IF(A61>$B$30,NA(),IF(A61>$A$8,"",OFFSET(InputPriceData!$C$15,CalculationsAndCharts!$A61+$A$11,IF($C$5,8,0),1,1))) -> 3579.31 | E61: =IF(A61>$B$30,NA(),IF(A61>$A$8,"",OFFSET(InputPriceData!$D$15,CalculationsAndCharts!$A61+$A$11,IF($C$5,8,0),1,1))) -> 3581.23 | F61: =IF(A61>$B$30,NA(),IF(A61>$A$8,"",OFFSET(InputPriceData!$E$15,CalculationsAndCharts!$A61+$A$11,IF($C$5,8,0),1,1))) -> 3556.85 | G61: =IF(A61>$B$30,NA(),IF(A61>$A$8,"",OFFSET(InputPriceData!$F$15,CalculationsAndCharts!$A61+$A$11,IF($C$5,8,0),1,1))) -> 3557.54 | H61: 0.5877852523 | I61: 3557.54 | L61: -31.188 | M61: -30.59166667 | N61: -23.28857143 | O61: -22.2675 | P61: -18.45888889 | Q61: -15.909 | R61: -10.09 | S61: -5.325 | T61: 3.861538462 | U61: 17.04142857 | V61: 32.392 | W61: 48.34125 | X61: 60.05235294 | Y61: 72.63333333 | Z61: 77.59263158 | AA61: 81.5415 | AB61: 82.04666667 | AC61: 83.04681818 | AD61: 84.73956522 | AE61: 85.97625 | AF61: 87.762 | AG61: 87.22230769 | AH61: 86.74 | AI61: 86.10178571 | AJ61: 84.70551724 | AK61: 82.65933333 | AL61: 3579.8075 | AM61: 3472.800435 | AN61: 3.081290366 | AX61: 4218970000
A62: 30 | B62: =IF(A62>$B$30,NA(),IF($A62>$A$8,"",OFFSET(InputPriceData!$B$15,$A62+$A$11,0,1,1))) -> 2020-11-19 | C62: =IF(A62>$B$30,NA(),IF($A62>$A$8,"",OFFSET(InputPriceData!$G$15,CalculationsAndCharts!$A62+$A$11,IF($C$5,8,0),1,1))) -> 4347200000 | D62: =IF(A62>$B$30,NA(),IF(A62>$A$8,"",OFFSET(InputPriceData!$C$15,CalculationsAndCharts!$A62+$A$11,IF($C$5,8,0),1,1))) -> 3559.41 | E62: =IF(A62>$B$30,NA(),IF(A62>$A$8,"",OFFSET(InputPriceData!$D$15,CalculationsAndCharts!$A62+$A$11,IF($C$5,8,0),1,1))) -> 3585.22 | F62: =IF(A62>$B$30,NA(),IF(A62>$A$8,"",OFFSET(InputPriceData!$E$15,CalculationsAndCharts!$A62+$A$11,IF($C$5,8,0),1,1))) -> 3543.84 | G62: =IF(A62>$B$30,NA(),IF(A62>$A$8,"",OFFSET(InputPriceData!$F$15,CalculationsAndCharts!$A62+$A$11,IF($C$5,8,0),1,1))) -> 3581.87 | H62: 0.7431448255 | I62: 3581.87 | L62: -12.38 | M62: -2.84 | N62: -1.118571429 | O62: 3.56375 | P62: 6.653333333 | Q62: 13.231 | R62: 18.52090909 | S62: 28.51333333 | T62: 42.68230769 | U62: 59.03571429 | V62: 75.894 | W62: 88.135625 | X62: 101.2358824 | Y62: 106.2333333 | Z62: 110.1631579 | AA62: 110.479 | AB62: 111.3314286 | AC62: 112.9213636 | AD62: 114.0443478 | AE62: 115.74875 | AF62: 115.0412 | AG62: 114.4061538 | AH62: 113.6207407 | AI62: 112.0607143 | AJ62: 109.8396552 | AK62: 109.6693333 | AL62: 3578.30625 | AM62: 3467.825652 | AN62: 3.185875211 | AW62: 4347200000
A63: 31 | B63: =IF(A63>$B$30,NA(),IF($A63>$A$8,"",OFFSET(InputPriceData!$B$15,$A63+$A$11,0,1,1))) -> 2020-11-18 | C63: =IF(A63>$B$30,NA(),IF($A63>$A$8,"",OFFSET(InputPriceData!$G$15,CalculationsAndCharts!$A63+$A$11,IF($C$5,8,0),1,1))) -> 5274450000 | D63: =IF(A63>$B$30,NA(),IF(A63>$A$8,"",OFFSET(InputPriceData!$C$15,CalculationsAndCharts!$A63+$A$11,IF($C$5,8,0),1,1))) -> 3612.09 | E63: =IF(A63>$B$30,NA(),IF(A63>$A$8,"",OFFSET(InputPriceData!$D$15,CalculationsAndCharts!$A63+$A$11,IF($C$5,8,0),1,1))) -> 3619.09 | F63: =IF(A63>$B$30,NA(),IF(A63>$A$8,"",OFFSET(InputPriceData!$E$15,CalculationsAndCharts!$A63+$A$11,IF($C$5,8,0),1,1))) -> 3567.33 | G63: =IF(A63>$B$30,NA(),IF(A63>$A$8,"",OFFSET(InputPriceData!$F$15,CalculationsAndCharts!$A63+$A$11,IF($C$5,8,0),1,1))) -> 3567.79 | H63: 0.8660254038 | I63: 3567.79 | L63: -17.488 | M63: -15.385 | N63: -10.00714286 | O63: -6.595 | P63: 0.6211111111 | Q63: 6.293 | R63: 17.02545455 | S63: 32.15916667 | T63: 49.49692308 | U63: 67.235 | V63: 79.93133333 | W63: 93.483125 | X63: 98.40235294 | Y63: 102.2033333 | Z63: 102.2136842 | AA63: 102.818 | AB63: 104.2185714 | AC63: 105.1481818 | AD63: 106.7013043 | AE63: 105.7545833 | AF63: 104.9024 | AG63: 103.9107692 | AH63: 102.1311111 | AI63: 99.6825 | AJ63: 99.37103448 | AK63: 100.0906667 | AL63: 3574.385 | AM63: 3461.088696 | AN63: 3.273429672 | AX63: 5274450000
A64: 32 | B64: =IF(A64>$B$30,NA(),IF($A64>$A$8,"",OFFSET(InputPriceData!$B$15,$A64+$A$11,0,1,1))) -> 2020-11-17 | C64: =IF(A64>$B$30,NA(),IF($A64>$A$8,"",OFFSET(InputPriceData!$G$15,CalculationsAndCharts!$A64+$A$11,IF($C$5,8,0),1,1))) -> 4799570000 | D64: =IF(A64>$B$30,NA(),IF(A64>$A$8,"",OFFSET(InputPriceData!$C$15,CalculationsAndCharts!$A64+$A$11,IF($C$5,8,0),1,1))) -> 3610.31 | E64: =IF(A64>$B$30,NA(),IF(A64>$A$8,"",OFFSET(InputPriceData!$D$15,CalculationsAndCharts!$A64+$A$11,IF($C$5,8,0),1,1))) -> 3623.11 | F64: =IF(A64>$B$30,NA(),IF(A64>$A$8,"",OFFSET(InputPriceData!$E$15,CalculationsAndCharts!$A64+$A$11,IF($C$5,8,0),1,1))) -> 3588.68 | G64: =IF(A64>$B$30,NA(),IF(A64>$A$8,"",OFFSET(InputPriceData!$F$15,CalculationsAndCharts!$A64+$A$11,IF($C$5,8,0),1,1))) -> 3609.53 | H64: 0.9510565163 | I64: 3609.53 | L64: 23.278 | M64: 30.065 | N64: 34.20285714 | O64: 42.43875 | P64: 48.73222222 | Q64: 60.468 | R64: 76.82272727 | S64: 95.36166667 | T64: 114.1469231 | U64: 127.3807143 | V64: 141.4553333 | W64: 146.2925 | X64: 149.9552941 | Y64: 149.6322222 | Z64: 149.9694737 | AA64: 151.1695 | AB64: 151.8952381 | AC64: 153.2913636 | AD64: 152.0926087 | AE64: 151.0133333 | AF64: 149.8072 | AG64: 147.7992308 | AH64: 145.1144444 | AI64: 144.66 | AJ64: 145.282069 | AK64: 146.7756667 | AL64: 3567.09125 | AM64: 3457.437391 | AN64: 3.171535628 | AX64: 4799570000
A65: 33 | B65: =IF(A65>$B$30,NA(),IF($A65>$A$8,"",OFFSET(InputPriceData!$B$15,$A65+$A$11,0,1,1))) -> 2020-11-16 | C65: =IF(A65>$B$30,NA(),IF($A65>$A$8,"",OFFSET(InputPriceData!$G$15,CalculationsAndCharts!$A65+$A$11,IF($C$5,8,0),1,1))) -> 5281980000 | D65: =IF(A65>$B$30,NA(),IF(A65>$A$8,"",OFFSET(InputPriceData!$C$15,CalculationsAndCharts!$A65+$A$11,IF($C$5,8,0),1,1))) -> 3600.16 | E65: =IF(A65>$B$30,NA(),IF(A65>$A$8,"",OFFSET(InputPriceData!$D$15,CalculationsAndCharts!$A65+$A$11,IF($C$5,8,0),1,1))) -> 3628.51 | F65: =IF(A65>$B$30,NA(),IF(A65>$A$8,"",OFFSET(InputPriceData!$E$15,CalculationsAndCharts!$A65+$A$11,IF($C$5,8,0),1,1))) -> 3600.16 | G65: =IF(A65>$B$30,NA(),IF(A65>$A$8,"",OFFSET(InputPriceData!$F$15,CalculationsAndCharts!$A65+$A$11,IF($C$5,8,0),1,1))) -> 3626.91 | H65: 0.9945218954 | I65: 3626.91 | L65: 53.458 | M65: 57.28333333 | N65: 65.88142857 | O65: 72.20375 | P65: 84.56666667 | Q65: 101.885 | R65: 121.4109091 | S65: 141.0391667 | T65: 154.5592308 | U65: 168.9392857 | V65: 173.4253333 | W65: 176.7075 | X65: 175.8141176 | Y65: 175.6811111 | Z65: 176.5057895 | AA65: 176.87 | AB65: 177.9709524 | AC65: 176.3859091 | AD65: 174.9591304 | AE65: 173.4291667 | AF65: 171.0912 | AG65: 168.0757692 | AH65: 167.3977778 | AI65: 167.8507143 | AJ65: 169.2168966 | AK65: 172.441 | AL65: 3554.70625 | AM65: 3451.95087 | AN65: 2.976733572 | AW65: 5281980000
A66: 34 | B66: =IF(A66>$B$30,NA(),IF($A66>$A$8,"",OFFSET(InputPriceData!$B$15,$A66+$A$11,0,1,1))) -> 2020-11-13 | C66: =IF(A66>$B$30,NA(),IF($A66>$A$8,"",OFFSET(InputPriceData!$G$15,CalculationsAndCharts!$A66+$A$11,IF($C$5,8,0),1,1))) -> 4709670000 | D66: =IF(A66>$B$30,NA(),IF(A66>$A$8,"",OFFSET(InputPriceData!$C$15,CalculationsAndCharts!$A66+$A$11,IF($C$5,8,0),1,1))) -> 3552.57 | E66: =IF(A66>$B$30,NA(),IF(A66>$A$8,"",OFFSET(InputPriceData!$D$15,CalculationsAndCharts!$A66+$A$11,IF($C$5,8,0),1,1))) -> 3593.66 | F66: =IF(A66>$B$30,NA(),IF(A66>$A$8,"",OFFSET(InputPriceData!$E$15,CalculationsAndCharts!$A66+$A$11,IF($C$5,8,0),1,1))) -> 3552.57 | G66: =IF(A66>$B$30,NA(),IF(A66>$A$8,"",OFFSET(InputPriceData!$F$15,CalculationsAndCharts!$A66+$A$11,IF($C$5,8,0),1,1))) -> 3585.15 | H66: 0.9945218954 | I66: 3585.15 | L66: 26.98 | M66: 35.10166667 | N66: 40.75857143 | O66: 53.3775 | P66: 71.44555556 | Q66: 91.792 | R66: 112.1009091 | S66: 125.6791667 | T66: 140.1746154 | U66: 144.0528571 | V66: 146.728 | W66: 145.0425 | X66: 144.2552941 | Y66: 144.5516667 | Z66: 144.4189474 | AA66: 145.1095 | AB66: 143.0252381 | AC66: 141.1518182 | AD66: 139.2095652 | AE66: 136.46 | AF66: 133.0388 | AG66: 132.0761538 | AH66: 132.3074074 | AI66: 133.5003571 | AJ66: 136.6272414 | AK66: 137.958 | AL66: 3531.7725 | AM66: 3445.940435 | AN66: 2.490816857 | AW66: 4709670000
A67: 35 | B67: =IF(A67>$B$30,NA(),IF($A67>$A$8,"",OFFSET(InputPriceData!$B$15,$A67+$A$11,0,1,1))) -> 2020-11-12 | C67: =IF(A67>$B$30,NA(),IF($A67>$A$8,"",OFFSET(InputPriceData!$G$15,CalculationsAndCharts!$A67+$A$11,IF($C$5,8,0),1,1))) -> 4890120000 | D67: =IF(A67>$B$30,NA(),IF(A67>$A$8,"",OFFSET(InputPriceData!$C$15,CalculationsAndCharts!$A67+$A$11,IF($C$5,8,0),1,1))) -> 3562.67 | E67: =IF(A67>$B$30,NA(),IF(A67>$A$8,"",OFFSET(InputPriceData!$D$15,CalculationsAndCharts!$A67+$A$11,IF($C$5,8,0),1,1))) -> 3569.02 | F67: =IF(A67>$B$30,NA(),IF(A67>$A$8,"",OFFSET(InputPriceData!$E$15,CalculationsAndCharts!$A67+$A$11,IF($C$5,8,0),1,1))) -> 3518.58 | G67: =IF(A67>$B$30,NA(),IF(A67>$A$8,"",OFFSET(InputPriceData!$F$15,CalculationsAndCharts!$A67+$A$11,IF($C$5,8,0),1,1))) -> 3537.01 | H67: 0.9510565163 | I67: 3537.01 | L67: -6.018 | M67: -0.5883333333 | N67: 12.86285714 | O67: 32.23625 | P67: 53.85111111 | Q67: 75.171 | R67: 88.96454545 | S67: 103.7158333 | T67: 106.9938462 | U67: 109.0685714 | V67: 106.572 | W67: 105.13125 | X67: 104.9147059 | Y67: 104.3022222 | Z67: 104.6068421 | AA67: 102.0365 | AB67: 99.73333333 | AC67: 97.39727273 | AD67: 94.25304348 | AE67: 90.44208333 | AF67: 89.2192 | AG67: 89.25615385 | AH67: 90.30481481 | AI67: 93.36678571 | AJ67: 94.57517241 | AK67: 97.709 | AL67: 3504.77375 | AM67: 3442.756957 | AN67: 1.801370072 | AX67: 4890120000
A68: 36 | B68: =IF(A68>$B$30,NA(),IF($A68>$A$8,"",OFFSET(InputPriceData!$B$15,$A68+$A$11,0,1,1))) -> 2020-11-11 | C68: =IF(A68>$B$30,NA(),IF($A68>$A$8,"",OFFSET(InputPriceData!$G$15,CalculationsAndCharts!$A68+$A$11,IF($C$5,8,0),1,1))) -> 4609970000 | D68: =IF(A68>$B$30,NA(),IF(A68>$A$8,"",OFFSET(InputPriceData!$C$15,CalculationsAndCharts!$A68+$A$11,IF($C$5,8,0),1,1))) -> 3563.22 | E68: =IF(A68>$B$30,NA(),IF(A68>$A$8,"",OFFSET(InputPriceData!$D$15,CalculationsAndCharts!$A68+$A$11,IF($C$5,8,0),1,1))) -> 3581.16 | F68: =IF(A68>$B$30,NA(),IF(A68>$A$8,"",OFFSET(InputPriceData!$E$15,CalculationsAndCharts!$A68+$A$11,IF($C$5,8,0),1,1))) -> 3557 | G68: =IF(A68>$B$30,NA(),IF(A68>$A$8,"",OFFSET(InputPriceData!$F$15,CalculationsAndCharts!$A68+$A$11,IF($C$5,8,0),1,1))) -> 3572.66 | H68: 0.8660254038 | I68: 3572.66 | L68: 34.944 | M68: 50.65666667 | N68: 72.49142857 | O68: 96.2325 | P68: 119.1733333 | Q68: 133.511 | R68: 148.7945455 | S68: 151.56 | T68: 153.1084615 | U68: 149.8342857 | V68: 147.79 | W68: 147.121875 | X68: 146.0876471 | Y68: 146.0683333 | Z68: 143.0568421 | AA68: 140.37 | AB68: 137.6852381 | AC68: 134.1872727 | AD68: 130.0243478 | AE68: 128.5866667 | AF68: 128.4764 | AG68: 129.4280769 | AH68: 132.4748148 | AI68: 133.6028571 | AJ68: 136.7282759 | AK68: 138.566 | AL68: 3476.4275 | AM68: 3442.635652 | AN68: 0.9815691011 | AW68: 4609970000
A69: 37 | B69: =IF(A69>$B$30,NA(),IF($A69>$A$8,"",OFFSET(InputPriceData!$B$15,$A69+$A$11,0,1,1))) -> 2020-11-10 | C69: =IF(A69>$B$30,NA(),IF($A69>$A$8,"",OFFSET(InputPriceData!$G$15,CalculationsAndCharts!$A69+$A$11,IF($C$5,8,0),1,1))) -> 6024230000 | D69: =IF(A69>$B$30,NA(),IF(A69>$A$8,"",OFFSET(InputPriceData!$C$15,CalculationsAndCharts!$A69+$A$11,IF($C$5,8,0),1,1))) -> 3543.26 | E69: =IF(A69>$B$30,NA(),IF(A69>$A$8,"",OFFSET(InputPriceData!$D$15,CalculationsAndCharts!$A69+$A$11,IF($C$5,8,0),1,1))) -> 3557.22 | F69: =IF(A69>$B$30,NA(),IF(A69>$A$8,"",OFFSET(InputPriceData!$E$15,CalculationsAndCharts!$A69+$A$11,IF($C$5,8,0),1,1))) -> 3511.91 | G69: =IF(A69>$B$30,NA(),IF(A69>$A$8,"",OFFSET(InputPriceData!$F$15,CalculationsAndCharts!$A69+$A$11,IF($C$5,8,0),1,1))) -> 3545.53 | H69: 0.7431448255 | I69: 3545.53 | L69: 33.658 | M69: 57.44333333 | N69: 82.85 | O69: 106.94 | P69: 121.2155556 | Q69: 136.544 | R69: 138.2081818 | S69: 138.7375 | T69: 134.23 | U69: 131.2164286 | V69: 129.8 | W69: 128.088125 | X69: 127.5305882 | Y69: 123.8744444 | Z69: 120.6278947 | AA69: 117.4395 | AB69: 113.4471429 | AC69: 108.8045455 | AD69: 107.0473913 | AE69: 106.6995833 | AF69: 107.4752 | AG69: 110.44 | AH69: 111.4211111 | AI69: 114.4814286 | AJ69: 116.2141379 | AK69: 118.4246667 | AL69: 3438.59 | AM69: 3438.482609 | AN69: 0.003123217901 | AW69: 6024230000
A70: 38 | B70: =IF(A70>$B$30,NA(),IF($A70>$A$8,"",OFFSET(InputPriceData!$B$15,$A70+$A$11,0,1,1))) -> 2020-11-09 | C70: =IF(A70>$B$30,NA(),IF($A70>$A$8,"",OFFSET(InputPriceData!$G$15,CalculationsAndCharts!$A70+$A$11,IF($C$5,8,0),1,1))) -> 8556610000 | D70: =IF(A70>$B$30,NA(),IF(A70>$A$8,"",OFFSET(InputPriceData!$C$15,CalculationsAndCharts!$A70+$A$11,IF($C$5,8,0),1,1))) -> 3583.04 | E70: =IF(A70>$B$30,NA(),IF(A70>$A$8,"",OFFSET(InputPriceData!$D$15,CalculationsAndCharts!$A70+$A$11,IF($C$5,8,0),1,1))) -> 3645.99 | F70: =IF(A70>$B$30,NA(),IF(A70>$A$8,"",OFFSET(InputPriceData!$E$15,CalculationsAndCharts!$A70+$A$11,IF($C$5,8,0),1,1))) -> 3547.48 | G70: =IF(A70>$B$30,NA(),IF(A70>$A$8,"",OFFSET(InputPriceData!$F$15,CalculationsAndCharts!$A70+$A$11,IF($C$5,8,0),1,1))) -> 3550.5 | H70: 0.5877852523 | I70: 3550.5 | L70: 73.902 | M70: 101.6283333 | N70: 127.1871429 | O70: 141.3375 | P70: 156.6855556 | Q70: 156.999 | R70: 156.32 | S70: 150.3858333 | T70: 146.28 | U70: 144.0414286 | V70: 141.5973333 | W70: 140.47125 | X70: 136.1311765 | Y70: 132.2994444 | Z70: 128.5905263 | AA70: 124.0895 | AB70: 118.9557143 | AC70: 116.8831818 | AD70: 116.3086957 | AE70: 116.9233333 | AF70: 119.8276 | AG70: 120.6765385 | AH70: 123.6914815 | AI70: 125.3346429 | AJ70: 127.4782759 | AK70: 130.3966667 | AL70: 3409.1625 | AM70: 3434.191304 | AN70: -0.7288121753 | AX70: 8556610000
A71: 39 | B71: =IF(A71>$B$30,NA(),IF($A71>$A$8,"",OFFSET(InputPriceData!$B$15,$A71+$A$11,0,1,1))) -> 2020-11-06 | C71: =IF(A71>$B$30,NA(),IF($A71>$A$8,"",OFFSET(InputPriceData!$G$15,CalculationsAndCharts!$A71+$A$11,IF($C$5,8,0),1,1))) -> 4833950000 | D71: =IF(A71>$B$30,NA(),IF(A71>$A$8,"",OFFSET(InputPriceData!$C$15,CalculationsAndCharts!$A71+$A$11,IF($C$5,8,0),1,1))) -> 3508.34 | E71: =IF(A71>$B$30,NA(),IF(A71>$A$8,"",OFFSET(InputPriceData!$D$15,CalculationsAndCharts!$A71+$A$11,IF($C$5,8,0),1,1))) -> 3521.58 | F71: =IF(A71>$B$30,NA(),IF(A71>$A$8,"",OFFSET(InputPriceData!$E$15,CalculationsAndCharts!$A71+$A$11,IF($C$5,8,0),1,1))) -> 3484.34 | G71: =IF(A71>$B$30,NA(),IF(A71>$A$8,"",OFFSET(InputPriceData!$F$15,CalculationsAndCharts!$A71+$A$11,IF($C$5,8,0),1,1))) -> 3509.44 | H71: 0.4067366431 | I71: 3509.44 | L71: 80.894 | M71: 107.325 | N71: 120.4685714 | O71: 135.21125 | P71: 133.3833333 | Q71: 130.892 | R71: 122.9972727 | S71: 117.41 | T71: 114.0615385 | U71: 110.6514286 | V71: 108.776 | W71: 103.579375 | X71: 99.02176471 | Y71: 94.67444444 | Z71: 89.56052632 | AA71: 83.8435 | AB71: 81.38904762 | AC71: 80.53545455 | AD71: 80.94695652 | AE71: 83.76041667 | AF71: 84.4436 | AG71: 87.38884615 | AH71: 88.91666667 | AI71: 90.97107143 | AJ71: 93.83310345 | AK71: 95.96666667 | AL71: 3374.22875 | AM71: 3428.493043 | AN71: -1.582744745 | AW71: 4833950000
A72: 40 | B72: =IF(A72>$B$30,NA(),IF($A72>$A$8,"",OFFSET(InputPriceData!$B$15,$A72+$A$11,0,1,1))) -> 2020-11-05 | C72: =IF(A72>$B$30,NA(),IF($A72>$A$8,"",OFFSET(InputPriceData!$G$15,CalculationsAndCharts!$A72+$A$11,IF($C$5,8,0),1,1))) -> 4841190000 | D72: =IF(A72>$B$30,NA(),IF(A72>$A$8,"",OFFSET(InputPriceData!$C$15,CalculationsAndCharts!$A72+$A$11,IF($C$5,8,0),1,1))) -> 3485.74 | E72: =IF(A72>$B$30,NA(),IF(A72>$A$8,"",OFFSET(InputPriceData!$D$15,CalculationsAndCharts!$A72+$A$11,IF($C$5,8,0),1,1))) -> 3529.05 | F72: =IF(A72>$B$30,NA(),IF(A72>$A$8,"",OFFSET(InputPriceData!$E$15,CalculationsAndCharts!$A72+$A$11,IF($C$5,8,0),1,1))) -> 3485.74 | G72: =IF(A72>$B$30,NA(),IF(A72>$A$8,"",OFFSET(InputPriceData!$F$15,CalculationsAndCharts!$A72+$A$11,IF($C$5,8,0),1,1))) -> 3510.45 | H72: 0.2079116908 | I72: 3510.45 | L72: 129.8 | M72: 141.5566667 | N72: 155.5371429 | O72: 151.06625 | P72: 146.4455556 | Q72: 136.307 | R72: 129.0936364 | S72: 124.5766667 | T72: 120.1730769 | U72: 117.5557143 | V72: 111.4946667 | W72: 106.220625 | X72: 101.2535294 | Y72: 95.54611111 | Z72: 89.26631579 | AA72: 86.4685 | AB72: 85.38047619 | AC72: 85.63636364 | AD72: 88.41217391 | AE72: 88.97208333 | AF72: 91.8944 | AG72: 93.34653846 | AH72: 95.35037037 | AI72: 98.19428571 | AJ72: 100.2858621 | AK72: 104.0093333 | AL72: 3359.38375 | AM72: 3422.037826 | AN72: -1.830899577 | AW72: 4841190000
A73: 41 | B73: =IF(A73>$B$30,NA(),IF($A73>$A$8,"",OFFSET(InputPriceData!$B$15,$A73+$A$11,0,1,1))) -> 2020-11-04 | C73: =IF(A73>$B$30,NA(),IF($A73>$A$8,"",OFFSET(InputPriceData!$G$15,CalculationsAndCharts!$A73+$A$11,IF($C$5,8,0),1,1))) -> 4783040000 | D73: =IF(A73>$B$30,NA(),IF(A73>$A$8,"",OFFSET(InputPriceData!$C$15,CalculationsAndCharts!$A73+$A$11,IF($C$5,8,0),1,1))) -> 3406.46 | E73: =IF(A73>$B$30,NA(),IF(A73>$A$8,"",OFFSET(InputPriceData!$D$15,CalculationsAndCharts!$A73+$A$11,IF($C$5,8,0),1,1))) -> 3486.25 | F73: =IF(A73>$B$30,NA(),IF(A73>$A$8,"",OFFSET(InputPriceData!$E$15,CalculationsAndCharts!$A73+$A$11,IF($C$5,8,0),1,1))) -> 3405.17 | G73: =IF(A73>$B$30,NA(),IF(A73>$A$8,"",OFFSET(InputPriceData!$F$15,CalculationsAndCharts!$A73+$A$11,IF($C$5,8,0),1,1))) -> 3443.44 | H73: -6.272499881e-14 | I73: 3443.44 | L73: 102.858 | M73: 114.45 | N73: 105.6371429 | O73: 97.74125 | P73: 84.44222222 | Q73: 74.993 | R73: 68.89181818 | S73: 63.1775 | T73: 59.58846154 | U73: 52.44857143 | V73: 46.292 | W73: 40.571875 | X73: 34.15647059 | Y73: 27.21555556 | Z73: 24.00947368 | AA73: 22.6395 | AB73: 22.70428571 | AC73: 25.42090909 | AD73: 25.83043478 | AE73: 28.71333333 | AF73: 30.0704 | AG73: 32.00769231 | AH73: 34.82111111 | AI73: 36.8575 | AJ73: 40.58586207 | AK73: 45.79466667 | AL73: 3345.69875 | AM73: 3417.609565 | AN73: -2.104126111 | AW73: 4783040000
A74: 42 | B74: =IF(A74>$B$30,NA(),IF($A74>$A$8,"",OFFSET(InputPriceData!$B$15,$A74+$A$11,0,1,1))) -> 2020-11-03 | C74: =IF(A74>$B$30,NA(),IF($A74>$A$8,"",OFFSET(InputPriceData!$G$15,CalculationsAndCharts!$A74+$A$11,IF($C$5,8,0),1,1))) -> 4220070000 | D74: =IF(A74>$B$30,NA(),IF(A74>$A$8,"",OFFSET(InputPriceData!$C$15,CalculationsAndCharts!$A74+$A$11,IF($C$5,8,0),1,1))) -> 3336.25 | E74: =IF(A74>$B$30,NA(),IF(A74>$A$8,"",OFFSET(InputPriceData!$D$15,CalculationsAndCharts!$A74+$A$11,IF($C$5,8,0),1,1))) -> 3389.49 | F74: =IF(A74>$B$30,NA(),IF(A74>$A$8,"",OFFSET(InputPriceData!$E$15,CalculationsAndCharts!$A74+$A$11,IF($C$5,8,0),1,1))) -> 3336.25 | G74: =IF(A74>$B$30,NA(),IF(A74>$A$8,"",OFFSET(InputPriceData!$F$15,CalculationsAndCharts!$A74+$A$11,IF($C$5,8,0),1,1))) -> 3369.16 | H74: -0.2079116908 | I74: 3369.16 | L74: 63.06 | M74: 48.96333333 | N74: 37.42428571 | O74: 20.7175 | P74: 9.045555556 | Q74: 1.501 | R74: -5.359090909 | S74: -9.725833333 | T74: -17.79692308 | U74: -24.68142857 | V74: -31.00333333 | W74: -37.98875 | X74: -45.46352941 | Y74: -48.93666667 | Z74: -50.44894737 | AA74: =IF($A74<=AA$30,$I74-AVERAGE(OFFSET($I74,0,0,AA$31,1)),NA()) -> -50.4405 | AB74: -47.64857143 | AC74: -47.27545455 | AD74: -44.31826087 | AE74: -42.95666667 | AF74: -40.992 | AG74: -38.11961538 | AH74: -36.05740741 | AI74: -32.24464286 | AJ74: -26.9062069 | AK74: -21.60133333 | AL74: 3348.4425 | AM74: 3413.478261 | AN74: -1.905263661 | AW74: 4220070000
A75: 43 | B75: =IF(A75>$B$30,NA(),IF($A75>$A$8,"",OFFSET(InputPriceData!$B$15,$A75+$A$11,0,1,1))) -> 2020-11-02 | C75: =IF(A75>$B$30,NA(),IF($A75>$A$8,"",OFFSET(InputPriceData!$G$15,CalculationsAndCharts!$A75+$A$11,IF($C$5,8,0),1,1))) -> 4310590000 | D75: =IF(A75>$B$30,NA(),IF(A75>$A$8,"",OFFSET(InputPriceData!$C$15,CalculationsAndCharts!$A75+$A$11,IF($C$5,8,0),1,1))) -> 3296.2 | E75: =IF(A75>$B$30,NA(),IF(A75>$A$8,"",OFFSET(InputPriceData!$D$15,CalculationsAndCharts!$A75+$A$11,IF($C$5,8,0),1,1))) -> 3330.14 | F75: =IF(A75>$B$30,NA(),IF(A75>$A$8,"",OFFSET(InputPriceData!$E$15,CalculationsAndCharts!$A75+$A$11,IF($C$5,8,0),1,1))) -> 3279.74 | G75: =IF(A75>$B$30,NA(),IF(A75>$A$8,"",OFFSET(InputPriceData!$F$15,CalculationsAndCharts!$A75+$A$11,IF($C$5,8,0),1,1))) -> 3310.24 | H75: -0.4067366431 | I75: 3310.24 | L75: =IF($A75<=L$30,$I75-AVERAGE(OFFSET($I75,0,0,L$31,1)),NA()) -> -0.164 | M75: -15.25833333 | N75: -35.24285714 | O75: -48.74375 | P75: -57.25222222 | Q75: -64.815 | R75: -69.53 | S75: -78.2 | T75: -85.5 | U75: -92.13785714 | V75: -99.44133333 | W75: -107.225 | X75: -110.7352941 | Y75: -112.1716667 | Z75: -112.0152632 | AA75: -108.951 | AB75: -108.4466667 | AC75: -105.2527273 | AD75: -103.7443478 | AE75: -101.62 | AF75: -98.5644 | AG75: -96.36423077 | AH75: -92.35888889 | AI75: -86.78714286 | AJ75: -81.2662069 | AK75: -78.735 | AL75: 3358.98375 | AM75: 3413.984348 | AN75: -1.611038371 | AW75: 4310590000
A76: 44 | B76: =IF(A76>$B$30,NA(),IF($A76>$A$8,"",OFFSET(InputPriceData!$B$15,$A76+$A$11,0,1,1))) -> 2020-10-30 | C76: =IF(A76>$B$30,NA(),IF($A76>$A$8,"",OFFSET(InputPriceData!$G$15,CalculationsAndCharts!$A76+$A$11,IF($C$5,8,0),1,1))) -> 4840450000 | D76: =IF(A76>$B$30,NA(),IF(A76>$A$8,"",OFFSET(InputPriceData!$C$15,CalculationsAndCharts!$A76+$A$11,IF($C$5,8,0),1,1))) -> 3293.59 | E76: =IF(A76>$B$30,NA(),IF(A76>$A$8,"",OFFSET(InputPriceData!$D$15,CalculationsAndCharts!$A76+$A$11,IF($C$5,8,0),1,1))) -> 3304.93 | F76: =IF(A76>$B$30,NA(),IF(A76>$A$8,"",OFFSET(InputPriceData!$E$15,CalculationsAndCharts!$A76+$A$11,IF($C$5,8,0),1,1))) -> 3233.94 | G76: =IF(A76>$B$30,NA(),IF(A76>$A$8,"",OFFSET(InputPriceData!$F$15,CalculationsAndCharts!$A76+$A$11,IF($C$5,8,0),1,1))) -> 3269.96 | H76: -0.5877852523 | I76: 3269.96 | L76: -58.59 | M76: -81.39666667 | N76: -95.98714286 | O76: -104.68875 | P76: -112.2966667 | Q76: -116.763 | R76: -125.5890909 | S76: -132.905 | T76: -139.5053846 | U76: -146.8242857 | V76: -154.6533333 | W76: -157.93625 | X76: -159.05 | Y76: -158.5183333 | Z76: -154.9652632 | AA76: -154.149 | AB76: -150.5447619 | AC76: -148.74 | AD76: -146.3182609 | AE76: -142.95125 | AF76: -140.4988 | AG76: -136.1911538 | AH76: -130.2814815 | AI76: -124.4485714 | AJ76: -121.73 | AK76: -118.0423333 | AL76: 3374.64875 | AM76: 3416.278261 | AN76: -1.218563234 | AX76: 4840450000
A77: 45 | B77: =IF(A77>$B$30,NA(),IF($A77>$A$8,"",OFFSET(InputPriceData!$B$15,$A77+$A$11,0,1,1))) -> 2020-10-29 | C77: =IF(A77>$B$30,NA(),IF($A77>$A$8,"",OFFSET(InputPriceData!$G$15,CalculationsAndCharts!$A77+$A$11,IF($C$5,8,0),1,1))) -> 4903070000 | D77: =IF(A77>$B$30,NA(),IF(A77>$A$8,"",OFFSET(InputPriceData!$C$15,CalculationsAndCharts!$A77+$A$11,IF($C$5,8,0),1,1))) -> 3277.17 | E77: =IF(A77>$B$30,NA(),IF(A77>$A$8,"",OFFSET(InputPriceData!$D$15,CalculationsAndCharts!$A77+$A$11,IF($C$5,8,0),1,1))) -> 3341.05 | F77: =IF(A77>$B$30,NA(),IF(A77>$A$8,"",OFFSET(InputPriceData!$E$15,CalculationsAndCharts!$A77+$A$11,IF($C$5,8,0),1,1))) -> 3259.82 | G77: =IF(A77>$B$30,NA(),IF(A77>$A$8,"",OFFSET(InputPriceData!$F$15,CalculationsAndCharts!$A77+$A$11,IF($C$5,8,0),1,1))) -> 3310.11 | H77: -0.7431448255 | I77: 3310.11 | L77: -57.526 | M77: -71.835 | N77: -79.49428571 | O77: -86.18375 | P77: -89.58666667 | Q77: -97.998 | R77: -104.8372727 | S77: -110.9808333 | T77: -117.9684615 | U77: -125.55 | V77: -128.3153333 | W77: -128.840625 | X77: -127.6929412 | Y77: -123.4244444 | Z77: -122.1121053 | AA77: -117.922 | AB77: -115.6728571 | AC77: -112.8190909 | AD77: -109.0165217 | AE77: -106.2029167 | AF77: -101.4888 | AG77: -95.14230769 | AH77: -88.90777778 | AI77: -85.9275 | AJ77: -81.96275862 | AK77: -79.54266667 | AL77: 3396.29375 | AM77: 3419.126522 | AN77: -0.6677954616 | AW77: 4903070000
A78: 46 | B78: =IF(A78>$B$30,NA(),IF($A78>$A$8,"",OFFSET(InputPriceData!$B$15,$A78+$A$11,0,1,1))) -> 2020-10-28 | C78: =IF(A78>$B$30,NA(),IF($A78>$A$8,"",OFFSET(InputPriceData!$G$15,CalculationsAndCharts!$A78+$A$11,IF($C$5,8,0),1,1))) -> 5129860000 | D78: =IF(A78>$B$30,NA(),IF(A78>$A$8,"",OFFSET(InputPriceData!$C$15,CalculationsAndCharts!$A78+$A$11,IF($C$5,8,0),1,1))) -> 3342.48 | E78: =IF(A78>$B$30,NA(),IF(A78>$A$8,"",OFFSET(InputPriceData!$D$15,CalculationsAndCharts!$A78+$A$11,IF($C$5,8,0),1,1))) -> 3342.48 | F78: =IF(A78>$B$30,NA(),IF(A78>$A$8,"",OFFSET(InputPriceData!$E$15,CalculationsAndCharts!$A78+$A$11,IF($C$5,8,0),1,1))) -> 3268.89 | G78: =IF(A78>$B$30,NA(),IF(A78>$A$8,"",OFFSET(InputPriceData!$F$15,CalculationsAndCharts!$A78+$A$11,IF($C$5,8,0),1,1))) -> 3271.03 | H78: -0.8660254038 | I78: 3271.03 | L78: -125.282 | M78: -131.8233333 | N78: -137.5757143 | O78: -139.865 | P78: -147.9666667 | Q78: -154.401 | R78: -160.15 | S78: -166.8791667 | T78: -174.2876923 | U78: -176.5607143 | V78: -176.51 | W78: -174.75375 | X78: -169.7647059 | Y78: -167.9761111 | Z78: -163.2084211 | AA78: -160.5365 | AB78: -157.2714286 | AC78: -153.0518182 | AD78: -149.9004348 | AE78: -144.7975 | AF78: -138.028 | AG78: -131.4073077 | AH78: -128.19 | AI78: -123.97 | AJ78: -121.3655172 | AK78: -120.186 | AL78: 3410.895 | AM78: 3420.930435 | AN78: -0.2933539566 | AX78: 5129860000
A79: 47 | B79: =IF(A79>$B$30,NA(),IF($A79>$A$8,"",OFFSET(InputPriceData!$B$15,$A79+$A$11,0,1,1))) -> 2020-10-27 | C79: =IF(A79>$B$30,NA(),IF($A79>$A$8,"",OFFSET(InputPriceData!$G$15,CalculationsAndCharts!$A79+$A$11,IF($C$5,8,0),1,1))) -> 3946990000 | D79: =IF(A79>$B$30,NA(),IF(A79>$A$8,"",OFFSET(InputPriceData!$C$15,CalculationsAndCharts!$A79+$A$11,IF($C$5,8,0),1,1))) -> 3403.15 | E79: =IF(A79>$B$30,NA(),IF(A79>$A$8,"",OFFSET(InputPriceData!$D$15,CalculationsAndCharts!$A79+$A$11,IF($C$5,8,0),1,1))) -> 3409.51 | F79: =IF(A79>$B$30,NA(),IF(A79>$A$8,"",OFFSET(InputPriceData!$E$15,CalculationsAndCharts!$A79+$A$11,IF($C$5,8,0),1,1))) -> 3388.71 | G79: =IF(A79>$B$30,NA(),IF(A79>$A$8,"",OFFSET(InputPriceData!$F$15,CalculationsAndCharts!$A79+$A$11,IF($C$5,8,0),1,1))) -> 3390.68 | H79: -0.9510565163 | I79: 3390.68 | L79: -38.538 | M79: -40.855 | N79: -40.19571429 | O79: -46.8125 | P79: -51.90666667 | Q79: -56.515 | R79: -62.4 | S79: -69.16166667 | T79: -70.49230769 | U79: -69.46785714 | V79: -66.754 | W79: -60.725 | X79: -58.20705882 | Y79: -52.62555556 | Z79: -49.33578947 | AA79: -45.485 | AB79: -40.69 | AC79: -37.06409091 | AD79: -31.44304348 | AE79: -24.12916667 | AF79: -17.0136 | AG79: -13.47038462 | AH79: -8.911481481 | AI79: -6.05 | AJ79: -4.680344828 | AK79: -4.351333333 | AL79: 3437.4925 | AM79: 3422.123043 | AN79: 0.4491205116 | AX79: 3946990000
A80: 48 | B80: =IF(A80>$B$30,NA(),IF($A80>$A$8,"",OFFSET(InputPriceData!$B$15,$A80+$A$11,0,1,1))) -> 2020-10-26 | C80: =IF(A80>$B$30,NA(),IF($A80>$A$8,"",OFFSET(InputPriceData!$G$15,CalculationsAndCharts!$A80+$A$11,IF($C$5,8,0),1,1))) -> 3988080000 | D80: =IF(A80>$B$30,NA(),IF(A80>$A$8,"",OFFSET(InputPriceData!$C$15,CalculationsAndCharts!$A80+$A$11,IF($C$5,8,0),1,1))) -> 3441.42 | E80: =IF(A80>$B$30,NA(),IF(A80>$A$8,"",OFFSET(InputPriceData!$D$15,CalculationsAndCharts!$A80+$A$11,IF($C$5,8,0),1,1))) -> 3441.42 | F80: =IF(A80>$B$30,NA(),IF(A80>$A$8,"",OFFSET(InputPriceData!$E$15,CalculationsAndCharts!$A80+$A$11,IF($C$5,8,0),1,1))) -> 3364.86 | G80: =IF(A80>$B$30,NA(),IF(A80>$A$8,"",OFFSET(InputPriceData!$F$15,CalculationsAndCharts!$A80+$A$11,IF($C$5,8,0),1,1))) -> 3400.97 | H80: -0.9945218954 | I80: 3400.97 | L80: -38.736 | M80: -36.605 | N80: -43.21 | O80: -48.105 | P80: -52.50444444 | Q80: -58.35 | R80: -65.15909091 | S80: -66.07666667 | T80: -64.52153846 | U80: -61.23214286 | V80: -54.48333333 | W80: -51.555 | X80: -45.43117647 | Y80: -41.78666667 | Z80: -37.58894737 | AA80: -32.4345 | AB80: -28.53904762 | AC80: -22.58227273 | AD80: -14.88826087 | AE80: -7.4325 | AF80: -3.7192 | AG80: 1.035769231 | AH80: 4.015925926 | AI80: 5.4425 | AJ80: 5.78862069 | AK80: 5.588 | AL80: 3449.075 | AM80: 3415.858261 | AN80: 0.9724273255 | AX80: 3988080000
A81: 49 | B81: =IF(A81>$B$30,NA(),IF($A81>$A$8,"",OFFSET(InputPriceData!$B$15,$A81+$A$11,0,1,1))) -> 2020-10-23 | C81: =IF(A81>$B$30,NA(),IF($A81>$A$8,"",OFFSET(InputPriceData!$G$15,CalculationsAndCharts!$A81+$A$11,IF($C$5,8,0),1,1))) -> 3646570000 | D81: =IF(A81>$B$30,NA(),IF(A81>$A$8,"",OFFSET(InputPriceData!$C$15,CalculationsAndCharts!$A81+$A$11,IF($C$5,8,0),1,1))) -> 3464.9 | E81: =IF(A81>$B$30,NA(),IF(A81>$A$8,"",OFFSET(InputPriceData!$D$15,CalculationsAndCharts!$A81+$A$11,IF($C$5,8,0),1,1))) -> 3466.46 | F81: =IF(A81>$B$30,NA(),IF(A81>$A$8,"",OFFSET(InputPriceData!$E$15,CalculationsAndCharts!$A81+$A$11,IF($C$5,8,0),1,1))) -> 3440.45 | G81: =IF(A81>$B$30,NA(),IF(A81>$A$8,"",OFFSET(InputPriceData!$F$15,CalculationsAndCharts!$A81+$A$11,IF($C$5,8,0),1,1))) -> 3465.39 | H81: -0.9945218954 | I81: 3465.39 | L81: 20.494 | M81: 14.00833333 | N81: 9.442857143 | O81: 5.3525 | P81: -0.4133333333 | Q81: -7.255 | R81: -7.663636364 | S81: -5.478333333 | T81: -1.522307692 | U81: 6.045 | V81: 9.428 | W81: 16.149375 | X81: 20.17529412 | Y81: 24.74277778 | Z81: 30.27842105 | AA81: 34.454 | AB81: 40.76238095 | AC81: 48.855 | AD81: 56.66434783 | AE81: 60.54583333 | AF81: 65.4972 | AG81: 68.59038462 | AH81: 70.06407407 | AI81: 70.41535714 | AJ81: 70.20068966 | AK81: 70.589 | AL81: 3460.0375 | AM81: 3408.725652 | AN81: 1.505308818 | AW81: 3646570000
A82: 50 | B82: =IF(A82>$B$30,NA(),IF($A82>$A$8,"",OFFSET(InputPriceData!$B$15,$A82+$A$11,0,1,1))) -> 2020-10-22 | C82: =IF(A82>$B$30,NA(),IF($A82>$A$8,"",OFFSET(InputPriceData!$G$15,CalculationsAndCharts!$A82+$A$11,IF($C$5,8,0),1,1))) -> 4163630000 | D82: =IF(A82>$B$30,NA(),IF(A82>$A$8,"",OFFSET(InputPriceData!$C$15,CalculationsAndCharts!$A82+$A$11,IF($C$5,8,0),1,1))) -> 3438.5 | E82: =IF(A82>$B$30,NA(),IF(A82>$A$8,"",OFFSET(InputPriceData!$D$15,CalculationsAndCharts!$A82+$A$11,IF($C$5,8,0),1,1))) -> 3460.53 | F82: =IF(A82>$B$30,NA(),IF(A82>$A$8,"",OFFSET(InputPriceData!$E$15,CalculationsAndCharts!$A82+$A$11,IF($C$5,8,0),1,1))) -> 3415.34 | G82: =IF(A82>$B$30,NA(),IF(A82>$A$8,"",OFFSET(InputPriceData!$F$15,CalculationsAndCharts!$A82+$A$11,IF($C$5,8,0),1,1))) -> 3453.49 | H82: -0.9510565163 | I82: 3453.49 | L82: 4.91 | M82: -0.8833333333 | N82: -5.782857143 | O82: -12.365 | P82: -19.96111111 | Q82: -20.33 | R82: -17.87636364 | S82: -13.54916667 | T82: -5.39 | U82: -1.798571429 | V82: 5.326 | W82: 9.53625 | X82: 14.29823529 | Y82: 20.06055556 | Z82: 24.36736842 | AA82: 30.9005 | AB82: 39.28142857 | AC82: 47.34 | AD82: 51.27826087 | AE82: 56.32625 | AF82: 59.434 | AG82: 60.85884615 | AH82: 61.12333333 | AI82: 60.80785714 | AJ82: 61.12310345 | AK82: 62.83633333 | AL82: 3465.855 | AM82: 3402.211739 | AN82: 1.870643739 | AW82: 4163630000
A83: 51 | B83: =IF(A83>$B$30,NA(),IF($A83>$A$8,"",OFFSET(InputPriceData!$B$15,$A83+$A$11,0,1,1))) -> 2020-10-21 | C83: =IF(A83>$B$30,NA(),IF($A83>$A$8,"",OFFSET(InputPriceData!$G$15,CalculationsAndCharts!$A83+$A$11,IF($C$5,8,0),1,1))) -> 4097750000 | D83: =IF(A83>$B$30,NA(),IF(A83>$A$8,"",OFFSET(InputPriceData!$C$15,CalculationsAndCharts!$A83+$A$11,IF($C$5,8,0),1,1))) -> 3439.91 | E83: =IF(A83>$B$30,NA(),IF(A83>$A$8,"",OFFSET(InputPriceData!$D$15,CalculationsAndCharts!$A83+$A$11,IF($C$5,8,0),1,1))) -> 3464.86 | F83: =IF(A83>$B$30,NA(),IF(A83>$A$8,"",OFFSET(InputPriceData!$E$15,CalculationsAndCharts!$A83+$A$11,IF($C$5,8,0),1,1))) -> 3433.06 | G83: =IF(A83>$B$30,NA(),IF(A83>$A$8,"",OFFSET(InputPriceData!$F$15,CalculationsAndCharts!$A83+$A$11,IF($C$5,8,0),1,1))) -> 3435.56 | H83: -0.8660254038 | I83: 3435.56 | L83: -18.99 | M83: -24.67666667 | N83: -32.06142857 | O83: -40.38625 | P83: -40.51888889 | Q83: -37.594 | R83: -32.71090909 | S83: -23.76916667 | T83: -19.86692308 | U83: -12.22357143 | V83: -7.758 | W83: -2.738125 | X83: 3.310588235 | Y83: 7.791111111 | Z83: 14.59684211 | AA83: 23.3155 | AB83: 31.66428571 | AC83: 35.67909091 | AD83: 40.84521739 | AE83: 43.98041667 | AF83: 45.3632 | AG83: 45.54423077 | AH83: 45.13 | AI83: 45.37607143 | AJ83: 47.07310345 | AK83: 48.71633333 | AL83: 3475.94625 | AM83: 3394.714783 | AN83: 2.39288048 | AX83: 4097750000
A84: 52 | B84: =IF(A84>$B$30,NA(),IF($A84>$A$8,"",OFFSET(InputPriceData!$B$15,$A84+$A$11,0,1,1))) -> 2020-10-20 | C84: =IF(A84>$B$30,NA(),IF($A84>$A$8,"",OFFSET(InputPriceData!$G$15,CalculationsAndCharts!$A84+$A$11,IF($C$5,8,0),1,1))) -> 3901260000 | D84: =IF(A84>$B$30,NA(),IF(A84>$A$8,"",OFFSET(InputPriceData!$C$15,CalculationsAndCharts!$A84+$A$11,IF($C$5,8,0),1,1))) -> 3439.38 | E84: =IF(A84>$B$30,NA(),IF(A84>$A$8,"",OFFSET(InputPriceData!$D$15,CalculationsAndCharts!$A84+$A$11,IF($C$5,8,0),1,1))) -> 3476.93 | F84: =IF(A84>$B$30,NA(),IF(A84>$A$8,"",OFFSET(InputPriceData!$E$15,CalculationsAndCharts!$A84+$A$11,IF($C$5,8,0),1,1))) -> 3435.65 | G84: =IF(A84>$B$30,NA(),IF(A84>$A$8,"",OFFSET(InputPriceData!$F$15,CalculationsAndCharts!$A84+$A$11,IF($C$5,8,0),1,1))) -> 3443.12 | H84: -0.7431448255 | I84: 3443.12 | L84: -22.052 | M84: -29.845 | N84: -38.59571429 | O84: -38.02375 | P84: -34.21111111 | Q84: -28.422 | R84: -18.37 | S84: -13.9625 | T84: -5.603846154 | U84: -0.7521428571 | V84: 4.639333333 | W84: 11.0775 | X84: 15.80941176 | Y84: 22.96777778 | Z84: 32.10263158 | AA84: 40.8075 | AB84: 44.93809524 | AC84: 50.26181818 | AD84: 53.4526087 | AE84: 54.81333333 | AF84: 54.926 | AG84: 54.42576923 | AH84: 54.61666667 | AI84: 56.31428571 | AJ84: 57.9562069 | AK84: 57.49633333 | AL84: 3481.14375 | AM84: 3389.667391 | AN84: 2.698682441 | AW84: 3901260000
A85: 53 | B85: =IF(A85>$B$30,NA(),IF($A85>$A$8,"",OFFSET(InputPriceData!$B$15,$A85+$A$11,0,1,1))) -> 2020-10-19 | C85: =IF(A85>$B$30,NA(),IF($A85>$A$8,"",OFFSET(InputPriceData!$G$15,CalculationsAndCharts!$A85+$A$11,IF($C$5,8,0),1,1))) -> 4086200000 | D85: =IF(A85>$B$30,NA(),IF(A85>$A$8,"",OFFSET(InputPriceData!$C$15,CalculationsAndCharts!$A85+$A$11,IF($C$5,8,0),1,1))) -> 3493.66 | E85: =IF(A85>$B$30,NA(),IF(A85>$A$8,"",OFFSET(InputPriceData!$D$15,CalculationsAndCharts!$A85+$A$11,IF($C$5,8,0),1,1))) -> 3502.42 | F85: =IF(A85>$B$30,NA(),IF(A85>$A$8,"",OFFSET(InputPriceData!$E$15,CalculationsAndCharts!$A85+$A$11,IF($C$5,8,0),1,1))) -> 3419.93 | G85: =IF(A85>$B$30,NA(),IF(A85>$A$8,"",OFFSET(InputPriceData!$F$15,CalculationsAndCharts!$A85+$A$11,IF($C$5,8,0),1,1))) -> 3426.92 | H85: -0.5877852523 | I85: 3426.92 | L85: -52.014 | M85: -61.22833333 | N85: -59.65571429 | O85: -54.6875 | P85: -47.78 | Q85: -36.407 | R85: -31.43181818 | S85: -22.27083333 | T85: -17.01 | U85: -11.22928571 | V85: -4.384 | W85: 0.5975 | X85: 8.118823529 | Y85: 17.68611111 | Z85: 26.75526316 | AA85: 30.985 | AB85: 36.4552381 | AC85: 39.68227273 | AD85: 40.99652174 | AE85: 41.01458333 | AF85: 40.4028 | AG85: 40.51730769 | AH85: 42.2 | AI85: 43.82607143 | AJ85: 43.27896552 | AK85: 45.00566667 | AL85: 3481.6075 | AM85: 3385.923478 | AN85: 2.825935741 | AX85: 4086200000
A86: 54 | B86: =IF(A86>$B$30,NA(),IF($A86>$A$8,"",OFFSET(InputPriceData!$B$15,$A86+$A$11,0,1,1))) -> 2020-10-16 | C86: =IF(A86>$B$30,NA(),IF($A86>$A$8,"",OFFSET(InputPriceData!$G$15,CalculationsAndCharts!$A86+$A$11,IF($C$5,8,0),1,1))) -> 4675890000 | D86: =IF(A86>$B$30,NA(),IF(A86>$A$8,"",OFFSET(InputPriceData!$C$15,CalculationsAndCharts!$A86+$A$11,IF($C$5,8,0),1,1))) -> 3493.5 | E86: =IF(A86>$B$30,NA(),IF(A86>$A$8,"",OFFSET(InputPriceData!$D$15,CalculationsAndCharts!$A86+$A$11,IF($C$5,8,0),1,1))) -> 3515.76 | F86: =IF(A86>$B$30,NA(),IF(A86>$A$8,"",OFFSET(InputPriceData!$E$15,CalculationsAndCharts!$A86+$A$11,IF($C$5,8,0),1,1))) -> 3480.45 | G86: =IF(A86>$B$30,NA(),IF(A86>$A$8,"",OFFSET(InputPriceData!$F$15,CalculationsAndCharts!$A86+$A$11,IF($C$5,8,0),1,1))) -> 3483.81 | H86: -0.4067366431 | I86: 3483.81 | L86: -16.584 | M86: -12.70833333 | N86: -5.61 | O86: 3.1375 | P86: 16.43777778 | Q86: 22.315 | R86: 32.59454545 | S86: 38.4625 | T86: 44.79692308 | U86: 52.19285714 | V86: 57.52733333 | W86: 65.51625 | X86: 75.61647059 | Y86: 85.13166667 | Z86: 89.50578947 | AA86: 95.168 | AB86: 98.46190476 | AC86: 99.75 | AD86: 99.68782609 | AE86: 98.97625 | AF86: 99.028 | AG86: 100.7130769 | AH86: 102.3392593 | AI86: 101.7146429 | AJ86: 103.4475862 | AK86: 101.8943333 | AL86: 3480.6725 | AM86: 3384.122174 | AN86: 2.853039019 | AX86: 4675890000
A87: 55 | B87: =IF(A87>$B$30,NA(),IF($A87>$A$8,"",OFFSET(InputPriceData!$B$15,$A87+$A$11,0,1,1))) -> 2020-10-15 | C87: =IF(A87>$B$30,NA(),IF($A87>$A$8,"",OFFSET(InputPriceData!$G$15,CalculationsAndCharts!$A87+$A$11,IF($C$5,8,0),1,1))) -> 3717640000 | D87: =IF(A87>$B$30,NA(),IF(A87>$A$8,"",OFFSET(InputPriceData!$C$15,CalculationsAndCharts!$A87+$A$11,IF($C$5,8,0),1,1))) -> 3453.72 | E87: =IF(A87>$B$30,NA(),IF(A87>$A$8,"",OFFSET(InputPriceData!$D$15,CalculationsAndCharts!$A87+$A$11,IF($C$5,8,0),1,1))) -> 3489.08 | F87: =IF(A87>$B$30,NA(),IF(A87>$A$8,"",OFFSET(InputPriceData!$E$15,CalculationsAndCharts!$A87+$A$11,IF($C$5,8,0),1,1))) -> 3440.89 | G87: =IF(A87>$B$30,NA(),IF(A87>$A$8,"",OFFSET(InputPriceData!$F$15,CalculationsAndCharts!$A87+$A$11,IF($C$5,8,0),1,1))) -> 3483.34 | H87: -0.2079116908 | I87: 3483.34 | L87: -15.72 | M87: -7.015 | N87: 3.115714286 | O87: 18.0225 | P87: 24.32444444 | Q87: 35.384 | R87: 41.48909091 | S87: 48.06 | T87: 55.73769231 | U87: 61.16642857 | V87: 69.414 | W87: 79.8725 | X87: 89.66941176 | Y87: 94.00833333 | Z87: 99.70684211 | AA87: 102.915 | AB87: 104.03 | AC87: 103.7490909 | AD87: 102.8095652 | AE87: 102.6841667 | AF87: 104.2716 | AG87: 105.8053846 | AH87: 105.0118519 | AI87: 106.6721429 | AJ87: 104.937931 | AK87: 102.3826667 | AL87: 3465.3175 | AM87: 3380.530435 | AN87: 2.508099449 | AW87: 3717640000
A88: 56 | B88: =IF(A88>$B$30,NA(),IF($A88>$A$8,"",OFFSET(InputPriceData!$B$15,$A88+$A$11,0,1,1))) -> 2020-10-14 | C88: =IF(A88>$B$30,NA(),IF($A88>$A$8,"",OFFSET(InputPriceData!$G$15,CalculationsAndCharts!$A88+$A$11,IF($C$5,8,0),1,1))) -> 3840630000 | D88: =IF(A88>$B$30,NA(),IF(A88>$A$8,"",OFFSET(InputPriceData!$C$15,CalculationsAndCharts!$A88+$A$11,IF($C$5,8,0),1,1))) -> 3515.47 | E88: =IF(A88>$B$30,NA(),IF(A88>$A$8,"",OFFSET(InputPriceData!$D$15,CalculationsAndCharts!$A88+$A$11,IF($C$5,8,0),1,1))) -> 3527.94 | F88: =IF(A88>$B$30,NA(),IF(A88>$A$8,"",OFFSET(InputPriceData!$E$15,CalculationsAndCharts!$A88+$A$11,IF($C$5,8,0),1,1))) -> 3480.55 | G88: =IF(A88>$B$30,NA(),IF(A88>$A$8,"",OFFSET(InputPriceData!$F$15,CalculationsAndCharts!$A88+$A$11,IF($C$5,8,0),1,1))) -> 3488.67 | H88: 5.194434292e-14 | I88: 3488.67 | L88: -3.088 | M88: 8.965 | N88: 25.92714286 | O88: 32.695 | P88: 44.64555556 | Q88: 50.968 | R88: 57.75909091 | S88: 65.7125 | T88: 71.20153846 | U88: 79.70214286 | V88: 90.52733333 | W88: 100.60375 | X88: 104.8682353 | Y88: 110.5761111 | Z88: 113.6615789 | AA88: 114.5615 | AB88: 114.0195238 | AC88: 112.8127273 | AD88: 112.4786957 | AE88: 113.94625 | AF88: 115.3676 | AG88: 114.3807692 | AH88: 115.952963 | AI88: 114.0157143 | AJ88: 111.2431034 | AK88: 104.4626667 | AL88: 3455.975 | AM88: 3376.191304 | AN88: 2.363127218 | AX88: 3840630000
A89: 57 | B89: =IF(A89>$B$30,NA(),IF($A89>$A$8,"",OFFSET(InputPriceData!$B$15,$A89+$A$11,0,1,1))) -> 2020-10-13 | C89: =IF(A89>$B$30,NA(),IF($A89>$A$8,"",OFFSET(InputPriceData!$G$15,CalculationsAndCharts!$A89+$A$11,IF($C$5,8,0),1,1))) -> 3605150000 | D89: =IF(A89>$B$30,NA(),IF(A89>$A$8,"",OFFSET(InputPriceData!$C$15,CalculationsAndCharts!$A89+$A$11,IF($C$5,8,0),1,1))) -> 3534.01 | E89: =IF(A89>$B$30,NA(),IF(A89>$A$8,"",OFFSET(InputPriceData!$D$15,CalculationsAndCharts!$A89+$A$11,IF($C$5,8,0),1,1))) -> 3534.01 | F89: =IF(A89>$B$30,NA(),IF(A89>$A$8,"",OFFSET(InputPriceData!$E$15,CalculationsAndCharts!$A89+$A$11,IF($C$5,8,0),1,1))) -> 3500.86 | G89: =IF(A89>$B$30,NA(),IF(A89>$A$8,"",OFFSET(InputPriceData!$F$15,CalculationsAndCharts!$A89+$A$11,IF($C$5,8,0),1,1))) -> 3511.93 | H89: 0.2079116908 | I89: 3511.93 | L89: 34.018 | M89: 53.50833333 | N89: 60.62571429 | O89: 73.48625 | P89: 79.89111111 | Q89: 86.795 | R89: 94.94636364 | S89: 100.395 | T89: 109.0930769 | U89: 120.2535714 | V89: 130.5706667 | W89: 134.6825 | X89: 140.3405882 | Y89: 143.2361111 | Z89: 143.8510526 | AA89: 142.9805 | AB89: 141.4447619 | AC89: 140.8513636 | AD89: 142.1604348 | AE89: 143.4345833 | AF89: 142.216 | AG89: 143.6726923 | AH89: 141.4985185 | AI89: 138.4760714 | AJ89: 131.3248276 | AK89: 126.4566667 | AL89: 3438.44375 | AM89: 3369.769565 | AN89: 2.037948989 | AX89: 3605150000
A90: 58 | B90: =IF(A90>$B$30,NA(),IF($A90>$A$8,"",OFFSET(InputPriceData!$B$15,$A90+$A$11,0,1,1))) -> 2020-10-12 | C90: =IF(A90>$B$30,NA(),IF($A90>$A$8,"",OFFSET(InputPriceData!$G$15,CalculationsAndCharts!$A90+$A$11,IF($C$5,8,0),1,1))) -> 3428970000 | D90: =IF(A90>$B$30,NA(),IF(A90>$A$8,"",OFFSET(InputPriceData!$C$15,CalculationsAndCharts!$A90+$A$11,IF($C$5,8,0),1,1))) -> 3500.02 | E90: =IF(A90>$B$30,NA(),IF(A90>$A$8,"",OFFSET(InputPriceData!$D$15,CalculationsAndCharts!$A90+$A$11,IF($C$5,8,0),1,1))) -> 3549.85 | F90: =IF(A90>$B$30,NA(),IF(A90>$A$8,"",OFFSET(InputPriceData!$E$15,CalculationsAndCharts!$A90+$A$11,IF($C$5,8,0),1,1))) -> 3499.61 | G90: =IF(A90>$B$30,NA(),IF(A90>$A$8,"",OFFSET(InputPriceData!$F$15,CalculationsAndCharts!$A90+$A$11,IF($C$5,8,0),1,1))) -> 3534.22 | H90: 0.4067366431 | I90: 3534.22 | L90: 86.5 | M90: 93.02 | N90: 106.2742857 | O90: 112.1675 | P90: 118.7288889 | Q90: 126.731 | R90: 131.8118182 | S90: 140.4741667 | T90: 151.7938462 | U90: 162.1871429 | V90: 165.9513333 | W90: 171.401875 | X90: 173.9517647 | Y90: 174.1327778 | Z90: 172.7957895 | AA90: =IF($A90<=AA$30,$I90-AVERAGE(OFFSET($I90,0,0,AA$31,1)),NA()) -> 170.807 | AB90: 169.8485714 | AC90: 170.9122727 | AD90: 171.9608696 | AE90: 170.4316667 | AF90: 171.7096 | AG90: 169.2307692 | AH90: 165.8948148 | AI90: 158.305 | AJ90: 153.1072414 | AK90: 149.134 | AL90: 3422.0525 | AM90: 3362.25913 | AN90: 1.778368866 | AW90: 3428970000
A91: 59 | B91: =IF(A91>$B$30,NA(),IF($A91>$A$8,"",OFFSET(InputPriceData!$B$15,$A91+$A$11,0,1,1))) -> 2020-10-09 | C91: =IF(A91>$B$30,NA(),IF($A91>$A$8,"",OFFSET(InputPriceData!$G$15,CalculationsAndCharts!$A91+$A$11,IF($C$5,8,0),1,1))) -> 3939060000 | D91: =IF(A91>$B$30,NA(),IF(A91>$A$8,"",OFFSET(InputPriceData!$C$15,CalculationsAndCharts!$A91+$A$11,IF($C$5,8,0),1,1))) -> 3459.67 | E91: =IF(A91>$B$30,NA(),IF(A91>$A$8,"",OFFSET(InputPriceData!$D$15,CalculationsAndCharts!$A91+$A$11,IF($C$5,8,0),1,1))) -> 3482.34 | F91: =IF(A91>$B$30,NA(),IF(A91>$A$8,"",OFFSET(InputPriceData!$E$15,CalculationsAndCharts!$A91+$A$11,IF($C$5,8,0),1,1))) -> 3458.07 | G91: =IF(A91>$B$30,NA(),IF(A91>$A$8,"",OFFSET(InputPriceData!$F$15,CalculationsAndCharts!$A91+$A$11,IF($C$5,8,0),1,1))) -> 3477.14 | H91: 0.5877852523 | I91: 3477.14 | L91: =IF($A91<=L$30,$I91-AVERAGE(OFFSET($I91,0,0,L$31,1)),NA()) -> 54.544 | M91: 66.90666667 | N91: 71.11142857 | O91: 76.49 | P91: 83.73222222 | Q91: 87.913 | R91: 96.16454545 | S91: 107.3633333 | T91: 117.5830769 | U91: 120.725 | V91: 125.7486667 | W91: 127.74375 | X91: 127.2958824 | Y91: 125.3155556 | Z91: 122.7168421 | AA91: 121.261 | AB91: 121.9709524 | AC91: 122.6972727 | AD91: 120.7617391 | AE91: 121.7841667 | AF91: 118.92 | AG91: 115.1953846 | AH91: 107.0881481 | AI91: 101.4953571 | AJ91: 97.19655172 | AK91: 92.92766667 | AL91: 3400.65 | AM91: 3356.378261 | AN91: 1.319033067 | AW91: 3939060000
A92: 60 | B92: =IF(A92>$B$30,NA(),IF($A92>$A$8,"",OFFSET(InputPriceData!$B$15,$A92+$A$11,0,1,1))) -> 2020-10-08 | C92: =IF(A92>$B$30,NA(),IF($A92>$A$8,"",OFFSET(InputPriceData!$G$15,CalculationsAndCharts!$A92+$A$11,IF($C$5,8,0),1,1))) -> 3856190000 | D92: =IF(A92>$B$30,NA(),IF(A92>$A$8,"",OFFSET(InputPriceData!$C$15,CalculationsAndCharts!$A92+$A$11,IF($C$5,8,0),1,1))) -> 3434.28 | E92: =IF(A92>$B$30,NA(),IF(A92>$A$8,"",OFFSET(InputPriceData!$D$15,CalculationsAndCharts!$A92+$A$11,IF($C$5,8,0),1,1))) -> 3447.28 | F92: =IF(A92>$B$30,NA(),IF(A92>$A$8,"",OFFSET(InputPriceData!$E$15,CalculationsAndCharts!$A92+$A$11,IF($C$5,8,0),1,1))) -> 3428.15 | G92: =IF(A92>$B$30,NA(),IF(A92>$A$8,"",OFFSET(InputPriceData!$F$15,CalculationsAndCharts!$A92+$A$11,IF($C$5,8,0),1,1))) -> 3446.83 | H92: 0.7431448255 | I92: 3446.83 | L92: 49.978 | M92: 52.65333333 | N92: 57.10714286 | O92: 63.88875 | P92: 67.37111111 | Q92: 75.471 | R92: 86.81363636 | S92: 97.07166667 | T92: 99.70153846 | U92: 104.4207143 | V92: 105.95 | W92: 104.941875 | X92: 102.3770588 | Y92: 99.22444444 | Z92: 97.33315789 | AA92: 97.7595 | AB92: 98.23 | AC92: 95.94090909 | AD92: 96.76913043 | AE92: 93.565 | AF92: 89.4932 | AG92: 80.89692308 | AH92: 74.94444444 | AI92: 70.35785714 | AJ92: 65.82206897 | AK92: 62.37066667 | AL92: 3382.94125 | AM92: 3350.06087 | AN92: 0.98148606 | AW92: 3856190000
A93: 61 | B93: =IF(A93>$B$30,NA(),IF($A93>$A$8,"",OFFSET(InputPriceData!$B$15,$A93+$A$11,0,1,1))) -> 2020-10-07 | C93: =IF(A93>$B$30,NA(),IF($A93>$A$8,"",OFFSET(InputPriceData!$G$15,CalculationsAndCharts!$A93+$A$11,IF($C$5,8,0),1,1))) -> 3807830000 | D93: =IF(A93>$B$30,NA(),IF(A93>$A$8,"",OFFSET(InputPriceData!$C$15,CalculationsAndCharts!$A93+$A$11,IF($C$5,8,0),1,1))) -> 3384.56 | E93: =IF(A93>$B$30,NA(),IF(A93>$A$8,"",OFFSET(InputPriceData!$D$15,CalculationsAndCharts!$A93+$A$11,IF($C$5,8,0),1,1))) -> 3426.26 | F93: =IF(A93>$B$30,NA(),IF(A93>$A$8,"",OFFSET(InputPriceData!$E$15,CalculationsAndCharts!$A93+$A$11,IF($C$5,8,0),1,1))) -> 3384.56 | G93: =IF(A93>$B$30,NA(),IF(A93>$A$8,"",OFFSET(InputPriceData!$F$15,CalculationsAndCharts!$A93+$A$11,IF($C$5,8,0),1,1))) -> 3419.44 | H93: 0.8660254038 | I93: 3419.44 | L93: 35.794 | M93: 39.235 | N93: 45.62571429 | O93: 48.4025 | P93: 56.46666667 | Q93: 68.105 | R93: 78.50636364 | S93: 80.62 | T93: 85.06307692 | U93: 86.12785714 | V93: 84.548 | W93: 81.385625 | X93: 77.67117647 | Y93: 75.35055556 | Z93: 75.51473684 | AA93: 75.7515 | AB93: 73.11952381 | AC93: 73.77772727 | AD93: 70.24304348 | AE93: 65.83208333 | AF93: 56.7428 | AG93: 50.43692308 | AH93: 45.5737037 | AI93: 40.78285714 | AJ93: 37.13137931 | AK93: 33.91733333 | AL93: 3371.0375 | AM93: 3349.196957 | AN93: 0.6521128426 | AW93: 3807830000
A94: 62 | B94: =IF(A94>$B$30,NA(),IF($A94>$A$8,"",OFFSET(InputPriceData!$B$15,$A94+$A$11,0,1,1))) -> 2020-10-06 | C94: =IF(A94>$B$30,NA(),IF($A94>$A$8,"",OFFSET(InputPriceData!$G$15,CalculationsAndCharts!$A94+$A$11,IF($C$5,8,0),1,1))) -> 4443380000 | D94: =IF(A94>$B$30,NA(),IF(A94>$A$8,"",OFFSET(InputPriceData!$C$15,CalculationsAndCharts!$A94+$A$11,IF($C$5,8,0),1,1))) -> 3408.74 | E94: =IF(A94>$B$30,NA(),IF(A94>$A$8,"",OFFSET(InputPriceData!$D$15,CalculationsAndCharts!$A94+$A$11,IF($C$5,8,0),1,1))) -> 3431.56 | F94: =IF(A94>$B$30,NA(),IF(A94>$A$8,"",OFFSET(InputPriceData!$E$15,CalculationsAndCharts!$A94+$A$11,IF($C$5,8,0),1,1))) -> 3354.54 | G94: =IF(A94>$B$30,NA(),IF(A94>$A$8,"",OFFSET(InputPriceData!$F$15,CalculationsAndCharts!$A94+$A$11,IF($C$5,8,0),1,1))) -> 3360.97 | H94: 0.9510565163 | I94: 3360.97 | L94: -11.388 | M94: -5.24 | N94: -3.152857143 | O94: 5.055 | P94: 17.20222222 | Q94: 27.887 | R94: 29.47909091 | S94: 33.68166667 | T94: 34.28307692 | U94: 32.11714286 | V94: 28.34133333 | W94: 24.055625 | X94: 21.31294118 | Y94: 21.24 | Z94: 21.26842105 | AA94: 18.3055 | AB94: 18.82095238 | AC94: 14.96590909 | AD94: 10.22434783 | AE94: 0.6370833333 | AF94: -6.0156 | AG94: -11.14346154 | AH94: -16.17666667 | AI94: -20.0125 | AJ94: -23.38310345 | AK94: -25.35866667 | AL94: 3355.915 | AM94: 3350.745652 | AN94: 0.1542745515 | AX94: 4443380000
A95: 63 | B95: =IF(A95>$B$30,NA(),IF($A95>$A$8,"",OFFSET(InputPriceData!$B$15,$A95+$A$11,0,1,1))) -> 2020-10-05 | C95: =IF(A95>$B$30,NA(),IF($A95>$A$8,"",OFFSET(InputPriceData!$G$15,CalculationsAndCharts!$A95+$A$11,IF($C$5,8,0),1,1))) -> 3686920000 | D95: =IF(A95>$B$30,NA(),IF(A95>$A$8,"",OFFSET(InputPriceData!$C$15,CalculationsAndCharts!$A95+$A$11,IF($C$5,8,0),1,1))) -> 3367.27 | E95: =IF(A95>$B$30,NA(),IF(A95>$A$8,"",OFFSET(InputPriceData!$D$15,CalculationsAndCharts!$A95+$A$11,IF($C$5,8,0),1,1))) -> 3409.57 | F95: =IF(A95>$B$30,NA(),IF(A95>$A$8,"",OFFSET(InputPriceData!$E$15,CalculationsAndCharts!$A95+$A$11,IF($C$5,8,0),1,1))) -> 3367.27 | G95: =IF(A95>$B$30,NA(),IF(A95>$A$8,"",OFFSET(InputPriceData!$F$15,CalculationsAndCharts!$A95+$A$11,IF($C$5,8,0),1,1))) -> 3408.6 | H95: 0.9945218954 | I95: 3408.6 | L95: 41.342 | M95: 43.95166667 | N95: 53.40714286 | O95: 66.9825 | P95: 78.61555556 | Q95: 80.057 | R95: 84.37363636 | S95: 84.77 | T95: 82.21769231 | U95: 77.99571429 | V95: 73.28933333 | W95: 70.275 | X95: 70.11941176 | Y95: 70.08 | Z95: 66.89894737 | AA95: 67.392 | AB95: 63.30857143 | AC95: 58.31909091 | AD95: 48.29478261 | AE95: 41.36375 | AF95: 36.0408 | AG95: 30.83115385 | AH95: 26.8762963 | AI95: 23.41178571 | AJ95: 21.39689655 | AK95: 19.92766667 | AL95: 3341.6175 | AM95: 3360.305217 | AN95: -0.5561315471 | AW95: 3686920000
A96: 64 | B96: =IF(A96>$B$30,NA(),IF($A96>$A$8,"",OFFSET(InputPriceData!$B$15,$A96+$A$11,0,1,1))) -> 2020-10-02 | C96: =IF(A96>$B$30,NA(),IF($A96>$A$8,"",OFFSET(InputPriceData!$G$15,CalculationsAndCharts!$A96+$A$11,IF($C$5,8,0),1,1))) -> 3961550000 | D96: =IF(A96>$B$30,NA(),IF(A96>$A$8,"",OFFSET(InputPriceData!$C$15,CalculationsAndCharts!$A96+$A$11,IF($C$5,8,0),1,1))) -> 3338.94 | E96: =IF(A96>$B$30,NA(),IF(A96>$A$8,"",OFFSET(InputPriceData!$D$15,CalculationsAndCharts!$A96+$A$11,IF($C$5,8,0),1,1))) -> 3369.1 | F96: =IF(A96>$B$30,NA(),IF(A96>$A$8,"",OFFSET(InputPriceData!$E$15,CalculationsAndCharts!$A96+$A$11,IF($C$5,8,0),1,1))) -> 3323.69 | G96: =IF(A96>$B$30,NA(),IF(A96>$A$8,"",OFFSET(InputPriceData!$F$15,CalculationsAndCharts!$A96+$A$11,IF($C$5,8,0),1,1))) -> 3348.42 | H96: 0.9945218954 | I96: 3348.42 | L96: -7.438 | M96: 2.128333333 | N96: 16.37142857 | O96: 28.2625 | P96: 28.77222222 | Q96: 32.631 | R96: 32.29636364 | S96: 28.88916667 | T96: 23.81538462 | U96: 18.34428571 | V96: 14.78 | W96: 14.321875 | X96: 14.02235294 | Y96: 10.43555556 | Z96: 10.75894737 | AA96: 6.294 | AB96: 0.9161904762 | AC96: -9.69 | AD96: -17.01782609 | AE96: -22.6375 | AF96: -28.1156 | AG96: -32.27 | AH96: -35.90111111 | AI96: -38.01892857 | AJ96: -39.56517241 | AK96: -39.871 | AL96: 3320.1575 | AM96: 3365.437826 | AN96: -1.345451273 | AW96: 3961550000
A97: 65 | B97: =IF(A97>$B$30,NA(),IF($A97>$A$8,"",OFFSET(InputPriceData!$B$15,$A97+$A$11,0,1,1))) -> 2020-10-01 | C97: =IF(A97>$B$30,NA(),IF($A97>$A$8,"",OFFSET(InputPriceData!$G$15,CalculationsAndCharts!$A97+$A$11,IF($C$5,8,0),1,1))) -> 4070530000 | D97: =IF(A97>$B$30,NA(),IF(A97>$A$8,"",OFFSET(InputPriceData!$C$15,CalculationsAndCharts!$A97+$A$11,IF($C$5,8,0),1,1))) -> 3385.87 | E97: =IF(A97>$B$30,NA(),IF(A97>$A$8,"",OFFSET(InputPriceData!$D$15,CalculationsAndCharts!$A97+$A$11,IF($C$5,8,0),1,1))) -> 3397.18 | F97: =IF(A97>$B$30,NA(),IF(A97>$A$8,"",OFFSET(InputPriceData!$E$15,CalculationsAndCharts!$A97+$A$11,IF($C$5,8,0),1,1))) -> 3361.39 | G97: =IF(A97>$B$30,NA(),IF(A97>$A$8,"",OFFSET(InputPriceData!$F$15,CalculationsAndCharts!$A97+$A$11,IF($C$5,8,0),1,1))) -> 3380.8 | H97: =IF(A97<=$H$30,SIN(RADIANS(360*(LogicallyAvailableRows-A97+1)/30)),NA()) -> 0.9510565163 | I97: 3380.8 | L97: 34.934 | M97: 51.48 | N97: 64.68 | O97: 64.74875 | P97: 68.63666667 | Q97: 67.906 | R97: 63.89545455 | S97: 58.18 | T97: 52.13538462 | U97: 48.21571429 | V97: 47.65666667 | W97: 47.27875 | X97: 43.42941176 | Y97: 43.73666667 | Z97: 39.00526316 | AA97: 33.342 | AB97: 22.22857143 | AC97: 14.58863636 | AD97: 8.75826087 | AE97: 3.092916667 | AF97: -1.1808 | AG97: -4.901923077 | AH97: -7.047037037 | AI97: -8.598214286 | AJ97: -8.865862069 | AK97: -8.727333333 | AL97: 3316.05125 | AM97: 3372.041739 | AN97: -1.660432861 | AW97: =IF(G97>=D97,C97,NA()) ->  | AX97: =IF(G97<D97,C97,NA()) -> 4070530000
A98: 66 | B98: =IF(A98>$B$30,NA(),IF($A98>$A$8,"",OFFSET(InputPriceData!$B$15,$A98+$A$11,0,1,1))) -> 2020-09-30 | C98: =IF(A98>$B$30,NA(),IF($A98>$A$8,"",OFFSET(InputPriceData!$G$15,CalculationsAndCharts!$A98+$A$11,IF($C$5,8,0),1,1))) -> 4722530000 | D98: =IF(A98>$B$30,NA(),IF(A98>$A$8,"",OFFSET(InputPriceData!$C$15,CalculationsAndCharts!$A98+$A$11,IF($C$5,8,0),1,1))) -> 3341.21 | E98: =IF(A98>$B$30,NA(),IF(A98>$A$8,"",OFFSET(InputPriceData!$D$15,CalculationsAndCharts!$A98+$A$11,IF($C$5,8,0),1,1))) -> 3393.56 | F98: =IF(A98>$B$30,NA(),IF(A98>$A$8,"",OFFSET(InputPriceData!$E$15,CalculationsAndCharts!$A98+$A$11,IF($C$5,8,0),1,1))) -> 3340.47 | G98: =IF(A98>$B$30,NA(),IF(A98>$A$8,"",OFFSET(InputPriceData!$F$15,CalculationsAndCharts!$A98+$A$11,IF($C$5,8,0),1,1))) -> 3363 | H98: 0.8660254038 | I98: =IF(A98<=$H$30,IF($A$18=1,H98,G98),NA()) -> 3363 | J98: =IF(A98<=$H$30,IF($A$18=1,I98,NA()),NA()) ->  | K98: =IF(A98<=$K$30,IF($A$18=1,(AVERAGE(OFFSET($I98,0,0,5,1))-AVERAGE(OFFSET($I98,0,0,30,1))),NA()),NA()) ->  | L98: 43.976 | M98: 57.66 | N98: 56.19857143 | O98: 59.41625 | P98: 57.65111111 | Q98: 52.485 | R98: 45.66909091 | S98: 38.68 | T98: 34.12461538 | U98: 33.26071429 | V98: 32.63066667 | W98: 28.34375 | X98: 28.50941176 | Y98: 23.37222222 | Z98: 17.29684211 | AA98: 5.54 | AB98: -2.516666667 | AC98: -8.643636364 | AD98: -14.5726087 | AE98: -19.03 | AF98: -22.898 | AG98: -25.11807692 | AH98: -26.71666667 | AI98: -26.9825 | AJ98: -26.82827586 | AK98: -26.329 | AL98: =IF($A98<=AL$30,AVERAGE(OFFSET(G98,0,0,$A$22,1)),NA()) -> 3303.58375 | AM98: =IF($A98<=AM$30,AVERAGE(OFFSET(G98,0,0,$A$23,1)),NA()) -> 3377.572609 | AN98: =IF($A98<=AN$30,100*(AL98-AM98)/AM98,NA()) -> -2.190592691 | AW98: 4722530000
A99: 67 | B99: =IF(A99>$B$30,NA(),IF($A99>$A$8,"",OFFSET(InputPriceData!$B$15,$A99+$A$11,0,1,1))) -> 2020-09-29 | C99: =IF(A99>$B$30,NA(),IF($A99>$A$8,"",OFFSET(InputPriceData!$G$15,CalculationsAndCharts!$A99+$A$11,IF($C$5,8,0),1,1))) -> 3651880000 | D99: =IF(A99>$B$30,NA(),IF(A99>$A$8,"",OFFSET(InputPriceData!$C$15,CalculationsAndCharts!$A99+$A$11,IF($C$5,8,0),1,1))) -> 3350.92 | E99: =IF(A99>$B$30,NA(),IF(A99>$A$8,"",OFFSET(InputPriceData!$D$15,CalculationsAndCharts!$A99+$A$11,IF($C$5,8,0),1,1))) -> 3357.92 | F99: =IF(A99>$B$30,NA(),IF(A99>$A$8,"",OFFSET(InputPriceData!$E$15,CalculationsAndCharts!$A99+$A$11,IF($C$5,8,0),1,1))) -> 3327.54 | G99: =IF(A99>$B$30,NA(),IF(A99>$A$8,"",OFFSET(InputPriceData!$F$15,CalculationsAndCharts!$A99+$A$11,IF($C$5,8,0),1,1))) -> 3335.47 | H99: 0.7431448255 | I99: 3335.47 | L99: 41.662 | M99: 38.035 | N99: 40.37428571 | O99: 37.3275 | P99: 30.78666667 | Q99: 22.706 | R99: 14.66636364 | S99: 9.438333333 | T99: 8.289230769 | U99: 7.431428571 | V99: 2.703333333 | W99: 2.76125 | X99: -2.782941176 | Y99: -9.272222222 | Z99: -21.69842105 | AA99: -30.1725 | AB99: -36.5852381 | AC99: -42.765 | AD99: -47.3873913 | AE99: -51.38208333 | AF99: -53.6528 | AG99: -55.27423077 | AH99: -55.51185185 | AI99: -55.31642857 | AJ99: -54.76689655 | AK99: -54.75166667 | AL99: 3298.1425 | AM99: 3382.857391 | AN99: -2.504240691 | AX99: 3651880000
A100: 68 | B100: =IF(A100>$B$30,NA(),IF($A100>$A$8,"",OFFSET(InputPriceData!$B$15,$A100+$A$11,0,1,1))) -> 2020-09-28 | C100: =IF(A100>$B$30,NA(),IF($A100>$A$8,"",OFFSET(InputPriceData!$G$15,CalculationsAndCharts!$A100+$A$11,IF($C$5,8,0),1,1))) -> 3946060000 | D100: =IF(A100>$B$30,NA(),IF(A100>$A$8,"",OFFSET(InputPriceData!$C$15,CalculationsAndCharts!$A100+$A$11,IF($C$5,8,0),1,1))) -> 3333.9 | E100: =IF(A100>$B$30,NA(),IF(A100>$A$8,"",OFFSET(InputPriceData!$D$15,CalculationsAndCharts!$A100+$A$11,IF($C$5,8,0),1,1))) -> 3360.74 | F100: =IF(A100>$B$30,NA(),IF(A100>$A$8,"",OFFSET(InputPriceData!$E$15,CalculationsAndCharts!$A100+$A$11,IF($C$5,8,0),1,1))) -> 3332.91 | G100: =IF(A100>$B$30,NA(),IF(A100>$A$8,"",OFFSET(InputPriceData!$F$15,CalculationsAndCharts!$A100+$A$11,IF($C$5,8,0),1,1))) -> 3351.6 | H100: 0.5877852523 | I100: 3351.6 | L100: 61.772 | M100: 63.23333333 | N100: 58.79 | O100: 50.765 | P100: 41.35888889 | Q100: 32.263 | R100: 26.42636364 | S100: 25.11 | T100: 24.13307692 | U100: 19.02642857 | V100: 19.07533333 | W100: 13.173125 | X100: 6.312352941 | Y100: -6.773888889 | Z100: -15.63052632 | AA100: -22.2845 | AB100: -28.67142857 | AC100: -33.41136364 | AD100: -37.48608696 | AE100: -39.75833333 | AF100: -41.3552 | AG100: -41.51692308 | AH100: -41.23518519 | AI100: -40.59285714 | AJ100: -40.50965517 | AK100: -40.17233333 | AL100: 3300.835 | AM100: 3389.086087 | AN100: -2.60397891 | AW100: 3946060000
A101: 69 | B101: =IF(A101>$B$30,NA(),IF($A101>$A$8,"",OFFSET(InputPriceData!$B$15,$A101+$A$11,0,1,1))) -> 2020-09-25 | C101: =IF(A101>$B$30,NA(),IF($A101>$A$8,"",OFFSET(InputPriceData!$G$15,CalculationsAndCharts!$A101+$A$11,IF($C$5,8,0),1,1))) -> 3792220000 | D101: =IF(A101>$B$30,NA(),IF(A101>$A$8,"",OFFSET(InputPriceData!$C$15,CalculationsAndCharts!$A101+$A$11,IF($C$5,8,0),1,1))) -> 3236.66 | E101: =IF(A101>$B$30,NA(),IF(A101>$A$8,"",OFFSET(InputPriceData!$D$15,CalculationsAndCharts!$A101+$A$11,IF($C$5,8,0),1,1))) -> 3306.88 | F101: =IF(A101>$B$30,NA(),IF(A101>$A$8,"",OFFSET(InputPriceData!$E$15,CalculationsAndCharts!$A101+$A$11,IF($C$5,8,0),1,1))) -> 3228.44 | G101: =IF(A101>$B$30,NA(),IF(A101>$A$8,"",OFFSET(InputPriceData!$F$15,CalculationsAndCharts!$A101+$A$11,IF($C$5,8,0),1,1))) -> 3298.46 | H101: 0.4067366431 | I101: 3298.46 | L101: 22.74 | M101: 15.44833333 | N101: 4.877142857 | O101: -6.61125 | P101: -17.29222222 | Q101: -24.071 | R101: -25.74727273 | S101: -26.99583333 | T101: -32.65 | U101: -32.70214286 | V101: -39.08866667 | W101: -46.433125 | X101: -60.31235294 | Y101: -69.63888889 | Z101: -76.59736842 | AA101: -83.245 | AB101: -88.14238095 | AC101: -92.33 | AD101: -94.62695652 | AE101: -96.21833333 | AF101: -96.3176 | AG101: -95.96115385 | AH101: -95.2362963 | AI101: -95.09642857 | AJ101: -94.69758621 | AK101: -94.02066667 | AL101: 3305.07125 | AM101: 3393.086957 | AN101: -2.593971438 | AW101: 3792220000
A102: 70 | B102: =IF(A102>$B$30,NA(),IF($A102>$A$8,"",OFFSET(InputPriceData!$B$15,$A102+$A$11,0,1,1))) -> 2020-09-24 | C102: =IF(A102>$B$30,NA(),IF($A102>$A$8,"",OFFSET(InputPriceData!$G$15,CalculationsAndCharts!$A102+$A$11,IF($C$5,8,0),1,1))) -> 4599470000 | D102: =IF(A102>$B$30,NA(),IF(A102>$A$8,"",OFFSET(InputPriceData!$C$15,CalculationsAndCharts!$A102+$A$11,IF($C$5,8,0),1,1))) -> 3226.14 | E102: =IF(A102>$B$30,NA(),IF(A102>$A$8,"",OFFSET(InputPriceData!$D$15,CalculationsAndCharts!$A102+$A$11,IF($C$5,8,0),1,1))) -> 3278.7 | F102: =IF(A102>$B$30,NA(),IF(A102>$A$8,"",OFFSET(InputPriceData!$E$15,CalculationsAndCharts!$A102+$A$11,IF($C$5,8,0),1,1))) -> 3209.45 | G102: =IF(A102>$B$30,NA(),IF(A102>$A$8,"",OFFSET(InputPriceData!$F$15,CalculationsAndCharts!$A102+$A$11,IF($C$5,8,0),1,1))) -> 3246.59 | H102: 0.2079116908 | I102: 3246.59 | L102: -33.332 | M102: -46.18 | N102: -59.42571429 | O102: -71.32375 | P102: -78.61555556 | Q102: -80.192 | R102: -81.32 | S102: -87.24083333 | T102: -87.08769231 | U102: -93.75071429 | V102: -101.3986667 | W102: -115.951875 | X102: -125.6052941 | Y102: -132.7227778 | Z102: -139.4963158 | AA102: -144.4195 | AB102: -148.5966667 | AC102: -150.7981818 | AD102: -152.2717391 | AE102: -152.2008333 | AF102: -151.6696 | AG102: -150.7692308 | AH102: -150.4885185 | AI102: -149.9496429 | AJ102: -149.1327586 | AK102: -148.3896667 | AL102: 3317.91375 | AM102: 3398.861739 | AN102: -2.381620535 | AW102: 4599470000
A103: 71 | B103: =IF(A103>$B$30,NA(),IF($A103>$A$8,"",OFFSET(InputPriceData!$B$15,$A103+$A$11,0,1,1))) -> 2020-09-23 | C103: =IF(A103>$B$30,NA(),IF($A103>$A$8,"",OFFSET(InputPriceData!$G$15,CalculationsAndCharts!$A103+$A$11,IF($C$5,8,0),1,1))) -> 4364500000 | D103: =IF(A103>$B$30,NA(),IF(A103>$A$8,"",OFFSET(InputPriceData!$C$15,CalculationsAndCharts!$A103+$A$11,IF($C$5,8,0),1,1))) -> 3320.11 | E103: =IF(A103>$B$30,NA(),IF(A103>$A$8,"",OFFSET(InputPriceData!$D$15,CalculationsAndCharts!$A103+$A$11,IF($C$5,8,0),1,1))) -> 3323.35 | F103: =IF(A103>$B$30,NA(),IF(A103>$A$8,"",OFFSET(InputPriceData!$E$15,CalculationsAndCharts!$A103+$A$11,IF($C$5,8,0),1,1))) -> 3232.57 | G103: =IF(A103>$B$30,NA(),IF(A103>$A$8,"",OFFSET(InputPriceData!$F$15,CalculationsAndCharts!$A103+$A$11,IF($C$5,8,0),1,1))) -> 3236.92 | H103: 1.567973182e-14 | I103: 3236.92 | L103: -65.086 | M103: -79 | N103: -91.18285714 | O103: -98.1125 | P103: -98.77222222 | Q103: -99.122 | R103: -104.8418182 | S103: -104.015 | T103: -110.6323077 | U103: -118.3114286 | V103: -133.352 | W103: -143.125625 | X103: -150.2 | Y103: -156.9161111 | Z103: -161.6905263 | AA103: -165.6965 | AB103: -167.6490476 | AC103: -168.8631818 | AD103: -168.4882609 | AE103: -167.6591667 | AF103: -166.47 | AG103: -165.9465385 | AH103: -165.1733333 | AI103: -164.1289286 | AJ103: -163.1765517 | AK103: -162.5183333 | AL103: 3335.0325 | AM103: 3405.408261 | AN103: -2.06658807 | AX103: 4364500000
A104: 72 | B104: =IF(A104>$B$30,NA(),IF($A104>$A$8,"",OFFSET(InputPriceData!$B$15,$A104+$A$11,0,1,1))) -> 2020-09-22 | C104: =IF(A104>$B$30,NA(),IF($A104>$A$8,"",OFFSET(InputPriceData!$G$15,CalculationsAndCharts!$A104+$A$11,IF($C$5,8,0),1,1))) -> 3963300000 | D104: =IF(A104>$B$30,NA(),IF(A104>$A$8,"",OFFSET(InputPriceData!$C$15,CalculationsAndCharts!$A104+$A$11,IF($C$5,8,0),1,1))) -> 3295.75 | E104: =IF(A104>$B$30,NA(),IF(A104>$A$8,"",OFFSET(InputPriceData!$D$15,CalculationsAndCharts!$A104+$A$11,IF($C$5,8,0),1,1))) -> 3320.31 | F104: =IF(A104>$B$30,NA(),IF(A104>$A$8,"",OFFSET(InputPriceData!$E$15,CalculationsAndCharts!$A104+$A$11,IF($C$5,8,0),1,1))) -> 3270.95 | G104: =IF(A104>$B$30,NA(),IF(A104>$A$8,"",OFFSET(InputPriceData!$F$15,CalculationsAndCharts!$A104+$A$11,IF($C$5,8,0),1,1))) -> 3315.57 | H104: -0.2079116908 | I104: 3315.57 | L104: -16.15 | M104: -27.73 | N104: -33.47857143 | O104: -32.46875 | P104: -31.48555556 | Q104: -36.676 | R104: -34.82090909 | S104: -41.20166667 | T104: -48.76230769 | U104: -64.22714286 | V104: -74.01733333 | W104: -80.9375 | X104: -87.49647059 | Y104: -92.02333333 | Z104: -95.76736842 | AA104: -97.3815 | AB104: -98.25428571 | AC104: -97.49681818 | AD104: -96.29869565 | AE104: -94.75625 | AF104: -93.9344 | AG104: -92.87615385 | AH104: -91.55777778 | AI104: -90.35428571 | AJ104: -89.47241379 | AK104: -87.094 | AL104: 3348.03875 | AM104: 3411.868696 | AN104: -1.870820695 | AW104: 3963300000
A105: 73 | B105: =IF(A105>$B$30,NA(),IF($A105>$A$8,"",OFFSET(InputPriceData!$B$15,$A105+$A$11,0,1,1))) -> 2020-09-21 | C105: =IF(A105>$B$30,NA(),IF($A105>$A$8,"",OFFSET(InputPriceData!$G$15,CalculationsAndCharts!$A105+$A$11,IF($C$5,8,0),1,1))) -> 4828350000 | D105: =IF(A105>$B$30,NA(),IF(A105>$A$8,"",OFFSET(InputPriceData!$C$15,CalculationsAndCharts!$A105+$A$11,IF($C$5,8,0),1,1))) -> 3285.57 | E105: =IF(A105>$B$30,NA(),IF(A105>$A$8,"",OFFSET(InputPriceData!$D$15,CalculationsAndCharts!$A105+$A$11,IF($C$5,8,0),1,1))) -> 3285.57 | F105: =IF(A105>$B$30,NA(),IF(A105>$A$8,"",OFFSET(InputPriceData!$E$15,CalculationsAndCharts!$A105+$A$11,IF($C$5,8,0),1,1))) -> 3229.1 | G105: =IF(A105>$B$30,NA(),IF(A105>$A$8,"",OFFSET(InputPriceData!$F$15,CalculationsAndCharts!$A105+$A$11,IF($C$5,8,0),1,1))) -> 3281.06 | H105: -0.4067366431 | I105: 3281.06 | L105: -67.786 | M105: -73.56833333 | N105: -71.61714286 | O105: -69.93125 | P105: -75.26111111 | Q105: -72.813 | R105: -79.45727273 | S105: -87.33583333 | T105: -103.6776923 | U105: -113.8142857 | V105: -120.8433333 | W105: -127.475 | X105: -131.9464706 | Y105: -135.5977778 | Z105: -137.0168421 | AA105: -137.677 | AB105: -136.6495238 | AC105: -135.1859091 | AD105: -133.386087 | AE105: -132.3583333 | AF105: -131.1012 | AG105: -129.5892308 | AH105: -128.2107407 | AI105: -127.1778571 | AJ105: -124.6072414 | AK105: -123.1006667 | AL105: 3350.99125 | AM105: 3414.446087 | AN105: -1.858422577 | AX105: 4828350000
A106: 74 | B106: =IF(A106>$B$30,NA(),IF($A106>$A$8,"",OFFSET(InputPriceData!$B$15,$A106+$A$11,0,1,1))) -> 2020-09-18 | C106: =IF(A106>$B$30,NA(),IF($A106>$A$8,"",OFFSET(InputPriceData!$G$15,CalculationsAndCharts!$A106+$A$11,IF($C$5,8,0),1,1))) -> 7068700000 | D106: =IF(A106>$B$30,NA(),IF(A106>$A$8,"",OFFSET(InputPriceData!$C$15,CalculationsAndCharts!$A106+$A$11,IF($C$5,8,0),1,1))) -> 3357.38 | E106: =IF(A106>$B$30,NA(),IF(A106>$A$8,"",OFFSET(InputPriceData!$D$15,CalculationsAndCharts!$A106+$A$11,IF($C$5,8,0),1,1))) -> 3362.27 | F106: =IF(A106>$B$30,NA(),IF(A106>$A$8,"",OFFSET(InputPriceData!$E$15,CalculationsAndCharts!$A106+$A$11,IF($C$5,8,0),1,1))) -> 3292.4 | G106: =IF(A106>$B$30,NA(),IF(A106>$A$8,"",OFFSET(InputPriceData!$F$15,CalculationsAndCharts!$A106+$A$11,IF($C$5,8,0),1,1))) -> 3319.47 | H106: -0.5877852523 | I106: 3319.47 | L106: -49.872 | M106: -45.14333333 | N106: -41.51142857 | O106: -46.25875 | P106: -42.49333333 | Q106: -48.993 | R106: -56.86545455 | S106: -73.9075 | T106: -84.15923077 | U106: -91.065 | V106: -97.56333333 | W106: -101.783125 | X106: -105.1641176 | Y106: -106.2188889 | Z106: -106.5131579 | AA106: =IF($A106<=AA$30,$I106-AVERAGE(OFFSET($I106,0,0,AA$31,1)),NA()) -> -105.072 | AB106: -103.2133333 | AC106: -101.0390909 | AD106: -99.70304348 | AE106: -98.15375 | AF106: -96.3628 | AG106: -94.73192308 | AH106: -93.47814815 | AI106: -90.6475 | AJ106: -88.93551724 | AK106: -87.03133333 | AL106: 3365.72875 | AM106: 3419.173043 | AN106: -1.563076592 | AX106: 7068700000
A107: 75 | B107: =IF(A107>$B$30,NA(),IF($A107>$A$8,"",OFFSET(InputPriceData!$B$15,$A107+$A$11,0,1,1))) -> 2020-09-17 | C107: =IF(A107>$B$30,NA(),IF($A107>$A$8,"",OFFSET(InputPriceData!$G$15,CalculationsAndCharts!$A107+$A$11,IF($C$5,8,0),1,1))) -> 4371940000 | D107: =IF(A107>$B$30,NA(),IF(A107>$A$8,"",OFFSET(InputPriceData!$C$15,CalculationsAndCharts!$A107+$A$11,IF($C$5,8,0),1,1))) -> 3346.86 | E107: =IF(A107>$B$30,NA(),IF(A107>$A$8,"",OFFSET(InputPriceData!$D$15,CalculationsAndCharts!$A107+$A$11,IF($C$5,8,0),1,1))) -> 3375.17 | F107: =IF(A107>$B$30,NA(),IF(A107>$A$8,"",OFFSET(InputPriceData!$E$15,CalculationsAndCharts!$A107+$A$11,IF($C$5,8,0),1,1))) -> 3328.82 | G107: =IF(A107>$B$30,NA(),IF(A107>$A$8,"",OFFSET(InputPriceData!$F$15,CalculationsAndCharts!$A107+$A$11,IF($C$5,8,0),1,1))) -> 3357.01 | H107: -0.7431448255 | I107: 3357.01 | L107: =IF($A107<=L$30,$I107-AVERAGE(OFFSET($I107,0,0,L$31,1)),NA()) -> -16.632 | M107: -10.89 | N107: -15.32714286 | O107: -10.265 | P107: -16.89666667 | Q107: -25.012 | R107: -43.08636364 | S107: -53.6325 | T107: -60.53 | U107: -66.99214286 | V107: -71.02866667 | W107: -74.196875 | X107: -74.92705882 | Y107: -74.89055556 | Z107: -73.06210526 | AA107: -70.834 | AB107: -68.31047619 | AC107: -66.695 | AD107: -64.88130435 | AE107: -62.83791667 | AF107: -60.9812 | AG107: -59.53346154 | AH107: -56.46481481 | AI107: -54.57178571 | AJ107: -52.49241379 | AK107: -50.481 | AL107: 3367.275 | AM107: 3421.891304 | AN107: -1.596085308 | AW107: 4371940000
A108: 76 | B108: =IF(A108>$B$30,NA(),IF($A108>$A$8,"",OFFSET(InputPriceData!$B$15,$A108+$A$11,0,1,1))) -> 2020-09-16 | C108: =IF(A108>$B$30,NA(),IF($A108>$A$8,"",OFFSET(InputPriceData!$G$15,CalculationsAndCharts!$A108+$A$11,IF($C$5,8,0),1,1))) -> 4710030000 | D108: =IF(A108>$B$30,NA(),IF(A108>$A$8,"",OFFSET(InputPriceData!$C$15,CalculationsAndCharts!$A108+$A$11,IF($C$5,8,0),1,1))) -> 3411.23 | E108: =IF(A108>$B$30,NA(),IF(A108>$A$8,"",OFFSET(InputPriceData!$D$15,CalculationsAndCharts!$A108+$A$11,IF($C$5,8,0),1,1))) -> 3428.92 | F108: =IF(A108>$B$30,NA(),IF(A108>$A$8,"",OFFSET(InputPriceData!$E$15,CalculationsAndCharts!$A108+$A$11,IF($C$5,8,0),1,1))) -> 3384.45 | G108: =IF(A108>$B$30,NA(),IF(A108>$A$8,"",OFFSET(InputPriceData!$F$15,CalculationsAndCharts!$A108+$A$11,IF($C$5,8,0),1,1))) -> 3385.49 | H108: -0.8660254038 | I108: 3385.49 | L108: 15.412 | M108: 10.59833333 | N108: 16.74857143 | O108: 9.47125 | P108: 0.6888888889 | Q108: -18.915 | R108: -30.02818182 | S108: -37.09416667 | T108: -43.66538462 | U108: -47.62214286 | V108: -50.66333333 | W108: -51.13 | X108: -50.81588235 | Y108: -48.64111111 | Z108: -46.08210526 | AA108: -43.246 | AB108: -41.39095238 | AC108: -39.35045455 | AD108: -37.09 | AE108: -35.04208333 | AF108: -33.4348 | AG108: -30.15653846 | AH108: -28.11296296 | AI108: -25.88714286 | AJ108: -23.74172414 | AK108: -21.02633333 | AL108: 3376.01875 | AM108: 3422.58 | AN108: -1.360413781 | AX108: 4710030000
A109: 77 | B109: =IF(A109>$B$30,NA(),IF($A109>$A$8,"",OFFSET(InputPriceData!$B$15,$A109+$A$11,0,1,1))) -> 2020-09-15 | C109: =IF(A109>$B$30,NA(),IF($A109>$A$8,"",OFFSET(InputPriceData!$G$15,CalculationsAndCharts!$A109+$A$11,IF($C$5,8,0),1,1))) -> 4051460000 | D109: =IF(A109>$B$30,NA(),IF(A109>$A$8,"",OFFSET(InputPriceData!$C$15,CalculationsAndCharts!$A109+$A$11,IF($C$5,8,0),1,1))) -> 3407.73 | E109: =IF(A109>$B$30,NA(),IF(A109>$A$8,"",OFFSET(InputPriceData!$D$15,CalculationsAndCharts!$A109+$A$11,IF($C$5,8,0),1,1))) -> 3419.48 | F109: =IF(A109>$B$30,NA(),IF(A109>$A$8,"",OFFSET(InputPriceData!$E$15,CalculationsAndCharts!$A109+$A$11,IF($C$5,8,0),1,1))) -> 3389.25 | G109: =IF(A109>$B$30,NA(),IF(A109>$A$8,"",OFFSET(InputPriceData!$F$15,CalculationsAndCharts!$A109+$A$11,IF($C$5,8,0),1,1))) -> 3401.2 | H109: -0.9510565163 | I109: 3401.2 | L109: 28.428 | M109: 35.25 | N109: 26.53428571 | O109: 16.485 | P109: -5.306666667 | Q109: -17.321 | R109: -24.75636364 | S109: -31.59416667 | T109: -35.57538462 | U109: -38.57214286 | V109: -38.82866667 | W109: -38.281875 | X109: -35.79235294 | Y109: -32.93222222 | Z109: -29.81210526 | AA109: -27.7505 | AB109: -25.51428571 | AC109: -23.06590909 | AD109: -20.85565217 | AE109: -19.11791667 | AF109: -15.6528 | AG109: -13.48423077 | AH109: -11.13592593 | AI109: -8.879642857 | AJ109: -6.04137931 | AK109: -2.683666667 | AL109: 3384.715 | AM109: 3422.055652 | AN109: -1.091176064 | AX109: 4051460000
A110: 78 | B110: =IF(A110>$B$30,NA(),IF($A110>$A$8,"",OFFSET(InputPriceData!$B$15,$A110+$A$11,0,1,1))) -> 2020-09-14 | C110: =IF(A110>$B$30,NA(),IF($A110>$A$8,"",OFFSET(InputPriceData!$G$15,CalculationsAndCharts!$A110+$A$11,IF($C$5,8,0),1,1))) -> 3832130000 | D110: =IF(A110>$B$30,NA(),IF(A110>$A$8,"",OFFSET(InputPriceData!$C$15,CalculationsAndCharts!$A110+$A$11,IF($C$5,8,0),1,1))) -> 3363.56 | E110: =IF(A110>$B$30,NA(),IF(A110>$A$8,"",OFFSET(InputPriceData!$D$15,CalculationsAndCharts!$A110+$A$11,IF($C$5,8,0),1,1))) -> 3402.93 | F110: =IF(A110>$B$30,NA(),IF(A110>$A$8,"",OFFSET(InputPriceData!$E$15,CalculationsAndCharts!$A110+$A$11,IF($C$5,8,0),1,1))) -> 3363.56 | G110: =IF(A110>$B$30,NA(),IF(A110>$A$8,"",OFFSET(InputPriceData!$F$15,CalculationsAndCharts!$A110+$A$11,IF($C$5,8,0),1,1))) -> 3383.54 | H110: -0.9945218954 | I110: 3383.54 | L110: 24.64 | M110: 13.29666667 | N110: 1.18 | O110: -23.63 | P110: -36.90555556 | Q110: -44.892 | R110: -52.12636364 | S110: -56.2 | T110: -59.19923077 | U110: -59.26214286 | V110: -58.494 | W110: -55.689375 | X110: -52.52941176 | Y110: -49.12833333 | Z110: -46.87105263 | AA110: -44.45 | AB110: -41.82428571 | AC110: -39.46363636 | AD110: -37.60913043 | AE110: -33.965 | AF110: -31.6836 | AG110: -29.22423077 | AH110: -26.86851852 | AI110: -23.91714286 | AJ110: -20.4362069 | AK110: -16.79066667 | AL110: 3407.17 | AM110: 3421.14913 | AN110: -0.40860921 | AW110: 3832130000
A111: 79 | B111: =IF(A111>$B$30,NA(),IF($A111>$A$8,"",OFFSET(InputPriceData!$B$15,$A111+$A$11,0,1,1))) -> 2020-09-11 | C111: =IF(A111>$B$30,NA(),IF($A111>$A$8,"",OFFSET(InputPriceData!$G$15,CalculationsAndCharts!$A111+$A$11,IF($C$5,8,0),1,1))) -> 3704450000 | D111: =IF(A111>$B$30,NA(),IF(A111>$A$8,"",OFFSET(InputPriceData!$C$15,CalculationsAndCharts!$A111+$A$11,IF($C$5,8,0),1,1))) -> 3352.7 | E111: =IF(A111>$B$30,NA(),IF(A111>$A$8,"",OFFSET(InputPriceData!$D$15,CalculationsAndCharts!$A111+$A$11,IF($C$5,8,0),1,1))) -> 3368.95 | F111: =IF(A111>$B$30,NA(),IF(A111>$A$8,"",OFFSET(InputPriceData!$E$15,CalculationsAndCharts!$A111+$A$11,IF($C$5,8,0),1,1))) -> 3310.47 | G111: =IF(A111>$B$30,NA(),IF(A111>$A$8,"",OFFSET(InputPriceData!$F$15,CalculationsAndCharts!$A111+$A$11,IF($C$5,8,0),1,1))) -> 3340.97 | H111: -0.9945218954 | I111: 3340.97 | L111: -26.614 | M111: -41.19333333 | N111: -69.57571429 | O111: -84.08875 | P111: -92.45 | Q111: -99.909 | R111: -103.8790909 | S111: -106.7025 | T111: -106.3907692 | U111: -105.2421429 | V111: -101.972 | W111: -98.3825 | X111: -94.58823529 | Y111: -92.045 | Z111: -89.35947368 | AA111: -86.4855 | AB111: -83.91285714 | AC111: -81.88863636 | AD111: -78.01173913 | AE111: -75.57375 | AF111: -72.9632 | AG111: -70.47192308 | AH111: -67.37296296 | AI111: -63.73607143 | AJ111: -59.93965517 | AK111: -55.61333333 | AL111: 3425.05875 | AM111: 3418.981739 | AN111: 0.1777432971 | AX111: 3704450000
A112: 80 | B112: =IF(A112>$B$30,NA(),IF($A112>$A$8,"",OFFSET(InputPriceData!$B$15,$A112+$A$11,0,1,1))) -> 2020-09-10 | C112: =IF(A112>$B$30,NA(),IF($A112>$A$8,"",OFFSET(InputPriceData!$G$15,CalculationsAndCharts!$A112+$A$11,IF($C$5,8,0),1,1))) -> 4192250000 | D112: =IF(A112>$B$30,NA(),IF(A112>$A$8,"",OFFSET(InputPriceData!$C$15,CalculationsAndCharts!$A112+$A$11,IF($C$5,8,0),1,1))) -> 3412.56 | E112: =IF(A112>$B$30,NA(),IF(A112>$A$8,"",OFFSET(InputPriceData!$D$15,CalculationsAndCharts!$A112+$A$11,IF($C$5,8,0),1,1))) -> 3425.55 | F112: =IF(A112>$B$30,NA(),IF(A112>$A$8,"",OFFSET(InputPriceData!$E$15,CalculationsAndCharts!$A112+$A$11,IF($C$5,8,0),1,1))) -> 3329.25 | G112: =IF(A112>$B$30,NA(),IF(A112>$A$8,"",OFFSET(InputPriceData!$F$15,CalculationsAndCharts!$A112+$A$11,IF($C$5,8,0),1,1))) -> 3339.19 | H112: -0.9510565163 | I112: 3339.19 | L112: -51.212 | M112: -82.95166667 | N112: -97.88142857 | O112: -105.78625 | P112: -112.79 | Q112: -116.047 | R112: -118.1827273 | S112: -117.0366667 | T112: -115.1176923 | U112: -111.0357143 | V112: -106.7213333 | W112: -102.28 | X112: -99.23941176 | Y112: -96.10388889 | Z112: -92.81736842 | AA112: -89.8885 | AB112: -87.56809524 | AC112: -83.33772727 | AD112: -80.63956522 | AE112: -77.78333333 | AF112: -75.0708 | AG112: -71.74423077 | AH112: -67.87666667 | AI112: -63.86035714 | AJ112: -59.31103448 | AK112: -54.235 | AL112: 3444.97625 | AM112: 3419.829565 | AN112: 0.7353198252 | AX112: 4192250000
A113: 81 | B113: =IF(A113>$B$30,NA(),IF($A113>$A$8,"",OFFSET(InputPriceData!$B$15,$A113+$A$11,0,1,1))) -> 2020-09-09 | C113: =IF(A113>$B$30,NA(),IF($A113>$A$8,"",OFFSET(InputPriceData!$G$15,CalculationsAndCharts!$A113+$A$11,IF($C$5,8,0),1,1))) -> 3920830000 | D113: =IF(A113>$B$30,NA(),IF(A113>$A$8,"",OFFSET(InputPriceData!$C$15,CalculationsAndCharts!$A113+$A$11,IF($C$5,8,0),1,1))) -> 3369.82 | E113: =IF(A113>$B$30,NA(),IF(A113>$A$8,"",OFFSET(InputPriceData!$D$15,CalculationsAndCharts!$A113+$A$11,IF($C$5,8,0),1,1))) -> 3424.77 | F113: =IF(A113>$B$30,NA(),IF(A113>$A$8,"",OFFSET(InputPriceData!$E$15,CalculationsAndCharts!$A113+$A$11,IF($C$5,8,0),1,1))) -> 3366.84 | G113: =IF(A113>$B$30,NA(),IF(A113>$A$8,"",OFFSET(InputPriceData!$F$15,CalculationsAndCharts!$A113+$A$11,IF($C$5,8,0),1,1))) -> 3398.96 | H113: -0.8660254038 | I113: 3398.96 | L113: -39.772 | M113: -54.425 | N113: -61.12857143 | O113: -67.11875 | P113: -69.17111111 | Q113: -70.231 | R113: -67.90636364 | S113: -64.94083333 | T113: -59.80692308 | U113: -54.57428571 | V113: -49.32866667 | W113: -45.671875 | X113: -41.98705882 | Y113: -38.20388889 | Z113: -34.84947368 | AA113: -32.1765 | AB113: -27.53619048 | AC113: -24.535 | AD113: -21.39521739 | AE113: -18.42875 | AF113: -14.844 | AG113: -10.71730769 | AH113: -6.455555556 | AI113: -1.659285714 | AJ113: 3.664827586 | AK113: 8.226666667 | AL113: 3466.07875 | AM113: 3420.355217 | AN113: 1.336806551 | AW113: 3920830000
A114: 82 | B114: =IF(A114>$B$30,NA(),IF($A114>$A$8,"",OFFSET(InputPriceData!$B$15,$A114+$A$11,0,1,1))) -> 2020-09-08 | C114: =IF(A114>$B$30,NA(),IF($A114>$A$8,"",OFFSET(InputPriceData!$G$15,CalculationsAndCharts!$A114+$A$11,IF($C$5,8,0),1,1))) -> 4665600000 | D114: =IF(A114>$B$30,NA(),IF(A114>$A$8,"",OFFSET(InputPriceData!$C$15,CalculationsAndCharts!$A114+$A$11,IF($C$5,8,0),1,1))) -> 3371.88 | E114: =IF(A114>$B$30,NA(),IF(A114>$A$8,"",OFFSET(InputPriceData!$D$15,CalculationsAndCharts!$A114+$A$11,IF($C$5,8,0),1,1))) -> 3379.97 | F114: =IF(A114>$B$30,NA(),IF(A114>$A$8,"",OFFSET(InputPriceData!$E$15,CalculationsAndCharts!$A114+$A$11,IF($C$5,8,0),1,1))) -> 3329.27 | G114: =IF(A114>$B$30,NA(),IF(A114>$A$8,"",OFFSET(InputPriceData!$F$15,CalculationsAndCharts!$A114+$A$11,IF($C$5,8,0),1,1))) -> 3331.84 | H114: -0.7431448255 | I114: 3331.84 | L114: -132.43 | M114: -138.4366667 | N114: -143.8271429 | O114: -144.9375 | P114: -145.1544444 | Q114: -141.817 | R114: -137.9645455 | S114: -131.9108333 | T114: -125.8923077 | U114: -119.9721429 | V114: -115.8366667 | W114: -111.73125 | X114: -107.5711765 | Y114: -103.9055556 | Z114: -100.99 | AA114: -96.033 | AB114: -92.82333333 | AC114: -89.48772727 | AD114: -86.35 | AE114: -82.5825 | AF114: -78.266 | AG114: -73.82384615 | AH114: -68.84074074 | AI114: -63.32428571 | AJ114: -58.60965517 | AK114: -52.876 | AL114: 3476.7775 | AM114: 3418.19 | AN114: 1.713991908 | AX114: 4665600000
A115: 83 | B115: =IF(A115>$B$30,NA(),IF($A115>$A$8,"",OFFSET(InputPriceData!$B$15,$A115+$A$11,0,1,1))) -> 2020-09-04 | C115: =IF(A115>$B$30,NA(),IF($A115>$A$8,"",OFFSET(InputPriceData!$G$15,CalculationsAndCharts!$A115+$A$11,IF($C$5,8,0),1,1))) -> 4431440000 | D115: =IF(A115>$B$30,NA(),IF(A115>$A$8,"",OFFSET(InputPriceData!$C$15,CalculationsAndCharts!$A115+$A$11,IF($C$5,8,0),1,1))) -> 3453.6 | E115: =IF(A115>$B$30,NA(),IF(A115>$A$8,"",OFFSET(InputPriceData!$D$15,CalculationsAndCharts!$A115+$A$11,IF($C$5,8,0),1,1))) -> 3479.15 | F115: =IF(A115>$B$30,NA(),IF(A115>$A$8,"",OFFSET(InputPriceData!$E$15,CalculationsAndCharts!$A115+$A$11,IF($C$5,8,0),1,1))) -> 3349.63 | G115: =IF(A115>$B$30,NA(),IF(A115>$A$8,"",OFFSET(InputPriceData!$F$15,CalculationsAndCharts!$A115+$A$11,IF($C$5,8,0),1,1))) -> 3426.96 | H115: -0.5877852523 | I115: 3426.96 | L115: -71.004 | M115: -72.67833333 | N115: -70.52285714 | O115: -68.17875 | P115: -62.45444444 | Q115: -56.641 | R115: -48.78272727 | S115: -41.26333333 | T115: -34.08076923 | U115: -28.99071429 | V115: -24.06 | W115: -19.174375 | X115: -14.89764706 | Y115: -11.48055556 | Z115: -5.967368421 | AA115: -2.3445 | AB115: 1.370952381 | AC115: 4.845 | AD115: 8.946956522 | AE115: 13.59291667 | AF115: 18.3432 | AG115: 23.63153846 | AH115: 29.45037037 | AI115: 34.41714286 | AJ115: 40.42068966 | AK115: 45.325 | AL115: 3495.13875 | AM115: 3418.013043 | AN115: 2.256448572 | AX115: 4431440000
A116: 84 | B116: =IF(A116>$B$30,NA(),IF($A116>$A$8,"",OFFSET(InputPriceData!$B$15,$A116+$A$11,0,1,1))) -> 2020-09-03 | C116: =IF(A116>$B$30,NA(),IF($A116>$A$8,"",OFFSET(InputPriceData!$G$15,CalculationsAndCharts!$A116+$A$11,IF($C$5,8,0),1,1))) -> 4898680000 | D116: =IF(A116>$B$30,NA(),IF(A116>$A$8,"",OFFSET(InputPriceData!$C$15,CalculationsAndCharts!$A116+$A$11,IF($C$5,8,0),1,1))) -> 3564.74 | E116: =IF(A116>$B$30,NA(),IF(A116>$A$8,"",OFFSET(InputPriceData!$D$15,CalculationsAndCharts!$A116+$A$11,IF($C$5,8,0),1,1))) -> 3564.85 | F116: =IF(A116>$B$30,NA(),IF(A116>$A$8,"",OFFSET(InputPriceData!$E$15,CalculationsAndCharts!$A116+$A$11,IF($C$5,8,0),1,1))) -> 3427.41 | G116: =IF(A116>$B$30,NA(),IF(A116>$A$8,"",OFFSET(InputPriceData!$F$15,CalculationsAndCharts!$A116+$A$11,IF($C$5,8,0),1,1))) -> 3455.06 | H116: -0.4067366431 | I116: 3455.06 | L116: -59.114 | M116: -54.17666667 | N116: -49.81857143 | O116: -42.16125 | P116: -34.83444444 | Q116: -25.561 | R116: -16.91454545 | S116: -8.820833333 | T116: -3.120769231 | U116: 2.321428571 | V116: 7.647333333 | W116: 12.27125 | X116: 15.94411765 | Y116: 21.80111111 | Z116: 25.63210526 | AA116: 29.5395 | AB116: 33.17571429 | AC116: 37.45363636 | AD116: 42.28391304 | AE116: 47.2075 | AF116: 52.6768 | AG116: 58.68307692 | AH116: 63.79185185 | AI116: 69.96428571 | AJ116: 74.98793103 | AK116: 80.46933333 | AL116: 3497.22125 | AM116: 3412.776087 | AN116: 2.474383343 | AX116: 4898680000
A117: 85 | B117: =IF(A117>$B$30,NA(),IF($A117>$A$8,"",OFFSET(InputPriceData!$B$15,$A117+$A$11,0,1,1))) -> 2020-09-02 | C117: =IF(A117>$B$30,NA(),IF($A117>$A$8,"",OFFSET(InputPriceData!$G$15,CalculationsAndCharts!$A117+$A$11,IF($C$5,8,0),1,1))) -> 4285190000 | D117: =IF(A117>$B$30,NA(),IF(A117>$A$8,"",OFFSET(InputPriceData!$C$15,CalculationsAndCharts!$A117+$A$11,IF($C$5,8,0),1,1))) -> 3543.76 | E117: =IF(A117>$B$30,NA(),IF(A117>$A$8,"",OFFSET(InputPriceData!$D$15,CalculationsAndCharts!$A117+$A$11,IF($C$5,8,0),1,1))) -> 3588.11 | F117: =IF(A117>$B$30,NA(),IF(A117>$A$8,"",OFFSET(InputPriceData!$E$15,CalculationsAndCharts!$A117+$A$11,IF($C$5,8,0),1,1))) -> 3535.23 | G117: =IF(A117>$B$30,NA(),IF(A117>$A$8,"",OFFSET(InputPriceData!$F$15,CalculationsAndCharts!$A117+$A$11,IF($C$5,8,0),1,1))) -> 3580.84 | H117: -0.2079116908 | I117: 3580.84 | L117: 60.768 | M117: 67.65833333 | N117: 77.59571429 | O117: 86.59125 | P117: 97.37888889 | Q117: 107.174 | R117: 116.1572727 | S117: 122.3991667 | T117: 128.28 | U117: 133.9735714 | V117: 138.8693333 | W117: 142.720625 | X117: 148.8635294 | Y117: 152.8361111 | Z117: 156.8742105 | AA117: 160.6145 | AB117: 165.0171429 | AC117: 169.9859091 | AD117: 175.04 | AE117: 180.6516667 | AF117: 186.8104 | AG117: 192.0253846 | AH117: 198.3355556 | AI117: 203.4460714 | AJ117: 209.0241379 | AK117: 213.5626667 | AL117: 3494.24875 | AM117: 3405.8 | AN117: 2.597003641 | AW117: 4285190000
A118: 86 | B118: =IF(A118>$B$30,NA(),IF($A118>$A$8,"",OFFSET(InputPriceData!$B$15,$A118+$A$11,0,1,1))) -> 2020-09-01 | C118: =IF(A118>$B$30,NA(),IF($A118>$A$8,"",OFFSET(InputPriceData!$G$15,CalculationsAndCharts!$A118+$A$11,IF($C$5,8,0),1,1))) -> 4083110000 | D118: =IF(A118>$B$30,NA(),IF(A118>$A$8,"",OFFSET(InputPriceData!$C$15,CalculationsAndCharts!$A118+$A$11,IF($C$5,8,0),1,1))) -> 3507.44 | E118: =IF(A118>$B$30,NA(),IF(A118>$A$8,"",OFFSET(InputPriceData!$D$15,CalculationsAndCharts!$A118+$A$11,IF($C$5,8,0),1,1))) -> 3528.03 | F118: =IF(A118>$B$30,NA(),IF(A118>$A$8,"",OFFSET(InputPriceData!$E$15,CalculationsAndCharts!$A118+$A$11,IF($C$5,8,0),1,1))) -> 3494.6 | G118: =IF(A118>$B$30,NA(),IF(A118>$A$8,"",OFFSET(InputPriceData!$F$15,CalculationsAndCharts!$A118+$A$11,IF($C$5,8,0),1,1))) -> 3526.65 | H118: 3.038303116e-14 | I118: 3526.65 | L118: 27 | M118: 36.33833333 | N118: 44.77142857 | O118: 55.36125 | P118: 64.89222222 | Q118: 73.583 | R118: 79.33636364 | S118: 84.78 | T118: 90.08923077 | U118: 94.59857143 | V118: 98.04533333 | W118: 103.9775 | X118: 107.6364706 | Y118: 111.3994444 | Z118: 114.8778947 | AA118: 119.078 | AB118: 123.8904762 | AC118: 128.8063636 | AD118: 134.316087 | AE118: 140.4041667 | AF118: 145.5164 | AG118: 151.7738462 | AH118: 156.7911111 | AI118: 162.2992857 | AJ118: 166.7368966 | AK118: 169.5333333 | AL118: 3471.28875 | AM118: 3392.333913 | AN118: 2.327448859 | AW118: 4083110000
A119: 87 | B119: =IF(A119>$B$30,NA(),IF($A119>$A$8,"",OFFSET(InputPriceData!$B$15,$A119+$A$11,0,1,1))) -> 2020-08-31 | C119: =IF(A119>$B$30,NA(),IF($A119>$A$8,"",OFFSET(InputPriceData!$G$15,CalculationsAndCharts!$A119+$A$11,IF($C$5,8,0),1,1))) -> 4342290000 | D119: =IF(A119>$B$30,NA(),IF(A119>$A$8,"",OFFSET(InputPriceData!$C$15,CalculationsAndCharts!$A119+$A$11,IF($C$5,8,0),1,1))) -> 3509.73 | E119: =IF(A119>$B$30,NA(),IF(A119>$A$8,"",OFFSET(InputPriceData!$D$15,CalculationsAndCharts!$A119+$A$11,IF($C$5,8,0),1,1))) -> 3514.77 | F119: =IF(A119>$B$30,NA(),IF(A119>$A$8,"",OFFSET(InputPriceData!$E$15,CalculationsAndCharts!$A119+$A$11,IF($C$5,8,0),1,1))) -> 3493.25 | G119: =IF(A119>$B$30,NA(),IF(A119>$A$8,"",OFFSET(InputPriceData!$F$15,CalculationsAndCharts!$A119+$A$11,IF($C$5,8,0),1,1))) -> 3500.31 | H119: 0.2079116908 | I119: 3500.31 | L119: 17.266 | M119: 25.89333333 | N119: 36.93 | O119: 46.66375 | P119: 55.41888889 | Q119: 60.93 | R119: 66.14727273 | S119: 71.25666667 | T119: 75.53538462 | U119: 78.70857143 | V119: 84.56933333 | W119: 88.02375 | X119: 91.61235294 | Y119: 94.92 | Z119: 99.00526316 | AA119: 103.745 | AB119: 108.6 | AC119: 114.0813636 | AD119: 120.1686957 | AE119: 125.2395833 | AF119: 131.5048 | AG119: 136.4815385 | AH119: 141.9703704 | AI119: 146.3517857 | AJ119: 149.0393103 | AK119: 152.1716667 | AL119: 3453.64625 | AM119: 3380.141304 | AN119: 2.174611622 | AX119: 4342290000
A120: 88 | B120: =IF(A120>$B$30,NA(),IF($A120>$A$8,"",OFFSET(InputPriceData!$B$15,$A120+$A$11,0,1,1))) -> 2020-08-28 | C120: =IF(A120>$B$30,NA(),IF($A120>$A$8,"",OFFSET(InputPriceData!$G$15,CalculationsAndCharts!$A120+$A$11,IF($C$5,8,0),1,1))) -> 3855880000 | D120: =IF(A120>$B$30,NA(),IF(A120>$A$8,"",OFFSET(InputPriceData!$C$15,CalculationsAndCharts!$A120+$A$11,IF($C$5,8,0),1,1))) -> 3494.69 | E120: =IF(A120>$B$30,NA(),IF(A120>$A$8,"",OFFSET(InputPriceData!$D$15,CalculationsAndCharts!$A120+$A$11,IF($C$5,8,0),1,1))) -> 3509.23 | F120: =IF(A120>$B$30,NA(),IF(A120>$A$8,"",OFFSET(InputPriceData!$E$15,CalculationsAndCharts!$A120+$A$11,IF($C$5,8,0),1,1))) -> 3484.32 | G120: =IF(A120>$B$30,NA(),IF(A120>$A$8,"",OFFSET(InputPriceData!$F$15,CalculationsAndCharts!$A120+$A$11,IF($C$5,8,0),1,1))) -> 3508.01 | H120: 0.4067366431 | I120: 3508.01 | L120: 38.772 | M120: 50.785 | N120: 61.03 | O120: 70.04625 | P120: 75.4 | Q120: 80.462 | R120: 85.43454545 | S120: 89.53 | T120: 92.46307692 | U120: 98.31 | V120: 101.592 | W120: 105.038125 | X120: 108.2035294 | Y120: 112.2055556 | Z120: 116.9052632 | AA120: 121.73 | AB120: 127.2138095 | AC120: 133.3309091 | AD120: 138.3847826 | AE120: 144.6841667 | AF120: 149.6408 | AG120: 155.1307692 | AH120: 159.4722222 | AI120: 162.0621429 | AJ120: 165.1189655 | AK120: 168.154 | AL120: 3437.96375 | AM120: 3369.625217 | AN120: 2.028075178 | AW120: 3855880000
A121: 89 | B121: =IF(A121>$B$30,NA(),IF($A121>$A$8,"",OFFSET(InputPriceData!$B$15,$A121+$A$11,0,1,1))) -> 2020-08-27 | C121: =IF(A121>$B$30,NA(),IF($A121>$A$8,"",OFFSET(InputPriceData!$G$15,CalculationsAndCharts!$A121+$A$11,IF($C$5,8,0),1,1))) -> 3929560000 | D121: =IF(A121>$B$30,NA(),IF(A121>$A$8,"",OFFSET(InputPriceData!$C$15,CalculationsAndCharts!$A121+$A$11,IF($C$5,8,0),1,1))) -> 3485.14 | E121: =IF(A121>$B$30,NA(),IF(A121>$A$8,"",OFFSET(InputPriceData!$D$15,CalculationsAndCharts!$A121+$A$11,IF($C$5,8,0),1,1))) -> 3501.38 | F121: =IF(A121>$B$30,NA(),IF(A121>$A$8,"",OFFSET(InputPriceData!$E$15,CalculationsAndCharts!$A121+$A$11,IF($C$5,8,0),1,1))) -> 3468.35 | G121: =IF(A121>$B$30,NA(),IF(A121>$A$8,"",OFFSET(InputPriceData!$F$15,CalculationsAndCharts!$A121+$A$11,IF($C$5,8,0),1,1))) -> 3484.55 | H121: 0.5877852523 | I121: 3484.55 | L121: 37.482 | M121: 47.74166667 | N121: 56.59285714 | O121: 61.365 | P121: 65.94222222 | Q121: 70.518 | R121: 74.20909091 | S121: 76.70833333 | T121: 82.41230769 | U121: 85.38857143 | V121: 88.58066667 | W121: 91.50625 | X121: 95.34588235 | Y121: 99.94 | Z121: 104.6768421 | AA121: 110.1145 | AB121: 116.22 | AC121: 121.215 | AD121: 127.5147826 | AE121: 132.4158333 | AF121: 137.876 | AG121: 142.1457692 | AH121: 144.6044444 | AI121: 147.5560714 | AJ121: 150.4924138 | AK121: 154.1366667 | AL121: 3423.185 | AM121: 3357.035217 | AN121: 1.970482236 | AX121: 3929560000
A122: 90 | B122: =IF(A122>$B$30,NA(),IF($A122>$A$8,"",OFFSET(InputPriceData!$B$15,$A122+$A$11,0,1,1))) -> 2020-08-26 | C122: =IF(A122>$B$30,NA(),IF($A122>$A$8,"",OFFSET(InputPriceData!$G$15,CalculationsAndCharts!$A122+$A$11,IF($C$5,8,0),1,1))) -> 3754360000 | D122: =IF(A122>$B$30,NA(),IF(A122>$A$8,"",OFFSET(InputPriceData!$C$15,CalculationsAndCharts!$A122+$A$11,IF($C$5,8,0),1,1))) -> 3449.97 | E122: =IF(A122>$B$30,NA(),IF(A122>$A$8,"",OFFSET(InputPriceData!$D$15,CalculationsAndCharts!$A122+$A$11,IF($C$5,8,0),1,1))) -> 3481.07 | F122: =IF(A122>$B$30,NA(),IF(A122>$A$8,"",OFFSET(InputPriceData!$E$15,CalculationsAndCharts!$A122+$A$11,IF($C$5,8,0),1,1))) -> 3444.15 | G122: =IF(A122>$B$30,NA(),IF(A122>$A$8,"",OFFSET(InputPriceData!$F$15,CalculationsAndCharts!$A122+$A$11,IF($C$5,8,0),1,1))) -> 3478.73 | H122: 0.7431448255 | I122: 3478.73 | L122: 51.47 | M122: 60.205 | N122: 64.31142857 | O122: 68.365 | P122: 72.53333333 | Q122: 75.81 | R122: 77.86181818 | S122: 83.46 | T122: 86.13692308 | U122: 89.08785714 | V122: 91.78666667 | W122: 95.485 | X122: 99.99882353 | Y122: 104.6722222 | Z122: 110.09 | AA122: =IF($A122<=AA$30,$I122-AVERAGE(OFFSET($I122,0,0,AA$31,1)),NA()) -> 116.211 | AB122: 121.1671429 | AC122: 127.4909091 | AD122: 132.3530435 | AE122: 137.8008333 | AF122: 142.0116 | AG122: 144.3461538 | AH122: 147.2011111 | AI122: 150.0471429 | AJ122: 153.6317241 | AK122: 157.2826667 | AL122: 3410.365 | AM122: 3346.376957 | AN122: 1.91215886 | AW122: 3754360000
A123: 91 | B123: =IF(A123>$B$30,NA(),IF($A123>$A$8,"",OFFSET(InputPriceData!$B$15,$A123+$A$11,0,1,1))) -> 2020-08-25 | C123: =IF(A123>$B$30,NA(),IF($A123>$A$8,"",OFFSET(InputPriceData!$G$15,CalculationsAndCharts!$A123+$A$11,IF($C$5,8,0),1,1))) -> 3619300000 | D123: =IF(A123>$B$30,NA(),IF(A123>$A$8,"",OFFSET(InputPriceData!$C$15,CalculationsAndCharts!$A123+$A$11,IF($C$5,8,0),1,1))) -> 3435.95 | E123: =IF(A123>$B$30,NA(),IF(A123>$A$8,"",OFFSET(InputPriceData!$D$15,CalculationsAndCharts!$A123+$A$11,IF($C$5,8,0),1,1))) -> 3444.21 | F123: =IF(A123>$B$30,NA(),IF(A123>$A$8,"",OFFSET(InputPriceData!$E$15,CalculationsAndCharts!$A123+$A$11,IF($C$5,8,0),1,1))) -> 3425.84 | G123: =IF(A123>$B$30,NA(),IF(A123>$A$8,"",OFFSET(InputPriceData!$F$15,CalculationsAndCharts!$A123+$A$11,IF($C$5,8,0),1,1))) -> 3443.62 | H123: 0.8660254038 | I123: 3443.62 | L123: =IF($A123<=L$30,$I123-AVERAGE(OFFSET($I123,0,0,L$31,1)),NA()) -> 37.136 | M123: 39.92 | N123: 43.02142857 | O123: 46.49 | P123: 49.12333333 | Q123: 50.538 | R123: 55.93727273 | S123: 58.205 | T123: 60.83076923 | U123: 63.23285714 | V123: 66.74066667 | W123: 71.13875 | X123: 75.71941176 | Y123: 81.09611111 | Z123: 87.21736842 | AA123: 92.1155 | AB123: 98.45190476 | AC123: 103.2590909 | AD123: 108.6821739 | AE123: 112.81875 | AF123: 115.01 | AG123: 117.7526923 | AH123: 120.4944444 | AI123: 124.0085714 | AJ123: 127.5962069 | AK123: 130.5783333 | AL123: 3397.13 | AM123: 3334.937826 | AN123: 1.864867567 | AW123: 3619300000
A124: 92 | B124: =IF(A124>$B$30,NA(),IF($A124>$A$8,"",OFFSET(InputPriceData!$B$15,$A124+$A$11,0,1,1))) -> 2020-08-24 | C124: =IF(A124>$B$30,NA(),IF($A124>$A$8,"",OFFSET(InputPriceData!$G$15,CalculationsAndCharts!$A124+$A$11,IF($C$5,8,0),1,1))) -> 3728690000 | D124: =IF(A124>$B$30,NA(),IF(A124>$A$8,"",OFFSET(InputPriceData!$C$15,CalculationsAndCharts!$A124+$A$11,IF($C$5,8,0),1,1))) -> 3418.09 | E124: =IF(A124>$B$30,NA(),IF(A124>$A$8,"",OFFSET(InputPriceData!$D$15,CalculationsAndCharts!$A124+$A$11,IF($C$5,8,0),1,1))) -> 3432.09 | F124: =IF(A124>$B$30,NA(),IF(A124>$A$8,"",OFFSET(InputPriceData!$E$15,CalculationsAndCharts!$A124+$A$11,IF($C$5,8,0),1,1))) -> 3413.13 | G124: =IF(A124>$B$30,NA(),IF(A124>$A$8,"",OFFSET(InputPriceData!$F$15,CalculationsAndCharts!$A124+$A$11,IF($C$5,8,0),1,1))) -> 3431.28 | H124: 0.9510565163 | I124: 3431.28 | L124: 35.564 | M124: 37.85166667 | N124: 40.79142857 | O124: 42.92375 | P124: 43.81333333 | Q124: 49.191 | R124: 51.15636364 | S124: 53.56 | T124: 55.75692308 | U124: 59.16785714 | V124: 63.54133333 | W124: 68.111875 | X124: 73.52647059 | Y124: 79.72277778 | Z124: 84.62368421 | AA124: 91.0345 | AB124: 95.83619048 | AC124: 101.2822727 | AD124: 105.383913 | AE124: 107.4620833 | AF124: 110.1228 | AG124: 112.7888462 | AH124: 116.2614815 | AI124: 119.8132143 | AJ124: 122.7410345 | AK124: 126.4416667 | AL124: 3388.35625 | AM124: 3325.896087 | AN124: 1.877995025 | AW124: 3728690000
A125: 93 | B125: =IF(A125>$B$30,NA(),IF($A125>$A$8,"",OFFSET(InputPriceData!$B$15,$A125+$A$11,0,1,1))) -> 2020-08-21 | C125: =IF(A125>$B$30,NA(),IF($A125>$A$8,"",OFFSET(InputPriceData!$G$15,CalculationsAndCharts!$A125+$A$11,IF($C$5,8,0),1,1))) -> 3705420000 | D125: =IF(A125>$B$30,NA(),IF(A125>$A$8,"",OFFSET(InputPriceData!$C$15,CalculationsAndCharts!$A125+$A$11,IF($C$5,8,0),1,1))) -> 3386.01 | E125: =IF(A125>$B$30,NA(),IF(A125>$A$8,"",OFFSET(InputPriceData!$D$15,CalculationsAndCharts!$A125+$A$11,IF($C$5,8,0),1,1))) -> 3399.96 | F125: =IF(A125>$B$30,NA(),IF(A125>$A$8,"",OFFSET(InputPriceData!$E$15,CalculationsAndCharts!$A125+$A$11,IF($C$5,8,0),1,1))) -> 3379.31 | G125: =IF(A125>$B$30,NA(),IF(A125>$A$8,"",OFFSET(InputPriceData!$F$15,CalculationsAndCharts!$A125+$A$11,IF($C$5,8,0),1,1))) -> 3397.16 | H125: 0.9945218954 | I125: 3397.16 | L125: 11.302 | M125: 13.47 | N125: 14.93571429 | O125: 15.17 | P125: 20.53666667 | Q125: 22.152 | R125: 24.30909091 | S125: 26.28333333 | T125: 29.59923077 | U125: 33.96 | V125: 38.53266667 | W125: 44.001875 | X125: 50.29235294 | Y125: 55.205 | Z125: 61.70578947 | AA125: 66.508 | AB125: 71.9852381 | AC125: 76.05409091 | AD125: 78.01434783 | AE125: 80.59125 | AF125: 83.1804 | AG125: 86.61307692 | AH125: 90.13074074 | AI125: 93.00464286 | AJ125: 96.68172414 | AK125: 101.5236667 | AL125: 3381.99 | AM125: 3319.145652 | AN125: 1.893389276 | AW125: 3705420000
A126: 94 | B126: =IF(A126>$B$30,NA(),IF($A126>$A$8,"",OFFSET(InputPriceData!$B$15,$A126+$A$11,0,1,1))) -> 2020-08-20 | C126: =IF(A126>$B$30,NA(),IF($A126>$A$8,"",OFFSET(InputPriceData!$G$15,CalculationsAndCharts!$A126+$A$11,IF($C$5,8,0),1,1))) -> 3642850000 | D126: =IF(A126>$B$30,NA(),IF(A126>$A$8,"",OFFSET(InputPriceData!$C$15,CalculationsAndCharts!$A126+$A$11,IF($C$5,8,0),1,1))) -> 3360.48 | E126: =IF(A126>$B$30,NA(),IF(A126>$A$8,"",OFFSET(InputPriceData!$D$15,CalculationsAndCharts!$A126+$A$11,IF($C$5,8,0),1,1))) -> 3390.8 | F126: =IF(A126>$B$30,NA(),IF(A126>$A$8,"",OFFSET(InputPriceData!$E$15,CalculationsAndCharts!$A126+$A$11,IF($C$5,8,0),1,1))) -> 3354.69 | G126: =IF(A126>$B$30,NA(),IF(A126>$A$8,"",OFFSET(InputPriceData!$F$15,CalculationsAndCharts!$A126+$A$11,IF($C$5,8,0),1,1))) -> 3385.51 | H126: 0.9945218954 | I126: 3385.51 | L126: 4.514 | M126: 5.775 | N126: 5.687142857 | O126: 11.45375 | P126: 12.96333333 | Q126: 15.09 | R126: 17.02272727 | S126: 20.41583333 | T126: 24.92230769 | U126: 29.635 | V126: 35.28533333 | W126: 41.785625 | X126: 46.80235294 | Y126: 53.48388889 | Z126: 58.35842105 | AA126: 63.9345 | AB126: 68.02571429 | AC126: 69.91045455 | AD126: 72.44521739 | AE126: 74.99625 | AF126: 78.4276 | AG126: 81.94730769 | AH126: 84.79925926 | AI126: 88.48464286 | AJ126: 93.37448276 | AK126: 96.94433333 | AL126: 3374.05625 | AM126: 3313.064783 | AN126: 1.840937965 | AW126: 3642850000
A127: 95 | B127: =IF(A127>$B$30,NA(),IF($A127>$A$8,"",OFFSET(InputPriceData!$B$15,$A127+$A$11,0,1,1))) -> 2020-08-19 | C127: =IF(A127>$B$30,NA(),IF($A127>$A$8,"",OFFSET(InputPriceData!$G$15,CalculationsAndCharts!$A127+$A$11,IF($C$5,8,0),1,1))) -> 3884480000 | D127: =IF(A127>$B$30,NA(),IF(A127>$A$8,"",OFFSET(InputPriceData!$C$15,CalculationsAndCharts!$A127+$A$11,IF($C$5,8,0),1,1))) -> 3392.51 | E127: =IF(A127>$B$30,NA(),IF(A127>$A$8,"",OFFSET(InputPriceData!$D$15,CalculationsAndCharts!$A127+$A$11,IF($C$5,8,0),1,1))) -> 3399.54 | F127: =IF(A127>$B$30,NA(),IF(A127>$A$8,"",OFFSET(InputPriceData!$E$15,CalculationsAndCharts!$A127+$A$11,IF($C$5,8,0),1,1))) -> 3369.66 | G127: =IF(A127>$B$30,NA(),IF(A127>$A$8,"",OFFSET(InputPriceData!$F$15,CalculationsAndCharts!$A127+$A$11,IF($C$5,8,0),1,1))) -> 3374.85 | H127: 0.9510565163 | I127: 3374.85 | L127: -3.73 | M127: -4.025 | N127: 2.43 | O127: 3.92375 | P127: 6.106666667 | Q127: 8.065 | R127: 11.61181818 | S127: 16.33916667 | T127: 21.25461538 | U127: 27.14571429 | V127: 33.91133333 | W127: 39.0675 | X127: 45.97 | Y127: 50.94055556 | Z127: 56.63947368 | AA127: 60.767 | AB127: 62.57952381 | AC127: 65.07818182 | AD127: 67.59695652 | AE127: 71.03541667 | AF127: 74.5652 | AG127: 77.40076923 | AH127: 81.10185185 | AI127: 86.04928571 | AJ127: 89.62724138 | AK127: 94.06633333 | AL127: 3370.92625 | AM127: 3307.253043 | AN127: 1.925259594 | AX127: 3884480000
A128: 96 | B128: =IF(A128>$B$30,NA(),IF($A128>$A$8,"",OFFSET(InputPriceData!$B$15,$A128+$A$11,0,1,1))) -> 2020-08-18 | C128: =IF(A128>$B$30,NA(),IF($A128>$A$8,"",OFFSET(InputPriceData!$G$15,CalculationsAndCharts!$A128+$A$11,IF($C$5,8,0),1,1))) -> 3881310000 | D128: =IF(A128>$B$30,NA(),IF(A128>$A$8,"",OFFSET(InputPriceData!$C$15,CalculationsAndCharts!$A128+$A$11,IF($C$5,8,0),1,1))) -> 3387.04 | E128: =IF(A128>$B$30,NA(),IF(A128>$A$8,"",OFFSET(InputPriceData!$D$15,CalculationsAndCharts!$A128+$A$11,IF($C$5,8,0),1,1))) -> 3395.06 | F128: =IF(A128>$B$30,NA(),IF(A128>$A$8,"",OFFSET(InputPriceData!$E$15,CalculationsAndCharts!$A128+$A$11,IF($C$5,8,0),1,1))) -> 3370.15 | G128: =IF(A128>$B$30,NA(),IF(A128>$A$8,"",OFFSET(InputPriceData!$F$15,CalculationsAndCharts!$A128+$A$11,IF($C$5,8,0),1,1))) -> 3389.78 | H128: 0.8660254038 | I128: 3389.78 | L128: 10.1 | M128: 17.765 | N128: 19.41428571 | O128: 21.8 | P128: 23.89111111 | Q128: 27.703 | R128: 32.75454545 | S128: 37.95583333 | T128: 44.16384615 | U128: 51.26357143 | V128: 56.602 | W128: 63.773125 | X128: 68.86705882 | Y128: 74.71611111 | Z128: 78.89526316 | AA128: 80.6385 | AB128: 83.10714286 | AC128: 85.59954545 | AD128: 89.05391304 | AE128: 92.60208333 | AF128: 95.4268 | AG128: 99.15115385 | AH128: 104.1662963 | AI128: 107.7582143 | AJ128: 112.24 | AK128: 115.8266667 | AL128: 3367.98 | AM128: 3300.726087 | AN128: 2.03754905 | AW128: 3881310000
A129: 97 | B129: =IF(A129>$B$30,NA(),IF($A129>$A$8,"",OFFSET(InputPriceData!$B$15,$A129+$A$11,0,1,1))) -> 2020-08-17 | C129: =IF(A129>$B$30,NA(),IF($A129>$A$8,"",OFFSET(InputPriceData!$G$15,CalculationsAndCharts!$A129+$A$11,IF($C$5,8,0),1,1))) -> 3671290000 | D129: =IF(A129>$B$30,NA(),IF(A129>$A$8,"",OFFSET(InputPriceData!$C$15,CalculationsAndCharts!$A129+$A$11,IF($C$5,8,0),1,1))) -> 3380.86 | E129: =IF(A129>$B$30,NA(),IF(A129>$A$8,"",OFFSET(InputPriceData!$D$15,CalculationsAndCharts!$A129+$A$11,IF($C$5,8,0),1,1))) -> 3387.59 | F129: =IF(A129>$B$30,NA(),IF(A129>$A$8,"",OFFSET(InputPriceData!$E$15,CalculationsAndCharts!$A129+$A$11,IF($C$5,8,0),1,1))) -> 3379.22 | G129: =IF(A129>$B$30,NA(),IF(A129>$A$8,"",OFFSET(InputPriceData!$F$15,CalculationsAndCharts!$A129+$A$11,IF($C$5,8,0),1,1))) -> 3381.99 | H129: 0.7431448255 | I129: 3381.99 | L129: 13.528 | M129: 14.86 | N129: 17.12428571 | O129: 19.0875 | P129: 22.99111111 | Q129: 28.24 | R129: 33.61636364 | S129: 40.05416667 | T129: 47.41692308 | U129: 52.855 | V129: 60.23466667 | W129: 65.38125 | X129: 71.32117647 | Y129: 75.48833333 | Z129: 77.09263158 | AA129: 79.4725 | AB129: 81.88571429 | AC129: 85.31181818 | AD129: 88.83826087 | AE129: 91.61291667 | AF129: 95.3272 | AG129: 100.3826923 | AH129: 103.9592593 | AI129: 108.4585714 | AJ129: 112.0306897 | AK129: 116.1853333 | AL129: 3362.9025 | AM129: 3293.151739 | AN129: 2.118054873 | AW129: 3671290000
A130: 98 | B130: =IF(A130>$B$30,NA(),IF($A130>$A$8,"",OFFSET(InputPriceData!$B$15,$A130+$A$11,0,1,1))) -> 2020-08-14 | C130: =IF(A130>$B$30,NA(),IF($A130>$A$8,"",OFFSET(InputPriceData!$G$15,CalculationsAndCharts!$A130+$A$11,IF($C$5,8,0),1,1))) -> 3193400000 | D130: =IF(A130>$B$30,NA(),IF(A130>$A$8,"",OFFSET(InputPriceData!$C$15,CalculationsAndCharts!$A130+$A$11,IF($C$5,8,0),1,1))) -> 3368.66 | E130: =IF(A130>$B$30,NA(),IF(A130>$A$8,"",OFFSET(InputPriceData!$D$15,CalculationsAndCharts!$A130+$A$11,IF($C$5,8,0),1,1))) -> 3378.51 | F130: =IF(A130>$B$30,NA(),IF(A130>$A$8,"",OFFSET(InputPriceData!$E$15,CalculationsAndCharts!$A130+$A$11,IF($C$5,8,0),1,1))) -> 3361.64 | G130: =IF(A130>$B$30,NA(),IF(A130>$A$8,"",OFFSET(InputPriceData!$F$15,CalculationsAndCharts!$A130+$A$11,IF($C$5,8,0),1,1))) -> 3372.85 | H130: 0.5877852523 | I130: 3372.85 | L130: 8.692 | M130: 10.83833333 | N130: 12.67428571 | O130: 16.725 | P130: 22.23777778 | Q130: 27.838 | R130: 34.55545455 | S130: 42.22833333 | T130: 47.78076923 | U130: 55.39714286 | V130: 60.6 | W130: 66.63875 | X130: 70.78882353 | Y130: 72.23555556 | Z130: 74.51526316 | AA130: 76.84 | AB130: 80.23428571 | AC130: 83.73636364 | AD130: 86.45608696 | AE130: 90.15916667 | AF130: 95.258 | AG130: 98.81769231 | AH130: 103.3355556 | AI130: 106.8917857 | AJ130: 111.0517241 | AK130: 113.7876667 | AL130: 3356.125 | AM130: 3286.393913 | AN130: 2.121811591 | AW130: 3193400000
A131: 99 | B131: =IF(A131>$B$30,NA(),IF($A131>$A$8,"",OFFSET(InputPriceData!$B$15,$A131+$A$11,0,1,1))) -> 2020-08-13 | C131: =IF(A131>$B$30,NA(),IF($A131>$A$8,"",OFFSET(InputPriceData!$G$15,CalculationsAndCharts!$A131+$A$11,IF($C$5,8,0),1,1))) -> 3648810000 | D131: =IF(A131>$B$30,NA(),IF(A131>$A$8,"",OFFSET(InputPriceData!$C$15,CalculationsAndCharts!$A131+$A$11,IF($C$5,8,0),1,1))) -> 3372.95 | E131: =IF(A131>$B$30,NA(),IF(A131>$A$8,"",OFFSET(InputPriceData!$D$15,CalculationsAndCharts!$A131+$A$11,IF($C$5,8,0),1,1))) -> 3387.24 | F131: =IF(A131>$B$30,NA(),IF(A131>$A$8,"",OFFSET(InputPriceData!$E$15,CalculationsAndCharts!$A131+$A$11,IF($C$5,8,0),1,1))) -> 3363.35 | G131: =IF(A131>$B$30,NA(),IF(A131>$A$8,"",OFFSET(InputPriceData!$F$15,CalculationsAndCharts!$A131+$A$11,IF($C$5,8,0),1,1))) -> 3373.43 | H131: 0.4067366431 | I131: 3373.43 | L131: 13.586 | M131: 15.36666667 | N131: 19.69428571 | O131: 25.5975 | P131: 31.51111111 | Q131: 38.591 | R131: 46.64727273 | S131: 52.3425 | T131: 60.23846154 | U131: 65.50857143 | V131: 71.66133333 | W131: 75.793125 | X131: 77.06470588 | Y131: 79.235 | Z131: 81.46421053 | AA131: 84.826 | AB131: 88.30380952 | AC131: 90.96590909 | AD131: 94.65913043 | AE131: 99.80708333 | AF131: 103.3504 | AG131: 107.89 | AH131: 111.4307407 | AI131: 115.5978571 | AJ131: 118.2913793 | AK131: 122.4623333 | AL131: 3347.8325 | AM131: 3278.77087 | AN131: 2.106326827 | AW131: 3648810000
A132: 100 | B132: =IF(A132>$B$30,NA(),IF($A132>$A$8,"",OFFSET(InputPriceData!$B$15,$A132+$A$11,0,1,1))) -> 2020-08-12 | C132: =IF(A132>$B$30,NA(),IF($A132>$A$8,"",OFFSET(InputPriceData!$G$15,CalculationsAndCharts!$A132+$A$11,IF($C$5,8,0),1,1))) -> 3768560000 | D132: =IF(A132>$B$30,NA(),IF(A132>$A$8,"",OFFSET(InputPriceData!$C$15,CalculationsAndCharts!$A132+$A$11,IF($C$5,8,0),1,1))) -> 3355.46 | E132: =IF(A132>$B$30,NA(),IF(A132>$A$8,"",OFFSET(InputPriceData!$D$15,CalculationsAndCharts!$A132+$A$11,IF($C$5,8,0),1,1))) -> 3387.89 | F132: =IF(A132>$B$30,NA(),IF(A132>$A$8,"",OFFSET(InputPriceData!$E$15,CalculationsAndCharts!$A132+$A$11,IF($C$5,8,0),1,1))) -> 3355.46 | G132: =IF(A132>$B$30,NA(),IF(A132>$A$8,"",OFFSET(InputPriceData!$F$15,CalculationsAndCharts!$A132+$A$11,IF($C$5,8,0),1,1))) -> 3380.35 | H132: 0.2079116908 | I132: 3380.35 | L132: 25.36 | M132: 29.89666667 | N132: 36.17428571 | O132: 42.37 | P132: 49.79888889 | Q132: 58.232 | R132: 64.02090909 | S132: 72.17833333 | T132: 77.46769231 | U132: 83.7 | V132: 87.766 | W132: 88.80125 | X132: 90.81588235 | Y132: 92.91 | Z132: 96.21052632 | AA132: 99.639 | AB132: 102.217619 | AC132: 105.8818182 | AD132: 111.0665217 | AE132: 114.5766667 | AF132: 119.1256 | AG132: 122.6365385 | AH132: 126.7992593 | AI132: 129.4360714 | AJ132: 133.6051724 | AK132: 137.968 | AL132: 3337.98 | AM132: 3269.283478 | AN132: 2.101271493 | AW132: 3768560000
A133: 101 | B133: =IF(A133>$B$30,NA(),IF($A133>$A$8,"",OFFSET(InputPriceData!$B$15,$A133+$A$11,0,1,1))) -> 2020-08-11 | C133: =IF(A133>$B$30,NA(),IF($A133>$A$8,"",OFFSET(InputPriceData!$G$15,CalculationsAndCharts!$A133+$A$11,IF($C$5,8,0),1,1))) -> 5087650000 | D133: =IF(A133>$B$30,NA(),IF(A133>$A$8,"",OFFSET(InputPriceData!$C$15,CalculationsAndCharts!$A133+$A$11,IF($C$5,8,0),1,1))) -> 3370.34 | E133: =IF(A133>$B$30,NA(),IF(A133>$A$8,"",OFFSET(InputPriceData!$D$15,CalculationsAndCharts!$A133+$A$11,IF($C$5,8,0),1,1))) -> 3381.01 | F133: =IF(A133>$B$30,NA(),IF(A133>$A$8,"",OFFSET(InputPriceData!$E$15,CalculationsAndCharts!$A133+$A$11,IF($C$5,8,0),1,1))) -> 3326.44 | G133: =IF(A133>$B$30,NA(),IF(A133>$A$8,"",OFFSET(InputPriceData!$F$15,CalculationsAndCharts!$A133+$A$11,IF($C$5,8,0),1,1))) -> 3333.69 | H133: -1.960237528e-14 | I133: 3333.69 | L133: -10.784 | M133: -4.456666667 | N133: 1.762857143 | O133: 9.36375 | P133: 18.04222222 | Q133: 23.763 | R133: 32.08 | S133: 37.26333333 | T133: 43.47846154 | U133: 47.375 | V133: 48.06133333 | W133: 49.831875 | X133: 51.71529412 | Y133: 54.89555556 | Z133: 58.22315789 | AA133: 60.6685 | AB133: 64.26380952 | AC133: 69.455 | AD133: 72.89826087 | AE133: 77.42916667 | AF133: 80.882 | AG133: 85.01615385 | AH133: 87.57 | AI133: 91.71678571 | AJ133: 96.06551724 | AK133: 100.6433333 | AL133: 3324.32625 | AM133: 3260.791739 | AN133: 1.948438169 | AX133: 5087650000
A134: 102 | B134: =IF(A134>$B$30,NA(),IF($A134>$A$8,"",OFFSET(InputPriceData!$B$15,$A134+$A$11,0,1,1))) -> 2020-08-10 | C134: =IF(A134>$B$30,NA(),IF($A134>$A$8,"",OFFSET(InputPriceData!$G$15,CalculationsAndCharts!$A134+$A$11,IF($C$5,8,0),1,1))) -> 4318570000 | D134: =IF(A134>$B$30,NA(),IF(A134>$A$8,"",OFFSET(InputPriceData!$C$15,CalculationsAndCharts!$A134+$A$11,IF($C$5,8,0),1,1))) -> 3356.04 | E134: =IF(A134>$B$30,NA(),IF(A134>$A$8,"",OFFSET(InputPriceData!$D$15,CalculationsAndCharts!$A134+$A$11,IF($C$5,8,0),1,1))) -> 3363.29 | F134: =IF(A134>$B$30,NA(),IF(A134>$A$8,"",OFFSET(InputPriceData!$E$15,CalculationsAndCharts!$A134+$A$11,IF($C$5,8,0),1,1))) -> 3335.44 | G134: =IF(A134>$B$30,NA(),IF(A134>$A$8,"",OFFSET(InputPriceData!$F$15,CalculationsAndCharts!$A134+$A$11,IF($C$5,8,0),1,1))) -> 3360.47 | H134: -0.2079116908 | I134: 3360.47 | L134: 21.432 | M134: 28.83666667 | N134: 37.48142857 | O134: 47.0775 | P134: 53.18333333 | Q134: 62.068 | R134: 67.43090909 | S134: 73.88166667 | T134: 77.79923077 | U134: 78.27428571 | V134: 79.934 | W134: 81.7275 | X134: 84.90470588 | Y134: 88.23777778 | Z134: 90.64157895 | AA134: 94.257 | AB134: 99.54238095 | AC134: 102.9918182 | AD134: 107.5756522 | AE134: 111.0320833 | AF134: 115.1968 | AG134: 117.7180769 | AH134: 121.8937037 | AI134: 126.2764286 | AJ134: 130.8937931 | AK134: 136.7716667 | AL134: 3313.3925 | AM134: 3252.894348 | AN134: 1.859825303 | AW134: 4318570000
A135: 103 | B135: =IF(A135>$B$30,NA(),IF($A135>$A$8,"",OFFSET(InputPriceData!$B$15,$A135+$A$11,0,1,1))) -> 2020-08-07 | C135: =IF(A135>$B$30,NA(),IF($A135>$A$8,"",OFFSET(InputPriceData!$G$15,CalculationsAndCharts!$A135+$A$11,IF($C$5,8,0),1,1))) -> 4104860000 | D135: =IF(A135>$B$30,NA(),IF(A135>$A$8,"",OFFSET(InputPriceData!$C$15,CalculationsAndCharts!$A135+$A$11,IF($C$5,8,0),1,1))) -> 3340.05 | E135: =IF(A135>$B$30,NA(),IF(A135>$A$8,"",OFFSET(InputPriceData!$D$15,CalculationsAndCharts!$A135+$A$11,IF($C$5,8,0),1,1))) -> 3352.54 | F135: =IF(A135>$B$30,NA(),IF(A135>$A$8,"",OFFSET(InputPriceData!$E$15,CalculationsAndCharts!$A135+$A$11,IF($C$5,8,0),1,1))) -> 3328.72 | G135: =IF(A135>$B$30,NA(),IF(A135>$A$8,"",OFFSET(InputPriceData!$F$15,CalculationsAndCharts!$A135+$A$11,IF($C$5,8,0),1,1))) -> 3351.28 | H135: -0.4067366431 | I135: 3351.28 | L135: 25.414 | M135: 34.53833333 | N135: 44.61285714 | O135: 50.64125 | P135: 59.77444444 | Q135: 64.984 | R135: 71.40818182 | S135: 75.0925 | T135: 75.10538462 | U135: 76.45357143 | V135: 77.986 | W135: 81.02125 | X135: 84.23823529 | Y135: 86.48722222 | Z135: 90.02789474 | AA135: 95.3295 | AB135: 98.70619048 | AC135: 103.2754545 | AD135: 106.6695652 | AE135: 110.8066667 | AF135: 113.2368 | AG135: 117.3919231 | AH135: 121.7633333 | AI135: 126.3785714 | AJ135: 132.297931 | AK135: 139.2956667 | AL135: 3300.63875 | AM135: 3244.610435 | AN135: 1.72681178 | AW135: 4104860000
A136: 104 | B136: =IF(A136>$B$30,NA(),IF($A136>$A$8,"",OFFSET(InputPriceData!$B$15,$A136+$A$11,0,1,1))) -> 2020-08-06 | C136: =IF(A136>$B$30,NA(),IF($A136>$A$8,"",OFFSET(InputPriceData!$G$15,CalculationsAndCharts!$A136+$A$11,IF($C$5,8,0),1,1))) -> 4267490000 | D136: =IF(A136>$B$30,NA(),IF(A136>$A$8,"",OFFSET(InputPriceData!$C$15,CalculationsAndCharts!$A136+$A$11,IF($C$5,8,0),1,1))) -> 3323.17 | E136: =IF(A136>$B$30,NA(),IF(A136>$A$8,"",OFFSET(InputPriceData!$D$15,CalculationsAndCharts!$A136+$A$11,IF($C$5,8,0),1,1))) -> 3351.03 | F136: =IF(A136>$B$30,NA(),IF(A136>$A$8,"",OFFSET(InputPriceData!$E$15,CalculationsAndCharts!$A136+$A$11,IF($C$5,8,0),1,1))) -> 3318.14 | G136: =IF(A136>$B$30,NA(),IF(A136>$A$8,"",OFFSET(InputPriceData!$F$15,CalculationsAndCharts!$A136+$A$11,IF($C$5,8,0),1,1))) -> 3349.16 | H136: -0.5877852523 | I136: 3349.16 | L136: 39.326 | M136: 49.92833333 | N136: 55.75571429 | O136: 65.12625 | P136: 70.08444444 | Q136: 76.429 | R136: 79.79909091 | S136: 79.24416667 | T136: 80.21461538 | U136: 81.43642857 | V136: 84.30266667 | W136: 87.383125 | X136: 89.45470588 | Y136: 92.90944444 | Z136: 98.22684211 | AA136: 101.5215 | AB136: 106.0733333 | AC136: 109.3981818 | AD136: 113.5043478 | AE136: 115.835 | AF136: 119.9676 | AG136: 124.3265385 | AH136: 128.9392593 | AI136: 134.9028571 | AJ136: 141.9789655 | AK136: 146.093 | AL136: 3284.03375 | AM136: 3235.655652 | AN136: 1.495155944 | AW136: 4267490000
A137: 105 | B137: =IF(A137>$B$30,NA(),IF($A137>$A$8,"",OFFSET(InputPriceData!$B$15,$A137+$A$11,0,1,1))) -> 2020-08-05 | C137: =IF(A137>$B$30,NA(),IF($A137>$A$8,"",OFFSET(InputPriceData!$G$15,CalculationsAndCharts!$A137+$A$11,IF($C$5,8,0),1,1))) -> 4732220000 | D137: =IF(A137>$B$30,NA(),IF(A137>$A$8,"",OFFSET(InputPriceData!$C$15,CalculationsAndCharts!$A137+$A$11,IF($C$5,8,0),1,1))) -> 3317.37 | E137: =IF(A137>$B$30,NA(),IF(A137>$A$8,"",OFFSET(InputPriceData!$D$15,CalculationsAndCharts!$A137+$A$11,IF($C$5,8,0),1,1))) -> 3330.77 | F137: =IF(A137>$B$30,NA(),IF(A137>$A$8,"",OFFSET(InputPriceData!$E$15,CalculationsAndCharts!$A137+$A$11,IF($C$5,8,0),1,1))) -> 3317.37 | G137: =IF(A137>$B$30,NA(),IF(A137>$A$8,"",OFFSET(InputPriceData!$F$15,CalculationsAndCharts!$A137+$A$11,IF($C$5,8,0),1,1))) -> 3327.77 | H137: -0.7431448255 | I137: 3327.77 | L137: 38.524 | M137: 43.65833333 | N137: 53.04 | O137: 57.455 | P137: 63.53111111 | Q137: 66.389 | R137: 65.05818182 | S137: 65.50916667 | T137: 66.31076923 | U137: 68.93428571 | V137: 71.81866667 | W137: 73.655625 | X137: 76.98470588 | Y137: 82.29388889 | Z137: 85.47473684 | AA137: 89.987 | AB137: 93.21761905 | AC137: 97.27363636 | AD137: 99.48130435 | AE137: 103.57625 | AF137: 107.9096 | AG137: 112.5084615 | AH137: 118.5092593 | AI137: 125.6596429 | AJ137: 129.7406897 | AK137: 134.664 | AL137: 3270.315 | AM137: 3228.288696 | AN137: 1.301813695 | AW137: 4732220000
A138: 106 | B138: =IF(A138>$B$30,NA(),IF($A138>$A$8,"",OFFSET(InputPriceData!$B$15,$A138+$A$11,0,1,1))) -> 2020-08-04 | C138: =IF(A138>$B$30,NA(),IF($A138>$A$8,"",OFFSET(InputPriceData!$G$15,CalculationsAndCharts!$A138+$A$11,IF($C$5,8,0),1,1))) -> 4621670000 | D138: =IF(A138>$B$30,NA(),IF(A138>$A$8,"",OFFSET(InputPriceData!$C$15,CalculationsAndCharts!$A138+$A$11,IF($C$5,8,0),1,1))) -> 3289.92 | E138: =IF(A138>$B$30,NA(),IF(A138>$A$8,"",OFFSET(InputPriceData!$D$15,CalculationsAndCharts!$A138+$A$11,IF($C$5,8,0),1,1))) -> 3306.84 | F138: =IF(A138>$B$30,NA(),IF(A138>$A$8,"",OFFSET(InputPriceData!$E$15,CalculationsAndCharts!$A138+$A$11,IF($C$5,8,0),1,1))) -> 3286.37 | G138: =IF(A138>$B$30,NA(),IF(A138>$A$8,"",OFFSET(InputPriceData!$F$15,CalculationsAndCharts!$A138+$A$11,IF($C$5,8,0),1,1))) -> 3306.51 | H138: -0.8660254038 | I138: 3306.51 | L138: 31.13 | M138: 40.62 | N138: 44.40285714 | O138: 50.2125 | P138: 52.50555556 | Q138: 50.304 | R138: 50.20454545 | S138: 50.57666667 | T138: 52.97692308 | U138: 55.68857143 | V138: 57.306 | W138: 60.53625 | X138: 65.87470588 | Y138: 68.96333333 | Z138: 73.46315789 | AA138: =IF($A138<=AA$30,$I138-AVERAGE(OFFSET($I138,0,0,AA$31,1)),NA()) -> 76.6185 | AB138: 80.64571429 | AC138: 82.74318182 | AD138: 86.81956522 | AE138: 91.14583333 | AF138: 95.7488 | AG138: 101.8073077 | AH138: 109.0537037 | AI138: 113.1142857 | AJ138: 118.0475862 | AK138: 119.9533333 | AL138: 3256.2975 | AM138: 3219.690435 | AN138: 1.136974686 | AW138: 4621670000
A139: 107 | B139: =IF(A139>$B$30,NA(),IF($A139>$A$8,"",OFFSET(InputPriceData!$B$15,$A139+$A$11,0,1,1))) -> 2020-08-03 | C139: =IF(A139>$B$30,NA(),IF($A139>$A$8,"",OFFSET(InputPriceData!$G$15,CalculationsAndCharts!$A139+$A$11,IF($C$5,8,0),1,1))) -> 4643640000 | D139: =IF(A139>$B$30,NA(),IF(A139>$A$8,"",OFFSET(InputPriceData!$C$15,CalculationsAndCharts!$A139+$A$11,IF($C$5,8,0),1,1))) -> 3288.26 | E139: =IF(A139>$B$30,NA(),IF(A139>$A$8,"",OFFSET(InputPriceData!$D$15,CalculationsAndCharts!$A139+$A$11,IF($C$5,8,0),1,1))) -> 3302.73 | F139: =IF(A139>$B$30,NA(),IF(A139>$A$8,"",OFFSET(InputPriceData!$E$15,CalculationsAndCharts!$A139+$A$11,IF($C$5,8,0),1,1))) -> 3284.53 | G139: =IF(A139>$B$30,NA(),IF(A139>$A$8,"",OFFSET(InputPriceData!$F$15,CalculationsAndCharts!$A139+$A$11,IF($C$5,8,0),1,1))) -> 3294.61 | H139: -0.9510565163 | I139: 3294.61 | L139: =IF($A139<=L$30,$I139-AVERAGE(OFFSET($I139,0,0,L$31,1)),NA()) -> 36.844 | M139: 39.90333333 | N139: 45.48571429 | O139: 47.16875 | P139: 43.99333333 | Q139: 43.325 | R139: 43.27454545 | S139: 45.49166667 | T139: 48.07230769 | U139: 49.49928571 | V139: 52.672 | W139: 58.091875 | X139: 61.12 | Y139: 65.64444444 | Z139: 68.75105263 | AA139: 72.778 | AB139: 74.78333333 | AC139: 78.86590909 | AD139: 83.20869565 | AE139: 87.83833333 | AF139: 93.9796 | AG139: 101.3480769 | AH139: 105.4037037 | AI139: 110.3635714 | AJ139: 112.1896552 | AK139: 114.3416667 | AL139: 3247.44125 | AM139: 3211.401304 | AN139: 1.122249829 | AW139: 4643640000
A140: 108 | B140: =IF(A140>$B$30,NA(),IF($A140>$A$8,"",OFFSET(InputPriceData!$B$15,$A140+$A$11,0,1,1))) -> 2020-07-31 | C140: =IF(A140>$B$30,NA(),IF($A140>$A$8,"",OFFSET(InputPriceData!$G$15,CalculationsAndCharts!$A140+$A$11,IF($C$5,8,0),1,1))) -> 5117260000 | D140: =IF(A140>$B$30,NA(),IF(A140>$A$8,"",OFFSET(InputPriceData!$C$15,CalculationsAndCharts!$A140+$A$11,IF($C$5,8,0),1,1))) -> 3270.45 | E140: =IF(A140>$B$30,NA(),IF(A140>$A$8,"",OFFSET(InputPriceData!$D$15,CalculationsAndCharts!$A140+$A$11,IF($C$5,8,0),1,1))) -> 3272.17 | F140: =IF(A140>$B$30,NA(),IF(A140>$A$8,"",OFFSET(InputPriceData!$E$15,CalculationsAndCharts!$A140+$A$11,IF($C$5,8,0),1,1))) -> 3220.26 | G140: =IF(A140>$B$30,NA(),IF(A140>$A$8,"",OFFSET(InputPriceData!$F$15,CalculationsAndCharts!$A140+$A$11,IF($C$5,8,0),1,1))) -> 3271.12 | H140: -0.9945218954 | I140: 3271.12 | L140: 24.394 | M140: 29.57666667 | N140: 30.41714286 | O140: 26.0025 | P140: 24.64888889 | Q140: 24.112 | R140: 26.13727273 | S140: 28.58833333 | T140: 29.81692308 | U140: 32.94428571 | V140: 38.47466667 | W140: 41.45 | X140: 46.01588235 | Y140: 49.08055556 | Z140: 53.11842105 | AA140: 55.0325 | AB140: 59.13142857 | AC140: 63.50090909 | AD140: 68.1673913 | AE140: 74.40541667 | AF140: 81.912 | AG140: 85.96769231 | AH140: 90.96111111 | AI140: 92.70642857 | AJ140: 94.79448276 | AK140: 97.414 | AL140: 3245.1175 | AM140: 3202.952609 | AN140: 1.316438189 | AW140: 5117260000
A141: 109 | B141: =IF(A141>$B$30,NA(),IF($A141>$A$8,"",OFFSET(InputPriceData!$B$15,$A141+$A$11,0,1,1))) -> 2020-07-30 | C141: =IF(A141>$B$30,NA(),IF($A141>$A$8,"",OFFSET(InputPriceData!$G$15,CalculationsAndCharts!$A141+$A$11,IF($C$5,8,0),1,1))) -> 4254010000 | D141: =IF(A141>$B$30,NA(),IF(A141>$A$8,"",OFFSET(InputPriceData!$C$15,CalculationsAndCharts!$A141+$A$11,IF($C$5,8,0),1,1))) -> 3231.76 | E141: =IF(A141>$B$30,NA(),IF(A141>$A$8,"",OFFSET(InputPriceData!$D$15,CalculationsAndCharts!$A141+$A$11,IF($C$5,8,0),1,1))) -> 3250.92 | F141: =IF(A141>$B$30,NA(),IF(A141>$A$8,"",OFFSET(InputPriceData!$E$15,CalculationsAndCharts!$A141+$A$11,IF($C$5,8,0),1,1))) -> 3204.13 | G141: =IF(A141>$B$30,NA(),IF(A141>$A$8,"",OFFSET(InputPriceData!$F$15,CalculationsAndCharts!$A141+$A$11,IF($C$5,8,0),1,1))) -> 3246.22 | H141: -0.9945218954 | I141: 3246.22 | L141: 10.592 | M141: 10.58666667 | N141: 4.817142857 | O141: 2.83 | P141: 1.891111111 | Q141: 3.851 | R141: 6.287272727 | S141: 7.401666667 | T141: 10.57846154 | U141: 16.32285714 | V141: 19.31333333 | W141: 23.991875 | X141: 27.06764706 | Y141: 31.16944444 | Z141: 33.02894737 | AA141: 37.188 | AB141: 41.6247619 | AC141: 46.36590909 | AD141: 52.74043478 | AE141: 60.425 | AF141: 64.5064 | AG141: 69.55961538 | AH141: 71.24 | AI141: 73.28 | AJ141: 75.87310345 | AK141: 77.70666667 | AL141: 3243.39 | AM141: 3193.479565 | AN141: 1.562885679 | AW141: 4254010000
A142: 110 | B142: =IF(A142>$B$30,NA(),IF($A142>$A$8,"",OFFSET(InputPriceData!$B$15,$A142+$A$11,0,1,1))) -> 2020-07-29 | C142: =IF(A142>$B$30,NA(),IF($A142>$A$8,"",OFFSET(InputPriceData!$G$15,CalculationsAndCharts!$A142+$A$11,IF($C$5,8,0),1,1))) -> 4676300000 | D142: =IF(A142>$B$30,NA(),IF(A142>$A$8,"",OFFSET(InputPriceData!$C$15,CalculationsAndCharts!$A142+$A$11,IF($C$5,8,0),1,1))) -> 3227.22 | E142: =IF(A142>$B$30,NA(),IF(A142>$A$8,"",OFFSET(InputPriceData!$D$15,CalculationsAndCharts!$A142+$A$11,IF($C$5,8,0),1,1))) -> 3264.74 | F142: =IF(A142>$B$30,NA(),IF(A142>$A$8,"",OFFSET(InputPriceData!$E$15,CalculationsAndCharts!$A142+$A$11,IF($C$5,8,0),1,1))) -> 3227.22 | G142: =IF(A142>$B$30,NA(),IF(A142>$A$8,"",OFFSET(InputPriceData!$F$15,CalculationsAndCharts!$A142+$A$11,IF($C$5,8,0),1,1))) -> 3258.44 | H142: -0.9510565163 | I142: 3258.44 | L142: 24.924 | M142: 17.84 | N142: 15.45428571 | O142: 14.3475 | P142: 16.49888889 | Q142: 19.136 | R142: 20.29454545 | S142: 23.68 | T142: 29.79846154 | U142: 32.91285714 | V142: 37.81133333 | W142: 40.979375 | X142: 45.22294118 | Y142: 47.08388889 | Z142: 51.36526316 | AA142: 55.926 | AB142: 60.79380952 | AC142: 67.35772727 | AD142: 75.27217391 | AE142: 79.41416667 | AF142: 84.562 | AG142: 86.2 | AH142: 88.21407407 | AI142: 90.80285714 | AJ142: 92.6062069 | AK142: 94.351 | AL142: 3244.0925 | AM142: 3183.167826 | AN142: 1.913963612 | AW142: 4676300000
A143: 111 | B143: =IF(A143>$B$30,NA(),IF($A143>$A$8,"",OFFSET(InputPriceData!$B$15,$A143+$A$11,0,1,1))) -> 2020-07-28 | C143: =IF(A143>$B$30,NA(),IF($A143>$A$8,"",OFFSET(InputPriceData!$G$15,CalculationsAndCharts!$A143+$A$11,IF($C$5,8,0),1,1))) -> 4027890000 | D143: =IF(A143>$B$30,NA(),IF(A143>$A$8,"",OFFSET(InputPriceData!$C$15,CalculationsAndCharts!$A143+$A$11,IF($C$5,8,0),1,1))) -> 3234.27 | E143: =IF(A143>$B$30,NA(),IF(A143>$A$8,"",OFFSET(InputPriceData!$D$15,CalculationsAndCharts!$A143+$A$11,IF($C$5,8,0),1,1))) -> 3243.72 | F143: =IF(A143>$B$30,NA(),IF(A143>$A$8,"",OFFSET(InputPriceData!$E$15,CalculationsAndCharts!$A143+$A$11,IF($C$5,8,0),1,1))) -> 3216.17 | G143: =IF(A143>$B$30,NA(),IF(A143>$A$8,"",OFFSET(InputPriceData!$F$15,CalculationsAndCharts!$A143+$A$11,IF($C$5,8,0),1,1))) -> 3218.44 | H143: -0.8660254038 | I143: 3218.44 | L143: -18.592 | M143: -21.97 | N143: -23.60285714 | O143: -21.43875 | P143: -18.73777778 | Q143: -17.676 | R143: -14.16727273 | S143: -7.718333333 | T143: -4.555384615 | U143: 0.5121428571 | V143: 3.711333333 | W143: 8.049375 | X143: 9.853529412 | Y143: 14.21888889 | Z143: 18.86947368 | AA143: 23.8335 | AB143: 30.5652381 | AC143: 38.69363636 | AD143: 42.86695652 | AE143: 48.08541667 | AF143: 49.648 | AG143: 51.60692308 | AH143: 54.16592593 | AI143: 55.91357143 | AJ143: 57.60448276 | AK143: 58.80766667 | AL143: 3239.87875 | AM143: 3175.573043 | AN143: 2.025011097 | AX143: 4027890000
A144: 112 | B144: =IF(A144>$B$30,NA(),IF($A144>$A$8,"",OFFSET(InputPriceData!$B$15,$A144+$A$11,0,1,1))) -> 2020-07-27 | C144: =IF(A144>$B$30,NA(),IF($A144>$A$8,"",OFFSET(InputPriceData!$G$15,CalculationsAndCharts!$A144+$A$11,IF($C$5,8,0),1,1))) -> 3963910000 | D144: =IF(A144>$B$30,NA(),IF(A144>$A$8,"",OFFSET(InputPriceData!$C$15,CalculationsAndCharts!$A144+$A$11,IF($C$5,8,0),1,1))) -> 3219.84 | E144: =IF(A144>$B$30,NA(),IF(A144>$A$8,"",OFFSET(InputPriceData!$D$15,CalculationsAndCharts!$A144+$A$11,IF($C$5,8,0),1,1))) -> 3241.43 | F144: =IF(A144>$B$30,NA(),IF(A144>$A$8,"",OFFSET(InputPriceData!$E$15,CalculationsAndCharts!$A144+$A$11,IF($C$5,8,0),1,1))) -> 3214.25 | G144: =IF(A144>$B$30,NA(),IF(A144>$A$8,"",OFFSET(InputPriceData!$F$15,CalculationsAndCharts!$A144+$A$11,IF($C$5,8,0),1,1))) -> 3239.41 | H144: -0.7431448255 | I144: 3239.41 | L144: -5.394 | M144: -6.566666667 | N144: -3.531428571 | O144: -0.11 | P144: 1.33 | Q144: 5.386 | R144: 12.55 | S144: 16.035 | T144: 21.52153846 | U144: 24.94642857 | V144: 29.556 | W144: 31.439375 | X144: 36.02529412 | Y144: 40.88777778 | Z144: 46.05789474 | AA144: 53.0635 | AB144: 61.50619048 | AC144: 65.78545455 | AD144: 71.14608696 | AE144: 72.68666667 | AF144: 74.6412 | AG144: 77.21923077 | AH144: 78.95444444 | AI144: 80.63178571 | AJ144: 81.80551724 | AK144: 84.83933333 | AL144: 3239.52 | AM144: 3168.263913 | AN144: 2.249057809 | AW144: 3963910000
A145: 113 | B145: =IF(A145>$B$30,NA(),IF($A145>$A$8,"",OFFSET(InputPriceData!$B$15,$A145+$A$11,0,1,1))) -> 2020-07-24 | C145: =IF(A145>$B$30,NA(),IF($A145>$A$8,"",OFFSET(InputPriceData!$G$15,CalculationsAndCharts!$A145+$A$11,IF($C$5,8,0),1,1))) -> 3894900000 | D145: =IF(A145>$B$30,NA(),IF(A145>$A$8,"",OFFSET(InputPriceData!$C$15,CalculationsAndCharts!$A145+$A$11,IF($C$5,8,0),1,1))) -> 3218.58 | E145: =IF(A145>$B$30,NA(),IF(A145>$A$8,"",OFFSET(InputPriceData!$D$15,CalculationsAndCharts!$A145+$A$11,IF($C$5,8,0),1,1))) -> 3227.26 | F145: =IF(A145>$B$30,NA(),IF(A145>$A$8,"",OFFSET(InputPriceData!$E$15,CalculationsAndCharts!$A145+$A$11,IF($C$5,8,0),1,1))) -> 3200.05 | G145: =IF(A145>$B$30,NA(),IF(A145>$A$8,"",OFFSET(InputPriceData!$F$15,CalculationsAndCharts!$A145+$A$11,IF($C$5,8,0),1,1))) -> 3215.63 | H145: -0.5877852523 | I145: 3215.63 | L145: -31.66 | M145: -27.9 | N145: -23.90571429 | O145: -22.28375 | P145: -17.79555556 | Q145: -9.975 | R145: -6.287272727 | S145: -0.465 | T145: 3.085384615 | U145: 7.887142857 | V145: 9.755333333 | W145: 14.496875 | X145: 19.51294118 | Y145: 24.83666667 | Z145: 32.07631579 | AA145: 40.8015 | AB145: 45.13809524 | AC145: 50.6 | AD145: 52.06695652 | AE145: 53.97125 | AF145: 56.528 | AG145: 58.21115385 | AH145: 59.83814815 | AI145: 60.94714286 | AJ145: 63.98482759 | AK145: 67.66266667 | AL145: 3237.91375 | AM145: 3163.563043 | AN145: 2.350220479 | AX145: 3894900000
A146: 114 | B146: =IF(A146>$B$30,NA(),IF($A146>$A$8,"",OFFSET(InputPriceData!$B$15,$A146+$A$11,0,1,1))) -> 2020-07-23 | C146: =IF(A146>$B$30,NA(),IF($A146>$A$8,"",OFFSET(InputPriceData!$G$15,CalculationsAndCharts!$A146+$A$11,IF($C$5,8,0),1,1))) -> 4290460000 | D146: =IF(A146>$B$30,NA(),IF(A146>$A$8,"",OFFSET(InputPriceData!$C$15,CalculationsAndCharts!$A146+$A$11,IF($C$5,8,0),1,1))) -> 3271.64 | E146: =IF(A146>$B$30,NA(),IF(A146>$A$8,"",OFFSET(InputPriceData!$D$15,CalculationsAndCharts!$A146+$A$11,IF($C$5,8,0),1,1))) -> 3279.99 | F146: =IF(A146>$B$30,NA(),IF(A146>$A$8,"",OFFSET(InputPriceData!$E$15,CalculationsAndCharts!$A146+$A$11,IF($C$5,8,0),1,1))) -> 3222.66 | G146: =IF(A146>$B$30,NA(),IF(A146>$A$8,"",OFFSET(InputPriceData!$F$15,CalculationsAndCharts!$A146+$A$11,IF($C$5,8,0),1,1))) -> 3235.66 | H146: -0.4067366431 | I146: 3235.66 | L146: -13.45 | M146: -7.86 | N146: -5.437142857 | O146: 0.01 | P146: 8.946666667 | Q146: 13.114 | R146: 19.52272727 | S146: 23.3725 | T146: 28.52384615 | U146: 30.48214286 | V146: 35.49333333 | W146: 40.7625 | X146: 46.32764706 | Y146: 53.88833333 | Z146: 62.97894737 | AA146: 67.425 | AB146: 73.03952381 | AC146: 74.46363636 | AD146: 76.34782609 | AE146: 78.91333333 | AF146: 80.5696 | AG146: 82.16961538 | AH146: 83.23444444 | AI146: 86.3 | AJ146: 90.02586207 | AK146: 94.81033333 | AL146: 3235.65 | AM146: 3159.312174 | AN146: 2.416279933 | AX146: 4290460000
A147: 115 | B147: =IF(A147>$B$30,NA(),IF($A147>$A$8,"",OFFSET(InputPriceData!$B$15,$A147+$A$11,0,1,1))) -> 2020-07-22 | C147: =IF(A147>$B$30,NA(),IF($A147>$A$8,"",OFFSET(InputPriceData!$G$15,CalculationsAndCharts!$A147+$A$11,IF($C$5,8,0),1,1))) -> 4255190000 | D147: =IF(A147>$B$30,NA(),IF(A147>$A$8,"",OFFSET(InputPriceData!$C$15,CalculationsAndCharts!$A147+$A$11,IF($C$5,8,0),1,1))) -> 3254.86 | E147: =IF(A147>$B$30,NA(),IF(A147>$A$8,"",OFFSET(InputPriceData!$D$15,CalculationsAndCharts!$A147+$A$11,IF($C$5,8,0),1,1))) -> 3279.32 | F147: =IF(A147>$B$30,NA(),IF(A147>$A$8,"",OFFSET(InputPriceData!$E$15,CalculationsAndCharts!$A147+$A$11,IF($C$5,8,0),1,1))) -> 3253.1 | G147: =IF(A147>$B$30,NA(),IF(A147>$A$8,"",OFFSET(InputPriceData!$F$15,CalculationsAndCharts!$A147+$A$11,IF($C$5,8,0),1,1))) -> 3276.02 | H147: -0.2079116908 | I147: 3276.02 | L147: 30.928 | M147: 34.01666667 | N147: 40.37142857 | O147: 50.425 | P147: 54.93111111 | Q147: 61.835 | R147: 65.85727273 | S147: 71.26083333 | T147: 73.18692308 | U147: 78.38857143 | V147: 83.84 | W147: 89.583125 | X147: 97.41823529 | Y147: 106.8377778 | Z147: 111.3336842 | AA147: 117.0515 | AB147: 118.3695238 | AC147: 120.1781818 | AD147: 122.7043478 | AE147: 124.2866667 | AF147: 125.8164 | AG147: 126.7957692 | AH147: 129.8562963 | AI147: 133.6010714 | AJ147: 138.4396552 | AK147: 136.6876667 | AL147: 3225.595 | AM147: 3153.315652 | AN147: 2.29216976 | AW147: 4255190000
A148: 116 | B148: =IF(A148>$B$30,NA(),IF($A148>$A$8,"",OFFSET(InputPriceData!$B$15,$A148+$A$11,0,1,1))) -> 2020-07-21 | C148: =IF(A148>$B$30,NA(),IF($A148>$A$8,"",OFFSET(InputPriceData!$G$15,CalculationsAndCharts!$A148+$A$11,IF($C$5,8,0),1,1))) -> 4547960000 | D148: =IF(A148>$B$30,NA(),IF(A148>$A$8,"",OFFSET(InputPriceData!$C$15,CalculationsAndCharts!$A148+$A$11,IF($C$5,8,0),1,1))) -> 3268.52 | E148: =IF(A148>$B$30,NA(),IF(A148>$A$8,"",OFFSET(InputPriceData!$D$15,CalculationsAndCharts!$A148+$A$11,IF($C$5,8,0),1,1))) -> 3277.29 | F148: =IF(A148>$B$30,NA(),IF(A148>$A$8,"",OFFSET(InputPriceData!$E$15,CalculationsAndCharts!$A148+$A$11,IF($C$5,8,0),1,1))) -> 3247.77 | G148: =IF(A148>$B$30,NA(),IF(A148>$A$8,"",OFFSET(InputPriceData!$F$15,CalculationsAndCharts!$A148+$A$11,IF($C$5,8,0),1,1))) -> 3257.3 | H148: 8.821719397e-15 | I148: 3257.3 | L148: 22.1 | M148: 28.38 | N148: 38.90857143 | O148: 43.0775 | P148: 49.98555556 | Q148: 53.723 | R148: 59.01909091 | S148: 60.56583333 | T148: 65.69846154 | U148: 71.10857143 | V148: 76.83533333 | W148: 84.786875 | X148: 94.40235294 | Y148: 98.79888889 | Z148: 104.4921053 | AA148: 105.568 | AB148: 107.1809524 | AC148: 109.5618182 | AD148: 110.9704348 | AE148: 112.33875 | AF148: 113.1476 | AG148: 116.1307692 | AH148: 119.8292593 | AI148: 124.6639286 | AJ148: 122.6810345 | AK148: 120.2623333 | AL148: 3214.2225 | AM148: 3146.329565 | AN148: 2.157845622 | AX148: 4547960000
A149: 117 | B149: =IF(A149>$B$30,NA(),IF($A149>$A$8,"",OFFSET(InputPriceData!$B$15,$A149+$A$11,0,1,1))) -> 2020-07-20 | C149: =IF(A149>$B$30,NA(),IF($A149>$A$8,"",OFFSET(InputPriceData!$G$15,CalculationsAndCharts!$A149+$A$11,IF($C$5,8,0),1,1))) -> 3971200000 | D149: =IF(A149>$B$30,NA(),IF(A149>$A$8,"",OFFSET(InputPriceData!$C$15,CalculationsAndCharts!$A149+$A$11,IF($C$5,8,0),1,1))) -> 3224.29 | E149: =IF(A149>$B$30,NA(),IF(A149>$A$8,"",OFFSET(InputPriceData!$D$15,CalculationsAndCharts!$A149+$A$11,IF($C$5,8,0),1,1))) -> 3258.61 | F149: =IF(A149>$B$30,NA(),IF(A149>$A$8,"",OFFSET(InputPriceData!$E$15,CalculationsAndCharts!$A149+$A$11,IF($C$5,8,0),1,1))) -> 3215.16 | G149: =IF(A149>$B$30,NA(),IF(A149>$A$8,"",OFFSET(InputPriceData!$F$15,CalculationsAndCharts!$A149+$A$11,IF($C$5,8,0),1,1))) -> 3251.84 | H149: 0.2079116908 | I149: 3251.84 | L149: 28.596 | M149: 39.93333333 | N149: 43.77142857 | O149: 50.77375 | P149: 54.23222222 | Q149: 59.461 | R149: 60.61181818 | S149: 65.71333333 | T149: 71.11846154 | U149: 76.86357143 | V149: 84.97933333 | W149: 94.8425 | X149: 99.15058824 | Y149: 104.8372222 | Z149: 105.6642105 | AA149: 107.08 | AB149: 109.3190476 | AC149: 110.5545455 | AD149: 111.7630435 | AE149: 112.4020833 | AF149: 115.316 | AG149: 118.9780769 | AH149: 123.8211111 | AI149: 121.6025 | AJ149: 118.9493103 | AK149: 115.6326667 | AL149: 3201.06625 | AM149: 3140.076957 | AN149: 1.942286585 | AW149: 3971200000
A150: 118 | B150: =IF(A150>$B$30,NA(),IF($A150>$A$8,"",OFFSET(InputPriceData!$B$15,$A150+$A$11,0,1,1))) -> 2020-07-17 | C150: =IF(A150>$B$30,NA(),IF($A150>$A$8,"",OFFSET(InputPriceData!$G$15,CalculationsAndCharts!$A150+$A$11,IF($C$5,8,0),1,1))) -> 3993830000 | D150: =IF(A150>$B$30,NA(),IF(A150>$A$8,"",OFFSET(InputPriceData!$C$15,CalculationsAndCharts!$A150+$A$11,IF($C$5,8,0),1,1))) -> 3224.21 | E150: =IF(A150>$B$30,NA(),IF(A150>$A$8,"",OFFSET(InputPriceData!$D$15,CalculationsAndCharts!$A150+$A$11,IF($C$5,8,0),1,1))) -> 3233.52 | F150: =IF(A150>$B$30,NA(),IF(A150>$A$8,"",OFFSET(InputPriceData!$E$15,CalculationsAndCharts!$A150+$A$11,IF($C$5,8,0),1,1))) -> 3205.65 | G150: =IF(A150>$B$30,NA(),IF(A150>$A$8,"",OFFSET(InputPriceData!$F$15,CalculationsAndCharts!$A150+$A$11,IF($C$5,8,0),1,1))) -> 3224.73 | H150: 0.4067366431 | I150: 3224.73 | L150: 20.81 | M150: 23.95666667 | N150: 30.91714286 | O150: 33.90125 | P150: 38.95777778 | Q150: 39.563 | R150: 44.57727273 | S150: 49.935 | T150: 55.66615385 | U150: 63.93928571 | V150: 74.05533333 | W150: 78.2375 | X150: 83.89411765 | Y150: 84.42444444 | Z150: 85.60578947 | AA150: 87.675 | AB150: 88.70904762 | AC150: 89.73318182 | AD150: 90.17913043 | AE150: 93.01083333 | AF150: 96.6272 | AG150: 101.4734615 | AH150: 98.9962963 | AI150: 96.0875 | AJ150: 92.51 | AK150: 90.453 | AL150: 3190.82875 | AM150: 3134.55087 | AN150: 1.795404917 | AW150: 3993830000
A151: 119 | B151: =IF(A151>$B$30,NA(),IF($A151>$A$8,"",OFFSET(InputPriceData!$B$15,$A151+$A$11,0,1,1))) -> 2020-07-16 | C151: =IF(A151>$B$30,NA(),IF($A151>$A$8,"",OFFSET(InputPriceData!$G$15,CalculationsAndCharts!$A151+$A$11,IF($C$5,8,0),1,1))) -> 3961230000 | D151: =IF(A151>$B$30,NA(),IF(A151>$A$8,"",OFFSET(InputPriceData!$C$15,CalculationsAndCharts!$A151+$A$11,IF($C$5,8,0),1,1))) -> 3208.36 | E151: =IF(A151>$B$30,NA(),IF(A151>$A$8,"",OFFSET(InputPriceData!$D$15,CalculationsAndCharts!$A151+$A$11,IF($C$5,8,0),1,1))) -> 3220.39 | F151: =IF(A151>$B$30,NA(),IF(A151>$A$8,"",OFFSET(InputPriceData!$E$15,CalculationsAndCharts!$A151+$A$11,IF($C$5,8,0),1,1))) -> 3198.59 | G151: =IF(A151>$B$30,NA(),IF(A151>$A$8,"",OFFSET(InputPriceData!$F$15,CalculationsAndCharts!$A151+$A$11,IF($C$5,8,0),1,1))) -> 3215.57 | H151: 0.5877852523 | I151: 3215.57 | L151: 19.588 | M151: 26.91 | N151: 29.58428571 | O151: 34.6675 | P151: 34.79888889 | Q151: 39.875 | R151: 45.31454545 | S151: 51.145 | T151: 59.69769231 | U151: 70.185 | V151: 74.29333333 | W151: 79.9775 | X151: 80.23058824 | Y151: 81.20166667 | Z151: 83.12947368 | AA151: 83.9845 | AB151: 84.84619048 | AC151: 85.11818182 | AD151: 87.89478261 | AE151: 91.49333333 | AF151: 96.3724 | AG151: 93.64384615 | AH151: 90.4862963 | AI151: 86.65392857 | AJ151: 84.41206897 | AK151: 85.039 | AL151: 3180.9025 | AM151: 3127.675217 | AN151: 1.70181617 | AW151: 3961230000
A152: 120 | B152: =IF(A152>$B$30,NA(),IF($A152>$A$8,"",OFFSET(InputPriceData!$B$15,$A152+$A$11,0,1,1))) -> 2020-07-15 | C152: =IF(A152>$B$30,NA(),IF($A152>$A$8,"",OFFSET(InputPriceData!$G$15,CalculationsAndCharts!$A152+$A$11,IF($C$5,8,0),1,1))) -> 4669760000 | D152: =IF(A152>$B$30,NA(),IF(A152>$A$8,"",OFFSET(InputPriceData!$C$15,CalculationsAndCharts!$A152+$A$11,IF($C$5,8,0),1,1))) -> 3225.98 | E152: =IF(A152>$B$30,NA(),IF(A152>$A$8,"",OFFSET(InputPriceData!$D$15,CalculationsAndCharts!$A152+$A$11,IF($C$5,8,0),1,1))) -> 3238.28 | F152: =IF(A152>$B$30,NA(),IF(A152>$A$8,"",OFFSET(InputPriceData!$E$15,CalculationsAndCharts!$A152+$A$11,IF($C$5,8,0),1,1))) -> 3200.76 | G152: =IF(A152>$B$30,NA(),IF(A152>$A$8,"",OFFSET(InputPriceData!$F$15,CalculationsAndCharts!$A152+$A$11,IF($C$5,8,0),1,1))) -> 3226.56 | H152: 0.7431448255 | I152: 3226.56 | L152: 43.282 | M152: 45.505 | N152: 50.61 | O152: 50.13875 | P152: 55.29555556 | Q152: 60.836 | R152: 66.78454545 | S152: 75.6625 | T152: 86.57384615 | U152: 90.59 | V152: 96.29933333 | W152: 96.235 | X152: 96.96823529 | Y152: 98.73777778 | Z152: 99.39473684 | AA152: 100.0785 | AB152: 100.1614286 | AC152: 102.88 | AD152: 106.4613043 | AE152: 111.3779167 | AF152: 108.3796 | AG152: 104.9565385 | AH152: 100.8533333 | AI152: 98.41678571 | AJ152: 98.96137931 | AK152: 99.119 | AL152: 3176.42125 | AM152: 3120.098696 | AN152: 1.805152972 | AW152: 4669760000
A153: 121 | B153: =IF(A153>$B$30,NA(),IF($A153>$A$8,"",OFFSET(InputPriceData!$B$15,$A153+$A$11,0,1,1))) -> 2020-07-14 | C153: =IF(A153>$B$30,NA(),IF($A153>$A$8,"",OFFSET(InputPriceData!$G$15,CalculationsAndCharts!$A153+$A$11,IF($C$5,8,0),1,1))) -> 4476170000 | D153: =IF(A153>$B$30,NA(),IF(A153>$A$8,"",OFFSET(InputPriceData!$C$15,CalculationsAndCharts!$A153+$A$11,IF($C$5,8,0),1,1))) -> 3141.11 | E153: =IF(A153>$B$30,NA(),IF(A153>$A$8,"",OFFSET(InputPriceData!$D$15,CalculationsAndCharts!$A153+$A$11,IF($C$5,8,0),1,1))) -> 3200.95 | F153: =IF(A153>$B$30,NA(),IF(A153>$A$8,"",OFFSET(InputPriceData!$E$15,CalculationsAndCharts!$A153+$A$11,IF($C$5,8,0),1,1))) -> 3127.66 | G153: =IF(A153>$B$30,NA(),IF(A153>$A$8,"",OFFSET(InputPriceData!$F$15,CalculationsAndCharts!$A153+$A$11,IF($C$5,8,0),1,1))) -> 3197.52 | H153: 0.8660254038 | I153: 3197.52 | L153: 25.566 | M153: 30.005 | N153: 28.26142857 | O153: 33.1675 | P153: 38.55555556 | Q153: 44.423 | R153: 53.50090909 | S153: 64.74833333 | T153: 68.51846154 | U153: 74.13785714 | V153: 73.61066667 | W153: 73.98875 | X153: 75.50588235 | Y153: 75.87666667 | Z153: 76.30578947 | AA153: 76.1295 | AB153: 78.73904762 | AC153: 82.26045455 | AD153: 87.18043478 | AE153: 83.85541667 | AF153: 80.1148 | AG153: 75.69230769 | AH153: 73.02185185 | AI153: 73.45571429 | AJ153: 73.49689655 | AK153: 74.937 | AL153: 3164.3525 | AM153: 3110.339565 | AN153: 1.736560708 | AW153: 4476170000
A154: 122 | B154: =IF(A154>$B$30,NA(),IF($A154>$A$8,"",OFFSET(InputPriceData!$B$15,$A154+$A$11,0,1,1))) -> 2020-07-13 | C154: =IF(A154>$B$30,NA(),IF($A154>$A$8,"",OFFSET(InputPriceData!$G$15,CalculationsAndCharts!$A154+$A$11,IF($C$5,8,0),1,1))) -> 4890780000 | D154: =IF(A154>$B$30,NA(),IF(A154>$A$8,"",OFFSET(InputPriceData!$C$15,CalculationsAndCharts!$A154+$A$11,IF($C$5,8,0),1,1))) -> 3205.08 | E154: =IF(A154>$B$30,NA(),IF(A154>$A$8,"",OFFSET(InputPriceData!$D$15,CalculationsAndCharts!$A154+$A$11,IF($C$5,8,0),1,1))) -> 3235.32 | F154: =IF(A154>$B$30,NA(),IF(A154>$A$8,"",OFFSET(InputPriceData!$E$15,CalculationsAndCharts!$A154+$A$11,IF($C$5,8,0),1,1))) -> 3149.43 | G154: =IF(A154>$B$30,NA(),IF(A154>$A$8,"",OFFSET(InputPriceData!$F$15,CalculationsAndCharts!$A154+$A$11,IF($C$5,8,0),1,1))) -> 3155.22 | H154: 0.9510565163 | I154: 3155.22 | L154: -6.294 | M154: -9.328333333 | N154: -4.394285714 | O154: 1.075 | P154: 7.058888889 | Q154: 16.551 | R154: 28.33454545 | S154: 31.92833333 | T154: 37.54076923 | U154: 36.56857143 | V154: 36.62133333 | W154: 37.925 | X154: 38.04 | Y154: 38.245 | Z154: 37.83631579 | AA154: =IF($A154<=AA$30,$I154-AVERAGE(OFFSET($I154,0,0,AA$31,1)),NA()) -> 40.376 | AB154: 43.87761905 | AC154: 48.84318182 | AD154: 45.20130435 | AE154: 41.15291667 | AF154: 36.42 | AG154: 33.53038462 | AH154: 33.8762963 | AI154: 33.82178571 | AJ154: 35.22103448 | AK154: 37.36333333 | AL154: 3154.145 | AM154: 3110.018696 | AN154: 1.418843701 | AX154: 4890780000
A155: 123 | B155: =IF(A155>$B$30,NA(),IF($A155>$A$8,"",OFFSET(InputPriceData!$B$15,$A155+$A$11,0,1,1))) -> 2020-07-10 | C155: =IF(A155>$B$30,NA(),IF($A155>$A$8,"",OFFSET(InputPriceData!$G$15,CalculationsAndCharts!$A155+$A$11,IF($C$5,8,0),1,1))) -> 4515340000 | D155: =IF(A155>$B$30,NA(),IF(A155>$A$8,"",OFFSET(InputPriceData!$C$15,CalculationsAndCharts!$A155+$A$11,IF($C$5,8,0),1,1))) -> 3152.47 | E155: =IF(A155>$B$30,NA(),IF(A155>$A$8,"",OFFSET(InputPriceData!$D$15,CalculationsAndCharts!$A155+$A$11,IF($C$5,8,0),1,1))) -> 3186.82 | F155: =IF(A155>$B$30,NA(),IF(A155>$A$8,"",OFFSET(InputPriceData!$E$15,CalculationsAndCharts!$A155+$A$11,IF($C$5,8,0),1,1))) -> 3136.22 | G155: =IF(A155>$B$30,NA(),IF(A155>$A$8,"",OFFSET(InputPriceData!$F$15,CalculationsAndCharts!$A155+$A$11,IF($C$5,8,0),1,1))) -> 3185.04 | H155: 0.9945218954 | I155: 3185.04 | L155: =IF($A155<=L$30,$I155-AVERAGE(OFFSET($I155,0,0,L$31,1)),NA()) -> 18.626 | M155: 24.69333333 | N155: 31.04857143 | O155: 37.76125 | P155: 48.21 | Q155: 60.988 | R155: 64.65090909 | S155: 70.48916667 | T155: 69.20153846 | U155: 69.05714286 | V155: 70.27333333 | W155: 70.2375 | X155: 70.31470588 | Y155: 69.75833333 | Z155: 72.32105263 | AA155: 75.8915 | AB155: 80.98904762 | AC155: 77.07590909 | AD155: 72.76217391 | AE155: 67.7575 | AF155: 64.6916 | AG155: 64.99923077 | AH155: 64.89444444 | AI155: 66.29892857 | AJ155: 68.47172414 | AK155: 70.88033333 | AL155: 3147.27875 | AM155: 3112.277826 | AN155: 1.124607952 | AW155: 4515340000
A156: 124 | B156: =IF(A156>$B$30,NA(),IF($A156>$A$8,"",OFFSET(InputPriceData!$B$15,$A156+$A$11,0,1,1))) -> 2020-07-09 | C156: =IF(A156>$B$30,NA(),IF($A156>$A$8,"",OFFSET(InputPriceData!$G$15,CalculationsAndCharts!$A156+$A$11,IF($C$5,8,0),1,1))) -> 4829020000 | D156: =IF(A156>$B$30,NA(),IF(A156>$A$8,"",OFFSET(InputPriceData!$C$15,CalculationsAndCharts!$A156+$A$11,IF($C$5,8,0),1,1))) -> 3176.17 | E156: =IF(A156>$B$30,NA(),IF(A156>$A$8,"",OFFSET(InputPriceData!$D$15,CalculationsAndCharts!$A156+$A$11,IF($C$5,8,0),1,1))) -> 3179.78 | F156: =IF(A156>$B$30,NA(),IF(A156>$A$8,"",OFFSET(InputPriceData!$E$15,CalculationsAndCharts!$A156+$A$11,IF($C$5,8,0),1,1))) -> 3115.7 | G156: =IF(A156>$B$30,NA(),IF(A156>$A$8,"",OFFSET(InputPriceData!$F$15,CalculationsAndCharts!$A156+$A$11,IF($C$5,8,0),1,1))) -> 3152.05 | H156: 0.9945218954 | I156: 3152.05 | L156: -3.358 | M156: 3.233333333 | N156: 10.16571429 | O156: 21.24625 | P156: 34.77444444 | Q156: 38.126 | R156: 43.90727273 | S156: 41.97833333 | T156: 41.37923077 | U156: 42.30285714 | V156: 41.93 | W156: 41.719375 | X156: 40.87176471 | Y156: 43.34888889 | Z156: 46.89578947 | AA156: 52.0485 | AB156: 47.75619048 | AC156: 43.07954545 | AD156: 37.71347826 | AE156: 34.39708333 | AF156: 34.6092 | AG156: 34.40038462 | AH156: 35.76444444 | AI156: 37.92714286 | AJ156: 40.33448276 | AK156: 43.06733333 | AL156: 3130.80375 | AM156: 3114.336522 | AN156: 0.5287555839 | AX156: 4829020000
A157: 125 | B157: =IF(A157>$B$30,NA(),IF($A157>$A$8,"",OFFSET(InputPriceData!$B$15,$A157+$A$11,0,1,1))) -> 2020-07-08 | C157: =IF(A157>$B$30,NA(),IF($A157>$A$8,"",OFFSET(InputPriceData!$G$15,CalculationsAndCharts!$A157+$A$11,IF($C$5,8,0),1,1))) -> 4927700000 | D157: =IF(A157>$B$30,NA(),IF(A157>$A$8,"",OFFSET(InputPriceData!$C$15,CalculationsAndCharts!$A157+$A$11,IF($C$5,8,0),1,1))) -> 3153.07 | E157: =IF(A157>$B$30,NA(),IF(A157>$A$8,"",OFFSET(InputPriceData!$D$15,CalculationsAndCharts!$A157+$A$11,IF($C$5,8,0),1,1))) -> 3171.8 | F157: =IF(A157>$B$30,NA(),IF(A157>$A$8,"",OFFSET(InputPriceData!$E$15,CalculationsAndCharts!$A157+$A$11,IF($C$5,8,0),1,1))) -> 3136.53 | G157: =IF(A157>$B$30,NA(),IF(A157>$A$8,"",OFFSET(InputPriceData!$F$15,CalculationsAndCharts!$A157+$A$11,IF($C$5,8,0),1,1))) -> 3169.94 | H157: 0.9510565163 | I157: 3169.94 | L157: 21.77 | M157: 29.75 | N157: 42.17142857 | O157: 57.01125 | P157: 60.25222222 | Q157: 66.188 | R157: 63.68454545 | S157: 62.7175 | T157: 63.44692308 | U157: 62.815 | V157: 62.39066667 | W157: 61.31625 | X157: 63.78882353 | Y157: 67.39111111 | Z157: 72.67789474 | AA157: 68.034 | AB157: 63.02095238 | AC157: 57.31772727 | AD157: 53.7826087 | AE157: 53.94125 | AF157: 53.6664 | AG157: 55.03 | AH157: 57.22185185 | AI157: 59.665 | AJ157: 62.44241379 | AK157: 64.82133333 | AL157: 3112.92875 | AM157: 3116.157391 | AN157: -0.1036096993 | AW157: 4927700000
A158: 126 | B158: =IF(A158>$B$30,NA(),IF($A158>$A$8,"",OFFSET(InputPriceData!$B$15,$A158+$A$11,0,1,1))) -> 2020-07-07 | C158: =IF(A158>$B$30,NA(),IF($A158>$A$8,"",OFFSET(InputPriceData!$G$15,CalculationsAndCharts!$A158+$A$11,IF($C$5,8,0),1,1))) -> 4563700000 | D158: =IF(A158>$B$30,NA(),IF(A158>$A$8,"",OFFSET(InputPriceData!$C$15,CalculationsAndCharts!$A158+$A$11,IF($C$5,8,0),1,1))) -> 3166.44 | E158: =IF(A158>$B$30,NA(),IF(A158>$A$8,"",OFFSET(InputPriceData!$D$15,CalculationsAndCharts!$A158+$A$11,IF($C$5,8,0),1,1))) -> 3184.15 | F158: =IF(A158>$B$30,NA(),IF(A158>$A$8,"",OFFSET(InputPriceData!$E$15,CalculationsAndCharts!$A158+$A$11,IF($C$5,8,0),1,1))) -> 3142.93 | G158: =IF(A158>$B$30,NA(),IF(A158>$A$8,"",OFFSET(InputPriceData!$F$15,CalculationsAndCharts!$A158+$A$11,IF($C$5,8,0),1,1))) -> 3145.32 | H158: 0.8660254038 | I158: 3145.32 | L158: 11.08 | M158: 24.58 | N158: 40.53571429 | O158: 43.16375 | P158: 48.92222222 | Q158: 45.433 | R158: 43.79909091 | S158: 44.11416667 | T158: 43.02692308 | U158: 42.22714286 | V158: 40.784 | W158: 43.155625 | X158: 46.73529412 | Y158: 52.09555556 | Z158: 46.99473684 | AA158: 41.552 | AB158: 35.42714286 | AC158: 31.60727273 | AD158: 31.66652174 | AE158: 31.2825 | AF158: 32.6112 | AG158: 34.80269231 | AH158: 37.25481481 | AI158: 40.0525 | AJ158: 42.43655172 | AK158: 46.14033333 | AL158: 3102.15625 | AM158: 3113.653478 | AN158: -0.3692520167 | AX158: 4563700000
A159: 127 | B159: =IF(A159>$B$30,NA(),IF($A159>$A$8,"",OFFSET(InputPriceData!$B$15,$A159+$A$11,0,1,1))) -> 2020-07-06 | C159: =IF(A159>$B$30,NA(),IF($A159>$A$8,"",OFFSET(InputPriceData!$G$15,CalculationsAndCharts!$A159+$A$11,IF($C$5,8,0),1,1))) -> 4736450000 | D159: =IF(A159>$B$30,NA(),IF(A159>$A$8,"",OFFSET(InputPriceData!$C$15,CalculationsAndCharts!$A159+$A$11,IF($C$5,8,0),1,1))) -> 3155.29 | E159: =IF(A159>$B$30,NA(),IF(A159>$A$8,"",OFFSET(InputPriceData!$D$15,CalculationsAndCharts!$A159+$A$11,IF($C$5,8,0),1,1))) -> 3182.59 | F159: =IF(A159>$B$30,NA(),IF(A159>$A$8,"",OFFSET(InputPriceData!$E$15,CalculationsAndCharts!$A159+$A$11,IF($C$5,8,0),1,1))) -> 3155.29 | G159: =IF(A159>$B$30,NA(),IF(A159>$A$8,"",OFFSET(InputPriceData!$F$15,CalculationsAndCharts!$A159+$A$11,IF($C$5,8,0),1,1))) -> 3179.72 | H159: 0.7431448255 | I159: 3179.72 | L159: 63.896 | M159: 81.69166667 | N159: 83.73 | O159: 89.4375 | P159: 84.88111111 | Q159: 82.579 | R159: 82.52454545 | S159: 81.0125 | T159: 79.87538462 | U159: 78.09714286 | V159: 80.43266667 | W159: 84.05625 | X159: 89.56 | Y159: 84.00555556 | Z159: 78.13894737 | AA159: 71.5985 | AB159: 67.51238095 | AC159: 67.50590909 | AD159: 67.0426087 | AE159: 68.37 | AF159: 70.5948 | AG159: 73.08769231 | AH159: 75.93592593 | AI159: 78.35214286 | AJ159: 82.13137931 | AK159: 86.86933333 | AL159: 3090.2825 | AM159: 3112.677391 | AN159: -0.719473575 | AW159: 4736450000
A160: 128 | B160: =IF(A160>$B$30,NA(),IF($A160>$A$8,"",OFFSET(InputPriceData!$B$15,$A160+$A$11,0,1,1))) -> 2020-07-02 | C160: =IF(A160>$B$30,NA(),IF($A160>$A$8,"",OFFSET(InputPriceData!$G$15,CalculationsAndCharts!$A160+$A$11,IF($C$5,8,0),1,1))) -> 4190830000 | D160: =IF(A160>$B$30,NA(),IF(A160>$A$8,"",OFFSET(InputPriceData!$C$15,CalculationsAndCharts!$A160+$A$11,IF($C$5,8,0),1,1))) -> 3143.64 | E160: =IF(A160>$B$30,NA(),IF(A160>$A$8,"",OFFSET(InputPriceData!$D$15,CalculationsAndCharts!$A160+$A$11,IF($C$5,8,0),1,1))) -> 3165.81 | F160: =IF(A160>$B$30,NA(),IF(A160>$A$8,"",OFFSET(InputPriceData!$E$15,CalculationsAndCharts!$A160+$A$11,IF($C$5,8,0),1,1))) -> 3124.52 | G160: =IF(A160>$B$30,NA(),IF(A160>$A$8,"",OFFSET(InputPriceData!$F$15,CalculationsAndCharts!$A160+$A$11,IF($C$5,8,0),1,1))) -> 3130.01 | H160: 0.5877852523 | I160: 3130.01 | L160: 48.32 | M160: 47.975 | N160: 52.50428571 | O160: 45.78125 | P160: 42.04444444 | Q160: 41.067 | R160: 38.66727273 | S160: 36.82166667 | T160: 34.39461538 | U160: 36.46785714 | V160: 39.95 | W160: 45.4475 | X160: 39.23705882 | Y160: 32.77 | Z160: 25.65684211 | AA160: 21.178 | AB160: 21.01047619 | AC160: 20.38 | AD160: 21.6326087 | AE160: 23.82625 | AF160: 26.3012 | AG160: 29.14653846 | AH160: 31.54407407 | AI160: 35.35464286 | AJ160: 40.15482759 | AK160: 44.86633333 | AL160: 3084.22875 | AM160: 3108.377391 | AN160: -0.7768889766 | AX160: 4190830000
A161: 129 | B161: =IF(A161>$B$30,NA(),IF($A161>$A$8,"",OFFSET(InputPriceData!$B$15,$A161+$A$11,0,1,1))) -> 2020-07-01 | C161: =IF(A161>$B$30,NA(),IF($A161>$A$8,"",OFFSET(InputPriceData!$G$15,CalculationsAndCharts!$A161+$A$11,IF($C$5,8,0),1,1))) -> 4443130000 | D161: =IF(A161>$B$30,NA(),IF(A161>$A$8,"",OFFSET(InputPriceData!$C$15,CalculationsAndCharts!$A161+$A$11,IF($C$5,8,0),1,1))) -> 3105.92 | E161: =IF(A161>$B$30,NA(),IF(A161>$A$8,"",OFFSET(InputPriceData!$D$15,CalculationsAndCharts!$A161+$A$11,IF($C$5,8,0),1,1))) -> 3128.44 | F161: =IF(A161>$B$30,NA(),IF(A161>$A$8,"",OFFSET(InputPriceData!$E$15,CalculationsAndCharts!$A161+$A$11,IF($C$5,8,0),1,1))) -> 3101.17 | G161: =IF(A161>$B$30,NA(),IF(A161>$A$8,"",OFFSET(InputPriceData!$F$15,CalculationsAndCharts!$A161+$A$11,IF($C$5,8,0),1,1))) -> 3115.86 | H161: =IF(A161<=$H$30,SIN(RADIANS(360*(LogicallyAvailableRows-A161+1)/30)),NA()) -> 0.4067366431 | I161: 3115.86 | L161: 43.42 | M161: 47.105 | N161: 38.17142857 | O161: 33.15 | P161: 31.48 | Q161: 28.384 | R161: 26.01909091 | S161: 23.11083333 | T161: 25.12307692 | U161: 28.65357143 | V161: 34.32733333 | W161: 27.539375 | X161: 20.54764706 | Y161: 12.93222222 | Z161: 8.142631579 | AA161: 7.911 | AB161: 7.20047619 | AC161: 8.465909091 | AD161: 10.71217391 | AE161: 13.24708333 | AF161: 16.1624 | AG161: 18.60730769 | AH161: 22.51407407 | AI161: 27.43892857 | AJ161: 32.26344828 | AK161: 35.99633333 | AL161: 3082.71 | AM161: 3105.147826 | AN161: -0.7226008984 | AW161: =IF(G161>=D161,C161,NA()) -> 4443130000 | AX161: =IF(G161<D161,C161,NA()) -> 
A162: 130 | B162: =IF(A162>$B$30,NA(),IF($A162>$A$8,"",OFFSET(InputPriceData!$B$15,$A162+$A$11,0,1,1))) -> 2020-06-30 | C162: =IF(A162>$B$30,NA(),IF($A162>$A$8,"",OFFSET(InputPriceData!$G$15,CalculationsAndCharts!$A162+$A$11,IF($C$5,8,0),1,1))) -> 4696280000 | D162: =IF(A162>$B$30,NA(),IF(A162>$A$8,"",OFFSET(InputPriceData!$C$15,CalculationsAndCharts!$A162+$A$11,IF($C$5,8,0),1,1))) -> 3050.2 | E162: =IF(A162>$B$30,NA(),IF(A162>$A$8,"",OFFSET(InputPriceData!$D$15,CalculationsAndCharts!$A162+$A$11,IF($C$5,8,0),1,1))) -> 3111.51 | F162: =IF(A162>$B$30,NA(),IF(A162>$A$8,"",OFFSET(InputPriceData!$E$15,CalculationsAndCharts!$A162+$A$11,IF($C$5,8,0),1,1))) -> 3047.83 | G162: =IF(A162>$B$30,NA(),IF(A162>$A$8,"",OFFSET(InputPriceData!$F$15,CalculationsAndCharts!$A162+$A$11,IF($C$5,8,0),1,1))) -> 3100.29 | H162: 0.2079116908 | I162: =IF(A162<=$H$30,IF($A$18=1,H162,G162),NA()) -> 3100.29 | J162: =IF(A162<=$H$30,IF($A$18=1,I162,NA()),NA()) ->  | K162: =IF(A162<=$K$30,IF($A$18=1,(AVERAGE(OFFSET($I162,0,0,5,1))-AVERAGE(OFFSET($I162,0,0,30,1))),NA()),NA()) ->  | L162: 40.956 | M162: 28.96333333 | N162: 22.31571429 | O162: 19.845 | P162: 15.96777778 | Q162: 13.051 | R162: 9.641818182 | S162: 11.64666667 | T162: 15.28769231 | U162: 21.20928571 | V162: 13.80533333 | W162: 6.261875 | X162: -1.877058824 | Y162: -6.975 | Z162: -7.242631579 | AA162: -8.0095 | AB162: -6.700952381 | AC162: -4.370909091 | AD162: -1.746956522 | AE162: 1.265833333 | AF162: 3.7816 | AG162: 7.81 | AH162: 12.88518519 | AI162: 17.84571429 | AJ162: 21.66758621 | AK162: 26.857 | AL162: =IF($A162<=AL$30,AVERAGE(OFFSET(G162,0,0,$A$22,1)),NA()) -> 3080.445 | AM162: =IF($A162<=AM$30,AVERAGE(OFFSET(G162,0,0,$A$23,1)),NA()) -> 3102.036957 | AN162: =IF($A162<=AN$30,100*(AL162-AM162)/AM162,NA()) -> -0.6960573592 | AW162: 4696280000
A163: 131 | B163: =IF(A163>$B$30,NA(),IF($A163>$A$8,"",OFFSET(InputPriceData!$B$15,$A163+$A$11,0,1,1))) -> 2020-06-29 | C163: =IF(A163>$B$30,NA(),IF($A163>$A$8,"",OFFSET(InputPriceData!$G$15,CalculationsAndCharts!$A163+$A$11,IF($C$5,8,0),1,1))) -> 4462770000 | D163: =IF(A163>$B$30,NA(),IF(A163>$A$8,"",OFFSET(InputPriceData!$C$15,CalculationsAndCharts!$A163+$A$11,IF($C$5,8,0),1,1))) -> 3018.59 | E163: =IF(A163>$B$30,NA(),IF(A163>$A$8,"",OFFSET(InputPriceData!$D$15,CalculationsAndCharts!$A163+$A$11,IF($C$5,8,0),1,1))) -> 3053.89 | F163: =IF(A163>$B$30,NA(),IF(A163>$A$8,"",OFFSET(InputPriceData!$E$15,CalculationsAndCharts!$A163+$A$11,IF($C$5,8,0),1,1))) -> 2999.74 | G163: =IF(A163>$B$30,NA(),IF(A163>$A$8,"",OFFSET(InputPriceData!$F$15,CalculationsAndCharts!$A163+$A$11,IF($C$5,8,0),1,1))) -> 3053.24 | H163: 1.958936485e-15 | I163: 3053.24 | L163: -12.294 | M163: -21.015 | N163: -24.37 | O163: -29.08625 | P163: -32.54888889 | Q163: -36.444 | R163: -34.34454545 | S163: -30.48833333 | T163: -24.20923077 | U163: -32.25857143 | V163: -40.37066667 | W163: -49.044375 | X163: -54.43529412 | Y163: -54.695 | Z163: -55.48105263 | AA163: -54.086 | AB163: -51.62904762 | AC163: -48.87636364 | AD163: -45.72913043 | AE163: -43.11083333 | AF163: -38.9276 | AG163: -33.66923077 | AH163: -28.54333333 | AI163: -24.60857143 | AJ163: -19.26689655 | AK163: -15.31366667 | AL163: 3082.32625 | AM163: 3098.96913 | AN163: -0.5370456992 | AW163: 4462770000
A164: 132 | B164: =IF(A164>$B$30,NA(),IF($A164>$A$8,"",OFFSET(InputPriceData!$B$15,$A164+$A$11,0,1,1))) -> 2020-06-26 | C164: =IF(A164>$B$30,NA(),IF($A164>$A$8,"",OFFSET(InputPriceData!$G$15,CalculationsAndCharts!$A164+$A$11,IF($C$5,8,0),1,1))) -> 8098120000 | D164: =IF(A164>$B$30,NA(),IF(A164>$A$8,"",OFFSET(InputPriceData!$C$15,CalculationsAndCharts!$A164+$A$11,IF($C$5,8,0),1,1))) -> 3073.2 | E164: =IF(A164>$B$30,NA(),IF(A164>$A$8,"",OFFSET(InputPriceData!$D$15,CalculationsAndCharts!$A164+$A$11,IF($C$5,8,0),1,1))) -> 3073.73 | F164: =IF(A164>$B$30,NA(),IF(A164>$A$8,"",OFFSET(InputPriceData!$E$15,CalculationsAndCharts!$A164+$A$11,IF($C$5,8,0),1,1))) -> 3004.63 | G164: =IF(A164>$B$30,NA(),IF(A164>$A$8,"",OFFSET(InputPriceData!$F$15,CalculationsAndCharts!$A164+$A$11,IF($C$5,8,0),1,1))) -> 3009.05 | H164: -0.2079116908 | I164: 3009.05 | L164: -69.408 | M164: -72.62166667 | N164: -77.43142857 | O164: -80.8075 | P164: -84.68333333 | Q164: -81.969 | R164: -77.45 | S164: -70.41666667 | T164: -78.93 | U164: -87.44428571 | V164: -96.504 | W164: -102.0275 | X164: -102.1023529 | Y164: -102.7533333 | Z164: -101.1226316 | AA164: -98.4005 | AB164: -95.39380952 | AC164: -91.99772727 | AD164: -89.17521739 | AE164: -84.73958333 | AF164: -79.206 | AG164: -73.83115385 | AH164: -69.71 | AI164: -64.145 | AJ164: -60.03172414 | AK164: -53.18566667 | AL164: 3089.8575 | AM164: 3098.225217 | AN164: -0.2700809917 | AX164: 8098120000
A165: 133 | B165: =IF(A165>$B$30,NA(),IF($A165>$A$8,"",OFFSET(InputPriceData!$B$15,$A165+$A$11,0,1,1))) -> 2020-06-25 | C165: =IF(A165>$B$30,NA(),IF($A165>$A$8,"",OFFSET(InputPriceData!$G$15,CalculationsAndCharts!$A165+$A$11,IF($C$5,8,0),1,1))) -> 4815420000 | D165: =IF(A165>$B$30,NA(),IF(A165>$A$8,"",OFFSET(InputPriceData!$C$15,CalculationsAndCharts!$A165+$A$11,IF($C$5,8,0),1,1))) -> 3046.6 | E165: =IF(A165>$B$30,NA(),IF(A165>$A$8,"",OFFSET(InputPriceData!$D$15,CalculationsAndCharts!$A165+$A$11,IF($C$5,8,0),1,1))) -> 3086.25 | F165: =IF(A165>$B$30,NA(),IF(A165>$A$8,"",OFFSET(InputPriceData!$E$15,CalculationsAndCharts!$A165+$A$11,IF($C$5,8,0),1,1))) -> 3024.01 | G165: =IF(A165>$B$30,NA(),IF(A165>$A$8,"",OFFSET(InputPriceData!$F$15,CalculationsAndCharts!$A165+$A$11,IF($C$5,8,0),1,1))) -> 3083.76 | H165: -0.4067366431 | I165: 3083.76 | L165: -12.436 | M165: -15.62666667 | N165: -17.64142857 | O165: -20.55875 | P165: -16.36666667 | Q165: -10.485 | R165: -2.108181818 | S165: -10.7975 | T165: -19.46076923 | U165: -28.68714286 | V165: -34.11933333 | W165: -33.77375 | X165: -34.08764706 | Y165: -32.03055556 | Z165: -28.86947368 | AA165: -25.4535 | AB165: -21.66857143 | AC165: -18.51863636 | AD165: -13.71391304 | AE165: -7.79625 | AF165: -2.0744 | AG165: 2.318846154 | AH165: 8.189259259 | AI165: 12.53428571 | AJ165: 19.69034483 | AK165: 26.74266667 | AL165: 3104.31875 | AM165: 3097.473913 | AN165: 0.2209812624 | AW165: 4815420000
A166: 134 | B166: =IF(A166>$B$30,NA(),IF($A166>$A$8,"",OFFSET(InputPriceData!$B$15,$A166+$A$11,0,1,1))) -> 2020-06-24 | C166: =IF(A166>$B$30,NA(),IF($A166>$A$8,"",OFFSET(InputPriceData!$G$15,CalculationsAndCharts!$A166+$A$11,IF($C$5,8,0),1,1))) -> 5587200000 | D166: =IF(A166>$B$30,NA(),IF(A166>$A$8,"",OFFSET(InputPriceData!$C$15,CalculationsAndCharts!$A166+$A$11,IF($C$5,8,0),1,1))) -> 3114.4 | E166: =IF(A166>$B$30,NA(),IF(A166>$A$8,"",OFFSET(InputPriceData!$D$15,CalculationsAndCharts!$A166+$A$11,IF($C$5,8,0),1,1))) -> 3115.01 | F166: =IF(A166>$B$30,NA(),IF(A166>$A$8,"",OFFSET(InputPriceData!$E$15,CalculationsAndCharts!$A166+$A$11,IF($C$5,8,0),1,1))) -> 3032.13 | G166: =IF(A166>$B$30,NA(),IF(A166>$A$8,"",OFFSET(InputPriceData!$F$15,CalculationsAndCharts!$A166+$A$11,IF($C$5,8,0),1,1))) -> 3050.33 | H166: -0.5877852523 | I166: 3050.33 | L166: -52.182 | M166: -54.01166667 | N166: -56.92571429 | O166: -51.8425 | P166: -45.08 | Q166: -35.749 | R166: -45.20909091 | S166: -54.5125 | T166: -64.32384615 | U166: -69.98642857 | V166: -69.45533333 | W166: -69.648125 | X166: -67.34470588 | Y166: -63.90333333 | Z166: -60.22315789 | AA166: -56.182 | AB166: -52.83047619 | AC166: -47.76727273 | AD166: -41.56521739 | AE166: -35.59083333 | AF166: -31.0184 | AG166: -24.92576923 | AH166: -20.43148148 | AI166: -13.03642857 | AJ166: -5.765172414 | AK166: 2.104666667 | AL166: 3102.1725 | AM166: 3091.895217 | AN166: 0.3323942723 | AX166: 5587200000
A167: 135 | B167: =IF(A167>$B$30,NA(),IF($A167>$A$8,"",OFFSET(InputPriceData!$B$15,$A167+$A$11,0,1,1))) -> 2020-06-23 | C167: =IF(A167>$B$30,NA(),IF($A167>$A$8,"",OFFSET(InputPriceData!$G$15,CalculationsAndCharts!$A167+$A$11,IF($C$5,8,0),1,1))) -> 4704830000 | D167: =IF(A167>$B$30,NA(),IF(A167>$A$8,"",OFFSET(InputPriceData!$C$15,CalculationsAndCharts!$A167+$A$11,IF($C$5,8,0),1,1))) -> 3138.7 | E167: =IF(A167>$B$30,NA(),IF(A167>$A$8,"",OFFSET(InputPriceData!$D$15,CalculationsAndCharts!$A167+$A$11,IF($C$5,8,0),1,1))) -> 3154.9 | F167: =IF(A167>$B$30,NA(),IF(A167>$A$8,"",OFFSET(InputPriceData!$E$15,CalculationsAndCharts!$A167+$A$11,IF($C$5,8,0),1,1))) -> 3127.12 | G167: =IF(A167>$B$30,NA(),IF(A167>$A$8,"",OFFSET(InputPriceData!$F$15,CalculationsAndCharts!$A167+$A$11,IF($C$5,8,0),1,1))) -> 3131.29 | H167: -0.7431448255 | I167: 3131.29 | L167: 16.146 | M167: 14.54666667 | N167: 21.71142857 | O167: 30.245 | P167: 41.23888889 | Q167: 31.23 | R167: 21.49181818 | S167: 11.27583333 | T167: 5.59 | U167: 6.543571429 | V167: 6.668666667 | W167: 9.40625 | X167: 13.29764706 | Y167: 17.39111111 | Z167: 21.82105263 | AA167: 25.488 | AB167: 30.91809524 | AC167: 37.50545455 | AD167: 43.82173913 | AE167: 48.64916667 | AF167: 55.0372 | AG167: 59.74269231 | AH167: 67.44074074 | AI167: 74.98892857 | AJ167: 83.13724138 | AK167: 89.07166667 | AL167: 3101.045 | AM167: 3087.468261 | AN167: 0.4397369619 | AX167: 4704830000
A168: 136 | B168: =IF(A168>$B$30,NA(),IF($A168>$A$8,"",OFFSET(InputPriceData!$B$15,$A168+$A$11,0,1,1))) -> 2020-06-22 | C168: =IF(A168>$B$30,NA(),IF($A168>$A$8,"",OFFSET(InputPriceData!$G$15,CalculationsAndCharts!$A168+$A$11,IF($C$5,8,0),1,1))) -> 4665380000 | D168: =IF(A168>$B$30,NA(),IF(A168>$A$8,"",OFFSET(InputPriceData!$C$15,CalculationsAndCharts!$A168+$A$11,IF($C$5,8,0),1,1))) -> 3094.42 | E168: =IF(A168>$B$30,NA(),IF(A168>$A$8,"",OFFSET(InputPriceData!$D$15,CalculationsAndCharts!$A168+$A$11,IF($C$5,8,0),1,1))) -> 3120.92 | F168: =IF(A168>$B$30,NA(),IF(A168>$A$8,"",OFFSET(InputPriceData!$E$15,CalculationsAndCharts!$A168+$A$11,IF($C$5,8,0),1,1))) -> 3079.39 | G168: =IF(A168>$B$30,NA(),IF(A168>$A$8,"",OFFSET(InputPriceData!$F$15,CalculationsAndCharts!$A168+$A$11,IF($C$5,8,0),1,1))) -> 3117.86 | H168: -0.8660254038 | I168: 3117.86 | L168: 4.026 | M168: 11.9 | N168: 21.13571429 | O168: 32.96375 | P168: 21.27 | Q168: 10.211 | R168: -1.129090909 | S168: -7.374166667 | T168: -6.383076923 | U168: -6.285 | V168: -3.396666667 | W168: 0.69875 | X168: 4.984117647 | Y168: 9.603333333 | Z168: 13.39947368 | AA168: 19.034 | AB168: 25.86142857 | AC168: 32.38363636 | AD168: 37.33434783 | AE168: 43.90041667 | AF168: 48.7024 | AG168: 56.60461538 | AH168: 64.3362963 | AI168: 72.67642857 | AJ168: 78.71310345 | AK168: 82.345 | AL168: 3084.89625 | AM168: 3080.525652 | AN168: 0.141878313 | AW168: 4665380000
A169: 137 | B169: =IF(A169>$B$30,NA(),IF($A169>$A$8,"",OFFSET(InputPriceData!$B$15,$A169+$A$11,0,1,1))) -> 2020-06-19 | C169: =IF(A169>$B$30,NA(),IF($A169>$A$8,"",OFFSET(InputPriceData!$G$15,CalculationsAndCharts!$A169+$A$11,IF($C$5,8,0),1,1))) -> 8327780000 | D169: =IF(A169>$B$30,NA(),IF(A169>$A$8,"",OFFSET(InputPriceData!$C$15,CalculationsAndCharts!$A169+$A$11,IF($C$5,8,0),1,1))) -> 3140.29 | E169: =IF(A169>$B$30,NA(),IF(A169>$A$8,"",OFFSET(InputPriceData!$D$15,CalculationsAndCharts!$A169+$A$11,IF($C$5,8,0),1,1))) -> 3155.53 | F169: =IF(A169>$B$30,NA(),IF(A169>$A$8,"",OFFSET(InputPriceData!$E$15,CalculationsAndCharts!$A169+$A$11,IF($C$5,8,0),1,1))) -> 3083.11 | G169: =IF(A169>$B$30,NA(),IF(A169>$A$8,"",OFFSET(InputPriceData!$F$15,CalculationsAndCharts!$A169+$A$11,IF($C$5,8,0),1,1))) -> 3097.74 | H169: -0.9510565163 | I169: 3097.74 | L169: -5.84 | M169: 4.538333333 | N169: 17.55285714 | O169: 3.80875 | P169: -8.774444444 | Q169: -21.362 | R169: -28.16454545 | S169: -27.035 | T169: -26.88846154 | U169: -23.75928571 | V169: -19.37466667 | W169: -14.824375 | X169: -9.951764706 | Y169: -5.976111111 | Z169: -0.08421052632 | AA169: 7.0345 | AB169: 13.80571429 | AC169: 18.91136364 | AD169: 25.68913043 | AE169: 30.61166667 | AF169: 38.7488 | AG169: 46.69076923 | AH169: 55.24814815 | AI169: 61.40428571 | AJ169: 65.06448276 | AK169: 68.49366667 | AL169: 3093.93125 | AM169: 3072.05087 | AN169: 0.7122401732 | AX169: 8327780000
A170: 138 | B170: =IF(A170>$B$30,NA(),IF($A170>$A$8,"",OFFSET(InputPriceData!$B$15,$A170+$A$11,0,1,1))) -> 2020-06-18 | C170: =IF(A170>$B$30,NA(),IF($A170>$A$8,"",OFFSET(InputPriceData!$G$15,CalculationsAndCharts!$A170+$A$11,IF($C$5,8,0),1,1))) -> 4429030000 | D170: =IF(A170>$B$30,NA(),IF(A170>$A$8,"",OFFSET(InputPriceData!$C$15,CalculationsAndCharts!$A170+$A$11,IF($C$5,8,0),1,1))) -> 3101.64 | E170: =IF(A170>$B$30,NA(),IF(A170>$A$8,"",OFFSET(InputPriceData!$D$15,CalculationsAndCharts!$A170+$A$11,IF($C$5,8,0),1,1))) -> 3120 | F170: =IF(A170>$B$30,NA(),IF(A170>$A$8,"",OFFSET(InputPriceData!$E$15,CalculationsAndCharts!$A170+$A$11,IF($C$5,8,0),1,1))) -> 3093.51 | G170: =IF(A170>$B$30,NA(),IF(A170>$A$8,"",OFFSET(InputPriceData!$F$15,CalculationsAndCharts!$A170+$A$11,IF($C$5,8,0),1,1))) -> 3115.34 | H170: -0.9945218954 | I170: 3115.34 | L170: 23.046 | M170: 38.07833333 | N170: 21.95285714 | O170: 7.72875 | P170: -6.135555556 | Q170: -13.381 | R170: -11.89272727 | S170: -11.52916667 | T170: -7.986923077 | U170: -3.158571429 | V170: 1.787333333 | W170: 7.02625 | X170: 11.27235294 | Y170: 17.51111111 | Z170: 25.00473684 | AA170: =IF($A170<=AA$30,$I170-AVERAGE(OFFSET($I170,0,0,AA$31,1)),NA()) -> 32.096 | AB170: 37.41190476 | AC170: 44.45681818 | AD170: 49.5426087 | AE170: 57.96333333 | AF170: 66.1584 | AG170: 74.97307692 | AH170: 81.27851852 | AI170: 84.98821429 | AJ170: 88.45551724 | AK170: 93.312 | AL170: 3107.61125 | AM170: 3065.797391 | AN170: 1.363881997 | AW170: 4429030000
A171: 139 | B171: =IF(A171>$B$30,NA(),IF($A171>$A$8,"",OFFSET(InputPriceData!$B$15,$A171+$A$11,0,1,1))) -> 2020-06-17 | C171: =IF(A171>$B$30,NA(),IF($A171>$A$8,"",OFFSET(InputPriceData!$G$15,CalculationsAndCharts!$A171+$A$11,IF($C$5,8,0),1,1))) -> 4549390000 | D171: =IF(A171>$B$30,NA(),IF(A171>$A$8,"",OFFSET(InputPriceData!$C$15,CalculationsAndCharts!$A171+$A$11,IF($C$5,8,0),1,1))) -> 3136.13 | E171: =IF(A171>$B$30,NA(),IF(A171>$A$8,"",OFFSET(InputPriceData!$D$15,CalculationsAndCharts!$A171+$A$11,IF($C$5,8,0),1,1))) -> 3141.16 | F171: =IF(A171>$B$30,NA(),IF(A171>$A$8,"",OFFSET(InputPriceData!$E$15,CalculationsAndCharts!$A171+$A$11,IF($C$5,8,0),1,1))) -> 3108.03 | G171: =IF(A171>$B$30,NA(),IF(A171>$A$8,"",OFFSET(InputPriceData!$F$15,CalculationsAndCharts!$A171+$A$11,IF($C$5,8,0),1,1))) -> 3113.49 | H171: -0.9945218954 | I171: 3113.49 | L171: =IF($A171<=L$30,$I171-AVERAGE(OFFSET($I171,0,0,L$31,1)),NA()) -> 43.844 | M171: 23.76166667 | N171: 6.982857143 | O171: -8.7525 | P171: -16.71777778 | Q171: -14.932 | R171: -14.42727273 | S171: -10.5025 | T171: -5.251538462 | U171: 0.065 | V171: 5.644666667 | W171: 10.126875 | X171: 16.69117647 | Y171: 24.54388889 | Z171: 31.93526316 | AA171: 37.4325 | AB171: 44.72380952 | AC171: 49.94454545 | AD171: 58.63347826 | AE171: 67.065 | AF171: 76.122 | AG171: 82.55461538 | AH171: 86.28592593 | AI171: 89.76464286 | AJ171: 94.67965517 | AK171: 100.3593333 | AL171: 3122.2425 | AM171: 3054.856522 | AN171: 2.205863934 | AX171: 4549390000
A172: 140 | B172: =IF(A172>$B$30,NA(),IF($A172>$A$8,"",OFFSET(InputPriceData!$B$15,$A172+$A$11,0,1,1))) -> 2020-06-16 | C172: =IF(A172>$B$30,NA(),IF($A172>$A$8,"",OFFSET(InputPriceData!$G$15,CalculationsAndCharts!$A172+$A$11,IF($C$5,8,0),1,1))) -> 5829240000 | D172: =IF(A172>$B$30,NA(),IF(A172>$A$8,"",OFFSET(InputPriceData!$C$15,CalculationsAndCharts!$A172+$A$11,IF($C$5,8,0),1,1))) -> 3131 | E172: =IF(A172>$B$30,NA(),IF(A172>$A$8,"",OFFSET(InputPriceData!$D$15,CalculationsAndCharts!$A172+$A$11,IF($C$5,8,0),1,1))) -> 3153.45 | F172: =IF(A172>$B$30,NA(),IF(A172>$A$8,"",OFFSET(InputPriceData!$E$15,CalculationsAndCharts!$A172+$A$11,IF($C$5,8,0),1,1))) -> 3076.06 | G172: =IF(A172>$B$30,NA(),IF(A172>$A$8,"",OFFSET(InputPriceData!$F$15,CalculationsAndCharts!$A172+$A$11,IF($C$5,8,0),1,1))) -> 3124.74 | H172: -0.9510565163 | I172: 3124.74 | L172: 39.764 | M172: 19.39666667 | N172: 1.247142857 | O172: -7.5575 | P172: -5.341111111 | Q172: -4.62 | R172: -0.2072727273 | S172: 5.560833333 | T172: 11.32 | U172: 17.29785714 | V172: 22.052 | W172: 28.984375 | X172: 37.23764706 | Y172: 44.95944444 | Z172: 50.65263158 | AA172: 58.21 | AB172: 63.57285714 | AC172: 72.54863636 | AD172: 81.23086957 | AE172: 90.54375 | AF172: 97.1068 | AG172: 100.8546154 | AH172: 104.3392593 | AI172: 109.3110714 | AJ172: 115.07 | AK172: 119.7776667 | AL172: 3132.2975 | AM172: 3043.50913 | AN172: 2.917302553 | AX172: 5829240000
A173: 141 | B173: =IF(A173>$B$30,NA(),IF($A173>$A$8,"",OFFSET(InputPriceData!$B$15,$A173+$A$11,0,1,1))) -> 2020-06-15 | C173: =IF(A173>$B$30,NA(),IF($A173>$A$8,"",OFFSET(InputPriceData!$G$15,CalculationsAndCharts!$A173+$A$11,IF($C$5,8,0),1,1))) -> 5740660000 | D173: =IF(A173>$B$30,NA(),IF(A173>$A$8,"",OFFSET(InputPriceData!$C$15,CalculationsAndCharts!$A173+$A$11,IF($C$5,8,0),1,1))) -> 2993.76 | E173: =IF(A173>$B$30,NA(),IF(A173>$A$8,"",OFFSET(InputPriceData!$D$15,CalculationsAndCharts!$A173+$A$11,IF($C$5,8,0),1,1))) -> 3079.76 | F173: =IF(A173>$B$30,NA(),IF(A173>$A$8,"",OFFSET(InputPriceData!$E$15,CalculationsAndCharts!$A173+$A$11,IF($C$5,8,0),1,1))) -> 2965.66 | G173: =IF(A173>$B$30,NA(),IF(A173>$A$8,"",OFFSET(InputPriceData!$F$15,CalculationsAndCharts!$A173+$A$11,IF($C$5,8,0),1,1))) -> 3066.59 | H173: -0.8660254038 | I173: 3066.59 | L173: -34.874 | M173: -56.695 | N173: -66.78714286 | O173: -64.15875 | P173: -63.28333333 | Q173: -58.378 | R173: -52.08363636 | S173: -45.88666667 | T173: -39.52153846 | U173: -34.52285714 | V173: -27.23333333 | W173: -18.585 | X173: -10.54588235 | Y173: -4.683333333 | Z173: 3.123684211 | AA173: 8.6015 | AB173: 17.85333333 | AC173: 26.77318182 | AD173: 36.33043478 | AE173: 43.00291667 | AF173: 46.7388 | AG173: 50.20230769 | AH173: 55.20962963 | AI173: 61.02964286 | AJ173: 65.75793103 | AK173: 71.02766667 | AL173: 3130.74875 | AM173: 3030.259565 | AN173: 3.316190664 | AW173: 5740660000
A174: 142 | B174: =IF(A174>$B$30,NA(),IF($A174>$A$8,"",OFFSET(InputPriceData!$B$15,$A174+$A$11,0,1,1))) -> 2020-06-12 | C174: =IF(A174>$B$30,NA(),IF($A174>$A$8,"",OFFSET(InputPriceData!$G$15,CalculationsAndCharts!$A174+$A$11,IF($C$5,8,0),1,1))) -> 5832250000 | D174: =IF(A174>$B$30,NA(),IF(A174>$A$8,"",OFFSET(InputPriceData!$C$15,CalculationsAndCharts!$A174+$A$11,IF($C$5,8,0),1,1))) -> 3071.04 | E174: =IF(A174>$B$30,NA(),IF(A174>$A$8,"",OFFSET(InputPriceData!$D$15,CalculationsAndCharts!$A174+$A$11,IF($C$5,8,0),1,1))) -> 3088.42 | F174: =IF(A174>$B$30,NA(),IF(A174>$A$8,"",OFFSET(InputPriceData!$E$15,CalculationsAndCharts!$A174+$A$11,IF($C$5,8,0),1,1))) -> 2984.47 | G174: =IF(A174>$B$30,NA(),IF(A174>$A$8,"",OFFSET(InputPriceData!$F$15,CalculationsAndCharts!$A174+$A$11,IF($C$5,8,0),1,1))) -> 3041.31 | H174: -0.7431448255 | I174: 3041.31 | L174: -93.314 | M174: -103.1983333 | N174: -98.60428571 | O174: -96.47375 | P174: -90.14444444 | Q174: -82.572 | R174: -75.33818182 | S174: -68.095 | T174: -62.45846154 | U174: -54.45857143 | V174: -45.104 | W174: -36.485 | X174: -30.23882353 | Y174: -21.98277778 | Z174: -16.22578947 | AA174: -6.534 | AB174: 2.768095238 | AC174: 12.70181818 | AD174: 19.5926087 | AE174: 23.40625 | AF174: 26.9304 | AG174: 32.05307692 | AH174: 38.01 | AI174: 42.82642857 | AJ174: 48.19689655 | AK174: 53.61033333 | AL174: 3137.78375 | AM174: 3021.717391 | AN174: 3.841072598 | AX174: 5832250000
A175: 143 | B175: =IF(A175>$B$30,NA(),IF($A175>$A$8,"",OFFSET(InputPriceData!$B$15,$A175+$A$11,0,1,1))) -> 2020-06-11 | C175: =IF(A175>$B$30,NA(),IF($A175>$A$8,"",OFFSET(InputPriceData!$G$15,CalculationsAndCharts!$A175+$A$11,IF($C$5,8,0),1,1))) -> 7018890000 | D175: =IF(A175>$B$30,NA(),IF(A175>$A$8,"",OFFSET(InputPriceData!$C$15,CalculationsAndCharts!$A175+$A$11,IF($C$5,8,0),1,1))) -> 3123.53 | E175: =IF(A175>$B$30,NA(),IF(A175>$A$8,"",OFFSET(InputPriceData!$D$15,CalculationsAndCharts!$A175+$A$11,IF($C$5,8,0),1,1))) -> 3123.53 | F175: =IF(A175>$B$30,NA(),IF(A175>$A$8,"",OFFSET(InputPriceData!$E$15,CalculationsAndCharts!$A175+$A$11,IF($C$5,8,0),1,1))) -> 2999.49 | G175: =IF(A175>$B$30,NA(),IF(A175>$A$8,"",OFFSET(InputPriceData!$F$15,CalculationsAndCharts!$A175+$A$11,IF($C$5,8,0),1,1))) -> 3002.1 | H175: -0.5877852523 | I175: 3002.1 | L175: -163.048 | M175: -154.2483333 | N175: -149.4657143 | O175: -140.6225 | P175: -130.9566667 | Q175: -122.082 | R175: -113.4954545 | S175: -106.8733333 | T175: -97.85769231 | U175: -87.53571429 | V175: -78.12733333 | W175: -71.33875 | X175: -62.48588235 | Y175: -56.33722222 | Z175: -46.08789474 | AA175: -36.3035 | AB175: -25.90333333 | AC175: -18.72681818 | AD175: -14.78608696 | AE175: -11.1575 | AF175: -5.8748 | AG175: 0.2619230769 | AH175: 5.202592593 | AI175: 10.70821429 | AJ175: 16.24896552 | AK175: 18.69633333 | AL175: 3142.7225 | AM175: 3016.886087 | AN175: 4.171069421 | AX175: 7018890000
A176: 144 | B176: =IF(A176>$B$30,NA(),IF($A176>$A$8,"",OFFSET(InputPriceData!$B$15,$A176+$A$11,0,1,1))) -> 2020-06-10 | C176: =IF(A176>$B$30,NA(),IF($A176>$A$8,"",OFFSET(InputPriceData!$G$15,CalculationsAndCharts!$A176+$A$11,IF($C$5,8,0),1,1))) -> 6570840000 | D176: =IF(A176>$B$30,NA(),IF(A176>$A$8,"",OFFSET(InputPriceData!$C$15,CalculationsAndCharts!$A176+$A$11,IF($C$5,8,0),1,1))) -> 3213.42 | E176: =IF(A176>$B$30,NA(),IF(A176>$A$8,"",OFFSET(InputPriceData!$D$15,CalculationsAndCharts!$A176+$A$11,IF($C$5,8,0),1,1))) -> 3223.27 | F176: =IF(A176>$B$30,NA(),IF(A176>$A$8,"",OFFSET(InputPriceData!$E$15,CalculationsAndCharts!$A176+$A$11,IF($C$5,8,0),1,1))) -> 3181.49 | G176: =IF(A176>$B$30,NA(),IF(A176>$A$8,"",OFFSET(InputPriceData!$F$15,CalculationsAndCharts!$A176+$A$11,IF($C$5,8,0),1,1))) -> 3190.14 | H176: -0.4067366431 | I176: 3190.14 | L176: 2.942 | M176: 13.66333333 | N176: 27.32857143 | O176: 40.71375 | P176: 52.39333333 | Q176: 63.195 | R176: 71.45090909 | S176: 82.0275 | T176: 93.77076923 | U176: 104.3321429 | V176: 111.9453333 | W176: 121.64875 | X176: 128.3888235 | Y176: 139.3916667 | Z176: 149.8257895 | AA176: 160.8415 | AB176: 168.4214286 | AC176: 172.5818182 | AD176: 176.3973913 | AE176: 181.9204167 | AF176: 188.3124 | AG176: 193.4426923 | AH176: 199.1448148 | AI176: 204.8692857 | AJ176: 207.3810345 | AK176: 208.8226667 | AL176: 3149.42625 | AM176: 3013.742609 | AN176: 4.502164216 | AX176: 6570840000
A177: 145 | B177: =IF(A177>$B$30,NA(),IF($A177>$A$8,"",OFFSET(InputPriceData!$B$15,$A177+$A$11,0,1,1))) -> 2020-06-09 | C177: =IF(A177>$B$30,NA(),IF($A177>$A$8,"",OFFSET(InputPriceData!$G$15,CalculationsAndCharts!$A177+$A$11,IF($C$5,8,0),1,1))) -> 6382620000 | D177: =IF(A177>$B$30,NA(),IF(A177>$A$8,"",OFFSET(InputPriceData!$C$15,CalculationsAndCharts!$A177+$A$11,IF($C$5,8,0),1,1))) -> 3213.32 | E177: =IF(A177>$B$30,NA(),IF(A177>$A$8,"",OFFSET(InputPriceData!$D$15,CalculationsAndCharts!$A177+$A$11,IF($C$5,8,0),1,1))) -> 3222.71 | F177: =IF(A177>$B$30,NA(),IF(A177>$A$8,"",OFFSET(InputPriceData!$E$15,CalculationsAndCharts!$A177+$A$11,IF($C$5,8,0),1,1))) -> 3193.11 | G177: =IF(A177>$B$30,NA(),IF(A177>$A$8,"",OFFSET(InputPriceData!$F$15,CalculationsAndCharts!$A177+$A$11,IF($C$5,8,0),1,1))) -> 3207.18 | H177: -0.2079116908 | I177: 3207.18 | L177: 33.436 | M177: 48.92333333 | N177: 63.57 | O177: 75.9825 | P177: 87.25666667 | Q177: 95.636 | R177: 106.5245455 | S177: 118.625 | T177: 129.3976923 | U177: 136.9814286 | V177: 146.7986667 | W177: 153.453125 | X177: 164.6311765 | Y177: 175.1894444 | Z177: 186.3468421 | AA177: 193.8825 | AB177: 197.84 | AC177: 201.4554545 | AD177: 206.87 | AE177: 213.19875 | AF177: 218.2204 | AG177: 223.8442308 | AH177: 229.497037 | AI177: 231.8275 | AJ177: 233.0634483 | AK177: 236.7543333 | AL177: 3131.1975 | AM177: 3000.31 | AN177: 4.362465879 | AX177: 6382620000
A178: 146 | B178: =IF(A178>$B$30,NA(),IF($A178>$A$8,"",OFFSET(InputPriceData!$B$15,$A178+$A$11,0,1,1))) -> 2020-06-08 | C178: =IF(A178>$B$30,NA(),IF($A178>$A$8,"",OFFSET(InputPriceData!$G$15,CalculationsAndCharts!$A178+$A$11,IF($C$5,8,0),1,1))) -> 8437380000 | D178: =IF(A178>$B$30,NA(),IF(A178>$A$8,"",OFFSET(InputPriceData!$C$15,CalculationsAndCharts!$A178+$A$11,IF($C$5,8,0),1,1))) -> 3199.92 | E178: =IF(A178>$B$30,NA(),IF(A178>$A$8,"",OFFSET(InputPriceData!$D$15,CalculationsAndCharts!$A178+$A$11,IF($C$5,8,0),1,1))) -> 3233.13 | F178: =IF(A178>$B$30,NA(),IF(A178>$A$8,"",OFFSET(InputPriceData!$E$15,CalculationsAndCharts!$A178+$A$11,IF($C$5,8,0),1,1))) -> 3196 | G178: =IF(A178>$B$30,NA(),IF(A178>$A$8,"",OFFSET(InputPriceData!$F$15,CalculationsAndCharts!$A178+$A$11,IF($C$5,8,0),1,1))) -> 3232.39 | H178: -1.273959237e-14 | I178: 3232.39 | L178: 83.918 | M178: 99.375 | N178: 112.0471429 | O178: 123.37375 | P178: 131.4722222 | Q178: 142.387 | R178: 154.6190909 | S178: 165.3908333 | T178: 172.7284615 | U178: 182.4942857 | V178: 188.8933333 | W178: 200.130625 | X178: 210.7047059 | Y178: 221.9094444 | Z178: 229.2968421 | AA178: 232.942 | AB178: 236.2585714 | AC178: 241.4831818 | AD178: 247.6782609 | AE178: 252.5229167 | AF178: 258.008 | AG178: 263.5338462 | AH178: 265.6237037 | AI178: 266.5971429 | AJ178: 270.1282759 | AK178: 272.921 | AL178: 3109.01625 | AM178: 2984.711739 | AN178: 4.164707407 | AW178: 8437380000
A179: 147 | B179: =IF(A179>$B$30,NA(),IF($A179>$A$8,"",OFFSET(InputPriceData!$B$15,$A179+$A$11,0,1,1))) -> 2020-06-05 | C179: =IF(A179>$B$30,NA(),IF($A179>$A$8,"",OFFSET(InputPriceData!$G$15,CalculationsAndCharts!$A179+$A$11,IF($C$5,8,0),1,1))) -> 8617590000 | D179: =IF(A179>$B$30,NA(),IF(A179>$A$8,"",OFFSET(InputPriceData!$C$15,CalculationsAndCharts!$A179+$A$11,IF($C$5,8,0),1,1))) -> 3163.84 | E179: =IF(A179>$B$30,NA(),IF(A179>$A$8,"",OFFSET(InputPriceData!$D$15,CalculationsAndCharts!$A179+$A$11,IF($C$5,8,0),1,1))) -> 3211.72 | F179: =IF(A179>$B$30,NA(),IF(A179>$A$8,"",OFFSET(InputPriceData!$E$15,CalculationsAndCharts!$A179+$A$11,IF($C$5,8,0),1,1))) -> 3163.84 | G179: =IF(A179>$B$30,NA(),IF(A179>$A$8,"",OFFSET(InputPriceData!$F$15,CalculationsAndCharts!$A179+$A$11,IF($C$5,8,0),1,1))) -> 3193.93 | H179: 0.2079116908 | I179: 3193.93 | L179: 80.79 | M179: 92.26166667 | N179: 102.5385714 | O179: 109.44625 | P179: 119.7477778 | Q179: 131.621 | R179: 141.9663636 | S179: 148.6625 | T179: 158.0723077 | U179: 163.9257143 | V179: 175.0126667 | W179: 185.41375 | X179: 196.5029412 | Y179: 203.5755556 | Z179: 206.7421053 | AA179: 209.6115 | AB179: 214.522381 | AC179: 220.4763636 | AD179: 225.0421739 | AE179: 230.2983333 | AF179: 235.6152 | AG179: 237.38 | AH179: 238.0111111 | AI179: 241.3157143 | AJ179: 243.872069 | AK179: 247.6493333 | AL179: 3084.48375 | AM179: 2968.887826 | AN179: 3.893576675 | AW179: 8617590000
A180: 148 | B180: =IF(A180>$B$30,NA(),IF($A180>$A$8,"",OFFSET(InputPriceData!$B$15,$A180+$A$11,0,1,1))) -> 2020-06-04 | C180: =IF(A180>$B$30,NA(),IF($A180>$A$8,"",OFFSET(InputPriceData!$G$15,CalculationsAndCharts!$A180+$A$11,IF($C$5,8,0),1,1))) -> 6428130000 | D180: =IF(A180>$B$30,NA(),IF(A180>$A$8,"",OFFSET(InputPriceData!$C$15,CalculationsAndCharts!$A180+$A$11,IF($C$5,8,0),1,1))) -> 3111.56 | E180: =IF(A180>$B$30,NA(),IF(A180>$A$8,"",OFFSET(InputPriceData!$D$15,CalculationsAndCharts!$A180+$A$11,IF($C$5,8,0),1,1))) -> 3128.91 | F180: =IF(A180>$B$30,NA(),IF(A180>$A$8,"",OFFSET(InputPriceData!$E$15,CalculationsAndCharts!$A180+$A$11,IF($C$5,8,0),1,1))) -> 3090.41 | G180: =IF(A180>$B$30,NA(),IF(A180>$A$8,"",OFFSET(InputPriceData!$F$15,CalculationsAndCharts!$A180+$A$11,IF($C$5,8,0),1,1))) -> 3112.35 | H180: 0.4067366431 | I180: 3112.35 | L180: 29.134 | M180: 38.04833333 | N180: 43.50142857 | O180: 53.13625 | P180: 64.66555556 | Q180: 74.583 | R180: 80.59727273 | S180: 89.665 | T180: 94.95538462 | U180: 105.9335714 | V180: 116.1946667 | W180: 127.204375 | X180: 133.9705882 | Y180: 136.6477778 | Z180: 139.0636842 | AA180: 143.6685 | AB180: 149.3952381 | AC180: 153.6913636 | AD180: 158.7313043 | AE180: 163.8525 | AF180: 165.2952 | AG180: 165.5853846 | AH180: 168.6733333 | AI180: 171.0017857 | AJ180: 174.6089655 | AK180: 179.2736667 | AL180: 3059.21375 | AM180: 2953.618696 | AN180: 3.575107867 | AW180: 6428130000
A181: 149 | B181: =IF(A181>$B$30,NA(),IF($A181>$A$8,"",OFFSET(InputPriceData!$B$15,$A181+$A$11,0,1,1))) -> 2020-06-03 | C181: =IF(A181>$B$30,NA(),IF($A181>$A$8,"",OFFSET(InputPriceData!$G$15,CalculationsAndCharts!$A181+$A$11,IF($C$5,8,0),1,1))) -> 5989560000 | D181: =IF(A181>$B$30,NA(),IF(A181>$A$8,"",OFFSET(InputPriceData!$C$15,CalculationsAndCharts!$A181+$A$11,IF($C$5,8,0),1,1))) -> 3098.9 | E181: =IF(A181>$B$30,NA(),IF(A181>$A$8,"",OFFSET(InputPriceData!$D$15,CalculationsAndCharts!$A181+$A$11,IF($C$5,8,0),1,1))) -> 3130.94 | F181: =IF(A181>$B$30,NA(),IF(A181>$A$8,"",OFFSET(InputPriceData!$E$15,CalculationsAndCharts!$A181+$A$11,IF($C$5,8,0),1,1))) -> 3098.9 | G181: =IF(A181>$B$30,NA(),IF(A181>$A$8,"",OFFSET(InputPriceData!$F$15,CalculationsAndCharts!$A181+$A$11,IF($C$5,8,0),1,1))) -> 3122.87 | H181: 0.5877852523 | I181: 3122.87 | L181: 56.178 | M181: 61.27166667 | N181: 71.24714286 | O181: 83.26875 | P181: 93.39 | Q181: 99.177 | R181: 108.3363636 | S181: 113.3883333 | T181: 124.6023077 | U181: 135.0142857 | V181: 146.2046667 | W181: 152.86375 | X181: 155.2058824 | Y181: 157.3094444 | Z181: 161.75 | AA181: 167.385 | AB181: 171.53 | AC181: 176.4663636 | AD181: 181.4965217 | AE181: 182.7025 | AF181: 182.7288 | AG181: 185.6807692 | AH181: 187.8551852 | AI181: 191.365 | AJ181: 195.9755172 | AK181: 200.2283333 | AL181: 3039.60125 | AM181: 2941.373478 | AN181: 3.339520549 | AW181: 5989560000
A182: 150 | B182: =IF(A182>$B$30,NA(),IF($A182>$A$8,"",OFFSET(InputPriceData!$B$15,$A182+$A$11,0,1,1))) -> 2020-06-02 | C182: =IF(A182>$B$30,NA(),IF($A182>$A$8,"",OFFSET(InputPriceData!$G$15,CalculationsAndCharts!$A182+$A$11,IF($C$5,8,0),1,1))) -> 5187230000 | D182: =IF(A182>$B$30,NA(),IF(A182>$A$8,"",OFFSET(InputPriceData!$C$15,CalculationsAndCharts!$A182+$A$11,IF($C$5,8,0),1,1))) -> 3064.78 | E182: =IF(A182>$B$30,NA(),IF(A182>$A$8,"",OFFSET(InputPriceData!$D$15,CalculationsAndCharts!$A182+$A$11,IF($C$5,8,0),1,1))) -> 3081.07 | F182: =IF(A182>$B$30,NA(),IF(A182>$A$8,"",OFFSET(InputPriceData!$E$15,CalculationsAndCharts!$A182+$A$11,IF($C$5,8,0),1,1))) -> 3051.64 | G182: =IF(A182>$B$30,NA(),IF(A182>$A$8,"",OFFSET(InputPriceData!$F$15,CalculationsAndCharts!$A182+$A$11,IF($C$5,8,0),1,1))) -> 3080.82 | H182: 0.7431448255 | I182: 3080.82 | L182: 31.476 | M182: 41.07166667 | N182: 53.11428571 | O182: 63.01375 | P182: 68.14666667 | Q182: 77.12 | R182: 81.64636364 | S182: 92.93583333 | T182: 103.35 | U182: 114.5978571 | V182: 121.0046667 | W182: 122.85625 | X182: 124.5129412 | Y182: 128.6861111 | Z182: 134.1447368 | AA182: 138.0565 | AB182: 142.8195238 | AC182: 147.6963636 | AD182: 148.596087 | AE182: 148.2925 | AF182: 151.058 | AG182: 153.0303846 | AH182: 156.4025926 | AI182: 160.9246429 | AJ182: 165.0827586 | AK182: 171.0553333 | AL182: 3017.80625 | AM182: 2932.223913 | AN182: 2.918683549 | AW182: 5187230000
A183: 151 | B183: =IF(A183>$B$30,NA(),IF($A183>$A$8,"",OFFSET(InputPriceData!$B$15,$A183+$A$11,0,1,1))) -> 2020-06-01 | C183: =IF(A183>$B$30,NA(),IF($A183>$A$8,"",OFFSET(InputPriceData!$G$15,CalculationsAndCharts!$A183+$A$11,IF($C$5,8,0),1,1))) -> 4673410000 | D183: =IF(A183>$B$30,NA(),IF(A183>$A$8,"",OFFSET(InputPriceData!$C$15,CalculationsAndCharts!$A183+$A$11,IF($C$5,8,0),1,1))) -> 3038.78 | E183: =IF(A183>$B$30,NA(),IF(A183>$A$8,"",OFFSET(InputPriceData!$D$15,CalculationsAndCharts!$A183+$A$11,IF($C$5,8,0),1,1))) -> 3062.18 | F183: =IF(A183>$B$30,NA(),IF(A183>$A$8,"",OFFSET(InputPriceData!$E$15,CalculationsAndCharts!$A183+$A$11,IF($C$5,8,0),1,1))) -> 3031.54 | G183: =IF(A183>$B$30,NA(),IF(A183>$A$8,"",OFFSET(InputPriceData!$F$15,CalculationsAndCharts!$A183+$A$11,IF($C$5,8,0),1,1))) -> 3055.73 | H183: 0.8660254038 | I183: 3055.73 | L183: 24.196 | M183: 36.87666667 | N183: 46.92571429 | O183: 51.575 | P183: 60.59888889 | Q183: 64.721 | R183: 76.29454545 | S183: 86.8725 | T183: 98.32307692 | U183: 104.5578571 | V183: 105.9566667 | W183: 107.205 | X183: 111.1658824 | Y183: 116.5072222 | Z183: 120.2326316 | AA183: 124.8705 | AB183: 129.6395238 | AC183: 130.2604545 | AD183: 129.65 | AE183: 132.2620833 | AF183: 134.0616 | AG183: 137.3280769 | AH183: 141.7948148 | AI183: 145.8885714 | AJ183: 151.8637931 | AK183: 154.554 | AL183: 3004.155 | AM183: 2926.08 | AN183: 2.668245571 | AW183: 4673410000
A184: 152 | B184: =IF(A184>$B$30,NA(),IF($A184>$A$8,"",OFFSET(InputPriceData!$B$15,$A184+$A$11,0,1,1))) -> 2020-05-29 | C184: =IF(A184>$B$30,NA(),IF($A184>$A$8,"",OFFSET(InputPriceData!$G$15,CalculationsAndCharts!$A184+$A$11,IF($C$5,8,0),1,1))) -> 7275080000 | D184: =IF(A184>$B$30,NA(),IF(A184>$A$8,"",OFFSET(InputPriceData!$C$15,CalculationsAndCharts!$A184+$A$11,IF($C$5,8,0),1,1))) -> 3025.17 | E184: =IF(A184>$B$30,NA(),IF(A184>$A$8,"",OFFSET(InputPriceData!$D$15,CalculationsAndCharts!$A184+$A$11,IF($C$5,8,0),1,1))) -> 3049.17 | F184: =IF(A184>$B$30,NA(),IF(A184>$A$8,"",OFFSET(InputPriceData!$E$15,CalculationsAndCharts!$A184+$A$11,IF($C$5,8,0),1,1))) -> 2998.61 | G184: =IF(A184>$B$30,NA(),IF(A184>$A$8,"",OFFSET(InputPriceData!$F$15,CalculationsAndCharts!$A184+$A$11,IF($C$5,8,0),1,1))) -> 3044.31 | H184: 0.9510565163 | I184: 3044.31 | L184: 32.832 | M184: 43.32666667 | N184: 47.52285714 | O184: 56.75375 | P184: 60.49222222 | Q184: 72.504 | R184: 83.35 | S184: 95.09666667 | T184: 101.1807692 | U184: 102.105 | V184: 102.932 | W184: 106.69375 | X184: 111.9405882 | Y184: 115.4922222 | Z184: 120.0226316 | AA184: 124.7015 | AB184: 125.0433333 | AC184: 124.1231818 | AD184: 126.5926087 | AE184: 128.2275 | AF184: 131.4012 | AG184: 135.8284615 | AH184: 139.8718519 | AI184: 145.8675 | AJ184: 148.4634483 | AK184: 149.173 | AL184: 2987.55625 | AM184: 2917.717391 | AN184: 2.39361286 | AW184: 7275080000
A185: 153 | B185: =IF(A185>$B$30,NA(),IF($A185>$A$8,"",OFFSET(InputPriceData!$B$15,$A185+$A$11,0,1,1))) -> 2020-05-28 | C185: =IF(A185>$B$30,NA(),IF($A185>$A$8,"",OFFSET(InputPriceData!$G$15,CalculationsAndCharts!$A185+$A$11,IF($C$5,8,0),1,1))) -> 5402670000 | D185: =IF(A185>$B$30,NA(),IF(A185>$A$8,"",OFFSET(InputPriceData!$C$15,CalculationsAndCharts!$A185+$A$11,IF($C$5,8,0),1,1))) -> 3046.61 | E185: =IF(A185>$B$30,NA(),IF(A185>$A$8,"",OFFSET(InputPriceData!$D$15,CalculationsAndCharts!$A185+$A$11,IF($C$5,8,0),1,1))) -> 3068.67 | F185: =IF(A185>$B$30,NA(),IF(A185>$A$8,"",OFFSET(InputPriceData!$E$15,CalculationsAndCharts!$A185+$A$11,IF($C$5,8,0),1,1))) -> 3023.4 | G185: =IF(A185>$B$30,NA(),IF(A185>$A$8,"",OFFSET(InputPriceData!$F$15,CalculationsAndCharts!$A185+$A$11,IF($C$5,8,0),1,1))) -> 3029.73 | H185: 0.9945218954 | I185: 3029.73 | L185: 37.412 | M185: 40.86333333 | N185: 50.28142857 | O185: 53.47375 | P185: 65.98 | Q185: 77.105 | R185: 89.16181818 | S185: 95.0325 | T185: 95.37923077 | U185: 95.70428571 | V185: 99.22666667 | W185: 104.356875 | X185: 107.7058824 | Y185: 112.1105556 | Z185: 116.6847368 | AA185: 116.7155 | AB185: 115.4538095 | AC185: 117.7668182 | AD185: 119.2226087 | AE185: 122.29625 | AF185: 126.6816 | AG185: 130.6715385 | AH185: 136.69 | AI185: 139.1857143 | AJ185: 139.7368966 | AK185: 142.7516667 | AL185: 2976.25625 | AM185: 2910.507391 | AN185: 2.259017067 | AX185: 5402670000
A186: 154 | B186: =IF(A186>$B$30,NA(),IF($A186>$A$8,"",OFFSET(InputPriceData!$B$15,$A186+$A$11,0,1,1))) -> 2020-05-27 | C186: =IF(A186>$B$30,NA(),IF($A186>$A$8,"",OFFSET(InputPriceData!$G$15,CalculationsAndCharts!$A186+$A$11,IF($C$5,8,0),1,1))) -> 6371230000 | D186: =IF(A186>$B$30,NA(),IF(A186>$A$8,"",OFFSET(InputPriceData!$C$15,CalculationsAndCharts!$A186+$A$11,IF($C$5,8,0),1,1))) -> 3015.65 | E186: =IF(A186>$B$30,NA(),IF(A186>$A$8,"",OFFSET(InputPriceData!$D$15,CalculationsAndCharts!$A186+$A$11,IF($C$5,8,0),1,1))) -> 3036.25 | F186: =IF(A186>$B$30,NA(),IF(A186>$A$8,"",OFFSET(InputPriceData!$E$15,CalculationsAndCharts!$A186+$A$11,IF($C$5,8,0),1,1))) -> 2969.75 | G186: =IF(A186>$B$30,NA(),IF(A186>$A$8,"",OFFSET(InputPriceData!$F$15,CalculationsAndCharts!$A186+$A$11,IF($C$5,8,0),1,1))) -> 3036.13 | H186: 0.9945218954 | I186: 3036.13 | L186: 55.436 | M186: 65.06166667 | N186: 67.51285714 | O186: 80.6275 | P186: 92.07222222 | Q186: 104.478 | R186: 110.0718182 | S186: 109.7275 | T186: 109.4661538 | U186: 112.7142857 | V186: 117.714 | W186: 120.8375 | X186: 125.1052941 | Y186: 129.5672222 | Z186: 129.2584211 | AA186: =IF($A186<=AA$30,$I186-AVERAGE(OFFSET($I186,0,0,AA$31,1)),NA()) -> 127.6265 | AB186: 129.7747619 | AC186: 131.0418182 | AD186: 134.0134783 | AE186: 138.36 | AF186: 142.2984 | AG186: 148.3473077 | AH186: 150.7407407 | AI186: 151.1275 | AJ186: 154.0741379 | AK186: 157.364 | AL186: 2955.5025 | AM186: 2902.116522 | AN186: 1.839553232 | AW186: 6371230000
A187: 155 | B187: =IF(A187>$B$30,NA(),IF($A187>$A$8,"",OFFSET(InputPriceData!$B$15,$A187+$A$11,0,1,1))) -> 2020-05-26 | C187: =IF(A187>$B$30,NA(),IF($A187>$A$8,"",OFFSET(InputPriceData!$G$15,CalculationsAndCharts!$A187+$A$11,IF($C$5,8,0),1,1))) -> 5837060000 | D187: =IF(A187>$B$30,NA(),IF(A187>$A$8,"",OFFSET(InputPriceData!$C$15,CalculationsAndCharts!$A187+$A$11,IF($C$5,8,0),1,1))) -> 3004.08 | E187: =IF(A187>$B$30,NA(),IF(A187>$A$8,"",OFFSET(InputPriceData!$D$15,CalculationsAndCharts!$A187+$A$11,IF($C$5,8,0),1,1))) -> 3021.72 | F187: =IF(A187>$B$30,NA(),IF(A187>$A$8,"",OFFSET(InputPriceData!$E$15,CalculationsAndCharts!$A187+$A$11,IF($C$5,8,0),1,1))) -> 2988.17 | G187: =IF(A187>$B$30,NA(),IF(A187>$A$8,"",OFFSET(InputPriceData!$F$15,CalculationsAndCharts!$A187+$A$11,IF($C$5,8,0),1,1))) -> 2991.77 | H187: 0.9510565163 | I187: 2991.77 | L187: =IF($A187<=L$30,$I187-AVERAGE(OFFSET($I187,0,0,L$31,1)),NA()) -> 33.714 | M187: 34.405 | N187: 47.78571429 | O187: 59.22125 | P187: 71.72666667 | Q187: 76.719 | R187: 75.34272727 | S187: 74.22833333 | T187: 77.02461538 | U187: 81.76214286 | V187: 84.53333333 | W187: 88.564375 | X187: 92.82882353 | Y187: 92.07944444 | Z187: 89.98368421 | AA187: 91.9035 | AB187: 92.92190476 | AC187: 95.745 | AD187: 100.0156522 | AE187: 103.8675 | AF187: 109.9212 | AG187: 112.1784615 | AH187: 112.3648148 | AI187: 115.2167857 | AJ187: 118.4303448 | AK187: 119.3396667 | AL187: 2932.54875 | AM187: 2891.754348 | AN187: 1.410714648 | AX187: 5837060000
A188: 156 | B188: =IF(A188>$B$30,NA(),IF($A188>$A$8,"",OFFSET(InputPriceData!$B$15,$A188+$A$11,0,1,1))) -> 2020-05-22 | C188: =IF(A188>$B$30,NA(),IF($A188>$A$8,"",OFFSET(InputPriceData!$G$15,CalculationsAndCharts!$A188+$A$11,IF($C$5,8,0),1,1))) -> 3952800000 | D188: =IF(A188>$B$30,NA(),IF(A188>$A$8,"",OFFSET(InputPriceData!$C$15,CalculationsAndCharts!$A188+$A$11,IF($C$5,8,0),1,1))) -> 2948.05 | E188: =IF(A188>$B$30,NA(),IF(A188>$A$8,"",OFFSET(InputPriceData!$D$15,CalculationsAndCharts!$A188+$A$11,IF($C$5,8,0),1,1))) -> 2956.76 | F188: =IF(A188>$B$30,NA(),IF(A188>$A$8,"",OFFSET(InputPriceData!$E$15,CalculationsAndCharts!$A188+$A$11,IF($C$5,8,0),1,1))) -> 2933.59 | G188: =IF(A188>$B$30,NA(),IF(A188>$A$8,"",OFFSET(InputPriceData!$F$15,CalculationsAndCharts!$A188+$A$11,IF($C$5,8,0),1,1))) -> 2955.45 | H188: 0.8660254038 | I188: 2955.45 | L188: 4.966 | M188: 19.43 | N188: 31.36142857 | O188: 44.3725 | P188: 48.92333333 | Q188: 46.557 | R188: 44.65636364 | S188: 47.12333333 | T188: 51.73153846 | U188: 54.25142857 | V188: 58.14866667 | W188: 62.310625 | X188: 61.17588235 | Y188: 58.66277778 | Z188: 60.42052632 | AA188: 61.248 | AB188: 63.98428571 | AC188: 68.24181818 | AD188: 72.06347826 | AE188: 78.18125 | AF188: 80.3456 | AG188: 80.36653846 | AH188: 83.16407407 | AI188: 86.34 | AJ188: 87.13482759 | AK188: 90.691 | AL188: 2911.0775 | AM188: 2883.386522 | AN188: 0.9603630333 | AW188: 3952800000
A189: 157 | B189: =IF(A189>$B$30,NA(),IF($A189>$A$8,"",OFFSET(InputPriceData!$B$15,$A189+$A$11,0,1,1))) -> 2020-05-21 | C189: =IF(A189>$B$30,NA(),IF($A189>$A$8,"",OFFSET(InputPriceData!$G$15,CalculationsAndCharts!$A189+$A$11,IF($C$5,8,0),1,1))) -> 4966940000 | D189: =IF(A189>$B$30,NA(),IF(A189>$A$8,"",OFFSET(InputPriceData!$C$15,CalculationsAndCharts!$A189+$A$11,IF($C$5,8,0),1,1))) -> 2969.95 | E189: =IF(A189>$B$30,NA(),IF(A189>$A$8,"",OFFSET(InputPriceData!$D$15,CalculationsAndCharts!$A189+$A$11,IF($C$5,8,0),1,1))) -> 2978.5 | F189: =IF(A189>$B$30,NA(),IF(A189>$A$8,"",OFFSET(InputPriceData!$E$15,CalculationsAndCharts!$A189+$A$11,IF($C$5,8,0),1,1))) -> 2938.57 | G189: =IF(A189>$B$30,NA(),IF(A189>$A$8,"",OFFSET(InputPriceData!$F$15,CalculationsAndCharts!$A189+$A$11,IF($C$5,8,0),1,1))) -> 2948.51 | H189: 0.7431448255 | I189: 2948.51 | L189: 16.376 | M189: 29.64833333 | N189: 43.77142857 | O189: 48.09875 | P189: 44.79 | Q189: 42.182 | R189: 44.46727273 | S189: 49.1025 | T189: 51.48461538 | U189: 55.36214286 | V189: 59.52466667 | W189: 58.059375 | X189: 55.17352941 | Y189: 56.83722222 | Z189: 57.53157895 | AA189: 60.2435 | AB189: 64.55142857 | AC189: 68.39909091 | AD189: 74.64043478 | AE189: 76.75333333 | AF189: 76.6412 | AG189: 79.42269231 | AH189: 82.59777778 | AI189: 83.30678571 | AJ189: 86.87827586 | AK189: 89.272 | AL189: 2900.41125 | AM189: 2873.869565 | AN189: 0.9235521717 | AX189: 4966940000
A190: 158 | B190: =IF(A190>$B$30,NA(),IF($A190>$A$8,"",OFFSET(InputPriceData!$B$15,$A190+$A$11,0,1,1))) -> 2020-05-20 | C190: =IF(A190>$B$30,NA(),IF($A190>$A$8,"",OFFSET(InputPriceData!$G$15,CalculationsAndCharts!$A190+$A$11,IF($C$5,8,0),1,1))) -> 4992970000 | D190: =IF(A190>$B$30,NA(),IF(A190>$A$8,"",OFFSET(InputPriceData!$C$15,CalculationsAndCharts!$A190+$A$11,IF($C$5,8,0),1,1))) -> 2953.63 | E190: =IF(A190>$B$30,NA(),IF(A190>$A$8,"",OFFSET(InputPriceData!$D$15,CalculationsAndCharts!$A190+$A$11,IF($C$5,8,0),1,1))) -> 2980.29 | F190: =IF(A190>$B$30,NA(),IF(A190>$A$8,"",OFFSET(InputPriceData!$E$15,CalculationsAndCharts!$A190+$A$11,IF($C$5,8,0),1,1))) -> 2953.63 | G190: =IF(A190>$B$30,NA(),IF(A190>$A$8,"",OFFSET(InputPriceData!$F$15,CalculationsAndCharts!$A190+$A$11,IF($C$5,8,0),1,1))) -> 2971.61 | H190: 0.5877852523 | I190: 2971.61 | L190: 58.678 | M190: 74.16666667 | N190: 78.07 | O190: 73.48875 | P190: 69.96888889 | Q190: 72.014 | R190: 76.66636364 | S190: 78.875 | T190: 82.72076923 | U190: 86.87642857 | V190: 85.03 | W190: 81.721875 | X190: 83.28058824 | Y190: 83.82777778 | Z190: 86.51421053 | AA190: 90.879 | AB190: 94.75619048 | AC190: 101.1331818 | AD190: 103.1904348 | AE190: 102.9345833 | AF190: 105.6996 | AG190: 108.8746154 | AH190: 109.4922222 | AI190: 113.0810714 | AJ190: 115.4503448 | AK190: 118.9896667 | AL190: 2898.12125 | AM190: 2868.419565 | AN190: 1.035472117 | AW190: 4992970000
A191: 159 | B191: =IF(A191>$B$30,NA(),IF($A191>$A$8,"",OFFSET(InputPriceData!$B$15,$A191+$A$11,0,1,1))) -> 2020-05-19 | C191: =IF(A191>$B$30,NA(),IF($A191>$A$8,"",OFFSET(InputPriceData!$G$15,CalculationsAndCharts!$A191+$A$11,IF($C$5,8,0),1,1))) -> 4969330000 | D191: =IF(A191>$B$30,NA(),IF(A191>$A$8,"",OFFSET(InputPriceData!$C$15,CalculationsAndCharts!$A191+$A$11,IF($C$5,8,0),1,1))) -> 2948.59 | E191: =IF(A191>$B$30,NA(),IF(A191>$A$8,"",OFFSET(InputPriceData!$D$15,CalculationsAndCharts!$A191+$A$11,IF($C$5,8,0),1,1))) -> 2964.21 | F191: =IF(A191>$B$30,NA(),IF(A191>$A$8,"",OFFSET(InputPriceData!$E$15,CalculationsAndCharts!$A191+$A$11,IF($C$5,8,0),1,1))) -> 2922.35 | G191: =IF(A191>$B$30,NA(),IF(A191>$A$8,"",OFFSET(InputPriceData!$F$15,CalculationsAndCharts!$A191+$A$11,IF($C$5,8,0),1,1))) -> 2922.94 | H191: 0.4067366431 | I191: 2922.94 | L191: 40.33 | M191: 42.41166667 | N191: 35.31714286 | O191: 30.045 | P191: 31.34555556 | Q191: 35.663 | R191: 37.37545455 | S191: 40.94416667 | T191: 44.88923077 | U191: 42.43357143 | V191: 38.5 | W191: 39.815625 | X191: 40.08882353 | Y191: 42.65055556 | Z191: 46.99210526 | AA191: 50.824 | AB191: 57.27904762 | AC191: 59.21090909 | AD191: 58.74 | AE191: 61.43375 | AF191: 64.5596 | AG191: 65.03346154 | AH191: 68.59925926 | AI191: 70.90357143 | AJ191: 74.42275862 | AK191: 80.72633333 | AL191: 2892.895 | AM191: 2864.2 | AN191: 1.001850429 | AX191: 4969330000
A192: 160 | B192: =IF(A192>$B$30,NA(),IF($A192>$A$8,"",OFFSET(InputPriceData!$B$15,$A192+$A$11,0,1,1))) -> 2020-05-18 | C192: =IF(A192>$B$30,NA(),IF($A192>$A$8,"",OFFSET(InputPriceData!$G$15,CalculationsAndCharts!$A192+$A$11,IF($C$5,8,0),1,1))) -> 6364290000 | D192: =IF(A192>$B$30,NA(),IF(A192>$A$8,"",OFFSET(InputPriceData!$C$15,CalculationsAndCharts!$A192+$A$11,IF($C$5,8,0),1,1))) -> 2913.86 | E192: =IF(A192>$B$30,NA(),IF(A192>$A$8,"",OFFSET(InputPriceData!$D$15,CalculationsAndCharts!$A192+$A$11,IF($C$5,8,0),1,1))) -> 2968.09 | F192: =IF(A192>$B$30,NA(),IF(A192>$A$8,"",OFFSET(InputPriceData!$E$15,CalculationsAndCharts!$A192+$A$11,IF($C$5,8,0),1,1))) -> 2913.86 | G192: =IF(A192>$B$30,NA(),IF(A192>$A$8,"",OFFSET(InputPriceData!$F$15,CalculationsAndCharts!$A192+$A$11,IF($C$5,8,0),1,1))) -> 2953.91 | H192: 0.2079116908 | I192: 2953.91 | L192: 81.864 | M192: 72.17333333 | N192: 65.30714286 | O192: 66.23375 | P192: 70.59555556 | Q192: 72.083 | R192: 75.63636364 | S192: 79.6 | T192: 76.66769231 | U192: 72.22 | V192: 73.44 | W192: 73.564375 | X192: 76.12941176 | Y192: 80.57277778 | Z192: 84.46894737 | AA192: 91.113 | AB192: 93.00047619 | AC192: 92.38 | AD192: 95.07478261 | AE192: 98.21958333 | AF192: 98.6048 | AG192: 102.2076923 | AH192: 104.4996296 | AI192: 108.0507143 | AJ192: 114.48 | AK192: 120.3383333 | AL192: 2887.67625 | AM192: 2858.835217 | AN192: 1.00883858 | AW192: 6364290000
A193: 161 | B193: =IF(A193>$B$30,NA(),IF($A193>$A$8,"",OFFSET(InputPriceData!$B$15,$A193+$A$11,0,1,1))) -> 2020-05-15 | C193: =IF(A193>$B$30,NA(),IF($A193>$A$8,"",OFFSET(InputPriceData!$G$15,CalculationsAndCharts!$A193+$A$11,IF($C$5,8,0),1,1))) -> 5477040000 | D193: =IF(A193>$B$30,NA(),IF(A193>$A$8,"",OFFSET(InputPriceData!$C$15,CalculationsAndCharts!$A193+$A$11,IF($C$5,8,0),1,1))) -> 2829.95 | E193: =IF(A193>$B$30,NA(),IF(A193>$A$8,"",OFFSET(InputPriceData!$D$15,CalculationsAndCharts!$A193+$A$11,IF($C$5,8,0),1,1))) -> 2865.01 | F193: =IF(A193>$B$30,NA(),IF(A193>$A$8,"",OFFSET(InputPriceData!$E$15,CalculationsAndCharts!$A193+$A$11,IF($C$5,8,0),1,1))) -> 2816.78 | G193: =IF(A193>$B$30,NA(),IF(A193>$A$8,"",OFFSET(InputPriceData!$F$15,CalculationsAndCharts!$A193+$A$11,IF($C$5,8,0),1,1))) -> 2863.7 | H193: -3.332317061e-14 | I193: 2863.7 | L193: -3.602 | M193: -14.01833333 | N193: -14.51428571 | O193: -10.79 | P193: -10.11777778 | Q193: -7.01 | R193: -3.373636364 | S193: -7.153333333 | T193: -12.43461538 | U193: -11.52428571 | V193: -11.74133333 | W193: -9.3225 | X193: -4.897647059 | Y193: -1.048333333 | Z193: 5.698421053 | AA193: 7.4405 | AB193: 6.569047619 | AC193: 9.186363636 | AD193: 12.28 | AE193: 12.50333333 | AF193: 16.086 | AG193: 18.30884615 | AH193: 21.84259259 | AI193: 28.35857143 | AJ193: 34.27793103 | AK193: 45.637 | AL193: 2874.49 | AM193: 2851.42 | AN193: 0.8090705683 | AW193: 5477040000
A194: 162 | B194: =IF(A194>$B$30,NA(),IF($A194>$A$8,"",OFFSET(InputPriceData!$B$15,$A194+$A$11,0,1,1))) -> 2020-05-14 | C194: =IF(A194>$B$30,NA(),IF($A194>$A$8,"",OFFSET(InputPriceData!$G$15,CalculationsAndCharts!$A194+$A$11,IF($C$5,8,0),1,1))) -> 5641920000 | D194: =IF(A194>$B$30,NA(),IF(A194>$A$8,"",OFFSET(InputPriceData!$C$15,CalculationsAndCharts!$A194+$A$11,IF($C$5,8,0),1,1))) -> 2794.54 | E194: =IF(A194>$B$30,NA(),IF(A194>$A$8,"",OFFSET(InputPriceData!$D$15,CalculationsAndCharts!$A194+$A$11,IF($C$5,8,0),1,1))) -> 2852.8 | F194: =IF(A194>$B$30,NA(),IF(A194>$A$8,"",OFFSET(InputPriceData!$E$15,CalculationsAndCharts!$A194+$A$11,IF($C$5,8,0),1,1))) -> 2766.64 | G194: =IF(A194>$B$30,NA(),IF(A194>$A$8,"",OFFSET(InputPriceData!$F$15,CalculationsAndCharts!$A194+$A$11,IF($C$5,8,0),1,1))) -> 2852.5 | H194: -0.2079116908 | I194: 2852.5 | L194: -28.022 | M194: -28.13333333 | N194: -23.53142857 | O194: -22.5825 | P194: -18.98888889 | Q194: -14.911 | R194: -19.00363636 | S194: -24.67083333 | T194: -23.61076923 | U194: -23.78 | V194: -21.144 | W194: -16.40375 | X194: -12.31 | Y194: -5.185 | Z194: -3.367894737 | AA194: -4.3025 | AB194: -1.576190476 | AC194: 1.638181818 | AD194: 1.846956522 | AE194: 5.55625 | AF194: 7.8412 | AG194: 11.48269231 | AH194: 18.20888889 | AI194: 24.30214286 | AJ194: 36.01068966 | AK194: 45.66366667 | AL194: 2875.0825 | AM194: 2850.653043 | AN194: 0.8569775469 | AW194: 5641920000
A195: 163 | B195: =IF(A195>$B$30,NA(),IF($A195>$A$8,"",OFFSET(InputPriceData!$B$15,$A195+$A$11,0,1,1))) -> 2020-05-13 | C195: =IF(A195>$B$30,NA(),IF($A195>$A$8,"",OFFSET(InputPriceData!$G$15,CalculationsAndCharts!$A195+$A$11,IF($C$5,8,0),1,1))) -> 6143130000 | D195: =IF(A195>$B$30,NA(),IF(A195>$A$8,"",OFFSET(InputPriceData!$C$15,CalculationsAndCharts!$A195+$A$11,IF($C$5,8,0),1,1))) -> 2865.86 | E195: =IF(A195>$B$30,NA(),IF(A195>$A$8,"",OFFSET(InputPriceData!$D$15,CalculationsAndCharts!$A195+$A$11,IF($C$5,8,0),1,1))) -> 2874.14 | F195: =IF(A195>$B$30,NA(),IF(A195>$A$8,"",OFFSET(InputPriceData!$E$15,CalculationsAndCharts!$A195+$A$11,IF($C$5,8,0),1,1))) -> 2793.15 | G195: =IF(A195>$B$30,NA(),IF(A195>$A$8,"",OFFSET(InputPriceData!$F$15,CalculationsAndCharts!$A195+$A$11,IF($C$5,8,0),1,1))) -> 2820 | H195: -0.4067366431 | I195: 2820 | L195: -66.26 | M195: -59.95333333 | N195: -58.30857143 | O195: -53.8625 | P195: -49.06777778 | Q195: -53.404 | R195: -59.41363636 | S195: -58.07833333 | T195: -58.10923077 | U195: -55.15428571 | V195: -49.99733333 | W195: -45.579375 | X195: -37.99 | Y195: -36.055 | Z195: -37.02894737 | AA195: -34.155 | AB195: -30.78380952 | AC195: -30.56909091 | AD195: -26.70217391 | AE195: -24.33208333 | AF195: -20.558 | AG195: -13.59076923 | AH195: -7.297777778 | AI195: 4.796785714 | AJ195: 14.73827586 | AK195: 25.897 | AL195: 2873.8625 | AM195: 2846.702174 | AN195: 0.954097915 | AX195: 6143130000
A196: 164 | B196: =IF(A196>$B$30,NA(),IF($A196>$A$8,"",OFFSET(InputPriceData!$B$15,$A196+$A$11,0,1,1))) -> 2020-05-12 | C196: =IF(A196>$B$30,NA(),IF($A196>$A$8,"",OFFSET(InputPriceData!$G$15,CalculationsAndCharts!$A196+$A$11,IF($C$5,8,0),1,1))) -> 5107710000 | D196: =IF(A196>$B$30,NA(),IF(A196>$A$8,"",OFFSET(InputPriceData!$C$15,CalculationsAndCharts!$A196+$A$11,IF($C$5,8,0),1,1))) -> 2939.5 | E196: =IF(A196>$B$30,NA(),IF(A196>$A$8,"",OFFSET(InputPriceData!$D$15,CalculationsAndCharts!$A196+$A$11,IF($C$5,8,0),1,1))) -> 2945.82 | F196: =IF(A196>$B$30,NA(),IF(A196>$A$8,"",OFFSET(InputPriceData!$E$15,CalculationsAndCharts!$A196+$A$11,IF($C$5,8,0),1,1))) -> 2869.59 | G196: =IF(A196>$B$30,NA(),IF(A196>$A$8,"",OFFSET(InputPriceData!$F$15,CalculationsAndCharts!$A196+$A$11,IF($C$5,8,0),1,1))) -> 2870.12 | H196: -0.5877852523 | I196: 2870.12 | L196: -21.824 | M196: -17.90666667 | N196: -11.43714286 | O196: -5.08125 | P196: -9.217777778 | Q196: -15.235 | R196: -13.23818182 | S196: -12.83166667 | T196: -9.276923077 | U196: -3.448571429 | V196: 1.502 | W196: 9.755625 | X196: 11.94411765 | Y196: 11.03388889 | Z196: 14.16736842 | AA196: 17.797 | AB196: 18.0952381 | AC196: 22.20409091 | AD196: 24.73 | AE196: 28.70541667 | AF196: 35.9856 | AG196: 42.54153846 | AH196: 55.09444444 | AI196: 65.38464286 | AJ196: 76.91 | AK196: 83.864 | AL196: 2875.20125 | AM196: 2845.39 | AN196: 1.047703478 | AX196: 5107710000
A197: 165 | B197: =IF(A197>$B$30,NA(),IF($A197>$A$8,"",OFFSET(InputPriceData!$B$15,$A197+$A$11,0,1,1))) -> 2020-05-11 | C197: =IF(A197>$B$30,NA(),IF($A197>$A$8,"",OFFSET(InputPriceData!$G$15,CalculationsAndCharts!$A197+$A$11,IF($C$5,8,0),1,1))) -> 4807320000 | D197: =IF(A197>$B$30,NA(),IF(A197>$A$8,"",OFFSET(InputPriceData!$C$15,CalculationsAndCharts!$A197+$A$11,IF($C$5,8,0),1,1))) -> 2915.46 | E197: =IF(A197>$B$30,NA(),IF(A197>$A$8,"",OFFSET(InputPriceData!$D$15,CalculationsAndCharts!$A197+$A$11,IF($C$5,8,0),1,1))) -> 2944.25 | F197: =IF(A197>$B$30,NA(),IF(A197>$A$8,"",OFFSET(InputPriceData!$E$15,CalculationsAndCharts!$A197+$A$11,IF($C$5,8,0),1,1))) -> 2903.44 | G197: =IF(A197>$B$30,NA(),IF(A197>$A$8,"",OFFSET(InputPriceData!$F$15,CalculationsAndCharts!$A197+$A$11,IF($C$5,8,0),1,1))) -> 2930.19 | H197: -0.7431448255 | I197: 2930.19 | L197: 38.582 | M197: 46.72666667 | N197: 54.26285714 | O197: 49.7 | P197: 43.14222222 | Q197: 45.508 | R197: 46.07181818 | S197: 50.02 | T197: 56.35615385 | U197: 61.67928571 | V197: 70.476 | W197: 72.760625 | X197: 71.75294118 | Y197: 75.02444444 | Z197: 78.80368421 | AA197: 79.07 | AB197: 83.33142857 | AC197: 85.92409091 | AD197: 90.02347826 | AE197: 97.555 | AF197: 104.3132 | AG197: 117.2834615 | AH197: 127.8762963 | AI197: 139.7267857 | AJ197: 146.8258621 | AK197: 152.0496667 | AL197: 2880.49 | AM197: 2840.166522 | AN197: 1.419757537 | AW197: 4807320000
